Workbook

Sheet INTRO
B2: Formulaire de Rapport Commun v.3
B4: Le but de ce formulaire de rapport commun - disponible sous forme de fichier Excel - est de mettre à disposition des autorités sanitaires nationales et des gestionnaires de données un outil standardisé qui réponde aux défis, facilite l'intégration et par conséquent contribue à améliorer la gestion de programme. Ce formulaire tend à standardiser le rapport de résultats des programmes nationaux, améliore la disponibilité et la coordination des données de chimioprévention à travers les Bureaux des Régions de l'Organisation mondiale de la Santé. Les autorités nationales sont priées de compléter ce formulaire et de le soumettre à l'Organisation mondiale de la Santé avant le 15 août de l'année en cours pour rapporter les données des activités de chimioprévention mises en oeuvre l'année précédente.
B6: Structure de l'application (feuilles de travail) :
B8: INTRO | C8: Cette feuille contient des instructions pour compléter le formulaire de rapport commun et des informations sur le statut de la chimioprévention pour les maladies d'endémie du pays.
B9: COUNTRY_INFO | C9: Cette feuille contient des informations sur la structure administrative du pays, la population par groupe d'âge, le statut d'endémicité pour chaque maladie, la population devant être traitée par chimioprévention, les interventions prévues et les interventions mises en oeuvre.
B10: MDA1, MDA2, MDA3, T1, T2 et T3 | C10: Ces feuilles contiennent des informations sur l'endémicité des districts ciblés pour le traitement aux médicaments spécifiques pour la chimioprévention, les plans de traitement, et le nombre de personnes traitées par groupe d'âge.
B11: DISTRICT | C11: Cette feuille contient un résumé sur les personnes traitées, par maladie, au niveau de mise en oeuvre. Si les données par genre (sexe) sont disponibles, merci de les saisir.
B12: SUMMARY | C12: Cette feuille contient un résumé sur les personnes traitées, par maladie et par type d'intervention de chimioprévention. Avant de générer le rapport (exécuter macro), veuillez sélectionner la maladie pour laquelle vous souhaitez un rapport. Veuillez suivre le même processus pour générer les divers rapports. Cette feuille doit être imprimée et soumise comme formulaire de rapport commun (voir les instructions pour la soumission du formulaire sous la feuille SUMMARY).
B14: Instructions pour la saisie des données
B16: La plupart des cellules des feuilles de travail mentionnées ci-dessus contiennent des formules calculées automatiquement en fonction du protocole de traitement recommandé par l'OMS pour chaque maladie. Voir : http://www.who.int/neglected_diseases/preventive_chemotherapy/pct_manual/en/index.html
B18: Veuillez entrer vos données dans les cellules en fonction de leur code de couleur :
C20: Blanc - la cellule n'est pas protégée. Veuillez entrer la valeur de l'indicateur demandé.
C22: Jaune - la cellule est protégée et inclut le nom de l'indicateur. Aucune entrée de données requise.
C24: Orange - la cellule n'est pas protégée et contient un menu déroulant. Veuillez sélectionner la valeur dans le menu déroulant.
C27: Vert - la cellule n'est pas protégée et contient des formules. Veuillez changer la valeur indiquée uniquement si vos données sont différentes de celles calculées automatiquement.
C30: Bleu - la cellule est protégée et contient des formules. Aucune entrée de données requise.
B32: Données pays
B34: PAYS | E34: Mali
B36: Année de rapport des données | E36: 2017
B38: Le pays est-il endémique à la filariose lymphatique (FL) ? | E38: Endémique
B40: Le pays est-il endémique à l'onchocercose (ONCHO) ? | E40: Endémique
B42: Le pays est-il endémique aux géohelminthiases (STH) ? | E42: Endémique
B44: Le pays est-il endémique à la schistosomiase (SCH) ? | E44: Endémique
B46: Combien d'unités administratives compte le pays ? | E46: 65
B47: Si les données démographiques par groupe d'âge ne sont pas disponibles au second niveau administratif, veuillez entrer la proportion (%) de population, par groupe d'âge, du pays. Si les données sont disponibles, veuillez laisser les cellules vierges.
B48: 1-4 ans | C48: Enfants d'âge pré-scolaire (EAPréS) | E48: 0.14
B49: 5-14 ans | C49: Enfants d'âge scolaire (EAS) | E49: 0.28
B50: 15 ans et plus | C50: Adultes | E50: 0.515

Sheet COUNTRY_INFO
A1: INFORMATIONS PAYS
A2: Structure administrative, population par groupe d'âge, statut d'endémicité, interventions planifiées et interventions mises en oeuvre
A4: TOTAL | D4: =SUM(D$9:D$1000) -> 18951089 | E4: =SUM(E$9:E$1000) -> 2653154 | F4: =SUM(F$9:F$1000) -> 5306307 | G4: =SUM(G$9:G$1000) -> 9759813 | L4: =SUM(L$9:L$1000) -> 2342766 | M4: =SUM(M$9:M$1000) -> 5737454 | N4: =SUM(N$9:N$1000) -> 0 | O4: =SUM(O$9:O$1000) -> 4952507.08
A6: Structure administrative du pays | D6: Population | H6: Endémicité | L6: Population nécessitant la CP | P6: Nombre de tournées de traitement prévues pour l'année | T6: Mise en oeuvre de la chimioprévention | V6: Cliquer ci-dessous pour voir la stratégie recommandée
A7: Pays | B7: Région/Département | C7: District | D7: Total | E7: EAPréS | F7: EAS | G7: Adultes | H7: FL | I7: Oncho | J7: STH | K7: SCH | L7: FL | M7: Oncho | N7: STH | O7: SCH | P7: FL | Q7: Oncho | R7: STH | S7: SCH | T7: TOURNEE 1 | U7: TOURNEE 2 | X7: UI_Id | Y7: UI_Name
A9: =IF(INTRO!$E$34<>0,INTRO!$E$34,"") -> Mali | B9: Bamako | C9: Commune 1 | D9: 436059 | E9: =IF(INTRO!$E$48="","",ROUND($D9*INTRO!$E$48,0)) -> 61048 | F9: =IF(INTRO!$E$49="","",ROUND($D9*INTRO!$E$49,0)) -> 122097 | G9: =IF(INTRO!$E$50="","",ROUND($D9*INTRO!$E$50,0)) -> 224570 | H9: 99 | I9: 0 | J9: 1 | K9: =AG9 -> 2 | L9: =IF(INTRO!$E$38="Endémique", IF($H9>0, IF($H9=4,"Inconnu", IF($H9=99,"Interrompu", $D9)), 0),"Non requis") -> Interrompu | M9: =IF(INTRO!$E$40="Endémique", IF($I9>0, IF($I9=4,"Inconnu",IF($I9=99,"Interrompu", $D9)), 0),"Non requis") -> 0 | N9: =IF(INTRO!$E$42="Endémique", IF(AND($J9>1,$J9<5), IF($J9=4, "Inconnu", E9+F9), 0),"Non requis") -> 0 | O9: =IF(INTRO!$E$44="Endémique", IF(AND($K9>0,$K9<5), IF($K9=4,"Inconnu", IF($K9=1, $F9*0.33, IF($K9=2, $F9*0.5+$G9*0.2, SUM(F9:G9)))), 0),"Non requis") -> 105962.5 | P9: 0 | Q9: 0 | R9: 1 | S9: 0 | T9: T3 (ALB/MBD) | V9: T3 | W9: T3 | X9: 29972 | Y9: Commune 1 | AA9: FALSE | AB9: BAMAKO | AC9: Commune i | AD9: 99 | AE9: 0 | AF9: 1 | AG9: 2 | AH9: =AD9=H9 -> TRUE | AI9: =AE9=I9 -> TRUE | AJ9: TRUE | AK9: TRUE
A10: =IF(INTRO!$E$34<>0,INTRO!$E$34,"") -> Mali | B10: Bamako | C10: Commune 2 | D10: 207761 | E10: =IF(INTRO!$E$48="","",ROUND($D10*INTRO!$E$48,0)) -> 29087 | F10: =IF(INTRO!$E$49="","",ROUND($D10*INTRO!$E$49,0)) -> 58173 | G10: =IF(INTRO!$E$50="","",ROUND($D10*INTRO!$E$50,0)) -> 106997 | H10: 99 | I10: 0 | J10: 1 | K10: =AG10 -> 1 | L10: =IF(INTRO!$E$38="Endémique", IF($H10>0, IF($H10=4,"Inconnu", IF($H10=99,"Interrompu", $D10)), 0),"Non requis") -> Interrompu | M10: =IF(INTRO!$E$40="Endémique", IF($I10>0, IF($I10=4,"Inconnu",IF($I10=99,"Interrompu", $D10)), 0),"Non requis") -> 0 | N10: =IF(INTRO!$E$42="Endémique", IF(AND($J10>1,$J10<5), IF($J10=4, "Inconnu", E10+F10), 0),"Non requis") -> 0 | O10: =IF(INTRO!$E$44="Endémique", IF(AND($K10>0,$K10<5), IF($K10=4,"Inconnu", IF($K10=1, $F10*0.33, IF($K10=2, $F10*0.5+$G10*0.2, SUM(F10:G10)))), 0),"Non requis") -> 19197.09 | P10: 0 | Q10: 0 | R10: 1 | S10: 0 | T10: T3 (ALB/MBD) | V10: T3 | W10: T3 | X10: 29973 | Y10: Commune 2 | AA10: FALSE | AB10: BAMAKO | AC10: Commune ii | AD10: 99 | AE10: 0 | AF10: 1 | AG10: 1 | AH10: =AD10=H10 -> TRUE | AI10: =AE10=I10 -> TRUE | AJ10: =AF10=J10 -> TRUE | AK10: =AG10=K10 -> TRUE
A11: =IF(INTRO!$E$34<>0,INTRO!$E$34,"") -> Mali | B11: Bamako | C11: Commune 3 | D11: 167545 | E11: =IF(INTRO!$E$48="","",ROUND($D11*INTRO!$E$48,0)) -> 23456 | F11: =IF(INTRO!$E$49="","",ROUND($D11*INTRO!$E$49,0)) -> 46913 | G11: =IF(INTRO!$E$50="","",ROUND($D11*INTRO!$E$50,0)) -> 86286 | H11: 99 | I11: 0 | J11: 1 | K11: 1 | L11: =IF(INTRO!$E$38="Endémique", IF($H11>0, IF($H11=4,"Inconnu", IF($H11=99,"Interrompu", $D11)), 0),"Non requis") -> Interrompu | M11: =IF(INTRO!$E$40="Endémique", IF($I11>0, IF($I11=4,"Inconnu",IF($I11=99,"Interrompu", $D11)), 0),"Non requis") -> 0 | N11: =IF(INTRO!$E$42="Endémique", IF(AND($J11>1,$J11<5), IF($J11=4, "Inconnu", E11+F11), 0),"Non requis") -> 0 | O11: =IF(INTRO!$E$44="Endémique", IF(AND($K11>0,$K11<5), IF($K11=4,"Inconnu", IF($K11=1, $F11*0.33, IF($K11=2, $F11*0.5+$G11*0.2, SUM(F11:G11)))), 0),"Non requis") -> 15481.29 | P11: 0 | Q11: 0 | R11: 1 | S11: 0 | T11: T3 (ALB/MBD) | V11: T3 | W11: T3 | X11: 29974 | Y11: Commune 3 | AA11: FALSE | AB11: BAMAKO | AC11: Commune iii | AD11: 99 | AE11: 0 | AF11: 1 | AG11: 1 | AH11: TRUE | AI11: TRUE | AJ11: TRUE | AK11: TRUE
A12: =IF(INTRO!$E$34<>0,INTRO!$E$34,"") -> Mali | B12: Bamako | C12: Commune 4 | D12: 390137 | E12: =IF(INTRO!$E$48="","",ROUND($D12*INTRO!$E$48,0)) -> 54619 | F12: =IF(INTRO!$E$49="","",ROUND($D12*INTRO!$E$49,0)) -> 109238 | G12: =IF(INTRO!$E$50="","",ROUND($D12*INTRO!$E$50,0)) -> 200921 | H12: 99 | I12: 0 | J12: 1 | K12: 2 | L12: =IF(INTRO!$E$38="Endémique", IF($H12>0, IF($H12=4,"Inconnu", IF($H12=99,"Interrompu", $D12)), 0),"Non requis") -> Interrompu | M12: =IF(INTRO!$E$40="Endémique", IF($I12>0, IF($I12=4,"Inconnu",IF($I12=99,"Interrompu", $D12)), 0),"Non requis") -> 0 | N12: =IF(INTRO!$E$42="Endémique", IF(AND($J12>1,$J12<5), IF($J12=4, "Inconnu", E12+F12), 0),"Non requis") -> 0 | O12: =IF(INTRO!$E$44="Endémique", IF(AND($K12>0,$K12<5), IF($K12=4,"Inconnu", IF($K12=1, $F12*0.33, IF($K12=2, $F12*0.5+$G12*0.2, SUM(F12:G12)))), 0),"Non requis") -> 94803.2 | P12: 0 | Q12: 0 | R12: 1 | S12: 1 | T12: T1 (PZQ+ALB/MBD) | V12: T1 | W12: T3 | X12: 29975 | Y12: Commune 4 | AA12: FALSE | AB12: BAMAKO | AC12: Commune iv | AD12: 99 | AE12: 0 | AF12: 1 | AG12: 2 | AH12: TRUE | AI12: TRUE | AJ12: TRUE | AK12: TRUE
A13: =IF(INTRO!$E$34<>0,INTRO!$E$34,"") -> Mali | B13: Bamako | C13: Commune 5 | D13: 539106 | E13: =IF(INTRO!$E$48="","",ROUND($D13*INTRO!$E$48,0)) -> 75475 | F13: =IF(INTRO!$E$49="","",ROUND($D13*INTRO!$E$49,0)) -> 150950 | G13: =IF(INTRO!$E$50="","",ROUND($D13*INTRO!$E$50,0)) -> 277640 | H13: 99 | I13: 0 | J13: 1 | K13: 2 | L13: =IF(INTRO!$E$38="Endémique", IF($H13>0, IF($H13=4,"Inconnu", IF($H13=99,"Interrompu", $D13)), 0),"Non requis") -> Interrompu | M13: =IF(INTRO!$E$40="Endémique", IF($I13>0, IF($I13=4,"Inconnu",IF($I13=99,"Interrompu", $D13)), 0),"Non requis") -> 0 | N13: =IF(INTRO!$E$42="Endémique", IF(AND($J13>1,$J13<5), IF($J13=4, "Inconnu", E13+F13), 0),"Non requis") -> 0 | O13: =IF(INTRO!$E$44="Endémique", IF(AND($K13>0,$K13<5), IF($K13=4,"Inconnu", IF($K13=1, $F13*0.33, IF($K13=2, $F13*0.5+$G13*0.2, SUM(F13:G13)))), 0),"Non requis") -> 131003 | P13: 0 | Q13: 0 | R13: 1 | S13: 1 | T13: T1 (PZQ+ALB/MBD) | V13: T1 | W13: T3 | X13: 29976 | Y13: Commune 5 | AA13: FALSE | AB13: BAMAKO | AC13: Commune v | AD13: 99 | AE13: 0 | AF13: 1 | AG13: 2 | AH13: TRUE | AI13: TRUE | AJ13: TRUE | AK13: TRUE
A14: =IF(INTRO!$E$34<>0,INTRO!$E$34,"") -> Mali | B14: Bamako | C14: Commune 6 | D14: 611392 | E14: =IF(INTRO!$E$48="","",ROUND($D14*INTRO!$E$48,0)) -> 85595 | F14: =IF(INTRO!$E$49="","",ROUND($D14*INTRO!$E$49,0)) -> 171190 | G14: =IF(INTRO!$E$50="","",ROUND($D14*INTRO!$E$50,0)) -> 314867 | H14: 99 | I14: 0 | J14: 1 | K14: =AG14 -> 1 | L14: =IF(INTRO!$E$38="Endémique", IF($H14>0, IF($H14=4,"Inconnu", IF($H14=99,"Interrompu", $D14)), 0),"Non requis") -> Interrompu | M14: =IF(INTRO!$E$40="Endémique", IF($I14>0, IF($I14=4,"Inconnu",IF($I14=99,"Interrompu", $D14)), 0),"Non requis") -> 0 | N14: =IF(INTRO!$E$42="Endémique", IF(AND($J14>1,$J14<5), IF($J14=4, "Inconnu", E14+F14), 0),"Non requis") -> 0 | O14: =IF(INTRO!$E$44="Endémique", IF(AND($K14>0,$K14<5), IF($K14=4,"Inconnu", IF($K14=1, $F14*0.33, IF($K14=2, $F14*0.5+$G14*0.2, SUM(F14:G14)))), 0),"Non requis") -> 56492.7 | P14: 0 | Q14: 0 | R14: 1 | S14: 0 | T14: T3 (ALB/MBD) | V14: T3 | W14: T3 | X14: 29977 | Y14: Commune 6 | AA14: FALSE | AB14: BAMAKO | AC14: Commune vi | AD14: 99 | AE14: 0 | AF14: 1 | AG14: 1 | AH14: TRUE | AI14: TRUE | AJ14: TRUE | AK14: TRUE
A15: =IF(INTRO!$E$34<>0,INTRO!$E$34,"") -> Mali | B15: Gao | C15: Ansongo | D15: 171294 | E15: =IF(INTRO!$E$48="","",ROUND($D15*INTRO!$E$48,0)) -> 23981 | F15: =IF(INTRO!$E$49="","",ROUND($D15*INTRO!$E$49,0)) -> 47962 | G15: =IF(INTRO!$E$50="","",ROUND($D15*INTRO!$E$50,0)) -> 88216 | H15: 1 | I15: 0 | J15: 1 | K15: 2 | L15: =IF(INTRO!$E$38="Endémique", IF($H15>0, IF($H15=4,"Inconnu", IF($H15=99,"Interrompu", $D15)), 0),"Non requis") -> 171294 | M15: =IF(INTRO!$E$40="Endémique", IF($I15>0, IF($I15=4,"Inconnu",IF($I15=99,"Interrompu", $D15)), 0),"Non requis") -> 0 | N15: =IF(INTRO!$E$42="Endémique", IF(AND($J15>1,$J15<5), IF($J15=4, "Inconnu", E15+F15), 0),"Non requis") -> 0 | O15: =IF(INTRO!$E$44="Endémique", IF(AND($K15>0,$K15<5), IF($K15=4,"Inconnu", IF($K15=1, $F15*0.33, IF($K15=2, $F15*0.5+$G15*0.2, SUM(F15:G15)))), 0),"Non requis") -> 41624.2 | P15: 1 | Q15: 0 | R15: 1 | S15: 0 | T15: MDA1 (IVM+ALB) | V15: MDA 1 | W15: T3 | X15: 29978 | Y15: Ansongo | AA15: TRUE | AB15: GAO | AC15: Ansongo | AD15: 1 | AE15: 0 | AF15: 1 | AG15: 2 | AH15: TRUE | AI15: TRUE | AJ15: TRUE | AK15: TRUE
A16: =IF(INTRO!$E$34<>0,INTRO!$E$34,"") -> Mali | B16: Gao | C16: Bourem | D16: 150243 | E16: =IF(INTRO!$E$48="","",ROUND($D16*INTRO!$E$48,0)) -> 21034 | F16: =IF(INTRO!$E$49="","",ROUND($D16*INTRO!$E$49,0)) -> 42068 | G16: =IF(INTRO!$E$50="","",ROUND($D16*INTRO!$E$50,0)) -> 77375 | H16: 1 | I16: 0 | J16: 1 | K16: 2 | L16: =IF(INTRO!$E$38="Endémique", IF($H16>0, IF($H16=4,"Inconnu", IF($H16=99,"Interrompu", $D16)), 0),"Non requis") -> 150243 | M16: =IF(INTRO!$E$40="Endémique", IF($I16>0, IF($I16=4,"Inconnu",IF($I16=99,"Interrompu", $D16)), 0),"Non requis") -> 0 | N16: =IF(INTRO!$E$42="Endémique", IF(AND($J16>1,$J16<5), IF($J16=4, "Inconnu", E16+F16), 0),"Non requis") -> 0 | O16: =IF(INTRO!$E$44="Endémique", IF(AND($K16>0,$K16<5), IF($K16=4,"Inconnu", IF($K16=1, $F16*0.33, IF($K16=2, $F16*0.5+$G16*0.2, SUM(F16:G16)))), 0),"Non requis") -> 36509 | P16: 1 | Q16: 0 | R16: 1 | S16: 0 | T16: MDA1 (IVM+ALB) | V16: MDA 1 | W16: T3 | X16: 29979 | Y16: Bourem | AA16: TRUE | AB16: GAO | AC16: Bourem | AD16: 1 | AE16: 0 | AF16: 1 | AG16: 2 | AH16: TRUE | AI16: TRUE | AJ16: TRUE | AK16: TRUE
A17: =IF(INTRO!$E$34<>0,INTRO!$E$34,"") -> Mali | B17: Gao | C17: Gao | D17: 310770 | E17: =IF(INTRO!$E$48="","",ROUND($D17*INTRO!$E$48,0)) -> 43508 | F17: =IF(INTRO!$E$49="","",ROUND($D17*INTRO!$E$49,0)) -> 87016 | G17: =IF(INTRO!$E$50="","",ROUND($D17*INTRO!$E$50,0)) -> 160047 | H17: 1 | I17: 0 | J17: 1 | K17: 2 | L17: =IF(INTRO!$E$38="Endémique", IF($H17>0, IF($H17=4,"Inconnu", IF($H17=99,"Interrompu", $D17)), 0),"Non requis") -> 310770 | M17: =IF(INTRO!$E$40="Endémique", IF($I17>0, IF($I17=4,"Inconnu",IF($I17=99,"Interrompu", $D17)), 0),"Non requis") -> 0 | N17: =IF(INTRO!$E$42="Endémique", IF(AND($J17>1,$J17<5), IF($J17=4, "Inconnu", E17+F17), 0),"Non requis") -> 0 | O17: =IF(INTRO!$E$44="Endémique", IF(AND($K17>0,$K17<5), IF($K17=4,"Inconnu", IF($K17=1, $F17*0.33, IF($K17=2, $F17*0.5+$G17*0.2, SUM(F17:G17)))), 0),"Non requis") -> 75517.4 | P17: 1 | Q17: 0 | R17: 1 | S17: 0 | T17: MDA1 (IVM+ALB) | V17: MDA 1 | W17: T3 | X17: 29980 | Y17: Gao | AA17: TRUE | AB17: GAO | AC17: Gao | AD17: 1 | AE17: 0 | AF17: 1 | AG17: 2 | AH17: TRUE | AI17: TRUE | AJ17: TRUE | AK17: TRUE
A18: =IF(INTRO!$E$34<>0,INTRO!$E$34,"") -> Mali | B18: Gao | C18: Menaka | D18: 72692 | E18: =IF(INTRO!$E$48="","",ROUND($D18*INTRO!$E$48,0)) -> 10177 | F18: =IF(INTRO!$E$49="","",ROUND($D18*INTRO!$E$49,0)) -> 20354 | G18: =IF(INTRO!$E$50="","",ROUND($D18*INTRO!$E$50,0)) -> 37436 | H18: 1 | I18: 0 | J18: 1 | K18: 5 | L18: =IF(INTRO!$E$38="Endémique", IF($H18>0, IF($H18=4,"Inconnu", IF($H18=99,"Interrompu", $D18)), 0),"Non requis") -> 72692 | M18: =IF(INTRO!$E$40="Endémique", IF($I18>0, IF($I18=4,"Inconnu",IF($I18=99,"Interrompu", $D18)), 0),"Non requis") -> 0 | N18: =IF(INTRO!$E$42="Endémique", IF(AND($J18>1,$J18<5), IF($J18=4, "Inconnu", E18+F18), 0),"Non requis") -> 0 | O18: =IF(INTRO!$E$44="Endémique", IF(AND($K18>0,$K18<5), IF($K18=4,"Inconnu", IF($K18=1, $F18*0.33, IF($K18=2, $F18*0.5+$G18*0.2, SUM(F18:G18)))), 0),"Non requis") -> 0 | P18: 1 | Q18: 0 | R18: 1 | S18: 0 | T18: MDA1 (IVM+ALB) | V18: MDA 1 | W18: T3 | X18: 29981 | Y18: Menaka | AA18: TRUE | AB18: GAO | AC18: Menaka | AD18: 1 | AE18: 0 | AF18: 1 | AG18: 5 | AH18: TRUE | AI18: TRUE | AJ18: TRUE | AK18: TRUE
A19: =IF(INTRO!$E$34<>0,INTRO!$E$34,"") -> Mali | B19: Kayes | C19: Bafoulabe | D19: 166880 | E19: =IF(INTRO!$E$48="","",ROUND($D19*INTRO!$E$48,0)) -> 23363 | F19: =IF(INTRO!$E$49="","",ROUND($D19*INTRO!$E$49,0)) -> 46726 | G19: =IF(INTRO!$E$50="","",ROUND($D19*INTRO!$E$50,0)) -> 85943 | H19: 99 | I19: 1 | J19: 1 | K19: 3 | L19: =IF(INTRO!$E$38="Endémique", IF($H19>0, IF($H19=4,"Inconnu", IF($H19=99,"Interrompu", $D19)), 0),"Non requis") -> Interrompu | M19: =IF(INTRO!$E$40="Endémique", IF($I19>0, IF($I19=4,"Inconnu",IF($I19=99,"Interrompu", $D19)), 0),"Non requis") -> 166880 | N19: =IF(INTRO!$E$42="Endémique", IF(AND($J19>1,$J19<5), IF($J19=4, "Inconnu", E19+F19), 0),"Non requis") -> 0 | O19: =IF(INTRO!$E$44="Endémique", IF(AND($K19>0,$K19<5), IF($K19=4,"Inconnu", IF($K19=1, $F19*0.33, IF($K19=2, $F19*0.5+$G19*0.2, SUM(F19:G19)))), 0),"Non requis") -> 132669 | P19: 0 | Q19: 1 | R19: 1 | S19: 1 | T19: MDA3 (IVM) | U19: T1 (PZQ+ALB/MBD) | V19: MDA 1 | W19: T1 | X19: 29982 | Y19: Bafoulabe | AA19: TRUE | AB19: KAYES | AC19: Bafoulabe | AD19: 1 | AE19: 1 | AF19: 1 | AG19: 3 | AH19: FALSE | AI19: TRUE | AJ19: TRUE | AK19: TRUE
A20: =IF(INTRO!$E$34<>0,INTRO!$E$34,"") -> Mali | B20: Kayes | C20: Diema | D20: 275059 | E20: =IF(INTRO!$E$48="","",ROUND($D20*INTRO!$E$48,0)) -> 38508 | F20: =IF(INTRO!$E$49="","",ROUND($D20*INTRO!$E$49,0)) -> 77017 | G20: =IF(INTRO!$E$50="","",ROUND($D20*INTRO!$E$50,0)) -> 141655 | H20: 99 | I20: 0 | J20: 1 | K20: 3 | L20: =IF(INTRO!$E$38="Endémique", IF($H20>0, IF($H20=4,"Inconnu", IF($H20=99,"Interrompu", $D20)), 0),"Non requis") -> Interrompu | M20: =IF(INTRO!$E$40="Endémique", IF($I20>0, IF($I20=4,"Inconnu",IF($I20=99,"Interrompu", $D20)), 0),"Non requis") -> 0 | N20: =IF(INTRO!$E$42="Endémique", IF(AND($J20>1,$J20<5), IF($J20=4, "Inconnu", E20+F20), 0),"Non requis") -> 0 | O20: =IF(INTRO!$E$44="Endémique", IF(AND($K20>0,$K20<5), IF($K20=4,"Inconnu", IF($K20=1, $F20*0.33, IF($K20=2, $F20*0.5+$G20*0.2, SUM(F20:G20)))), 0),"Non requis") -> 218672 | P20: 0 | Q20: 0 | R20: 1 | S20: 1 | T20: T1 (PZQ+ALB/MBD) | V20: T1 | W20: T3 | X20: 29983 | Y20: Diema | AA20: TRUE | AB20: KAYES | AC20: Diema | AD20: 1 | AE20: 0 | AF20: 1 | AG20: 3 | AH20: FALSE | AI20: TRUE | AJ20: TRUE | AK20: TRUE
A21: =IF(INTRO!$E$34<>0,INTRO!$E$34,"") -> Mali | B21: Kayes | C21: Kayes | D21: 665865 | E21: =IF(INTRO!$E$48="","",ROUND($D21*INTRO!$E$48,0)) -> 93221 | F21: =IF(INTRO!$E$49="","",ROUND($D21*INTRO!$E$49,0)) -> 186442 | G21: =IF(INTRO!$E$50="","",ROUND($D21*INTRO!$E$50,0)) -> 342920 | H21: 99 | I21: 1 | J21: 1 | K21: 2 | L21: =IF(INTRO!$E$38="Endémique", IF($H21>0, IF($H21=4,"Inconnu", IF($H21=99,"Interrompu", $D21)), 0),"Non requis") -> Interrompu | M21: =IF(INTRO!$E$40="Endémique", IF($I21>0, IF($I21=4,"Inconnu",IF($I21=99,"Interrompu", $D21)), 0),"Non requis") -> 665865 | N21: =IF(INTRO!$E$42="Endémique", IF(AND($J21>1,$J21<5), IF($J21=4, "Inconnu", E21+F21), 0),"Non requis") -> 0 | O21: =IF(INTRO!$E$44="Endémique", IF(AND($K21>0,$K21<5), IF($K21=4,"Inconnu", IF($K21=1, $F21*0.33, IF($K21=2, $F21*0.5+$G21*0.2, SUM(F21:G21)))), 0),"Non requis") -> 161805 | P21: 0 | Q21: 1 | R21: 1 | S21: 1 | T21: MDA3 (IVM) | U21: T1 (PZQ+ALB/MBD) | V21: MDA 1 | W21: T1 | X21: 29984 | Y21: Kayes | AA21: TRUE | AB21: KAYES | AC21: Kayes | AD21: 1 | AE21: 1 | AF21: 1 | AG21: 2 | AH21: FALSE | AI21: TRUE | AJ21: TRUE | AK21: TRUE
A22: =IF(INTRO!$E$34<>0,INTRO!$E$34,"") -> Mali | B22: Kayes | C22: Kenieba | D22: 251830 | E22: =IF(INTRO!$E$48="","",ROUND($D22*INTRO!$E$48,0)) -> 35256 | F22: =IF(INTRO!$E$49="","",ROUND($D22*INTRO!$E$49,0)) -> 70512 | G22: =IF(INTRO!$E$50="","",ROUND($D22*INTRO!$E$50,0)) -> 129692 | H22: 99 | I22: 1 | J22: 1 | K22: =AG22 -> 3 | L22: =IF(INTRO!$E$38="Endémique", IF($H22>0, IF($H22=4,"Inconnu", IF($H22=99,"Interrompu", $D22)), 0),"Non requis") -> Interrompu | M22: =IF(INTRO!$E$40="Endémique", IF($I22>0, IF($I22=4,"Inconnu",IF($I22=99,"Interrompu", $D22)), 0),"Non requis") -> 251830 | N22: =IF(INTRO!$E$42="Endémique", IF(AND($J22>1,$J22<5), IF($J22=4, "Inconnu", E22+F22), 0),"Non requis") -> 0 | O22: =IF(INTRO!$E$44="Endémique", IF(AND($K22>0,$K22<5), IF($K22=4,"Inconnu", IF($K22=1, $F22*0.33, IF($K22=2, $F22*0.5+$G22*0.2, SUM(F22:G22)))), 0),"Non requis") -> 200204 | P22: 0 | Q22: 1 | R22: 1 | S22: 1 | T22: MDA3 (IVM) | U22: T1 (PZQ+ALB/MBD) | V22: MDA 1 | W22: T1 | X22: 29985 | Y22: Kenieba | AA22: TRUE | AB22: KAYES | AC22: Kenieba | AD22: 1 | AE22: 1 | AF22: 1 | AG22: 3 | AH22: FALSE | AI22: TRUE | AJ22: TRUE | AK22: TRUE
A23: =IF(INTRO!$E$34<>0,INTRO!$E$34,"") -> Mali | B23: Kayes | C23: Kita | D23: 340212 | E23: =IF(INTRO!$E$48="","",ROUND($D23*INTRO!$E$48,0)) -> 47630 | F23: =IF(INTRO!$E$49="","",ROUND($D23*INTRO!$E$49,0)) -> 95259 | G23: =IF(INTRO!$E$50="","",ROUND($D23*INTRO!$E$50,0)) -> 175209 | H23: 99 | I23: 1 | J23: 1 | K23: 2 | L23: =IF(INTRO!$E$38="Endémique", IF($H23>0, IF($H23=4,"Inconnu", IF($H23=99,"Interrompu", $D23)), 0),"Non requis") -> Interrompu | M23: =IF(INTRO!$E$40="Endémique", IF($I23>0, IF($I23=4,"Inconnu",IF($I23=99,"Interrompu", $D23)), 0),"Non requis") -> 340212 | N23: =IF(INTRO!$E$42="Endémique", IF(AND($J23>1,$J23<5), IF($J23=4, "Inconnu", E23+F23), 0),"Non requis") -> 0 | O23: =IF(INTRO!$E$44="Endémique", IF(AND($K23>0,$K23<5), IF($K23=4,"Inconnu", IF($K23=1, $F23*0.33, IF($K23=2, $F23*0.5+$G23*0.2, SUM(F23:G23)))), 0),"Non requis") -> 82671.3 | P23: 0 | Q23: 1 | R23: 1 | S23: 1 | T23: MDA3 (IVM) | U23: T1 (PZQ+ALB/MBD) | V23: MDA 1 | W23: T1 | X23: 29986 | Y23: Kita | AA23: TRUE | AB23: KAYES | AC23: Kita | AD23: 1 | AE23: 1 | AF23: 1 | AG23: 2 | AH23: FALSE | AI23: TRUE | AJ23: TRUE | AK23: TRUE
A24: =IF(INTRO!$E$34<>0,INTRO!$E$34,"") -> Mali | B24: Kayes | C24: Sagabari | D24: 49162 | E24: =IF(INTRO!$E$48="","",ROUND($D24*INTRO!$E$48,0)) -> 6883 | F24: =IF(INTRO!$E$49="","",ROUND($D24*INTRO!$E$49,0)) -> 13765 | G24: =IF(INTRO!$E$50="","",ROUND($D24*INTRO!$E$50,0)) -> 25318 | H24: 99 | I24: 1 | J24: 1 | K24: 2 | L24: =IF(INTRO!$E$38="Endémique", IF($H24>0, IF($H24=4,"Inconnu", IF($H24=99,"Interrompu", $D24)), 0),"Non requis") -> Interrompu | M24: =IF(INTRO!$E$40="Endémique", IF($I24>0, IF($I24=4,"Inconnu",IF($I24=99,"Interrompu", $D24)), 0),"Non requis") -> 49162 | N24: =IF(INTRO!$E$42="Endémique", IF(AND($J24>1,$J24<5), IF($J24=4, "Inconnu", E24+F24), 0),"Non requis") -> 0 | O24: =IF(INTRO!$E$44="Endémique", IF(AND($K24>0,$K24<5), IF($K24=4,"Inconnu", IF($K24=1, $F24*0.33, IF($K24=2, $F24*0.5+$G24*0.2, SUM(F24:G24)))), 0),"Non requis") -> 11946.1 | P24: 0 | Q24: 1 | R24: 1 | S24: 1 | T24: MDA3 (IVM) | U24: T1 (PZQ+ALB/MBD) | V24: MDA 1 | W24: T1 | X24: 30039 | Y24: Sagabari | AA24: TRUE | AB24: KAYES | AC24: Sagabari | AD24: 1 | AE24: 1 | AF24: 1 | AG24: 2 | AH24: FALSE | AI24: TRUE | AJ24: TRUE | AK24: TRUE
A25: =IF(INTRO!$E$34<>0,INTRO!$E$34,"") -> Mali | B25: Kayes | C25: Sefeto | D25: 62588 | E25: =IF(INTRO!$E$48="","",ROUND($D25*INTRO!$E$48,0)) -> 8762 | F25: =IF(INTRO!$E$49="","",ROUND($D25*INTRO!$E$49,0)) -> 17525 | G25: =IF(INTRO!$E$50="","",ROUND($D25*INTRO!$E$50,0)) -> 32233 | H25: 99 | I25: 1 | J25: 1 | K25: 2 | L25: =IF(INTRO!$E$38="Endémique", IF($H25>0, IF($H25=4,"Inconnu", IF($H25=99,"Interrompu", $D25)), 0),"Non requis") -> Interrompu | M25: =IF(INTRO!$E$40="Endémique", IF($I25>0, IF($I25=4,"Inconnu",IF($I25=99,"Interrompu", $D25)), 0),"Non requis") -> 62588 | N25: =IF(INTRO!$E$42="Endémique", IF(AND($J25>1,$J25<5), IF($J25=4, "Inconnu", E25+F25), 0),"Non requis") -> 0 | O25: =IF(INTRO!$E$44="Endémique", IF(AND($K25>0,$K25<5), IF($K25=4,"Inconnu", IF($K25=1, $F25*0.33, IF($K25=2, $F25*0.5+$G25*0.2, SUM(F25:G25)))), 0),"Non requis") -> 15209.1 | P25: 0 | Q25: 1 | R25: 1 | S25: 1 | T25: MDA3 (IVM) | U25: T1 (PZQ+ALB/MBD) | V25: MDA 1 | W25: T1 | X25: 30040 | Y25: Sefeto | AA25: TRUE | AB25: KAYES | AC25: Sefeto | AD25: 1 | AE25: 1 | AF25: 1 | AG25: 2 | AH25: FALSE | AI25: TRUE | AJ25: TRUE | AK25: TRUE
A26: =IF(INTRO!$E$34<>0,INTRO!$E$34,"") -> Mali | B26: Kayes | C26: Nioro | D26: 298958 | E26: =IF(INTRO!$E$48="","",ROUND($D26*INTRO!$E$48,0)) -> 41854 | F26: =IF(INTRO!$E$49="","",ROUND($D26*INTRO!$E$49,0)) -> 83708 | G26: =IF(INTRO!$E$50="","",ROUND($D26*INTRO!$E$50,0)) -> 153963 | H26: 99 | I26: 0 | J26: 1 | K26: 2 | L26: =IF(INTRO!$E$38="Endémique", IF($H26>0, IF($H26=4,"Inconnu", IF($H26=99,"Interrompu", $D26)), 0),"Non requis") -> Interrompu | M26: =IF(INTRO!$E$40="Endémique", IF($I26>0, IF($I26=4,"Inconnu",IF($I26=99,"Interrompu", $D26)), 0),"Non requis") -> 0 | N26: =IF(INTRO!$E$42="Endémique", IF(AND($J26>1,$J26<5), IF($J26=4, "Inconnu", E26+F26), 0),"Non requis") -> 0 | O26: =IF(INTRO!$E$44="Endémique", IF(AND($K26>0,$K26<5), IF($K26=4,"Inconnu", IF($K26=1, $F26*0.33, IF($K26=2, $F26*0.5+$G26*0.2, SUM(F26:G26)))), 0),"Non requis") -> 72646.6 | P26: 0 | Q26: 0 | R26: 1 | S26: 1 | T26: T1 (PZQ+ALB/MBD) | V26: T1 | W26: T3 | X26: 29987 | Y26: Nioro | AA26: TRUE | AB26: KAYES | AC26: Nioro | AD26: 1 | AE26: 0 | AF26: 1 | AG26: 2 | AH26: FALSE | AI26: TRUE | AJ26: TRUE | AK26: TRUE
A27: =IF(INTRO!$E$34<>0,INTRO!$E$34,"") -> Mali | B27: Kayes | C27: Oussoubidiagna | D27: 136538 | E27: =IF(INTRO!$E$48="","",ROUND($D27*INTRO!$E$48,0)) -> 19115 | F27: =IF(INTRO!$E$49="","",ROUND($D27*INTRO!$E$49,0)) -> 38231 | G27: =IF(INTRO!$E$50="","",ROUND($D27*INTRO!$E$50,0)) -> 70317 | H27: 99 | I27: 1 | J27: 1 | K27: =AG27 -> 2 | L27: =IF(INTRO!$E$38="Endémique", IF($H27>0, IF($H27=4,"Inconnu", IF($H27=99,"Interrompu", $D27)), 0),"Non requis") -> Interrompu | M27: =IF(INTRO!$E$40="Endémique", IF($I27>0, IF($I27=4,"Inconnu",IF($I27=99,"Interrompu", $D27)), 0),"Non requis") -> 136538 | N27: =IF(INTRO!$E$42="Endémique", IF(AND($J27>1,$J27<5), IF($J27=4, "Inconnu", E27+F27), 0),"Non requis") -> 0 | O27: =IF(INTRO!$E$44="Endémique", IF(AND($K27>0,$K27<5), IF($K27=4,"Inconnu", IF($K27=1, $F27*0.33, IF($K27=2, $F27*0.5+$G27*0.2, SUM(F27:G27)))), 0),"Non requis") -> 33178.9 | P27: 0 | Q27: 1 | R27: 1 | S27: 0 | T27: MDA3 (IVM) | U27: T3 (ALB/MBD) | V27: MDA 1 | W27: T3 | X27: 29988 | Y27: Oussoubidiagna | AA27: FALSE | AB27: KAYES | AC27: Oussibidiagna | AD27: 1 | AE27: 1 | AF27: 1 | AG27: 2 | AH27: FALSE | AI27: TRUE | AJ27: TRUE | AK27: TRUE
A28: =IF(INTRO!$E$34<>0,INTRO!$E$34,"") -> Mali | B28: Kayes | C28: Yelimane | D28: 231451 | E28: =IF(INTRO!$E$48="","",ROUND($D28*INTRO!$E$48,0)) -> 32403 | F28: =IF(INTRO!$E$49="","",ROUND($D28*INTRO!$E$49,0)) -> 64806 | G28: =IF(INTRO!$E$50="","",ROUND($D28*INTRO!$E$50,0)) -> 119197 | H28: 99 | I28: 0 | J28: 1 | K28: 1 | L28: =IF(INTRO!$E$38="Endémique", IF($H28>0, IF($H28=4,"Inconnu", IF($H28=99,"Interrompu", $D28)), 0),"Non requis") -> Interrompu | M28: =IF(INTRO!$E$40="Endémique", IF($I28>0, IF($I28=4,"Inconnu",IF($I28=99,"Interrompu", $D28)), 0),"Non requis") -> 0 | N28: =IF(INTRO!$E$42="Endémique", IF(AND($J28>1,$J28<5), IF($J28=4, "Inconnu", E28+F28), 0),"Non requis") -> 0 | O28: =IF(INTRO!$E$44="Endémique", IF(AND($K28>0,$K28<5), IF($K28=4,"Inconnu", IF($K28=1, $F28*0.33, IF($K28=2, $F28*0.5+$G28*0.2, SUM(F28:G28)))), 0),"Non requis") -> 21385.98 | P28: 0 | Q28: 0 | R28: 1 | S28: 0 | T28: T3 (ALB/MBD) | V28: T3 | W28: T3 | X28: 29989 | Y28: Yelimane | AA28: TRUE | AB28: KAYES | AC28: Yelimane | AD28: 1 | AE28: 0 | AF28: 1 | AG28: 1 | AH28: FALSE | AI28: TRUE | AJ28: TRUE | AK28: TRUE
A29: =IF(INTRO!$E$34<>0,INTRO!$E$34,"") -> Mali | B29: Kidal | C29: Abeibara | D29: 13383 | E29: =IF(INTRO!$E$48="","",ROUND($D29*INTRO!$E$48,0)) -> 1874 | F29: =IF(INTRO!$E$49="","",ROUND($D29*INTRO!$E$49,0)) -> 3747 | G29: =IF(INTRO!$E$50="","",ROUND($D29*INTRO!$E$50,0)) -> 6892 | H29: 1 | I29: 0 | J29: 1 | K29: 5 | L29: =IF(INTRO!$E$38="Endémique", IF($H29>0, IF($H29=4,"Inconnu", IF($H29=99,"Interrompu", $D29)), 0),"Non requis") -> 13383 | M29: =IF(INTRO!$E$40="Endémique", IF($I29>0, IF($I29=4,"Inconnu",IF($I29=99,"Interrompu", $D29)), 0),"Non requis") -> 0 | N29: =IF(INTRO!$E$42="Endémique", IF(AND($J29>1,$J29<5), IF($J29=4, "Inconnu", E29+F29), 0),"Non requis") -> 0 | O29: =IF(INTRO!$E$44="Endémique", IF(AND($K29>0,$K29<5), IF($K29=4,"Inconnu", IF($K29=1, $F29*0.33, IF($K29=2, $F29*0.5+$G29*0.2, SUM(F29:G29)))), 0),"Non requis") -> 0 | P29: 1 | Q29: 0 | R29: 1 | S29: 1 | T29: MDA1 (IVM+ALB) | U29: T2 (PZQ) | V29: MDA 1 | W29: T1 | X29: 29990 | Y29: Abeibara | AA29: TRUE | AB29: KIDAL | AC29: Abeibara | AD29: 1 | AE29: 0 | AF29: 1 | AG29: 5 | AH29: TRUE | AI29: TRUE | AJ29: TRUE | AK29: TRUE
A30: =IF(INTRO!$E$34<>0,INTRO!$E$34,"") -> Mali | B30: Kidal | C30: Kidal | D30: 43048 | E30: =IF(INTRO!$E$48="","",ROUND($D30*INTRO!$E$48,0)) -> 6027 | F30: =IF(INTRO!$E$49="","",ROUND($D30*INTRO!$E$49,0)) -> 12053 | G30: =IF(INTRO!$E$50="","",ROUND($D30*INTRO!$E$50,0)) -> 22170 | H30: 1 | I30: 0 | J30: 1 | K30: 5 | L30: =IF(INTRO!$E$38="Endémique", IF($H30>0, IF($H30=4,"Inconnu", IF($H30=99,"Interrompu", $D30)), 0),"Non requis") -> 43048 | M30: =IF(INTRO!$E$40="Endémique", IF($I30>0, IF($I30=4,"Inconnu",IF($I30=99,"Interrompu", $D30)), 0),"Non requis") -> 0 | N30: =IF(INTRO!$E$42="Endémique", IF(AND($J30>1,$J30<5), IF($J30=4, "Inconnu", E30+F30), 0),"Non requis") -> 0 | O30: =IF(INTRO!$E$44="Endémique", IF(AND($K30>0,$K30<5), IF($K30=4,"Inconnu", IF($K30=1, $F30*0.33, IF($K30=2, $F30*0.5+$G30*0.2, SUM(F30:G30)))), 0),"Non requis") -> 0 | P30: 1 | Q30: 0 | R30: 1 | S30: 1 | T30: MDA1 (IVM+ALB) | U30: T2 (PZQ) | V30: MDA 1 | W30: T1 | X30: 29991 | Y30: Kidal | AA30: TRUE | AB30: KIDAL | AC30: Kidal | AD30: 1 | AE30: 0 | AF30: 1 | AG30: 5 | AH30: TRUE | AI30: TRUE | AJ30: TRUE | AK30: TRUE
A31: =IF(INTRO!$E$34<>0,INTRO!$E$34,"") -> Mali | B31: Kidal | C31: Tessalit | D31: 21193 | E31: =IF(INTRO!$E$48="","",ROUND($D31*INTRO!$E$48,0)) -> 2967 | F31: =IF(INTRO!$E$49="","",ROUND($D31*INTRO!$E$49,0)) -> 5934 | G31: =IF(INTRO!$E$50="","",ROUND($D31*INTRO!$E$50,0)) -> 10914 | H31: 1 | I31: 0 | J31: 1 | K31: 5 | L31: =IF(INTRO!$E$38="Endémique", IF($H31>0, IF($H31=4,"Inconnu", IF($H31=99,"Interrompu", $D31)), 0),"Non requis") -> 21193 | M31: =IF(INTRO!$E$40="Endémique", IF($I31>0, IF($I31=4,"Inconnu",IF($I31=99,"Interrompu", $D31)), 0),"Non requis") -> 0 | N31: =IF(INTRO!$E$42="Endémique", IF(AND($J31>1,$J31<5), IF($J31=4, "Inconnu", E31+F31), 0),"Non requis") -> 0 | O31: =IF(INTRO!$E$44="Endémique", IF(AND($K31>0,$K31<5), IF($K31=4,"Inconnu", IF($K31=1, $F31*0.33, IF($K31=2, $F31*0.5+$G31*0.2, SUM(F31:G31)))), 0),"Non requis") -> 0 | P31: 1 | Q31: 0 | R31: 1 | S31: 1 | T31: MDA1 (IVM+ALB) | U31: T2 (PZQ) | V31: MDA 1 | W31: T1 | X31: 29992 | Y31: Tessalit | AA31: TRUE | AB31: KIDAL | AC31: Tessalit | AD31: 1 | AE31: 0 | AF31: 1 | AG31: 5 | AH31: TRUE | AI31: TRUE | AJ31: TRUE | AK31: TRUE
A32: =IF(INTRO!$E$34<>0,INTRO!$E$34,"") -> Mali | B32: Kidal | C32: Tin-Essako | D32: 10377 | E32: =IF(INTRO!$E$48="","",ROUND($D32*INTRO!$E$48,0)) -> 1453 | F32: =IF(INTRO!$E$49="","",ROUND($D32*INTRO!$E$49,0)) -> 2906 | G32: =IF(INTRO!$E$50="","",ROUND($D32*INTRO!$E$50,0)) -> 5344 | H32: 1 | I32: 0 | J32: 1 | K32: 5 | L32: =IF(INTRO!$E$38="Endémique", IF($H32>0, IF($H32=4,"Inconnu", IF($H32=99,"Interrompu", $D32)), 0),"Non requis") -> 10377 | M32: =IF(INTRO!$E$40="Endémique", IF($I32>0, IF($I32=4,"Inconnu",IF($I32=99,"Interrompu", $D32)), 0),"Non requis") -> 0 | N32: =IF(INTRO!$E$42="Endémique", IF(AND($J32>1,$J32<5), IF($J32=4, "Inconnu", E32+F32), 0),"Non requis") -> 0 | O32: =IF(INTRO!$E$44="Endémique", IF(AND($K32>0,$K32<5), IF($K32=4,"Inconnu", IF($K32=1, $F32*0.33, IF($K32=2, $F32*0.5+$G32*0.2, SUM(F32:G32)))), 0),"Non requis") -> 0 | P32: 1 | Q32: 0 | R32: 1 | S32: 1 | T32: MDA1 (IVM+ALB) | U32: T2 (PZQ) | V32: MDA 1 | W32: T1 | X32: 29993 | Y32: Tin-Essako | AA32: TRUE | AB32: KIDAL | AC32: Tin-essako | AD32: 1 | AE32: 0 | AF32: 1 | AG32: 5 | AH32: TRUE | AI32: TRUE | AJ32: TRUE | AK32: TRUE
A33: =IF(INTRO!$E$34<>0,INTRO!$E$34,"") -> Mali | B33: Koulikoro | C33: Banamba | D33: 274714 | E33: =IF(INTRO!$E$48="","",ROUND($D33*INTRO!$E$48,0)) -> 38460 | F33: =IF(INTRO!$E$49="","",ROUND($D33*INTRO!$E$49,0)) -> 76920 | G33: =IF(INTRO!$E$50="","",ROUND($D33*INTRO!$E$50,0)) -> 141478 | H33: 99 | I33: 0 | J33: 1 | K33: 2 | L33: =IF(INTRO!$E$38="Endémique", IF($H33>0, IF($H33=4,"Inconnu", IF($H33=99,"Interrompu", $D33)), 0),"Non requis") -> Interrompu | M33: =IF(INTRO!$E$40="Endémique", IF($I33>0, IF($I33=4,"Inconnu",IF($I33=99,"Interrompu", $D33)), 0),"Non requis") -> 0 | N33: =IF(INTRO!$E$42="Endémique", IF(AND($J33>1,$J33<5), IF($J33=4, "Inconnu", E33+F33), 0),"Non requis") -> 0 | O33: =IF(INTRO!$E$44="Endémique", IF(AND($K33>0,$K33<5), IF($K33=4,"Inconnu", IF($K33=1, $F33*0.33, IF($K33=2, $F33*0.5+$G33*0.2, SUM(F33:G33)))), 0),"Non requis") -> 66755.6 | P33: 0 | Q33: 0 | R33: 1 | S33: 1 | T33: T1 (PZQ+ALB/MBD) | V33: T1 | W33: T3 | X33: 29994 | Y33: Banamba | AA33: TRUE | AB33: KOULIKORO | AC33: Banamba | AD33: 99 | AE33: 0 | AF33: 1 | AG33: 2 | AH33: TRUE | AI33: TRUE | AJ33: TRUE | AK33: TRUE
A34: =IF(INTRO!$E$34<>0,INTRO!$E$34,"") -> Mali | B34: Koulikoro | C34: Dioila | D34: 345181 | E34: =IF(INTRO!$E$48="","",ROUND($D34*INTRO!$E$48,0)) -> 48325 | F34: =IF(INTRO!$E$49="","",ROUND($D34*INTRO!$E$49,0)) -> 96651 | G34: =IF(INTRO!$E$50="","",ROUND($D34*INTRO!$E$50,0)) -> 177768 | H34: 99 | I34: 1 | J34: 1 | K34: =AG34 -> 1 | L34: =IF(INTRO!$E$38="Endémique", IF($H34>0, IF($H34=4,"Inconnu", IF($H34=99,"Interrompu", $D34)), 0),"Non requis") -> Interrompu | M34: =IF(INTRO!$E$40="Endémique", IF($I34>0, IF($I34=4,"Inconnu",IF($I34=99,"Interrompu", $D34)), 0),"Non requis") -> 345181 | N34: =IF(INTRO!$E$42="Endémique", IF(AND($J34>1,$J34<5), IF($J34=4, "Inconnu", E34+F34), 0),"Non requis") -> 0 | O34: =IF(INTRO!$E$44="Endémique", IF(AND($K34>0,$K34<5), IF($K34=4,"Inconnu", IF($K34=1, $F34*0.33, IF($K34=2, $F34*0.5+$G34*0.2, SUM(F34:G34)))), 0),"Non requis") -> 31894.83 | P34: 0 | Q34: 1 | R34: 1 | S34: 1 | T34: MDA3 (IVM) | U34: T1 (PZQ+ALB/MBD) | V34: MDA 1 | W34: T1 | X34: 29995 | Y34: Dioila | AA34: TRUE | AB34: KOULIKORO | AC34: Dioila | AD34: 99 | AE34: 1 | AF34: 1 | AG34: 1 | AH34: TRUE | AI34: TRUE | AJ34: TRUE | AK34: TRUE
A35: =IF(INTRO!$E$34<>0,INTRO!$E$34,"") -> Mali | B35: Koulikoro | C35: Fana | D35: 294043 | E35: =IF(INTRO!$E$48="","",ROUND($D35*INTRO!$E$48,0)) -> 41166 | F35: =IF(INTRO!$E$49="","",ROUND($D35*INTRO!$E$49,0)) -> 82332 | G35: =IF(INTRO!$E$50="","",ROUND($D35*INTRO!$E$50,0)) -> 151432 | H35: 99 | I35: 1 | J35: 1 | K35: 2 | L35: =IF(INTRO!$E$38="Endémique", IF($H35>0, IF($H35=4,"Inconnu", IF($H35=99,"Interrompu", $D35)), 0),"Non requis") -> Interrompu | M35: =IF(INTRO!$E$40="Endémique", IF($I35>0, IF($I35=4,"Inconnu",IF($I35=99,"Interrompu", $D35)), 0),"Non requis") -> 294043 | N35: =IF(INTRO!$E$42="Endémique", IF(AND($J35>1,$J35<5), IF($J35=4, "Inconnu", E35+F35), 0),"Non requis") -> 0 | O35: =IF(INTRO!$E$44="Endémique", IF(AND($K35>0,$K35<5), IF($K35=4,"Inconnu", IF($K35=1, $F35*0.33, IF($K35=2, $F35*0.5+$G35*0.2, SUM(F35:G35)))), 0),"Non requis") -> 71452.4 | P35: 0 | Q35: 1 | R35: 1 | S35: 1 | T35: MDA3 (IVM) | U35: T1 (PZQ+ALB/MBD) | V35: MDA 1 | W35: T1 | X35: 29996 | Y35: Fana | AA35: TRUE | AB35: KOULIKORO | AC35: Fana | AD35: 99 | AE35: 1 | AF35: 1 | AG35: 2 | AH35: TRUE | AI35: TRUE | AJ35: TRUE | AK35: TRUE
A36: =IF(INTRO!$E$34<>0,INTRO!$E$34,"") -> Mali | B36: Koulikoro | C36: Kalabancoro | D36: 378861 | E36: =IF(INTRO!$E$48="","",ROUND($D36*INTRO!$E$48,0)) -> 53041 | F36: =IF(INTRO!$E$49="","",ROUND($D36*INTRO!$E$49,0)) -> 106081 | G36: =IF(INTRO!$E$50="","",ROUND($D36*INTRO!$E$50,0)) -> 195113 | H36: 99 | I36: 1 | J36: 1 | K36: 2 | L36: =IF(INTRO!$E$38="Endémique", IF($H36>0, IF($H36=4,"Inconnu", IF($H36=99,"Interrompu", $D36)), 0),"Non requis") -> Interrompu | M36: =IF(INTRO!$E$40="Endémique", IF($I36>0, IF($I36=4,"Inconnu",IF($I36=99,"Interrompu", $D36)), 0),"Non requis") -> 378861 | N36: =IF(INTRO!$E$42="Endémique", IF(AND($J36>1,$J36<5), IF($J36=4, "Inconnu", E36+F36), 0),"Non requis") -> 0 | O36: =IF(INTRO!$E$44="Endémique", IF(AND($K36>0,$K36<5), IF($K36=4,"Inconnu", IF($K36=1, $F36*0.33, IF($K36=2, $F36*0.5+$G36*0.2, SUM(F36:G36)))), 0),"Non requis") -> 92063.1 | P36: 0 | Q36: 1 | R36: 0 | S36: 1 | T36: MDA3 (IVM) | U36: T2 (PZQ) | V36: MDA 1 | W36: T1 | X36: 29997 | Y36: Kalabancoro | AA36: TRUE | AB36: KOULIKORO | AC36: Kalabancoro | AD36: 99 | AE36: 1 | AF36: 1 | AG36: 2 | AH36: TRUE | AI36: TRUE | AJ36: TRUE | AK36: TRUE
A37: =IF(INTRO!$E$34<>0,INTRO!$E$34,"") -> Mali | B37: Koulikoro | C37: Kangaba | D37: 131069 | E37: =IF(INTRO!$E$48="","",ROUND($D37*INTRO!$E$48,0)) -> 18350 | F37: =IF(INTRO!$E$49="","",ROUND($D37*INTRO!$E$49,0)) -> 36699 | G37: =IF(INTRO!$E$50="","",ROUND($D37*INTRO!$E$50,0)) -> 67501 | H37: 99 | I37: 1 | J37: 1 | K37: =AG37 -> 1 | L37: =IF(INTRO!$E$38="Endémique", IF($H37>0, IF($H37=4,"Inconnu", IF($H37=99,"Interrompu", $D37)), 0),"Non requis") -> Interrompu | M37: =IF(INTRO!$E$40="Endémique", IF($I37>0, IF($I37=4,"Inconnu",IF($I37=99,"Interrompu", $D37)), 0),"Non requis") -> 131069 | N37: =IF(INTRO!$E$42="Endémique", IF(AND($J37>1,$J37<5), IF($J37=4, "Inconnu", E37+F37), 0),"Non requis") -> 0 | O37: =IF(INTRO!$E$44="Endémique", IF(AND($K37>0,$K37<5), IF($K37=4,"Inconnu", IF($K37=1, $F37*0.33, IF($K37=2, $F37*0.5+$G37*0.2, SUM(F37:G37)))), 0),"Non requis") -> 12110.67 | P37: 0 | Q37: 1 | R37: 1 | S37: 1 | T37: MDA3 (IVM) | U37: T1 (PZQ+ALB/MBD) | V37: MDA 1 | W37: T1 | X37: 29998 | Y37: Kangaba | AA37: TRUE | AB37: KOULIKORO | AC37: Kangaba | AD37: 99 | AE37: 1 | AF37: 1 | AG37: 1 | AH37: TRUE | AI37: TRUE | AJ37: TRUE | AK37: TRUE
A38: =IF(INTRO!$E$34<>0,INTRO!$E$34,"") -> Mali | B38: Koulikoro | C38: Kati | D38: 595859 | E38: =IF(INTRO!$E$48="","",ROUND($D38*INTRO!$E$48,0)) -> 83420 | F38: =IF(INTRO!$E$49="","",ROUND($D38*INTRO!$E$49,0)) -> 166841 | G38: =IF(INTRO!$E$50="","",ROUND($D38*INTRO!$E$50,0)) -> 306867 | H38: 99 | I38: 1 | J38: 1 | K38: 2 | L38: =IF(INTRO!$E$38="Endémique", IF($H38>0, IF($H38=4,"Inconnu", IF($H38=99,"Interrompu", $D38)), 0),"Non requis") -> Interrompu | M38: =IF(INTRO!$E$40="Endémique", IF($I38>0, IF($I38=4,"Inconnu",IF($I38=99,"Interrompu", $D38)), 0),"Non requis") -> 595859 | N38: =IF(INTRO!$E$42="Endémique", IF(AND($J38>1,$J38<5), IF($J38=4, "Inconnu", E38+F38), 0),"Non requis") -> 0 | O38: =IF(INTRO!$E$44="Endémique", IF(AND($K38>0,$K38<5), IF($K38=4,"Inconnu", IF($K38=1, $F38*0.33, IF($K38=2, $F38*0.5+$G38*0.2, SUM(F38:G38)))), 0),"Non requis") -> 144793.9 | P38: 0 | Q38: 1 | R38: 1 | S38: 0 | T38: MDA3 (IVM) | U38: T3 (ALB/MBD) | V38: MDA 1 | W38: T3 | X38: 29999 | Y38: Kati | AA38: TRUE | AB38: KOULIKORO | AC38: Kati | AD38: 99 | AE38: 1 | AF38: 1 | AG38: 2 | AH38: TRUE | AI38: TRUE | AJ38: TRUE | AK38: TRUE
A39: =IF(INTRO!$E$34<>0,INTRO!$E$34,"") -> Mali | B39: Koulikoro | C39: Kolokani | D39: 304405 | E39: =IF(INTRO!$E$48="","",ROUND($D39*INTRO!$E$48,0)) -> 42617 | F39: =IF(INTRO!$E$49="","",ROUND($D39*INTRO!$E$49,0)) -> 85233 | G39: =IF(INTRO!$E$50="","",ROUND($D39*INTRO!$E$50,0)) -> 156769 | H39: 99 | I39: 1 | J39: 1 | K39: 1 | L39: =IF(INTRO!$E$38="Endémique", IF($H39>0, IF($H39=4,"Inconnu", IF($H39=99,"Interrompu", $D39)), 0),"Non requis") -> Interrompu | M39: =IF(INTRO!$E$40="Endémique", IF($I39>0, IF($I39=4,"Inconnu",IF($I39=99,"Interrompu", $D39)), 0),"Non requis") -> 304405 | N39: =IF(INTRO!$E$42="Endémique", IF(AND($J39>1,$J39<5), IF($J39=4, "Inconnu", E39+F39), 0),"Non requis") -> 0 | O39: =IF(INTRO!$E$44="Endémique", IF(AND($K39>0,$K39<5), IF($K39=4,"Inconnu", IF($K39=1, $F39*0.33, IF($K39=2, $F39*0.5+$G39*0.2, SUM(F39:G39)))), 0),"Non requis") -> 28126.89 | P39: 0 | Q39: 1 | R39: 1 | S39: 1 | T39: MDA3 (IVM) | U39: T1 (PZQ+ALB/MBD) | V39: MDA 1 | W39: T1 | X39: 30000 | Y39: Kolokani | AA39: TRUE | AB39: KOULIKORO | AC39: Kolokani | AD39: 99 | AE39: 1 | AF39: 1 | AG39: 1 | AH39: TRUE | AI39: TRUE | AJ39: TRUE | AK39: TRUE
A40: =IF(INTRO!$E$34<>0,INTRO!$E$34,"") -> Mali | B40: Koulikoro | C40: Koulikoro | D40: 274714 | E40: =IF(INTRO!$E$48="","",ROUND($D40*INTRO!$E$48,0)) -> 38460 | F40: =IF(INTRO!$E$49="","",ROUND($D40*INTRO!$E$49,0)) -> 76920 | G40: =IF(INTRO!$E$50="","",ROUND($D40*INTRO!$E$50,0)) -> 141478 | H40: 99 | I40: 1 | J40: 1 | K40: 1 | L40: =IF(INTRO!$E$38="Endémique", IF($H40>0, IF($H40=4,"Inconnu", IF($H40=99,"Interrompu", $D40)), 0),"Non requis") -> Interrompu | M40: =IF(INTRO!$E$40="Endémique", IF($I40>0, IF($I40=4,"Inconnu",IF($I40=99,"Interrompu", $D40)), 0),"Non requis") -> 274714 | N40: =IF(INTRO!$E$42="Endémique", IF(AND($J40>1,$J40<5), IF($J40=4, "Inconnu", E40+F40), 0),"Non requis") -> 0 | O40: =IF(INTRO!$E$44="Endémique", IF(AND($K40>0,$K40<5), IF($K40=4,"Inconnu", IF($K40=1, $F40*0.33, IF($K40=2, $F40*0.5+$G40*0.2, SUM(F40:G40)))), 0),"Non requis") -> 25383.6 | P40: 0 | Q40: 1 | R40: 1 | S40: 1 | T40: MDA3 (IVM) | U40: T1 (PZQ+ALB/MBD) | V40: MDA 1 | W40: T1 | X40: 30001 | Y40: Koulikoro | AA40: TRUE | AB40: KOULIKORO | AC40: Koulikoro | AD40: 99 | AE40: 1 | AF40: 1 | AG40: 1 | AH40: TRUE | AI40: TRUE | AJ40: TRUE | AK40: TRUE
A41: =IF(INTRO!$E$34<>0,INTRO!$E$34,"") -> Mali | B41: Koulikoro | C41: Nara | D41: 316209 | E41: =IF(INTRO!$E$48="","",ROUND($D41*INTRO!$E$48,0)) -> 44269 | F41: =IF(INTRO!$E$49="","",ROUND($D41*INTRO!$E$49,0)) -> 88539 | G41: =IF(INTRO!$E$50="","",ROUND($D41*INTRO!$E$50,0)) -> 162848 | H41: 99 | I41: 0 | J41: 1 | K41: 1 | L41: =IF(INTRO!$E$38="Endémique", IF($H41>0, IF($H41=4,"Inconnu", IF($H41=99,"Interrompu", $D41)), 0),"Non requis") -> Interrompu | M41: =IF(INTRO!$E$40="Endémique", IF($I41>0, IF($I41=4,"Inconnu",IF($I41=99,"Interrompu", $D41)), 0),"Non requis") -> 0 | N41: =IF(INTRO!$E$42="Endémique", IF(AND($J41>1,$J41<5), IF($J41=4, "Inconnu", E41+F41), 0),"Non requis") -> 0 | O41: =IF(INTRO!$E$44="Endémique", IF(AND($K41>0,$K41<5), IF($K41=4,"Inconnu", IF($K41=1, $F41*0.33, IF($K41=2, $F41*0.5+$G41*0.2, SUM(F41:G41)))), 0),"Non requis") -> 29217.87 | P41: 0 | Q41: 0 | R41: 1 | S41: 0 | U41: T3 (ALB/MBD) | V41: T3 | W41: T3 | X41: 30002 | Y41: Nara | AA41: TRUE | AB41: KOULIKORO | AC41: Nara | AD41: 99 | AE41: 0 | AF41: 1 | AG41: 1 | AH41: TRUE | AI41: TRUE | AJ41: TRUE | AK41: TRUE
A42: =IF(INTRO!$E$34<>0,INTRO!$E$34,"") -> Mali | B42: Koulikoro | C42: Ouelessebougou | D42: 259102 | E42: =IF(INTRO!$E$48="","",ROUND($D42*INTRO!$E$48,0)) -> 36274 | F42: =IF(INTRO!$E$49="","",ROUND($D42*INTRO!$E$49,0)) -> 72549 | G42: =IF(INTRO!$E$50="","",ROUND($D42*INTRO!$E$50,0)) -> 133438 | H42: 99 | I42: 1 | J42: 1 | K42: 1 | L42: =IF(INTRO!$E$38="Endémique", IF($H42>0, IF($H42=4,"Inconnu", IF($H42=99,"Interrompu", $D42)), 0),"Non requis") -> Interrompu | M42: =IF(INTRO!$E$40="Endémique", IF($I42>0, IF($I42=4,"Inconnu",IF($I42=99,"Interrompu", $D42)), 0),"Non requis") -> 259102 | N42: =IF(INTRO!$E$42="Endémique", IF(AND($J42>1,$J42<5), IF($J42=4, "Inconnu", E42+F42), 0),"Non requis") -> 0 | O42: =IF(INTRO!$E$44="Endémique", IF(AND($K42>0,$K42<5), IF($K42=4,"Inconnu", IF($K42=1, $F42*0.33, IF($K42=2, $F42*0.5+$G42*0.2, SUM(F42:G42)))), 0),"Non requis") -> 23941.17 | P42: 0 | Q42: 1 | R42: 1 | S42: 1 | T42: MDA3 (IVM) | U42: T1 (PZQ+ALB/MBD) | V42: MDA 1 | W42: T1 | X42: 30003 | Y42: Ouelessebougou | AA42: TRUE | AB42: KOULIKORO | AC42: Ouelessebougou | AD42: 99 | AE42: 1 | AF42: 1 | AG42: 1 | AH42: TRUE | AI42: TRUE | AJ42: TRUE | AK42: TRUE
A43: =IF(INTRO!$E$34<>0,INTRO!$E$34,"") -> Mali | B43: Mopti | C43: Bandiagara | D43: 412804 | E43: =IF(INTRO!$E$48="","",ROUND($D43*INTRO!$E$48,0)) -> 57793 | F43: =IF(INTRO!$E$49="","",ROUND($D43*INTRO!$E$49,0)) -> 115585 | G43: =IF(INTRO!$E$50="","",ROUND($D43*INTRO!$E$50,0)) -> 212594 | H43: 99 | I43: 0 | J43: 1 | K43: 2 | L43: =IF(INTRO!$E$38="Endémique", IF($H43>0, IF($H43=4,"Inconnu", IF($H43=99,"Interrompu", $D43)), 0),"Non requis") -> Interrompu | M43: =IF(INTRO!$E$40="Endémique", IF($I43>0, IF($I43=4,"Inconnu",IF($I43=99,"Interrompu", $D43)), 0),"Non requis") -> 0 | N43: =IF(INTRO!$E$42="Endémique", IF(AND($J43>1,$J43<5), IF($J43=4, "Inconnu", E43+F43), 0),"Non requis") -> 0 | O43: =IF(INTRO!$E$44="Endémique", IF(AND($K43>0,$K43<5), IF($K43=4,"Inconnu", IF($K43=1, $F43*0.33, IF($K43=2, $F43*0.5+$G43*0.2, SUM(F43:G43)))), 0),"Non requis") -> 100311.3 | P43: 0 | Q43: 0 | R43: 1 | S43: 1 | T43: T1 (PZQ+ALB/MBD) | V43: T1 | W43: T3 | X43: 30004 | Y43: Bandiagara | AA43: TRUE | AB43: MOPTI | AC43: Bandiagara | AD43: 1 | AE43: 0 | AF43: 1 | AG43: 2 | AH43: FALSE | AI43: TRUE | AJ43: TRUE | AK43: TRUE
A44: =IF(INTRO!$E$34<>0,INTRO!$E$34,"") -> Mali | B44: Mopti | C44: Bankass | D44: 342023 | E44: =IF(INTRO!$E$48="","",ROUND($D44*INTRO!$E$48,0)) -> 47883 | F44: =IF(INTRO!$E$49="","",ROUND($D44*INTRO!$E$49,0)) -> 95766 | G44: =IF(INTRO!$E$50="","",ROUND($D44*INTRO!$E$50,0)) -> 176142 | H44: 99 | I44: 0 | J44: 1 | K44: =AG44 -> 3 | L44: =IF(INTRO!$E$38="Endémique", IF($H44>0, IF($H44=4,"Inconnu", IF($H44=99,"Interrompu", $D44)), 0),"Non requis") -> Interrompu | M44: =IF(INTRO!$E$40="Endémique", IF($I44>0, IF($I44=4,"Inconnu",IF($I44=99,"Interrompu", $D44)), 0),"Non requis") -> 0 | N44: =IF(INTRO!$E$42="Endémique", IF(AND($J44>1,$J44<5), IF($J44=4, "Inconnu", E44+F44), 0),"Non requis") -> 0 | O44: =IF(INTRO!$E$44="Endémique", IF(AND($K44>0,$K44<5), IF($K44=4,"Inconnu", IF($K44=1, $F44*0.33, IF($K44=2, $F44*0.5+$G44*0.2, SUM(F44:G44)))), 0),"Non requis") -> 271908 | P44: 0 | Q44: 0 | R44: 1 | S44: 1 | T44: T1 (PZQ+ALB/MBD) | V44: T1 | W44: T3 | X44: 30005 | Y44: Bankass | AA44: TRUE | AB44: MOPTI | AC44: Bankass | AD44: 1 | AE44: 0 | AF44: 1 | AG44: 3 | AH44: FALSE | AI44: TRUE | AJ44: TRUE | AK44: TRUE
A45: =IF(INTRO!$E$34<>0,INTRO!$E$34,"") -> Mali | B45: Mopti | C45: Djenne | D45: 269079 | E45: =IF(INTRO!$E$48="","",ROUND($D45*INTRO!$E$48,0)) -> 37671 | F45: =IF(INTRO!$E$49="","",ROUND($D45*INTRO!$E$49,0)) -> 75342 | G45: =IF(INTRO!$E$50="","",ROUND($D45*INTRO!$E$50,0)) -> 138576 | H45: 99 | I45: 0 | J45: 1 | K45: 2 | L45: =IF(INTRO!$E$38="Endémique", IF($H45>0, IF($H45=4,"Inconnu", IF($H45=99,"Interrompu", $D45)), 0),"Non requis") -> Interrompu | M45: =IF(INTRO!$E$40="Endémique", IF($I45>0, IF($I45=4,"Inconnu",IF($I45=99,"Interrompu", $D45)), 0),"Non requis") -> 0 | N45: =IF(INTRO!$E$42="Endémique", IF(AND($J45>1,$J45<5), IF($J45=4, "Inconnu", E45+F45), 0),"Non requis") -> 0 | O45: =IF(INTRO!$E$44="Endémique", IF(AND($K45>0,$K45<5), IF($K45=4,"Inconnu", IF($K45=1, $F45*0.33, IF($K45=2, $F45*0.5+$G45*0.2, SUM(F45:G45)))), 0),"Non requis") -> 65386.2 | P45: 0 | Q45: 0 | R45: 1 | S45: 0 | T45: T3 (ALB/MBD) | V45: T3 | W45: T3 | X45: 30006 | Y45: Djenne | AA45: TRUE | AB45: MOPTI | AC45: Djenne | AD45: 1 | AE45: 0 | AF45: 1 | AG45: 2 | AH45: FALSE | AI45: TRUE | AJ45: TRUE | AK45: TRUE
A46: =IF(INTRO!$E$34<>0,INTRO!$E$34,"") -> Mali | B46: Mopti | C46: Douentza | D46: 321703 | E46: =IF(INTRO!$E$48="","",ROUND($D46*INTRO!$E$48,0)) -> 45038 | F46: =IF(INTRO!$E$49="","",ROUND($D46*INTRO!$E$49,0)) -> 90077 | G46: =IF(INTRO!$E$50="","",ROUND($D46*INTRO!$E$50,0)) -> 165677 | H46: 1 | I46: 0 | J46: 1 | K46: 3 | L46: =IF(INTRO!$E$38="Endémique", IF($H46>0, IF($H46=4,"Inconnu", IF($H46=99,"Interrompu", $D46)), 0),"Non requis") -> 321703 | M46: =IF(INTRO!$E$40="Endémique", IF($I46>0, IF($I46=4,"Inconnu",IF($I46=99,"Interrompu", $D46)), 0),"Non requis") -> 0 | N46: =IF(INTRO!$E$42="Endémique", IF(AND($J46>1,$J46<5), IF($J46=4, "Inconnu", E46+F46), 0),"Non requis") -> 0 | O46: =IF(INTRO!$E$44="Endémique", IF(AND($K46>0,$K46<5), IF($K46=4,"Inconnu", IF($K46=1, $F46*0.33, IF($K46=2, $F46*0.5+$G46*0.2, SUM(F46:G46)))), 0),"Non requis") -> 255754 | P46: 1 | Q46: 0 | R46: 1 | S46: 1 | T46: MDA1 (IVM+ALB) | U46: T2 (PZQ) | V46: MDA 1 | W46: T1 | X46: 30007 | Y46: Douentza | AA46: TRUE | AB46: MOPTI | AC46: Douentza | AD46: 1 | AE46: 0 | AF46: 1 | AG46: 3 | AH46: TRUE | AI46: TRUE | AJ46: TRUE | AK46: TRUE
A47: =IF(INTRO!$E$34<>0,INTRO!$E$34,"") -> Mali | B47: Mopti | C47: Koro | D47: 469900 | E47: =IF(INTRO!$E$48="","",ROUND($D47*INTRO!$E$48,0)) -> 65786 | F47: =IF(INTRO!$E$49="","",ROUND($D47*INTRO!$E$49,0)) -> 131572 | G47: =IF(INTRO!$E$50="","",ROUND($D47*INTRO!$E$50,0)) -> 241999 | H47: 99 | I47: 0 | J47: 1 | K47: 1 | L47: =IF(INTRO!$E$38="Endémique", IF($H47>0, IF($H47=4,"Inconnu", IF($H47=99,"Interrompu", $D47)), 0),"Non requis") -> Interrompu | M47: =IF(INTRO!$E$40="Endémique", IF($I47>0, IF($I47=4,"Inconnu",IF($I47=99,"Interrompu", $D47)), 0),"Non requis") -> 0 | N47: =IF(INTRO!$E$42="Endémique", IF(AND($J47>1,$J47<5), IF($J47=4, "Inconnu", E47+F47), 0),"Non requis") -> 0 | O47: =IF(INTRO!$E$44="Endémique", IF(AND($K47>0,$K47<5), IF($K47=4,"Inconnu", IF($K47=1, $F47*0.33, IF($K47=2, $F47*0.5+$G47*0.2, SUM(F47:G47)))), 0),"Non requis") -> 43418.76 | P47: 0 | Q47: 0 | R47: 1 | S47: 0 | T47: T3 (ALB/MBD) | V47: T3 | W47: T3 | X47: 30008 | Y47: Koro | AA47: TRUE | AB47: MOPTI | AC47: Koro | AD47: 1 | AE47: 0 | AF47: 1 | AG47: 1 | AH47: FALSE | AI47: TRUE | AJ47: TRUE | AK47: TRUE
A48: =IF(INTRO!$E$34<>0,INTRO!$E$34,"") -> Mali | B48: Mopti | C48: Mopti | D48: 478427 | E48: =IF(INTRO!$E$48="","",ROUND($D48*INTRO!$E$48,0)) -> 66980 | F48: =IF(INTRO!$E$49="","",ROUND($D48*INTRO!$E$49,0)) -> 133960 | G48: =IF(INTRO!$E$50="","",ROUND($D48*INTRO!$E$50,0)) -> 246390 | H48: 99 | I48: 0 | J48: 1 | K48: 3 | L48: =IF(INTRO!$E$38="Endémique", IF($H48>0, IF($H48=4,"Inconnu", IF($H48=99,"Interrompu", $D48)), 0),"Non requis") -> Interrompu | M48: =IF(INTRO!$E$40="Endémique", IF($I48>0, IF($I48=4,"Inconnu",IF($I48=99,"Interrompu", $D48)), 0),"Non requis") -> 0 | N48: =IF(INTRO!$E$42="Endémique", IF(AND($J48>1,$J48<5), IF($J48=4, "Inconnu", E48+F48), 0),"Non requis") -> 0 | O48: =IF(INTRO!$E$44="Endémique", IF(AND($K48>0,$K48<5), IF($K48=4,"Inconnu", IF($K48=1, $F48*0.33, IF($K48=2, $F48*0.5+$G48*0.2, SUM(F48:G48)))), 0),"Non requis") -> 380350 | P48: 0 | Q48: 0 | R48: 1 | S48: 1 | T48: T1 (PZQ+ALB/MBD) | V48: T1 | W48: T3 | X48: 30009 | Y48: Mopti | AA48: TRUE | AB48: MOPTI | AC48: Mopti | AD48: 1 | AE48: 0 | AF48: 1 | AG48: 3 | AH48: FALSE | AI48: TRUE | AJ48: TRUE | AK48: TRUE
A49: =IF(INTRO!$E$34<>0,INTRO!$E$34,"") -> Mali | B49: Mopti | C49: Teninkou | D49: 212450 | E49: =IF(INTRO!$E$48="","",ROUND($D49*INTRO!$E$48,0)) -> 29743 | F49: =IF(INTRO!$E$49="","",ROUND($D49*INTRO!$E$49,0)) -> 59486 | G49: =IF(INTRO!$E$50="","",ROUND($D49*INTRO!$E$50,0)) -> 109412 | H49: 1 | I49: 0 | J49: 1 | K49: 2 | L49: =IF(INTRO!$E$38="Endémique", IF($H49>0, IF($H49=4,"Inconnu", IF($H49=99,"Interrompu", $D49)), 0),"Non requis") -> 212450 | M49: =IF(INTRO!$E$40="Endémique", IF($I49>0, IF($I49=4,"Inconnu",IF($I49=99,"Interrompu", $D49)), 0),"Non requis") -> 0 | N49: =IF(INTRO!$E$42="Endémique", IF(AND($J49>1,$J49<5), IF($J49=4, "Inconnu", E49+F49), 0),"Non requis") -> 0 | O49: =IF(INTRO!$E$44="Endémique", IF(AND($K49>0,$K49<5), IF($K49=4,"Inconnu", IF($K49=1, $F49*0.33, IF($K49=2, $F49*0.5+$G49*0.2, SUM(F49:G49)))), 0),"Non requis") -> 51625.4 | P49: 1 | Q49: 0 | R49: 1 | S49: 1 | T49: MDA1 (IVM+ALB) | U49: T2 (PZQ) | V49: MDA 1 | W49: T1 | X49: 30010 | Y49: Teninkou | AA49: FALSE | AB49: MOPTI | AC49: Tenenkou | AD49: 1 | AE49: 0 | AF49: 1 | AG49: 2 | AH49: TRUE | AI49: TRUE | AJ49: TRUE | AK49: TRUE
A50: =IF(INTRO!$E$34<>0,INTRO!$E$34,"") -> Mali | B50: Mopti | C50: Youwarou | D50: 138613 | E50: =IF(INTRO!$E$48="","",ROUND($D50*INTRO!$E$48,0)) -> 19406 | F50: =IF(INTRO!$E$49="","",ROUND($D50*INTRO!$E$49,0)) -> 38812 | G50: =IF(INTRO!$E$50="","",ROUND($D50*INTRO!$E$50,0)) -> 71386 | H50: 1 | I50: 0 | J50: 1 | K50: =AG50 -> 5 | L50: =IF(INTRO!$E$38="Endémique", IF($H50>0, IF($H50=4,"Inconnu", IF($H50=99,"Interrompu", $D50)), 0),"Non requis") -> 138613 | M50: =IF(INTRO!$E$40="Endémique", IF($I50>0, IF($I50=4,"Inconnu",IF($I50=99,"Interrompu", $D50)), 0),"Non requis") -> 0 | N50: =IF(INTRO!$E$42="Endémique", IF(AND($J50>1,$J50<5), IF($J50=4, "Inconnu", E50+F50), 0),"Non requis") -> 0 | O50: =IF(INTRO!$E$44="Endémique", IF(AND($K50>0,$K50<5), IF($K50=4,"Inconnu", IF($K50=1, $F50*0.33, IF($K50=2, $F50*0.5+$G50*0.2, SUM(F50:G50)))), 0),"Non requis") -> 0 | P50: 1 | Q50: 0 | R50: 1 | S50: 1 | T50: MDA1 (IVM+ALB) | U50: T2 (PZQ) | V50: MDA 1 | W50: T1 | X50: 30011 | Y50: Youwarou | AA50: FALSE | AB50: MOPTI | AC50: Youvarou | AD50: 1 | AE50: 0 | AF50: 1 | AG50: 5 | AH50: TRUE | AI50: TRUE | AJ50: TRUE | AK50: TRUE
A51: =IF(INTRO!$E$34<>0,INTRO!$E$34,"") -> Mali | B51: Segou | C51: Barouéli | D51: 264691 | E51: =IF(INTRO!$E$48="","",ROUND($D51*INTRO!$E$48,0)) -> 37057 | F51: =IF(INTRO!$E$49="","",ROUND($D51*INTRO!$E$49,0)) -> 74113 | G51: =IF(INTRO!$E$50="","",ROUND($D51*INTRO!$E$50,0)) -> 136316 | H51: 99 | I51: 0 | J51: 1 | K51: 2 | L51: =IF(INTRO!$E$38="Endémique", IF($H51>0, IF($H51=4,"Inconnu", IF($H51=99,"Interrompu", $D51)), 0),"Non requis") -> Interrompu | M51: =IF(INTRO!$E$40="Endémique", IF($I51>0, IF($I51=4,"Inconnu",IF($I51=99,"Interrompu", $D51)), 0),"Non requis") -> 0 | N51: =IF(INTRO!$E$42="Endémique", IF(AND($J51>1,$J51<5), IF($J51=4, "Inconnu", E51+F51), 0),"Non requis") -> 0 | O51: =IF(INTRO!$E$44="Endémique", IF(AND($K51>0,$K51<5), IF($K51=4,"Inconnu", IF($K51=1, $F51*0.33, IF($K51=2, $F51*0.5+$G51*0.2, SUM(F51:G51)))), 0),"Non requis") -> 64319.7 | P51: 0 | Q51: 0 | R51: 1 | S51: 1 | T51: T1 (PZQ+ALB/MBD) | V51: T1 | W51: T3 | X51: 30012 | Y51: Barouéli | AA51: FALSE | AB51: SEGOU | AC51: Baraoueli | AD51: 99 | AE51: 0 | AF51: 1 | AG51: 2 | AH51: TRUE | AI51: TRUE | AJ51: TRUE | AK51: TRUE
A52: =IF(INTRO!$E$34<>0,INTRO!$E$34,"") -> Mali | B52: Segou | C52: Bla | D52: 368867 | E52: =IF(INTRO!$E$48="","",ROUND($D52*INTRO!$E$48,0)) -> 51641 | F52: =IF(INTRO!$E$49="","",ROUND($D52*INTRO!$E$49,0)) -> 103283 | G52: =IF(INTRO!$E$50="","",ROUND($D52*INTRO!$E$50,0)) -> 189967 | H52: 99 | I52: 0 | J52: 1 | K52: =AG52 -> 3 | L52: =IF(INTRO!$E$38="Endémique", IF($H52>0, IF($H52=4,"Inconnu", IF($H52=99,"Interrompu", $D52)), 0),"Non requis") -> Interrompu | M52: =IF(INTRO!$E$40="Endémique", IF($I52>0, IF($I52=4,"Inconnu",IF($I52=99,"Interrompu", $D52)), 0),"Non requis") -> 0 | N52: =IF(INTRO!$E$42="Endémique", IF(AND($J52>1,$J52<5), IF($J52=4, "Inconnu", E52+F52), 0),"Non requis") -> 0 | O52: =IF(INTRO!$E$44="Endémique", IF(AND($K52>0,$K52<5), IF($K52=4,"Inconnu", IF($K52=1, $F52*0.33, IF($K52=2, $F52*0.5+$G52*0.2, SUM(F52:G52)))), 0),"Non requis") -> 293250 | P52: 0 | Q52: 0 | R52: 1 | S52: 1 | T52: T1 (PZQ+ALB/MBD) | V52: T1 | W52: T3 | X52: 30013 | Y52: Bla | AA52: TRUE | AB52: SEGOU | AC52: Bla | AD52: 99 | AE52: 0 | AF52: 1 | AG52: 3 | AH52: TRUE | AI52: TRUE | AJ52: TRUE | AK52: TRUE
A53: =IF(INTRO!$E$34<>0,INTRO!$E$34,"") -> Mali | B53: Segou | C53: Macina | D53: 308808 | E53: =IF(INTRO!$E$48="","",ROUND($D53*INTRO!$E$48,0)) -> 43233 | F53: =IF(INTRO!$E$49="","",ROUND($D53*INTRO!$E$49,0)) -> 86466 | G53: =IF(INTRO!$E$50="","",ROUND($D53*INTRO!$E$50,0)) -> 159036 | H53: 99 | I53: 0 | J53: 1 | K53: 2 | L53: =IF(INTRO!$E$38="Endémique", IF($H53>0, IF($H53=4,"Inconnu", IF($H53=99,"Interrompu", $D53)), 0),"Non requis") -> Interrompu | M53: =IF(INTRO!$E$40="Endémique", IF($I53>0, IF($I53=4,"Inconnu",IF($I53=99,"Interrompu", $D53)), 0),"Non requis") -> 0 | N53: =IF(INTRO!$E$42="Endémique", IF(AND($J53>1,$J53<5), IF($J53=4, "Inconnu", E53+F53), 0),"Non requis") -> 0 | O53: =IF(INTRO!$E$44="Endémique", IF(AND($K53>0,$K53<5), IF($K53=4,"Inconnu", IF($K53=1, $F53*0.33, IF($K53=2, $F53*0.5+$G53*0.2, SUM(F53:G53)))), 0),"Non requis") -> 75040.2 | P53: 0 | Q53: 0 | R53: 1 | S53: 1 | T53: T1 (PZQ+ALB/MBD) | V53: T1 | W53: T3 | X53: 30014 | Y53: Macina | AA53: TRUE | AB53: SEGOU | AC53: Macina | AD53: 99 | AE53: 0 | AF53: 1 | AG53: 2 | AH53: TRUE | AI53: TRUE | AJ53: TRUE | AK53: TRUE
A54: =IF(INTRO!$E$34<>0,INTRO!$E$34,"") -> Mali | B54: Segou | C54: Markala | D54: 233745 | E54: =IF(INTRO!$E$48="","",ROUND($D54*INTRO!$E$48,0)) -> 32724 | F54: =IF(INTRO!$E$49="","",ROUND($D54*INTRO!$E$49,0)) -> 65449 | G54: =IF(INTRO!$E$50="","",ROUND($D54*INTRO!$E$50,0)) -> 120379 | H54: 99 | I54: 0 | J54: 1 | K54: 2 | L54: =IF(INTRO!$E$38="Endémique", IF($H54>0, IF($H54=4,"Inconnu", IF($H54=99,"Interrompu", $D54)), 0),"Non requis") -> Interrompu | M54: =IF(INTRO!$E$40="Endémique", IF($I54>0, IF($I54=4,"Inconnu",IF($I54=99,"Interrompu", $D54)), 0),"Non requis") -> 0 | N54: =IF(INTRO!$E$42="Endémique", IF(AND($J54>1,$J54<5), IF($J54=4, "Inconnu", E54+F54), 0),"Non requis") -> 0 | O54: =IF(INTRO!$E$44="Endémique", IF(AND($K54>0,$K54<5), IF($K54=4,"Inconnu", IF($K54=1, $F54*0.33, IF($K54=2, $F54*0.5+$G54*0.2, SUM(F54:G54)))), 0),"Non requis") -> 56800.3 | P54: 0 | Q54: 0 | R54: 1 | S54: 1 | T54: T1 (PZQ+ALB/MBD) | V54: T1 | W54: T3 | X54: 30015 | Y54: Markala | AA54: TRUE | AB54: SEGOU | AC54: Markala | AD54: 99 | AE54: 0 | AF54: 1 | AG54: 2 | AH54: TRUE | AI54: TRUE | AJ54: TRUE | AK54: TRUE
A55: =IF(INTRO!$E$34<>0,INTRO!$E$34,"") -> Mali | B55: Segou | C55: Niono | D55: 475212 | E55: =IF(INTRO!$E$48="","",ROUND($D55*INTRO!$E$48,0)) -> 66530 | F55: =IF(INTRO!$E$49="","",ROUND($D55*INTRO!$E$49,0)) -> 133059 | G55: =IF(INTRO!$E$50="","",ROUND($D55*INTRO!$E$50,0)) -> 244734 | H55: 99 | I55: 0 | J55: 1 | K55: 3 | L55: =IF(INTRO!$E$38="Endémique", IF($H55>0, IF($H55=4,"Inconnu", IF($H55=99,"Interrompu", $D55)), 0),"Non requis") -> Interrompu | M55: =IF(INTRO!$E$40="Endémique", IF($I55>0, IF($I55=4,"Inconnu",IF($I55=99,"Interrompu", $D55)), 0),"Non requis") -> 0 | N55: =IF(INTRO!$E$42="Endémique", IF(AND($J55>1,$J55<5), IF($J55=4, "Inconnu", E55+F55), 0),"Non requis") -> 0 | O55: =IF(INTRO!$E$44="Endémique", IF(AND($K55>0,$K55<5), IF($K55=4,"Inconnu", IF($K55=1, $F55*0.33, IF($K55=2, $F55*0.5+$G55*0.2, SUM(F55:G55)))), 0),"Non requis") -> 377793 | P55: 0 | Q55: 0 | R55: 1 | S55: 1 | T55: T1 (PZQ+ALB/MBD) | V55: T1 | W55: T3 | X55: 30016 | Y55: Niono | AA55: TRUE | AB55: SEGOU | AC55: Niono | AD55: 99 | AE55: 0 | AF55: 1 | AG55: 3 | AH55: TRUE | AI55: TRUE | AJ55: TRUE | AK55: TRUE
A56: =IF(INTRO!$E$34<>0,INTRO!$E$34,"") -> Mali | B56: Segou | C56: San | D56: 435509 | E56: =IF(INTRO!$E$48="","",ROUND($D56*INTRO!$E$48,0)) -> 60971 | F56: =IF(INTRO!$E$49="","",ROUND($D56*INTRO!$E$49,0)) -> 121943 | G56: =IF(INTRO!$E$50="","",ROUND($D56*INTRO!$E$50,0)) -> 224287 | H56: 99 | I56: 0 | J56: 1 | K56: =AG56 -> 1 | L56: =IF(INTRO!$E$38="Endémique", IF($H56>0, IF($H56=4,"Inconnu", IF($H56=99,"Interrompu", $D56)), 0),"Non requis") -> Interrompu | M56: =IF(INTRO!$E$40="Endémique", IF($I56>0, IF($I56=4,"Inconnu",IF($I56=99,"Interrompu", $D56)), 0),"Non requis") -> 0 | N56: =IF(INTRO!$E$42="Endémique", IF(AND($J56>1,$J56<5), IF($J56=4, "Inconnu", E56+F56), 0),"Non requis") -> 0 | O56: =IF(INTRO!$E$44="Endémique", IF(AND($K56>0,$K56<5), IF($K56=4,"Inconnu", IF($K56=1, $F56*0.33, IF($K56=2, $F56*0.5+$G56*0.2, SUM(F56:G56)))), 0),"Non requis") -> 40241.19 | P56: 0 | Q56: 0 | R56: 1 | S56: 0 | T56: T3 (ALB/MBD) | V56: T3 | W56: T3 | X56: 30017 | Y56: San | AA56: TRUE | AB56: SEGOU | AC56: San | AD56: 99 | AE56: 0 | AF56: 1 | AG56: 1 | AH56: TRUE | AI56: TRUE | AJ56: TRUE | AK56: TRUE
A57: =IF(INTRO!$E$34<>0,INTRO!$E$34,"") -> Mali | B57: Segou | C57: Segou | D57: 665277 | E57: =IF(INTRO!$E$48="","",ROUND($D57*INTRO!$E$48,0)) -> 93139 | F57: =IF(INTRO!$E$49="","",ROUND($D57*INTRO!$E$49,0)) -> 186278 | G57: =IF(INTRO!$E$50="","",ROUND($D57*INTRO!$E$50,0)) -> 342618 | H57: 99 | I57: 0 | J57: 1 | K57: 2 | L57: =IF(INTRO!$E$38="Endémique", IF($H57>0, IF($H57=4,"Inconnu", IF($H57=99,"Interrompu", $D57)), 0),"Non requis") -> Interrompu | M57: =IF(INTRO!$E$40="Endémique", IF($I57>0, IF($I57=4,"Inconnu",IF($I57=99,"Interrompu", $D57)), 0),"Non requis") -> 0 | N57: =IF(INTRO!$E$42="Endémique", IF(AND($J57>1,$J57<5), IF($J57=4, "Inconnu", E57+F57), 0),"Non requis") -> 0 | O57: =IF(INTRO!$E$44="Endémique", IF(AND($K57>0,$K57<5), IF($K57=4,"Inconnu", IF($K57=1, $F57*0.33, IF($K57=2, $F57*0.5+$G57*0.2, SUM(F57:G57)))), 0),"Non requis") -> 161662.6 | P57: 0 | Q57: 0 | R57: 1 | S57: 1 | T57: T1 (PZQ+ALB/MBD) | V57: T1 | W57: T3 | X57: 30018 | Y57: Segou | AA57: TRUE | AB57: SEGOU | AC57: Segou | AD57: 99 | AE57: 0 | AF57: 1 | AG57: 2 | AH57: TRUE | AI57: TRUE | AJ57: TRUE | AK57: TRUE
A58: =IF(INTRO!$E$34<>0,INTRO!$E$34,"") -> Mali | B58: Segou | C58: Tominian | D58: 285891 | E58: =IF(INTRO!$E$48="","",ROUND($D58*INTRO!$E$48,0)) -> 40025 | F58: =IF(INTRO!$E$49="","",ROUND($D58*INTRO!$E$49,0)) -> 80049 | G58: =IF(INTRO!$E$50="","",ROUND($D58*INTRO!$E$50,0)) -> 147234 | H58: 99 | I58: 0 | J58: 1 | K58: =AG58 -> 1 | L58: =IF(INTRO!$E$38="Endémique", IF($H58>0, IF($H58=4,"Inconnu", IF($H58=99,"Interrompu", $D58)), 0),"Non requis") -> Interrompu | M58: =IF(INTRO!$E$40="Endémique", IF($I58>0, IF($I58=4,"Inconnu",IF($I58=99,"Interrompu", $D58)), 0),"Non requis") -> 0 | N58: =IF(INTRO!$E$42="Endémique", IF(AND($J58>1,$J58<5), IF($J58=4, "Inconnu", E58+F58), 0),"Non requis") -> 0 | O58: =IF(INTRO!$E$44="Endémique", IF(AND($K58>0,$K58<5), IF($K58=4,"Inconnu", IF($K58=1, $F58*0.33, IF($K58=2, $F58*0.5+$G58*0.2, SUM(F58:G58)))), 0),"Non requis") -> 26416.17 | P58: 0 | Q58: 0 | R58: 1 | S58: 1 | T58: T1 (PZQ+ALB/MBD) | V58: T1 | W58: T3 | X58: 30019 | Y58: Tominian | AA58: TRUE | AB58: SEGOU | AC58: Tominian | AD58: 99 | AE58: 0 | AF58: 1 | AG58: 1 | AH58: TRUE | AI58: TRUE | AJ58: TRUE | AK58: TRUE
A59: =IF(INTRO!$E$34<>0,INTRO!$E$34,"") -> Mali | B59: Sikasso | C59: Bougouni | D59: 600915 | E59: =IF(INTRO!$E$48="","",ROUND($D59*INTRO!$E$48,0)) -> 84128 | F59: =IF(INTRO!$E$49="","",ROUND($D59*INTRO!$E$49,0)) -> 168256 | G59: =IF(INTRO!$E$50="","",ROUND($D59*INTRO!$E$50,0)) -> 309471 | H59: 99 | I59: 99 | J59: 1 | K59: 2 | L59: =IF(INTRO!$E$38="Endémique", IF($H59>0, IF($H59=4,"Inconnu", IF($H59=99,"Interrompu", $D59)), 0),"Non requis") -> Interrompu | M59: =IF(INTRO!$E$40="Endémique", IF($I59>0, IF($I59=4,"Inconnu",IF($I59=99,"Interrompu", $D59)), 0),"Non requis") -> Interrompu | N59: =IF(INTRO!$E$42="Endémique", IF(AND($J59>1,$J59<5), IF($J59=4, "Inconnu", E59+F59), 0),"Non requis") -> 0 | O59: =IF(INTRO!$E$44="Endémique", IF(AND($K59>0,$K59<5), IF($K59=4,"Inconnu", IF($K59=1, $F59*0.33, IF($K59=2, $F59*0.5+$G59*0.2, SUM(F59:G59)))), 0),"Non requis") -> 146022.2 | P59: 0 | Q59: 0 | R59: 1 | S59: 1 | T59: T1 (PZQ+ALB/MBD) | V59: T1 | W59: T3 | X59: 30020 | Y59: Bougouni | AA59: TRUE | AB59: SIKASSO | AC59: Bougouni | AD59: 99 | AE59: 99 | AF59: 1 | AG59: 2 | AH59: TRUE | AI59: TRUE | AJ59: TRUE | AK59: TRUE
A60: =IF(INTRO!$E$34<>0,INTRO!$E$34,"") -> Mali | B60: Sikasso | C60: Kadiolo | D60: 313481 | E60: =IF(INTRO!$E$48="","",ROUND($D60*INTRO!$E$48,0)) -> 43887 | F60: =IF(INTRO!$E$49="","",ROUND($D60*INTRO!$E$49,0)) -> 87775 | G60: =IF(INTRO!$E$50="","",ROUND($D60*INTRO!$E$50,0)) -> 161443 | H60: 99 | I60: 0 | J60: 1 | K60: =AG60 -> 1 | L60: =IF(INTRO!$E$38="Endémique", IF($H60>0, IF($H60=4,"Inconnu", IF($H60=99,"Interrompu", $D60)), 0),"Non requis") -> Interrompu | M60: =IF(INTRO!$E$40="Endémique", IF($I60>0, IF($I60=4,"Inconnu",IF($I60=99,"Interrompu", $D60)), 0),"Non requis") -> 0 | N60: =IF(INTRO!$E$42="Endémique", IF(AND($J60>1,$J60<5), IF($J60=4, "Inconnu", E60+F60), 0),"Non requis") -> 0 | O60: =IF(INTRO!$E$44="Endémique", IF(AND($K60>0,$K60<5), IF($K60=4,"Inconnu", IF($K60=1, $F60*0.33, IF($K60=2, $F60*0.5+$G60*0.2, SUM(F60:G60)))), 0),"Non requis") -> 28965.75 | P60: 0 | Q60: 0 | R60: 1 | S60: 0 | T60: T3 (ALB/MBD) | V60: T3 | W60: T3 | X60: 30021 | Y60: Kadiolo | AA60: TRUE | AB60: SIKASSO | AC60: Kadiolo | AD60: 99 | AE60: 0 | AF60: 1 | AG60: 1 | AH60: TRUE | AI60: TRUE | AJ60: TRUE | AK60: TRUE
A61: =IF(INTRO!$E$34<>0,INTRO!$E$34,"") -> Mali | B61: Sikasso | C61: Kignan | D61: 151800 | E61: =IF(INTRO!$E$48="","",ROUND($D61*INTRO!$E$48,0)) -> 21252 | F61: =IF(INTRO!$E$49="","",ROUND($D61*INTRO!$E$49,0)) -> 42504 | G61: =IF(INTRO!$E$50="","",ROUND($D61*INTRO!$E$50,0)) -> 78177 | H61: 99 | I61: 1 | J61: 1 | K61: 1 | L61: =IF(INTRO!$E$38="Endémique", IF($H61>0, IF($H61=4,"Inconnu", IF($H61=99,"Interrompu", $D61)), 0),"Non requis") -> Interrompu | M61: =IF(INTRO!$E$40="Endémique", IF($I61>0, IF($I61=4,"Inconnu",IF($I61=99,"Interrompu", $D61)), 0),"Non requis") -> 151800 | N61: =IF(INTRO!$E$42="Endémique", IF(AND($J61>1,$J61<5), IF($J61=4, "Inconnu", E61+F61), 0),"Non requis") -> 0 | O61: =IF(INTRO!$E$44="Endémique", IF(AND($K61>0,$K61<5), IF($K61=4,"Inconnu", IF($K61=1, $F61*0.33, IF($K61=2, $F61*0.5+$G61*0.2, SUM(F61:G61)))), 0),"Non requis") -> 14026.32 | P61: 0 | Q61: 1 | R61: 1 | S61: 0 | T61: MDA3 (IVM) | U61: T3 (ALB/MBD) | V61: MDA 1 | W61: T3 | X61: 30022 | Y61: Kignan | AA61: TRUE | AB61: SIKASSO | AC61: Kignan | AD61: 99 | AE61: 1 | AF61: 1 | AG61: 1 | AH61: TRUE | AI61: TRUE | AJ61: TRUE | AK61: TRUE
A62: =IF(INTRO!$E$34<>0,INTRO!$E$34,"") -> Mali | B62: Sikasso | C62: Kolondieba | D62: 264970 | E62: =IF(INTRO!$E$48="","",ROUND($D62*INTRO!$E$48,0)) -> 37096 | F62: =IF(INTRO!$E$49="","",ROUND($D62*INTRO!$E$49,0)) -> 74192 | G62: =IF(INTRO!$E$50="","",ROUND($D62*INTRO!$E$50,0)) -> 136460 | H62: 99 | I62: 1 | J62: 1 | K62: 1 | L62: =IF(INTRO!$E$38="Endémique", IF($H62>0, IF($H62=4,"Inconnu", IF($H62=99,"Interrompu", $D62)), 0),"Non requis") -> Interrompu | M62: =IF(INTRO!$E$40="Endémique", IF($I62>0, IF($I62=4,"Inconnu",IF($I62=99,"Interrompu", $D62)), 0),"Non requis") -> 264970 | N62: =IF(INTRO!$E$42="Endémique", IF(AND($J62>1,$J62<5), IF($J62=4, "Inconnu", E62+F62), 0),"Non requis") -> 0 | O62: =IF(INTRO!$E$44="Endémique", IF(AND($K62>0,$K62<5), IF($K62=4,"Inconnu", IF($K62=1, $F62*0.33, IF($K62=2, $F62*0.5+$G62*0.2, SUM(F62:G62)))), 0),"Non requis") -> 24483.36 | P62: 0 | Q62: 1 | R62: 1 | S62: 0 | T62: MDA3 (IVM) | U62: T3 (ALB/MBD) | V62: MDA 1 | W62: T3 | X62: 30023 | Y62: Kolondieba | AA62: TRUE | AB62: SIKASSO | AC62: Kolondieba | AD62: 99 | AE62: 1 | AF62: 1 | AG62: 1 | AH62: TRUE | AI62: TRUE | AJ62: TRUE | AK62: TRUE
A63: =IF(INTRO!$E$34<>0,INTRO!$E$34,"") -> Mali | B63: Sikasso | C63: Koutiala | D63: 752277 | E63: =IF(INTRO!$E$48="","",ROUND($D63*INTRO!$E$48,0)) -> 105319 | F63: =IF(INTRO!$E$49="","",ROUND($D63*INTRO!$E$49,0)) -> 210638 | G63: =IF(INTRO!$E$50="","",ROUND($D63*INTRO!$E$50,0)) -> 387423 | H63: 99 | I63: 0 | J63: 1 | K63: 1 | L63: =IF(INTRO!$E$38="Endémique", IF($H63>0, IF($H63=4,"Inconnu", IF($H63=99,"Interrompu", $D63)), 0),"Non requis") -> Interrompu | M63: =IF(INTRO!$E$40="Endémique", IF($I63>0, IF($I63=4,"Inconnu",IF($I63=99,"Interrompu", $D63)), 0),"Non requis") -> 0 | N63: =IF(INTRO!$E$42="Endémique", IF(AND($J63>1,$J63<5), IF($J63=4, "Inconnu", E63+F63), 0),"Non requis") -> 0 | O63: =IF(INTRO!$E$44="Endémique", IF(AND($K63>0,$K63<5), IF($K63=4,"Inconnu", IF($K63=1, $F63*0.33, IF($K63=2, $F63*0.5+$G63*0.2, SUM(F63:G63)))), 0),"Non requis") -> 69510.54 | P63: 0 | Q63: 0 | R63: 1 | S63: 0 | T63: T3 (ALB/MBD) | V63: T3 | W63: T3 | X63: 30024 | Y63: Koutiala | AA63: TRUE | AB63: SIKASSO | AC63: Koutiala | AD63: 99 | AE63: 0 | AF63: 1 | AG63: 1 | AH63: TRUE | AI63: TRUE | AJ63: TRUE | AK63: TRUE
A64: =IF(INTRO!$E$34<>0,INTRO!$E$34,"") -> Mali | B64: Sikasso | C64: Niena | D64: 159390 | E64: =IF(INTRO!$E$48="","",ROUND($D64*INTRO!$E$48,0)) -> 22315 | F64: =IF(INTRO!$E$49="","",ROUND($D64*INTRO!$E$49,0)) -> 44629 | G64: =IF(INTRO!$E$50="","",ROUND($D64*INTRO!$E$50,0)) -> 82086 | H64: 99 | I64: 1 | J64: 1 | K64: 2 | L64: =IF(INTRO!$E$38="Endémique", IF($H64>0, IF($H64=4,"Inconnu", IF($H64=99,"Interrompu", $D64)), 0),"Non requis") -> Interrompu | M64: =IF(INTRO!$E$40="Endémique", IF($I64>0, IF($I64=4,"Inconnu",IF($I64=99,"Interrompu", $D64)), 0),"Non requis") -> 159390 | N64: =IF(INTRO!$E$42="Endémique", IF(AND($J64>1,$J64<5), IF($J64=4, "Inconnu", E64+F64), 0),"Non requis") -> 0 | O64: =IF(INTRO!$E$44="Endémique", IF(AND($K64>0,$K64<5), IF($K64=4,"Inconnu", IF($K64=1, $F64*0.33, IF($K64=2, $F64*0.5+$G64*0.2, SUM(F64:G64)))), 0),"Non requis") -> 38731.7 | P64: 0 | Q64: 1 | R64: 1 | S64: 1 | T64: MDA3 (IVM) | U64: T1 (PZQ+ALB/MBD) | V64: MDA 1 | W64: T1 | X64: 30025 | Y64: Niena | AA64: TRUE | AB64: SIKASSO | AC64: Niena | AD64: 99 | AE64: 1 | AF64: 1 | AG64: 2 | AH64: TRUE | AI64: TRUE | AJ64: TRUE | AK64: TRUE
A65: =IF(INTRO!$E$34<>0,INTRO!$E$34,"") -> Mali | B65: Sikasso | C65: Sélingué | D65: 108033 | E65: =IF(INTRO!$E$48="","",ROUND($D65*INTRO!$E$48,0)) -> 15125 | F65: =IF(INTRO!$E$49="","",ROUND($D65*INTRO!$E$49,0)) -> 30249 | G65: =IF(INTRO!$E$50="","",ROUND($D65*INTRO!$E$50,0)) -> 55637 | H65: 99 | I65: 1 | J65: 1 | K65: =AG65 -> 1 | L65: =IF(INTRO!$E$38="Endémique", IF($H65>0, IF($H65=4,"Inconnu", IF($H65=99,"Interrompu", $D65)), 0),"Non requis") -> Interrompu | M65: =IF(INTRO!$E$40="Endémique", IF($I65>0, IF($I65=4,"Inconnu",IF($I65=99,"Interrompu", $D65)), 0),"Non requis") -> 108033 | N65: =IF(INTRO!$E$42="Endémique", IF(AND($J65>1,$J65<5), IF($J65=4, "Inconnu", E65+F65), 0),"Non requis") -> 0 | O65: =IF(INTRO!$E$44="Endémique", IF(AND($K65>0,$K65<5), IF($K65=4,"Inconnu", IF($K65=1, $F65*0.33, IF($K65=2, $F65*0.5+$G65*0.2, SUM(F65:G65)))), 0),"Non requis") -> 9982.17 | P65: 0 | Q65: 1 | R65: 1 | S65: 0 | T65: MDA3 (IVM) | U65: T3 (ALB/MBD) | V65: MDA 1 | W65: T3 | X65: 30027 | Y65: Sélingué | AA65: FALSE | AB65: SIKASSO | AC65: Selingue | AD65: 99 | AE65: 1 | AF65: 1 | AG65: 1 | AH65: TRUE | AI65: TRUE | AJ65: TRUE | AK65: TRUE
A66: =IF(INTRO!$E$34<>0,INTRO!$E$34,"") -> Mali | B66: Sikasso | C66: Sikasso | D66: 796952 | E66: =IF(INTRO!$E$48="","",ROUND($D66*INTRO!$E$48,0)) -> 111573 | F66: =IF(INTRO!$E$49="","",ROUND($D66*INTRO!$E$49,0)) -> 223147 | G66: =IF(INTRO!$E$50="","",ROUND($D66*INTRO!$E$50,0)) -> 410430 | H66: 99 | I66: 1 | J66: 1 | K66: 1 | L66: =IF(INTRO!$E$38="Endémique", IF($H66>0, IF($H66=4,"Inconnu", IF($H66=99,"Interrompu", $D66)), 0),"Non requis") -> Interrompu | M66: =IF(INTRO!$E$40="Endémique", IF($I66>0, IF($I66=4,"Inconnu",IF($I66=99,"Interrompu", $D66)), 0),"Non requis") -> 796952 | N66: =IF(INTRO!$E$42="Endémique", IF(AND($J66>1,$J66<5), IF($J66=4, "Inconnu", E66+F66), 0),"Non requis") -> 0 | O66: =IF(INTRO!$E$44="Endémique", IF(AND($K66>0,$K66<5), IF($K66=4,"Inconnu", IF($K66=1, $F66*0.33, IF($K66=2, $F66*0.5+$G66*0.2, SUM(F66:G66)))), 0),"Non requis") -> 73638.51 | P66: 0 | Q66: 1 | R66: 1 | S66: 0 | T66: MDA3 (IVM) | U66: T3 (ALB/MBD) | V66: MDA 1 | W66: T3 | X66: 30026 | Y66: Sikasso | AA66: TRUE | AB66: SIKASSO | AC66: Sikasso | AD66: 99 | AE66: 1 | AF66: 1 | AG66: 1 | AH66: TRUE | AI66: TRUE | AJ66: TRUE | AK66: TRUE
A67: =IF(INTRO!$E$34<>0,INTRO!$E$34,"") -> Mali | B67: Sikasso | C67: Yanfolila | D67: 168976 | E67: =IF(INTRO!$E$48="","",ROUND($D67*INTRO!$E$48,0)) -> 23657 | F67: =IF(INTRO!$E$49="","",ROUND($D67*INTRO!$E$49,0)) -> 47313 | G67: =IF(INTRO!$E$50="","",ROUND($D67*INTRO!$E$50,0)) -> 87023 | H67: 99 | I67: 99 | J67: 1 | K67: 1 | L67: =IF(INTRO!$E$38="Endémique", IF($H67>0, IF($H67=4,"Inconnu", IF($H67=99,"Interrompu", $D67)), 0),"Non requis") -> Interrompu | M67: =IF(INTRO!$E$40="Endémique", IF($I67>0, IF($I67=4,"Inconnu",IF($I67=99,"Interrompu", $D67)), 0),"Non requis") -> Interrompu | N67: =IF(INTRO!$E$42="Endémique", IF(AND($J67>1,$J67<5), IF($J67=4, "Inconnu", E67+F67), 0),"Non requis") -> 0 | O67: =IF(INTRO!$E$44="Endémique", IF(AND($K67>0,$K67<5), IF($K67=4,"Inconnu", IF($K67=1, $F67*0.33, IF($K67=2, $F67*0.5+$G67*0.2, SUM(F67:G67)))), 0),"Non requis") -> 15613.29 | P67: 0 | Q67: 0 | R67: 1 | S67: 0 | T67: T3 (ALB/MBD) | V67: T3 | W67: T3 | X67: 30028 | Y67: Yanfolila | AA67: TRUE | AB67: SIKASSO | AC67: Yanfolila | AD67: 99 | AE67: 99 | AF67: 1 | AG67: 1 | AH67: TRUE | AI67: TRUE | AJ67: TRUE | AK67: TRUE
A68: =IF(INTRO!$E$34<>0,INTRO!$E$34,"") -> Mali | B68: Sikasso | C68: Yorosso | D68: 276596 | E68: =IF(INTRO!$E$48="","",ROUND($D68*INTRO!$E$48,0)) -> 38723 | F68: =IF(INTRO!$E$49="","",ROUND($D68*INTRO!$E$49,0)) -> 77447 | G68: =IF(INTRO!$E$50="","",ROUND($D68*INTRO!$E$50,0)) -> 142447 | H68: 99 | I68: 0 | J68: 1 | K68: 1 | L68: =IF(INTRO!$E$38="Endémique", IF($H68>0, IF($H68=4,"Inconnu", IF($H68=99,"Interrompu", $D68)), 0),"Non requis") -> Interrompu | M68: =IF(INTRO!$E$40="Endémique", IF($I68>0, IF($I68=4,"Inconnu",IF($I68=99,"Interrompu", $D68)), 0),"Non requis") -> 0 | N68: =IF(INTRO!$E$42="Endémique", IF(AND($J68>1,$J68<5), IF($J68=4, "Inconnu", E68+F68), 0),"Non requis") -> 0 | O68: =IF(INTRO!$E$44="Endémique", IF(AND($K68>0,$K68<5), IF($K68=4,"Inconnu", IF($K68=1, $F68*0.33, IF($K68=2, $F68*0.5+$G68*0.2, SUM(F68:G68)))), 0),"Non requis") -> 25557.51 | P68: 0 | Q68: 0 | R68: 1 | S68: 0 | T68: T3 (ALB/MBD) | V68: T3 | W68: T3 | X68: 30029 | Y68: Yorosso | AA68: TRUE | AB68: SIKASSO | AC68: Yorosso | AD68: 99 | AE68: 0 | AF68: 1 | AG68: 1 | AH68: TRUE | AI68: TRUE | AJ68: TRUE | AK68: TRUE
A69: =IF(INTRO!$E$34<>0,INTRO!$E$34,"") -> Mali | B69: Tombouctou | C69: Diré | D69: 143219 | E69: =IF(INTRO!$E$48="","",ROUND($D69*INTRO!$E$48,0)) -> 20051 | F69: =IF(INTRO!$E$49="","",ROUND($D69*INTRO!$E$49,0)) -> 40101 | G69: =IF(INTRO!$E$50="","",ROUND($D69*INTRO!$E$50,0)) -> 73758 | H69: 1 | I69: 0 | J69: 1 | K69: 2 | L69: =IF(INTRO!$E$38="Endémique", IF($H69>0, IF($H69=4,"Inconnu", IF($H69=99,"Interrompu", $D69)), 0),"Non requis") -> 143219 | M69: =IF(INTRO!$E$40="Endémique", IF($I69>0, IF($I69=4,"Inconnu",IF($I69=99,"Interrompu", $D69)), 0),"Non requis") -> 0 | N69: =IF(INTRO!$E$42="Endémique", IF(AND($J69>1,$J69<5), IF($J69=4, "Inconnu", E69+F69), 0),"Non requis") -> 0 | O69: =IF(INTRO!$E$44="Endémique", IF(AND($K69>0,$K69<5), IF($K69=4,"Inconnu", IF($K69=1, $F69*0.33, IF($K69=2, $F69*0.5+$G69*0.2, SUM(F69:G69)))), 0),"Non requis") -> 34802.1 | P69: 1 | Q69: 0 | R69: 1 | S69: 0 | T69: MDA1 (IVM+ALB) | V69: MDA 1 | W69: T3 | X69: 30030 | Y69: Diré | AA69: FALSE | AB69: TOMBOUCTOU | AC69: Dire | AD69: 1 | AE69: 0 | AF69: 1 | AG69: 2 | AH69: TRUE | AI69: TRUE | AJ69: TRUE | AK69: TRUE
A70: =IF(INTRO!$E$34<>0,INTRO!$E$34,"") -> Mali | B70: Tombouctou | C70: Goundam | D70: 193169 | E70: =IF(INTRO!$E$48="","",ROUND($D70*INTRO!$E$48,0)) -> 27044 | F70: =IF(INTRO!$E$49="","",ROUND($D70*INTRO!$E$49,0)) -> 54087 | G70: =IF(INTRO!$E$50="","",ROUND($D70*INTRO!$E$50,0)) -> 99482 | H70: 1 | I70: 0 | J70: 1 | K70: 2 | L70: =IF(INTRO!$E$38="Endémique", IF($H70>0, IF($H70=4,"Inconnu", IF($H70=99,"Interrompu", $D70)), 0),"Non requis") -> 193169 | M70: =IF(INTRO!$E$40="Endémique", IF($I70>0, IF($I70=4,"Inconnu",IF($I70=99,"Interrompu", $D70)), 0),"Non requis") -> 0 | N70: =IF(INTRO!$E$42="Endémique", IF(AND($J70>1,$J70<5), IF($J70=4, "Inconnu", E70+F70), 0),"Non requis") -> 0 | O70: =IF(INTRO!$E$44="Endémique", IF(AND($K70>0,$K70<5), IF($K70=4,"Inconnu", IF($K70=1, $F70*0.33, IF($K70=2, $F70*0.5+$G70*0.2, SUM(F70:G70)))), 0),"Non requis") -> 46939.9 | P70: 1 | Q70: 0 | R70: 1 | S70: 0 | T70: MDA1 (IVM+ALB) | V70: MDA 1 | W70: T3 | X70: 30031 | Y70: Goundam | AA70: TRUE | AB70: TOMBOUCTOU | AC70: Goundam | AD70: 1 | AE70: 0 | AF70: 1 | AG70: 2 | AH70: TRUE | AI70: TRUE | AJ70: TRUE | AK70: TRUE
A71: =IF(INTRO!$E$34<>0,INTRO!$E$34,"") -> Mali | B71: Tombouctou | C71: Gourma-Rharous | D71: 143299 | E71: =IF(INTRO!$E$48="","",ROUND($D71*INTRO!$E$48,0)) -> 20062 | F71: =IF(INTRO!$E$49="","",ROUND($D71*INTRO!$E$49,0)) -> 40124 | G71: =IF(INTRO!$E$50="","",ROUND($D71*INTRO!$E$50,0)) -> 73799 | H71: 1 | I71: 0 | J71: 1 | K71: 2 | L71: =IF(INTRO!$E$38="Endémique", IF($H71>0, IF($H71=4,"Inconnu", IF($H71=99,"Interrompu", $D71)), 0),"Non requis") -> 143299 | M71: =IF(INTRO!$E$40="Endémique", IF($I71>0, IF($I71=4,"Inconnu",IF($I71=99,"Interrompu", $D71)), 0),"Non requis") -> 0 | N71: =IF(INTRO!$E$42="Endémique", IF(AND($J71>1,$J71<5), IF($J71=4, "Inconnu", E71+F71), 0),"Non requis") -> 0 | O71: =IF(INTRO!$E$44="Endémique", IF(AND($K71>0,$K71<5), IF($K71=4,"Inconnu", IF($K71=1, $F71*0.33, IF($K71=2, $F71*0.5+$G71*0.2, SUM(F71:G71)))), 0),"Non requis") -> 34821.8 | P71: 1 | Q71: 0 | R71: 1 | S71: 0 | T71: MDA1 (IVM+ALB) | V71: MDA 1 | W71: T3 | X71: 30032 | Y71: Gourma-Rharous | AA71: TRUE | AB71: TOMBOUCTOU | AC71: Gourma-rharous | AD71: 1 | AE71: 0 | AF71: 1 | AG71: 2 | AH71: TRUE | AI71: TRUE | AJ71: TRUE | AK71: TRUE
A72: =IF(INTRO!$E$34<>0,INTRO!$E$34,"") -> Mali | B72: Tombouctou | C72: Niafunké | D72: 237084 | E72: =IF(INTRO!$E$48="","",ROUND($D72*INTRO!$E$48,0)) -> 33192 | F72: =IF(INTRO!$E$49="","",ROUND($D72*INTRO!$E$49,0)) -> 66384 | G72: =IF(INTRO!$E$50="","",ROUND($D72*INTRO!$E$50,0)) -> 122098 | H72: 1 | I72: 0 | J72: 1 | K72: 2 | L72: =IF(INTRO!$E$38="Endémique", IF($H72>0, IF($H72=4,"Inconnu", IF($H72=99,"Interrompu", $D72)), 0),"Non requis") -> 237084 | M72: =IF(INTRO!$E$40="Endémique", IF($I72>0, IF($I72=4,"Inconnu",IF($I72=99,"Interrompu", $D72)), 0),"Non requis") -> 0 | N72: =IF(INTRO!$E$42="Endémique", IF(AND($J72>1,$J72<5), IF($J72=4, "Inconnu", E72+F72), 0),"Non requis") -> 0 | O72: =IF(INTRO!$E$44="Endémique", IF(AND($K72>0,$K72<5), IF($K72=4,"Inconnu", IF($K72=1, $F72*0.33, IF($K72=2, $F72*0.5+$G72*0.2, SUM(F72:G72)))), 0),"Non requis") -> 57611.6 | P72: 1 | Q72: 0 | R72: 1 | S72: 0 | T72: MDA1 (IVM+ALB) | V72: MDA 1 | W72: T3 | X72: 30033 | Y72: Niafunké | AA72: FALSE | AB72: TOMBOUCTOU | AC72: Niafunke | AD72: 1 | AE72: 0 | AF72: 1 | AG72: 2 | AH72: TRUE | AI72: TRUE | AJ72: TRUE | AK72: TRUE
A73: =IF(INTRO!$E$34<>0,INTRO!$E$34,"") -> Mali | B73: Tombouctou | C73: Tombouctou | D73: 160229 | E73: =IF(INTRO!$E$48="","",ROUND($D73*INTRO!$E$48,0)) -> 22432 | F73: =IF(INTRO!$E$49="","",ROUND($D73*INTRO!$E$49,0)) -> 44864 | G73: =IF(INTRO!$E$50="","",ROUND($D73*INTRO!$E$50,0)) -> 82518 | H73: 1 | I73: 0 | J73: 1 | K73: 1 | L73: =IF(INTRO!$E$38="Endémique", IF($H73>0, IF($H73=4,"Inconnu", IF($H73=99,"Interrompu", $D73)), 0),"Non requis") -> 160229 | M73: =IF(INTRO!$E$40="Endémique", IF($I73>0, IF($I73=4,"Inconnu",IF($I73=99,"Interrompu", $D73)), 0),"Non requis") -> 0 | N73: =IF(INTRO!$E$42="Endémique", IF(AND($J73>1,$J73<5), IF($J73=4, "Inconnu", E73+F73), 0),"Non requis") -> 0 | O73: =IF(INTRO!$E$44="Endémique", IF(AND($K73>0,$K73<5), IF($K73=4,"Inconnu", IF($K73=1, $F73*0.33, IF($K73=2, $F73*0.5+$G73*0.2, SUM(F73:G73)))), 0),"Non requis") -> 14805.12 | P73: 1 | Q73: 0 | R73: 1 | S73: 0 | T73: MDA1 (IVM+ALB) | V73: MDA 1 | W73: T3 | X73: 30034 | Y73: Tombouctou | AA73: TRUE | AB73: TOMBOUCTOU | AC73: Tombouctou | AD73: 1 | AE73: 0 | AF73: 1 | AG73: 1 | AH73: TRUE | AI73: TRUE | AJ73: TRUE | AK73: TRUE

Sheet MDA1
A1: MDA 1 - Ivermectine (IVM) et Albendazole (ALB)
A2: Structure administrative, population nécessitant une chimioprévention par groupe d'âge, population traitée par groupe d'âge et couverture
A4: TOTAL | G4: =SUM(G$9:G$1000) -> 655975 | H4: =SUM(H$9:H$1000) -> 1206524 | I4: =SUM(I$9:I$1000) -> 1862499 | K4: =SUM(K$9:K$1000) -> 793459 | L4: =SUM(L$9:L$1000) -> 938086 | M4: =SUM(M$9:M$1000) -> 1731545 | O4: =IF(G4<>0, IF(K4/G4*100=0, "-", K4/G4*100), " ") -> 120.9587256 | P4: =IF(H4<>0, IF(L4/H4*100=0, "-", L4/H4*100), " ") -> 77.75112638 | Q4: =IF(I4<>0, IF(M4/I4*100=0, "-", M4/I4*100), " ") -> 92.96890898
A6: Structure administrative du pays | D6: Mise en oeuvre de la CP | E6: Date | F6: Population ciblée pour MDA 1 | J6: Population traitée | N6: Couverture du Programme (%)
A7: Pays | B7: Région/Département | C7: District | F7: EAPréS | G7: EAS | H7: Adultes | I7: Total | J7: EAPréS | K7: EAS | L7: Adultes | M7: Total | N7: EAPréS | O7: EAS | P7: Adultes | Q7: Total
A9: =IF(COUNTRY_INFO!A9=0," ",COUNTRY_INFO!A9) -> Mali | B9: =IF(COUNTRY_INFO!B9=0," ",COUNTRY_INFO!B9) -> Bamako | C9: =IF(COUNTRY_INFO!C9=0," ",COUNTRY_INFO!C9) -> Commune 1 | D9: =IF(COUNTRY_INFO!$T$9:$T$1000="MDA1 (IVM+ALB)", COUNTRY_INFO!$T$9:$T$1000, " ") ->  | I9: =SUM(F9:H9) -> 0 | M9: =SUM(J9:L9) -> 0 | O9: =IF(G9<>0, IF(K9/G9*100=0, "-", K9/G9*100), " ") ->  | P9: =IF(H9<>0, IF(L9/H9*100=0, "-", L9/H9*100), " ") -> 
A10: =IF(COUNTRY_INFO!A10=0," ",COUNTRY_INFO!A10) -> Mali | B10: =IF(COUNTRY_INFO!B10=0," ",COUNTRY_INFO!B10) -> Bamako | C10: =IF(COUNTRY_INFO!C10=0," ",COUNTRY_INFO!C10) -> Commune 2 | D10: =IF(COUNTRY_INFO!$T$9:$T$1000="MDA1 (IVM+ALB)", COUNTRY_INFO!$T$9:$T$1000, " ") ->  | I10: =SUM(F10:H10) -> 0 | M10: =SUM(J10:L10) -> 0 | O10: =IF(G10<>0, IF(K10/G10*100=0, "-", K10/G10*100), " ") ->  | P10: =IF(H10<>0, IF(L10/H10*100=0, "-", L10/H10*100), " ") ->  | Q10: =IF(I10<>0, IF(M10/I10*100=0, "-", M10/I10*100), " ") -> 
A11: =IF(COUNTRY_INFO!A11=0," ",COUNTRY_INFO!A11) -> Mali | B11: =IF(COUNTRY_INFO!B11=0," ",COUNTRY_INFO!B11) -> Bamako | C11: =IF(COUNTRY_INFO!C11=0," ",COUNTRY_INFO!C11) -> Commune 3 | D11: =IF(COUNTRY_INFO!$T$9:$T$1000="MDA1 (IVM+ALB)", COUNTRY_INFO!$T$9:$T$1000, " ") ->  | I11: 0 | M11: 0
A12: =IF(COUNTRY_INFO!A12=0," ",COUNTRY_INFO!A12) -> Mali | B12: =IF(COUNTRY_INFO!B12=0," ",COUNTRY_INFO!B12) -> Bamako | C12: =IF(COUNTRY_INFO!C12=0," ",COUNTRY_INFO!C12) -> Commune 4 | D12: =IF(COUNTRY_INFO!$T$9:$T$1000="MDA1 (IVM+ALB)", COUNTRY_INFO!$T$9:$T$1000, " ") ->  | I12: 0 | M12: 0
A13: =IF(COUNTRY_INFO!A13=0," ",COUNTRY_INFO!A13) -> Mali | B13: =IF(COUNTRY_INFO!B13=0," ",COUNTRY_INFO!B13) -> Bamako | C13: =IF(COUNTRY_INFO!C13=0," ",COUNTRY_INFO!C13) -> Commune 5 | D13: =IF(COUNTRY_INFO!$T$9:$T$1000="MDA1 (IVM+ALB)", COUNTRY_INFO!$T$9:$T$1000, " ") ->  | I13: 0 | M13: 0
A14: =IF(COUNTRY_INFO!A14=0," ",COUNTRY_INFO!A14) -> Mali | B14: =IF(COUNTRY_INFO!B14=0," ",COUNTRY_INFO!B14) -> Bamako | C14: =IF(COUNTRY_INFO!C14=0," ",COUNTRY_INFO!C14) -> Commune 6 | D14: =IF(COUNTRY_INFO!$T$9:$T$1000="MDA1 (IVM+ALB)", COUNTRY_INFO!$T$9:$T$1000, " ") ->  | I14: 0 | M14: 0
A15: =IF(COUNTRY_INFO!A15=0," ",COUNTRY_INFO!A15) -> Mali | B15: =IF(COUNTRY_INFO!B15=0," ",COUNTRY_INFO!B15) -> Gao | C15: =IF(COUNTRY_INFO!C15=0," ",COUNTRY_INFO!C15) -> Ansongo | D15: =IF(COUNTRY_INFO!$T$9:$T$1000="MDA1 (IVM+ALB)", COUNTRY_INFO!$T$9:$T$1000, " ") -> MDA1 (IVM+ALB) | E15: Mai 2017 | G15: 47962 | H15: 88216 | I15: 136178 | K15: 52196 | L15: 72825 | M15: 125021 | O15: 108.827822 | P15: 82.5530516 | Q15: 91.80704666
A16: =IF(COUNTRY_INFO!A16=0," ",COUNTRY_INFO!A16) -> Mali | B16: =IF(COUNTRY_INFO!B16=0," ",COUNTRY_INFO!B16) -> Gao | C16: =IF(COUNTRY_INFO!C16=0," ",COUNTRY_INFO!C16) -> Bourem | D16: =IF(COUNTRY_INFO!$T$9:$T$1000="MDA1 (IVM+ALB)", COUNTRY_INFO!$T$9:$T$1000, " ") -> MDA1 (IVM+ALB) | E16: Mai 2017 | G16: 42068 | H16: 77375 | I16: 119443 | K16: 45265 | L16: 58347 | M16: 103612 | O16: 107.5996006 | P16: 75.40807754 | Q16: 86.74597925
A17: =IF(COUNTRY_INFO!A17=0," ",COUNTRY_INFO!A17) -> Mali | B17: =IF(COUNTRY_INFO!B17=0," ",COUNTRY_INFO!B17) -> Gao | C17: =IF(COUNTRY_INFO!C17=0," ",COUNTRY_INFO!C17) -> Gao | D17: =IF(COUNTRY_INFO!$T$9:$T$1000="MDA1 (IVM+ALB)", COUNTRY_INFO!$T$9:$T$1000, " ") -> MDA1 (IVM+ALB) | E17: Mai 2017 | G17: 87016 | H17: 160047 | I17: 247063 | K17: 115961 | L17: 111200 | M17: 227161 | O17: 133.2639974 | P17: 69.47959037 | Q17: 91.94456475
A18: =IF(COUNTRY_INFO!A18=0," ",COUNTRY_INFO!A18) -> Mali | B18: =IF(COUNTRY_INFO!B18=0," ",COUNTRY_INFO!B18) -> Gao | C18: =IF(COUNTRY_INFO!C18=0," ",COUNTRY_INFO!C18) -> Menaka | D18: =IF(COUNTRY_INFO!$T$9:$T$1000="MDA1 (IVM+ALB)", COUNTRY_INFO!$T$9:$T$1000, " ") -> MDA1 (IVM+ALB) | E18: Mai 2017 | G18: 20354 | H18: 37436 | I18: 57790 | K18: 28566 | L18: 35006 | M18: 63572 | O18: 140.345878 | P18: 93.50892189 | Q18: 110.0051912
A19: =IF(COUNTRY_INFO!A19=0," ",COUNTRY_INFO!A19) -> Mali | B19: =IF(COUNTRY_INFO!B19=0," ",COUNTRY_INFO!B19) -> Kayes | C19: =IF(COUNTRY_INFO!C19=0," ",COUNTRY_INFO!C19) -> Bafoulabe | D19: =IF(COUNTRY_INFO!$T$9:$T$1000="MDA1 (IVM+ALB)", COUNTRY_INFO!$T$9:$T$1000, " ") ->  | I19: 0 | M19: 0
A20: =IF(COUNTRY_INFO!A20=0," ",COUNTRY_INFO!A20) -> Mali | B20: =IF(COUNTRY_INFO!B20=0," ",COUNTRY_INFO!B20) -> Kayes | C20: =IF(COUNTRY_INFO!C20=0," ",COUNTRY_INFO!C20) -> Diema | D20: =IF(COUNTRY_INFO!$T$9:$T$1000="MDA1 (IVM+ALB)", COUNTRY_INFO!$T$9:$T$1000, " ") ->  | I20: 0 | M20: 0
A21: =IF(COUNTRY_INFO!A21=0," ",COUNTRY_INFO!A21) -> Mali | B21: =IF(COUNTRY_INFO!B21=0," ",COUNTRY_INFO!B21) -> Kayes | C21: =IF(COUNTRY_INFO!C21=0," ",COUNTRY_INFO!C21) -> Kayes | D21: =IF(COUNTRY_INFO!$T$9:$T$1000="MDA1 (IVM+ALB)", COUNTRY_INFO!$T$9:$T$1000, " ") ->  | I21: 0 | M21: 0
A22: =IF(COUNTRY_INFO!A22=0," ",COUNTRY_INFO!A22) -> Mali | B22: =IF(COUNTRY_INFO!B22=0," ",COUNTRY_INFO!B22) -> Kayes | C22: =IF(COUNTRY_INFO!C22=0," ",COUNTRY_INFO!C22) -> Kenieba | D22: =IF(COUNTRY_INFO!$T$9:$T$1000="MDA1 (IVM+ALB)", COUNTRY_INFO!$T$9:$T$1000, " ") ->  | I22: 0 | M22: 0
A23: =IF(COUNTRY_INFO!A23=0," ",COUNTRY_INFO!A23) -> Mali | B23: =IF(COUNTRY_INFO!B23=0," ",COUNTRY_INFO!B23) -> Kayes | C23: =IF(COUNTRY_INFO!C23=0," ",COUNTRY_INFO!C23) -> Kita | D23: =IF(COUNTRY_INFO!$T$9:$T$1000="MDA1 (IVM+ALB)", COUNTRY_INFO!$T$9:$T$1000, " ") ->  | I23: 0 | M23: 0
A24: =IF(COUNTRY_INFO!A24=0," ",COUNTRY_INFO!A24) -> Mali | B24: =IF(COUNTRY_INFO!B24=0," ",COUNTRY_INFO!B24) -> Kayes | C24: =IF(COUNTRY_INFO!C24=0," ",COUNTRY_INFO!C24) -> Sagabari | D24: =IF(COUNTRY_INFO!$T$9:$T$1000="MDA1 (IVM+ALB)", COUNTRY_INFO!$T$9:$T$1000, " ") ->  | I24: 0 | M24: 0
A25: =IF(COUNTRY_INFO!A25=0," ",COUNTRY_INFO!A25) -> Mali | B25: =IF(COUNTRY_INFO!B25=0," ",COUNTRY_INFO!B25) -> Kayes | C25: =IF(COUNTRY_INFO!C25=0," ",COUNTRY_INFO!C25) -> Sefeto | D25: =IF(COUNTRY_INFO!$T$9:$T$1000="MDA1 (IVM+ALB)", COUNTRY_INFO!$T$9:$T$1000, " ") ->  | I25: 0 | M25: 0
A26: =IF(COUNTRY_INFO!A26=0," ",COUNTRY_INFO!A26) -> Mali | B26: =IF(COUNTRY_INFO!B26=0," ",COUNTRY_INFO!B26) -> Kayes | C26: =IF(COUNTRY_INFO!C26=0," ",COUNTRY_INFO!C26) -> Nioro | D26: =IF(COUNTRY_INFO!$T$9:$T$1000="MDA1 (IVM+ALB)", COUNTRY_INFO!$T$9:$T$1000, " ") ->  | I26: 0 | M26: 0
A27: =IF(COUNTRY_INFO!A27=0," ",COUNTRY_INFO!A27) -> Mali | B27: =IF(COUNTRY_INFO!B27=0," ",COUNTRY_INFO!B27) -> Kayes | C27: =IF(COUNTRY_INFO!C27=0," ",COUNTRY_INFO!C27) -> Oussoubidiagna | D27: =IF(COUNTRY_INFO!$T$9:$T$1000="MDA1 (IVM+ALB)", COUNTRY_INFO!$T$9:$T$1000, " ") ->  | I27: 0 | M27: 0
A28: =IF(COUNTRY_INFO!A28=0," ",COUNTRY_INFO!A28) -> Mali | B28: =IF(COUNTRY_INFO!B28=0," ",COUNTRY_INFO!B28) -> Kayes | C28: =IF(COUNTRY_INFO!C28=0," ",COUNTRY_INFO!C28) -> Yelimane | D28: =IF(COUNTRY_INFO!$T$9:$T$1000="MDA1 (IVM+ALB)", COUNTRY_INFO!$T$9:$T$1000, " ") ->  | I28: 0 | M28: 0
A29: =IF(COUNTRY_INFO!A29=0," ",COUNTRY_INFO!A29) -> Mali | B29: =IF(COUNTRY_INFO!B29=0," ",COUNTRY_INFO!B29) -> Kidal | C29: =IF(COUNTRY_INFO!C29=0," ",COUNTRY_INFO!C29) -> Abeibara | D29: =IF(COUNTRY_INFO!$T$9:$T$1000="MDA1 (IVM+ALB)", COUNTRY_INFO!$T$9:$T$1000, " ") -> MDA1 (IVM+ALB) | E29: Mai 2017 | G29: 3747 | H29: 6892 | I29: 10639 | K29: 944 | L29: 1257 | M29: 2201 | O29: 25.19348812 | P29: 18.23853743 | Q29: 20.68803459
A30: =IF(COUNTRY_INFO!A30=0," ",COUNTRY_INFO!A30) -> Mali | B30: =IF(COUNTRY_INFO!B30=0," ",COUNTRY_INFO!B30) -> Kidal | C30: =IF(COUNTRY_INFO!C30=0," ",COUNTRY_INFO!C30) -> Kidal | D30: =IF(COUNTRY_INFO!$T$9:$T$1000="MDA1 (IVM+ALB)", COUNTRY_INFO!$T$9:$T$1000, " ") -> MDA1 (IVM+ALB) | E30: Mai 2017 | G30: 12053 | H30: 22170 | I30: 34223 | K30: 5500 | L30: 5954 | M30: 11454 | O30: 45.63179291 | P30: 26.85611186 | Q30: 33.46871987
A31: =IF(COUNTRY_INFO!A31=0," ",COUNTRY_INFO!A31) -> Mali | B31: =IF(COUNTRY_INFO!B31=0," ",COUNTRY_INFO!B31) -> Kidal | C31: =IF(COUNTRY_INFO!C31=0," ",COUNTRY_INFO!C31) -> Tessalit | D31: =IF(COUNTRY_INFO!$T$9:$T$1000="MDA1 (IVM+ALB)", COUNTRY_INFO!$T$9:$T$1000, " ") -> MDA1 (IVM+ALB) | E31: Mai 2017 | G31: 5934 | H31: 10914 | I31: 16848 | K31: 3514 | L31: 4246 | M31: 7760 | O31: 59.21806539 | P31: 38.90415979 | Q31: 46.05887939
A32: =IF(COUNTRY_INFO!A32=0," ",COUNTRY_INFO!A32) -> Mali | B32: =IF(COUNTRY_INFO!B32=0," ",COUNTRY_INFO!B32) -> Kidal | C32: =IF(COUNTRY_INFO!C32=0," ",COUNTRY_INFO!C32) -> Tin-Essako | D32: =IF(COUNTRY_INFO!$T$9:$T$1000="MDA1 (IVM+ALB)", COUNTRY_INFO!$T$9:$T$1000, " ") -> MDA1 (IVM+ALB) | E32: Mai 2017 | G32: 2906 | H32: 5344 | I32: 8250 | K32: 924 | L32: 896 | M32: 1820 | O32: 31.79628355 | P32: 16.76646707 | Q32: 22.06060606
A33: =IF(COUNTRY_INFO!A33=0," ",COUNTRY_INFO!A33) -> Mali | B33: =IF(COUNTRY_INFO!B33=0," ",COUNTRY_INFO!B33) -> Koulikoro | C33: =IF(COUNTRY_INFO!C33=0," ",COUNTRY_INFO!C33) -> Banamba | D33: =IF(COUNTRY_INFO!$T$9:$T$1000="MDA1 (IVM+ALB)", COUNTRY_INFO!$T$9:$T$1000, " ") ->  | I33: 0 | M33: 0
A34: =IF(COUNTRY_INFO!A34=0," ",COUNTRY_INFO!A34) -> Mali | B34: =IF(COUNTRY_INFO!B34=0," ",COUNTRY_INFO!B34) -> Koulikoro | C34: =IF(COUNTRY_INFO!C34=0," ",COUNTRY_INFO!C34) -> Dioila | D34: =IF(COUNTRY_INFO!$T$9:$T$1000="MDA1 (IVM+ALB)", COUNTRY_INFO!$T$9:$T$1000, " ") ->  | I34: 0 | M34: 0
A35: =IF(COUNTRY_INFO!A35=0," ",COUNTRY_INFO!A35) -> Mali | B35: =IF(COUNTRY_INFO!B35=0," ",COUNTRY_INFO!B35) -> Koulikoro | C35: =IF(COUNTRY_INFO!C35=0," ",COUNTRY_INFO!C35) -> Fana | D35: =IF(COUNTRY_INFO!$T$9:$T$1000="MDA1 (IVM+ALB)", COUNTRY_INFO!$T$9:$T$1000, " ") ->  | I35: 0 | M35: 0
A36: =IF(COUNTRY_INFO!A36=0," ",COUNTRY_INFO!A36) -> Mali | B36: =IF(COUNTRY_INFO!B36=0," ",COUNTRY_INFO!B36) -> Koulikoro | C36: =IF(COUNTRY_INFO!C36=0," ",COUNTRY_INFO!C36) -> Kalabancoro | D36: =IF(COUNTRY_INFO!$T$9:$T$1000="MDA1 (IVM+ALB)", COUNTRY_INFO!$T$9:$T$1000, " ") ->  | I36: 0 | M36: 0
A37: =IF(COUNTRY_INFO!A37=0," ",COUNTRY_INFO!A37) -> Mali | B37: =IF(COUNTRY_INFO!B37=0," ",COUNTRY_INFO!B37) -> Koulikoro | C37: =IF(COUNTRY_INFO!C37=0," ",COUNTRY_INFO!C37) -> Kangaba | D37: =IF(COUNTRY_INFO!$T$9:$T$1000="MDA1 (IVM+ALB)", COUNTRY_INFO!$T$9:$T$1000, " ") ->  | I37: 0 | M37: 0
A38: =IF(COUNTRY_INFO!A38=0," ",COUNTRY_INFO!A38) -> Mali | B38: =IF(COUNTRY_INFO!B38=0," ",COUNTRY_INFO!B38) -> Koulikoro | C38: =IF(COUNTRY_INFO!C38=0," ",COUNTRY_INFO!C38) -> Kati | D38: =IF(COUNTRY_INFO!$T$9:$T$1000="MDA1 (IVM+ALB)", COUNTRY_INFO!$T$9:$T$1000, " ") ->  | I38: 0 | M38: 0
A39: =IF(COUNTRY_INFO!A39=0," ",COUNTRY_INFO!A39) -> Mali | B39: =IF(COUNTRY_INFO!B39=0," ",COUNTRY_INFO!B39) -> Koulikoro | C39: =IF(COUNTRY_INFO!C39=0," ",COUNTRY_INFO!C39) -> Kolokani | D39: =IF(COUNTRY_INFO!$T$9:$T$1000="MDA1 (IVM+ALB)", COUNTRY_INFO!$T$9:$T$1000, " ") ->  | I39: 0 | M39: 0
A40: =IF(COUNTRY_INFO!A40=0," ",COUNTRY_INFO!A40) -> Mali | B40: =IF(COUNTRY_INFO!B40=0," ",COUNTRY_INFO!B40) -> Koulikoro | C40: =IF(COUNTRY_INFO!C40=0," ",COUNTRY_INFO!C40) -> Koulikoro | D40: =IF(COUNTRY_INFO!$T$9:$T$1000="MDA1 (IVM+ALB)", COUNTRY_INFO!$T$9:$T$1000, " ") ->  | I40: 0 | M40: 0
A41: =IF(COUNTRY_INFO!A41=0," ",COUNTRY_INFO!A41) -> Mali | B41: =IF(COUNTRY_INFO!B41=0," ",COUNTRY_INFO!B41) -> Koulikoro | C41: =IF(COUNTRY_INFO!C41=0," ",COUNTRY_INFO!C41) -> Nara | D41: =IF(COUNTRY_INFO!$T$9:$T$1000="MDA1 (IVM+ALB)", COUNTRY_INFO!$T$9:$T$1000, " ") ->  | I41: 0 | M41: 0
A42: =IF(COUNTRY_INFO!A42=0," ",COUNTRY_INFO!A42) -> Mali | B42: =IF(COUNTRY_INFO!B42=0," ",COUNTRY_INFO!B42) -> Koulikoro | C42: =IF(COUNTRY_INFO!C42=0," ",COUNTRY_INFO!C42) -> Ouelessebougou | D42: =IF(COUNTRY_INFO!$T$9:$T$1000="MDA1 (IVM+ALB)", COUNTRY_INFO!$T$9:$T$1000, " ") ->  | I42: 0 | M42: 0
A43: =IF(COUNTRY_INFO!A43=0," ",COUNTRY_INFO!A43) -> Mali | B43: =IF(COUNTRY_INFO!B43=0," ",COUNTRY_INFO!B43) -> Mopti | C43: =IF(COUNTRY_INFO!C43=0," ",COUNTRY_INFO!C43) -> Bandiagara | D43: =IF(COUNTRY_INFO!$T$9:$T$1000="MDA1 (IVM+ALB)", COUNTRY_INFO!$T$9:$T$1000, " ") ->  | I43: 0 | M43: 0
A44: =IF(COUNTRY_INFO!A44=0," ",COUNTRY_INFO!A44) -> Mali | B44: =IF(COUNTRY_INFO!B44=0," ",COUNTRY_INFO!B44) -> Mopti | C44: =IF(COUNTRY_INFO!C44=0," ",COUNTRY_INFO!C44) -> Bankass | D44: =IF(COUNTRY_INFO!$T$9:$T$1000="MDA1 (IVM+ALB)", COUNTRY_INFO!$T$9:$T$1000, " ") ->  | I44: 0 | M44: 0
A45: =IF(COUNTRY_INFO!A45=0," ",COUNTRY_INFO!A45) -> Mali | B45: =IF(COUNTRY_INFO!B45=0," ",COUNTRY_INFO!B45) -> Mopti | C45: =IF(COUNTRY_INFO!C45=0," ",COUNTRY_INFO!C45) -> Djenne | D45: =IF(COUNTRY_INFO!$T$9:$T$1000="MDA1 (IVM+ALB)", COUNTRY_INFO!$T$9:$T$1000, " ") ->  | I45: 0 | M45: 0
A46: =IF(COUNTRY_INFO!A46=0," ",COUNTRY_INFO!A46) -> Mali | B46: =IF(COUNTRY_INFO!B46=0," ",COUNTRY_INFO!B46) -> Mopti | C46: =IF(COUNTRY_INFO!C46=0," ",COUNTRY_INFO!C46) -> Douentza | D46: =IF(COUNTRY_INFO!$T$9:$T$1000="MDA1 (IVM+ALB)", COUNTRY_INFO!$T$9:$T$1000, " ") -> MDA1 (IVM+ALB) | E46: Mai 2017 | G46: 90077 | H46: 165677 | I46: 255754 | K46: 93790 | L46: 153083 | M46: 246873 | O46: 104.1220289 | P46: 92.39846207 | Q46: 96.52752254
A47: =IF(COUNTRY_INFO!A47=0," ",COUNTRY_INFO!A47) -> Mali | B47: =IF(COUNTRY_INFO!B47=0," ",COUNTRY_INFO!B47) -> Mopti | C47: =IF(COUNTRY_INFO!C47=0," ",COUNTRY_INFO!C47) -> Koro | D47: =IF(COUNTRY_INFO!$T$9:$T$1000="MDA1 (IVM+ALB)", COUNTRY_INFO!$T$9:$T$1000, " ") ->  | I47: 0 | M47: 0
A48: =IF(COUNTRY_INFO!A48=0," ",COUNTRY_INFO!A48) -> Mali | B48: =IF(COUNTRY_INFO!B48=0," ",COUNTRY_INFO!B48) -> Mopti | C48: =IF(COUNTRY_INFO!C48=0," ",COUNTRY_INFO!C48) -> Mopti | D48: =IF(COUNTRY_INFO!$T$9:$T$1000="MDA1 (IVM+ALB)", COUNTRY_INFO!$T$9:$T$1000, " ") ->  | I48: 0 | M48: 0
A49: =IF(COUNTRY_INFO!A49=0," ",COUNTRY_INFO!A49) -> Mali | B49: =IF(COUNTRY_INFO!B49=0," ",COUNTRY_INFO!B49) -> Mopti | C49: =IF(COUNTRY_INFO!C49=0," ",COUNTRY_INFO!C49) -> Teninkou | D49: =IF(COUNTRY_INFO!$T$9:$T$1000="MDA1 (IVM+ALB)", COUNTRY_INFO!$T$9:$T$1000, " ") -> MDA1 (IVM+ALB) | E49: Mai 2017 | G49: 59486 | H49: 109412 | I49: 168898 | K49: 57280 | L49: 63799 | M49: 121079 | O49: 96.2915644 | P49: 58.31078858 | Q49: 71.6876458
A50: =IF(COUNTRY_INFO!A50=0," ",COUNTRY_INFO!A50) -> Mali | B50: =IF(COUNTRY_INFO!B50=0," ",COUNTRY_INFO!B50) -> Mopti | C50: =IF(COUNTRY_INFO!C50=0," ",COUNTRY_INFO!C50) -> Youwarou | D50: =IF(COUNTRY_INFO!$T$9:$T$1000="MDA1 (IVM+ALB)", COUNTRY_INFO!$T$9:$T$1000, " ") -> MDA1 (IVM+ALB) | E50: Mai 2017 | G50: 38812 | H50: 71386 | I50: 110198 | K50: 47576 | L50: 39907 | M50: 87483 | O50: 122.5806452 | P50: 55.90311826 | Q50: 79.38710321
A51: =IF(COUNTRY_INFO!A51=0," ",COUNTRY_INFO!A51) -> Mali | B51: =IF(COUNTRY_INFO!B51=0," ",COUNTRY_INFO!B51) -> Segou | C51: =IF(COUNTRY_INFO!C51=0," ",COUNTRY_INFO!C51) -> Barouéli | D51: =IF(COUNTRY_INFO!$T$9:$T$1000="MDA1 (IVM+ALB)", COUNTRY_INFO!$T$9:$T$1000, " ") ->  | I51: 0 | M51: 0
A52: =IF(COUNTRY_INFO!A52=0," ",COUNTRY_INFO!A52) -> Mali | B52: =IF(COUNTRY_INFO!B52=0," ",COUNTRY_INFO!B52) -> Segou | C52: =IF(COUNTRY_INFO!C52=0," ",COUNTRY_INFO!C52) -> Bla | D52: =IF(COUNTRY_INFO!$T$9:$T$1000="MDA1 (IVM+ALB)", COUNTRY_INFO!$T$9:$T$1000, " ") ->  | I52: 0 | M52: 0
A53: =IF(COUNTRY_INFO!A53=0," ",COUNTRY_INFO!A53) -> Mali | B53: =IF(COUNTRY_INFO!B53=0," ",COUNTRY_INFO!B53) -> Segou | C53: =IF(COUNTRY_INFO!C53=0," ",COUNTRY_INFO!C53) -> Macina | D53: =IF(COUNTRY_INFO!$T$9:$T$1000="MDA1 (IVM+ALB)", COUNTRY_INFO!$T$9:$T$1000, " ") ->  | I53: 0 | M53: 0
A54: =IF(COUNTRY_INFO!A54=0," ",COUNTRY_INFO!A54) -> Mali | B54: =IF(COUNTRY_INFO!B54=0," ",COUNTRY_INFO!B54) -> Segou | C54: =IF(COUNTRY_INFO!C54=0," ",COUNTRY_INFO!C54) -> Markala | D54: =IF(COUNTRY_INFO!$T$9:$T$1000="MDA1 (IVM+ALB)", COUNTRY_INFO!$T$9:$T$1000, " ") ->  | I54: 0 | M54: 0
A55: =IF(COUNTRY_INFO!A55=0," ",COUNTRY_INFO!A55) -> Mali | B55: =IF(COUNTRY_INFO!B55=0," ",COUNTRY_INFO!B55) -> Segou | C55: =IF(COUNTRY_INFO!C55=0," ",COUNTRY_INFO!C55) -> Niono | D55: =IF(COUNTRY_INFO!$T$9:$T$1000="MDA1 (IVM+ALB)", COUNTRY_INFO!$T$9:$T$1000, " ") ->  | I55: 0 | M55: 0
A56: =IF(COUNTRY_INFO!A56=0," ",COUNTRY_INFO!A56) -> Mali | B56: =IF(COUNTRY_INFO!B56=0," ",COUNTRY_INFO!B56) -> Segou | C56: =IF(COUNTRY_INFO!C56=0," ",COUNTRY_INFO!C56) -> San | D56: =IF(COUNTRY_INFO!$T$9:$T$1000="MDA1 (IVM+ALB)", COUNTRY_INFO!$T$9:$T$1000, " ") ->  | I56: 0 | M56: 0
A57: =IF(COUNTRY_INFO!A57=0," ",COUNTRY_INFO!A57) -> Mali | B57: =IF(COUNTRY_INFO!B57=0," ",COUNTRY_INFO!B57) -> Segou | C57: =IF(COUNTRY_INFO!C57=0," ",COUNTRY_INFO!C57) -> Segou | D57: =IF(COUNTRY_INFO!$T$9:$T$1000="MDA1 (IVM+ALB)", COUNTRY_INFO!$T$9:$T$1000, " ") ->  | I57: 0 | M57: 0
A58: =IF(COUNTRY_INFO!A58=0," ",COUNTRY_INFO!A58) -> Mali | B58: =IF(COUNTRY_INFO!B58=0," ",COUNTRY_INFO!B58) -> Segou | C58: =IF(COUNTRY_INFO!C58=0," ",COUNTRY_INFO!C58) -> Tominian | D58: =IF(COUNTRY_INFO!$T$9:$T$1000="MDA1 (IVM+ALB)", COUNTRY_INFO!$T$9:$T$1000, " ") ->  | I58: 0 | M58: 0
A59: =IF(COUNTRY_INFO!A59=0," ",COUNTRY_INFO!A59) -> Mali | B59: =IF(COUNTRY_INFO!B59=0," ",COUNTRY_INFO!B59) -> Sikasso | C59: =IF(COUNTRY_INFO!C59=0," ",COUNTRY_INFO!C59) -> Bougouni | D59: =IF(COUNTRY_INFO!$T$9:$T$1000="MDA1 (IVM+ALB)", COUNTRY_INFO!$T$9:$T$1000, " ") ->  | I59: 0 | M59: 0
A60: =IF(COUNTRY_INFO!A60=0," ",COUNTRY_INFO!A60) -> Mali | B60: =IF(COUNTRY_INFO!B60=0," ",COUNTRY_INFO!B60) -> Sikasso | C60: =IF(COUNTRY_INFO!C60=0," ",COUNTRY_INFO!C60) -> Kadiolo | D60: =IF(COUNTRY_INFO!$T$9:$T$1000="MDA1 (IVM+ALB)", COUNTRY_INFO!$T$9:$T$1000, " ") ->  | I60: 0 | M60: 0
A61: =IF(COUNTRY_INFO!A61=0," ",COUNTRY_INFO!A61) -> Mali | B61: =IF(COUNTRY_INFO!B61=0," ",COUNTRY_INFO!B61) -> Sikasso | C61: =IF(COUNTRY_INFO!C61=0," ",COUNTRY_INFO!C61) -> Kignan | D61: =IF(COUNTRY_INFO!$T$9:$T$1000="MDA1 (IVM+ALB)", COUNTRY_INFO!$T$9:$T$1000, " ") ->  | I61: 0 | M61: 0
A62: =IF(COUNTRY_INFO!A62=0," ",COUNTRY_INFO!A62) -> Mali | B62: =IF(COUNTRY_INFO!B62=0," ",COUNTRY_INFO!B62) -> Sikasso | C62: =IF(COUNTRY_INFO!C62=0," ",COUNTRY_INFO!C62) -> Kolondieba | D62: =IF(COUNTRY_INFO!$T$9:$T$1000="MDA1 (IVM+ALB)", COUNTRY_INFO!$T$9:$T$1000, " ") ->  | I62: 0 | M62: 0
A63: =IF(COUNTRY_INFO!A63=0," ",COUNTRY_INFO!A63) -> Mali | B63: =IF(COUNTRY_INFO!B63=0," ",COUNTRY_INFO!B63) -> Sikasso | C63: =IF(COUNTRY_INFO!C63=0," ",COUNTRY_INFO!C63) -> Koutiala | D63: =IF(COUNTRY_INFO!$T$9:$T$1000="MDA1 (IVM+ALB)", COUNTRY_INFO!$T$9:$T$1000, " ") ->  | I63: 0 | M63: 0
A64: =IF(COUNTRY_INFO!A64=0," ",COUNTRY_INFO!A64) -> Mali | B64: =IF(COUNTRY_INFO!B64=0," ",COUNTRY_INFO!B64) -> Sikasso | C64: =IF(COUNTRY_INFO!C64=0," ",COUNTRY_INFO!C64) -> Niena | D64: =IF(COUNTRY_INFO!$T$9:$T$1000="MDA1 (IVM+ALB)", COUNTRY_INFO!$T$9:$T$1000, " ") ->  | I64: 0 | M64: 0
A65: =IF(COUNTRY_INFO!A65=0," ",COUNTRY_INFO!A65) -> Mali | B65: =IF(COUNTRY_INFO!B65=0," ",COUNTRY_INFO!B65) -> Sikasso | C65: =IF(COUNTRY_INFO!C65=0," ",COUNTRY_INFO!C65) -> Sélingué | D65: =IF(COUNTRY_INFO!$T$9:$T$1000="MDA1 (IVM+ALB)", COUNTRY_INFO!$T$9:$T$1000, " ") ->  | I65: 0 | M65: 0
A66: =IF(COUNTRY_INFO!A66=0," ",COUNTRY_INFO!A66) -> Mali | B66: =IF(COUNTRY_INFO!B66=0," ",COUNTRY_INFO!B66) -> Sikasso | C66: =IF(COUNTRY_INFO!C66=0," ",COUNTRY_INFO!C66) -> Sikasso | D66: =IF(COUNTRY_INFO!$T$9:$T$1000="MDA1 (IVM+ALB)", COUNTRY_INFO!$T$9:$T$1000, " ") ->  | I66: 0 | M66: 0
A67: =IF(COUNTRY_INFO!A67=0," ",COUNTRY_INFO!A67) -> Mali | B67: =IF(COUNTRY_INFO!B67=0," ",COUNTRY_INFO!B67) -> Sikasso | C67: =IF(COUNTRY_INFO!C67=0," ",COUNTRY_INFO!C67) -> Yanfolila | D67: =IF(COUNTRY_INFO!$T$9:$T$1000="MDA1 (IVM+ALB)", COUNTRY_INFO!$T$9:$T$1000, " ") ->  | I67: 0 | M67: 0
A68: =IF(COUNTRY_INFO!A68=0," ",COUNTRY_INFO!A68) -> Mali | B68: =IF(COUNTRY_INFO!B68=0," ",COUNTRY_INFO!B68) -> Sikasso | C68: =IF(COUNTRY_INFO!C68=0," ",COUNTRY_INFO!C68) -> Yorosso | D68: =IF(COUNTRY_INFO!$T$9:$T$1000="MDA1 (IVM+ALB)", COUNTRY_INFO!$T$9:$T$1000, " ") ->  | I68: 0 | M68: 0
A69: =IF(COUNTRY_INFO!A69=0," ",COUNTRY_INFO!A69) -> Mali | B69: =IF(COUNTRY_INFO!B69=0," ",COUNTRY_INFO!B69) -> Tombouctou | C69: =IF(COUNTRY_INFO!C69=0," ",COUNTRY_INFO!C69) -> Diré | D69: =IF(COUNTRY_INFO!$T$9:$T$1000="MDA1 (IVM+ALB)", COUNTRY_INFO!$T$9:$T$1000, " ") -> MDA1 (IVM+ALB) | E69: Mai 2017 | G69: 40101 | H69: 73758 | I69: 113859 | K69: 54361 | L69: 58610 | M69: 112971 | O69: 135.5602105 | P69: 79.46256677 | Q69: 99.220088
A70: =IF(COUNTRY_INFO!A70=0," ",COUNTRY_INFO!A70) -> Mali | B70: =IF(COUNTRY_INFO!B70=0," ",COUNTRY_INFO!B70) -> Tombouctou | C70: =IF(COUNTRY_INFO!C70=0," ",COUNTRY_INFO!C70) -> Goundam | D70: =IF(COUNTRY_INFO!$T$9:$T$1000="MDA1 (IVM+ALB)", COUNTRY_INFO!$T$9:$T$1000, " ") -> MDA1 (IVM+ALB) | E70: Mai 2017 | G70: 54087 | H70: 99482 | I70: 153569 | K70: 89248 | L70: 65797 | M70: 155045 | O70: 165.0082275 | P70: 66.13960314 | Q70: 100.9611315
A71: =IF(COUNTRY_INFO!A71=0," ",COUNTRY_INFO!A71) -> Mali | B71: =IF(COUNTRY_INFO!B71=0," ",COUNTRY_INFO!B71) -> Tombouctou | C71: =IF(COUNTRY_INFO!C71=0," ",COUNTRY_INFO!C71) -> Gourma-Rharous | D71: =IF(COUNTRY_INFO!$T$9:$T$1000="MDA1 (IVM+ALB)", COUNTRY_INFO!$T$9:$T$1000, " ") -> MDA1 (IVM+ALB) | E71: Mai 2017 | G71: 40124 | H71: 73799 | I71: 113923 | K71: 36714 | L71: 79685 | M71: 116399 | O71: 91.50134583 | P71: 107.9757178 | Q71: 102.1733978
A72: =IF(COUNTRY_INFO!A72=0," ",COUNTRY_INFO!A72) -> Mali | B72: =IF(COUNTRY_INFO!B72=0," ",COUNTRY_INFO!B72) -> Tombouctou | C72: =IF(COUNTRY_INFO!C72=0," ",COUNTRY_INFO!C72) -> Niafunké | D72: =IF(COUNTRY_INFO!$T$9:$T$1000="MDA1 (IVM+ALB)", COUNTRY_INFO!$T$9:$T$1000, " ") -> MDA1 (IVM+ALB) | E72: Mai 2017 | G72: 66384 | H72: 122098 | I72: 188482 | K72: 76993 | L72: 103109 | M72: 180102 | O72: 115.9812605 | P72: 84.4477387 | Q72: 95.5539521
A73: =IF(COUNTRY_INFO!A73=0," ",COUNTRY_INFO!A73) -> Mali | B73: =IF(COUNTRY_INFO!B73=0," ",COUNTRY_INFO!B73) -> Tombouctou | C73: =IF(COUNTRY_INFO!C73=0," ",COUNTRY_INFO!C73) -> Tombouctou | D73: =IF(COUNTRY_INFO!$T$9:$T$1000="MDA1 (IVM+ALB)", COUNTRY_INFO!$T$9:$T$1000, " ") -> MDA1 (IVM+ALB) | E73: Mai 2017 | G73: 44864 | H73: 82518 | I73: 127382 | K73: 84627 | L73: 84365 | M73: 168992 | O73: 188.630082 | P73: 102.2382995 | Q73: 132.6655257

Sheet MDA2 (hidden)
A1: MDA 2 - Diethylcarbamazine (DEC) + Albendazole (ALB)
A2: Structure administrative, population nécessitant une chimioprévention par groupe d'âge, population traitée par groupe d'âge et couverture
A4: TOTAL | F4: =SUM(F$9:F$1000) -> 0 | G4: =SUM(G$9:G$1000) -> 0 | H4: 0 | I4: 0 | J4: 0 | K4: 0 | L4: 0 | M4: 0 | N4: =IF(F4<>0, IF(J4/F4*100=0, "-", J4/F4*100), " ") ->  | O4: =IF(G4<>0, IF(K4/G4*100=0, "-", K4/G4*100), " ") ->  | P4: =IF(H4<>0, IF(L4/H4*100=0, "-", L4/H4*100), " ") ->  | Q4: =IF(I4<>0, IF(M4/I4*100=0, "-", M4/I4*100), " ") -> 
A6: Structure administrative du pays | D6: Mise en oeuvre de la CP | E6: Date | F6: Population ciblée pour MDA 2 | J6: Population traitée | N6: Couverture du Programme (%)
A7: Pays | B7: Région/Département | C7: District | F7: EAPréS | G7: EAS | H7: Adultes | I7: Total | J7: EAPréS | K7: EAS | L7: Adultes | M7: Total | N7: EAPréS | O7: EAS | P7: Adultes | Q7: Total
A9: =IF(COUNTRY_INFO!A9=0," ",COUNTRY_INFO!A9) -> Mali | B9: =IF(COUNTRY_INFO!B9=0," ",COUNTRY_INFO!B9) -> Bamako | C9: =IF(COUNTRY_INFO!C9=0," ",COUNTRY_INFO!C9) -> Commune 1 | D9: =IF(COUNTRY_INFO!$T$9:$T$1000="MDA2 (DEC+ALB)", COUNTRY_INFO!$T$9:$T$1000, " ") ->  | I9: =SUM(F9:H9) -> 0 | M9: =SUM(J9:L9) -> 0 | N9: =IF(F9<>0, IF(J9/F9*100=0, "-", J9/F9*100), " ") -> 
A10: =IF(COUNTRY_INFO!A10=0," ",COUNTRY_INFO!A10) -> Mali | B10: =IF(COUNTRY_INFO!B10=0," ",COUNTRY_INFO!B10) -> Bamako | C10: =IF(COUNTRY_INFO!C10=0," ",COUNTRY_INFO!C10) -> Commune 2 | D10: =IF(COUNTRY_INFO!$T$9:$T$1000="MDA2 (DEC+ALB)", COUNTRY_INFO!$T$9:$T$1000, " ") ->  | I10: =SUM(F10:H10) -> 0 | M10: =SUM(J10:L10) -> 0 | N10: =IF(F10<>0, IF(J10/F10*100=0, "-", J10/F10*100), " ") ->  | O10: =IF(G10<>0, IF(K10/G10*100=0, "-", K10/G10*100), " ") ->  | P10: =IF(H10<>0, IF(L10/H10*100=0, "-", L10/H10*100), " ") ->  | Q10: =IF(I10<>0, IF(M10/I10*100=0, "-", M10/I10*100), " ") -> 
A11: =IF(COUNTRY_INFO!A11=0," ",COUNTRY_INFO!A11) -> Mali | B11: =IF(COUNTRY_INFO!B11=0," ",COUNTRY_INFO!B11) -> Bamako | C11: =IF(COUNTRY_INFO!C11=0," ",COUNTRY_INFO!C11) -> Commune 3 | D11: =IF(COUNTRY_INFO!$T$9:$T$1000="MDA2 (DEC+ALB)", COUNTRY_INFO!$T$9:$T$1000, " ") ->  | I11: 0 | M11: 0
A12: =IF(COUNTRY_INFO!A12=0," ",COUNTRY_INFO!A12) -> Mali | B12: =IF(COUNTRY_INFO!B12=0," ",COUNTRY_INFO!B12) -> Bamako | C12: =IF(COUNTRY_INFO!C12=0," ",COUNTRY_INFO!C12) -> Commune 4 | D12: =IF(COUNTRY_INFO!$T$9:$T$1000="MDA2 (DEC+ALB)", COUNTRY_INFO!$T$9:$T$1000, " ") ->  | I12: 0 | M12: 0
A13: =IF(COUNTRY_INFO!A13=0," ",COUNTRY_INFO!A13) -> Mali | B13: =IF(COUNTRY_INFO!B13=0," ",COUNTRY_INFO!B13) -> Bamako | C13: =IF(COUNTRY_INFO!C13=0," ",COUNTRY_INFO!C13) -> Commune 5 | D13: =IF(COUNTRY_INFO!$T$9:$T$1000="MDA2 (DEC+ALB)", COUNTRY_INFO!$T$9:$T$1000, " ") ->  | I13: 0 | M13: 0
A14: =IF(COUNTRY_INFO!A14=0," ",COUNTRY_INFO!A14) -> Mali | B14: =IF(COUNTRY_INFO!B14=0," ",COUNTRY_INFO!B14) -> Bamako | C14: =IF(COUNTRY_INFO!C14=0," ",COUNTRY_INFO!C14) -> Commune 6 | D14: =IF(COUNTRY_INFO!$T$9:$T$1000="MDA2 (DEC+ALB)", COUNTRY_INFO!$T$9:$T$1000, " ") ->  | I14: 0 | M14: 0
A15: =IF(COUNTRY_INFO!A15=0," ",COUNTRY_INFO!A15) -> Mali | B15: =IF(COUNTRY_INFO!B15=0," ",COUNTRY_INFO!B15) -> Gao | C15: =IF(COUNTRY_INFO!C15=0," ",COUNTRY_INFO!C15) -> Ansongo | D15: =IF(COUNTRY_INFO!$T$9:$T$1000="MDA2 (DEC+ALB)", COUNTRY_INFO!$T$9:$T$1000, " ") ->  | I15: 0 | M15: 0
A16: =IF(COUNTRY_INFO!A16=0," ",COUNTRY_INFO!A16) -> Mali | B16: =IF(COUNTRY_INFO!B16=0," ",COUNTRY_INFO!B16) -> Gao | C16: =IF(COUNTRY_INFO!C16=0," ",COUNTRY_INFO!C16) -> Bourem | D16: =IF(COUNTRY_INFO!$T$9:$T$1000="MDA2 (DEC+ALB)", COUNTRY_INFO!$T$9:$T$1000, " ") ->  | I16: 0 | M16: 0
A17: =IF(COUNTRY_INFO!A17=0," ",COUNTRY_INFO!A17) -> Mali | B17: =IF(COUNTRY_INFO!B17=0," ",COUNTRY_INFO!B17) -> Gao | C17: =IF(COUNTRY_INFO!C17=0," ",COUNTRY_INFO!C17) -> Gao | D17: =IF(COUNTRY_INFO!$T$9:$T$1000="MDA2 (DEC+ALB)", COUNTRY_INFO!$T$9:$T$1000, " ") ->  | I17: 0 | M17: 0
A18: =IF(COUNTRY_INFO!A18=0," ",COUNTRY_INFO!A18) -> Mali | B18: =IF(COUNTRY_INFO!B18=0," ",COUNTRY_INFO!B18) -> Gao | C18: =IF(COUNTRY_INFO!C18=0," ",COUNTRY_INFO!C18) -> Menaka | D18: =IF(COUNTRY_INFO!$T$9:$T$1000="MDA2 (DEC+ALB)", COUNTRY_INFO!$T$9:$T$1000, " ") ->  | I18: 0 | M18: 0
A19: =IF(COUNTRY_INFO!A19=0," ",COUNTRY_INFO!A19) -> Mali | B19: =IF(COUNTRY_INFO!B19=0," ",COUNTRY_INFO!B19) -> Kayes | C19: =IF(COUNTRY_INFO!C19=0," ",COUNTRY_INFO!C19) -> Bafoulabe | D19: =IF(COUNTRY_INFO!$T$9:$T$1000="MDA2 (DEC+ALB)", COUNTRY_INFO!$T$9:$T$1000, " ") ->  | I19: 0 | M19: 0
A20: =IF(COUNTRY_INFO!A20=0," ",COUNTRY_INFO!A20) -> Mali | B20: =IF(COUNTRY_INFO!B20=0," ",COUNTRY_INFO!B20) -> Kayes | C20: =IF(COUNTRY_INFO!C20=0," ",COUNTRY_INFO!C20) -> Diema | D20: =IF(COUNTRY_INFO!$T$9:$T$1000="MDA2 (DEC+ALB)", COUNTRY_INFO!$T$9:$T$1000, " ") ->  | I20: 0 | M20: 0
A21: =IF(COUNTRY_INFO!A21=0," ",COUNTRY_INFO!A21) -> Mali | B21: =IF(COUNTRY_INFO!B21=0," ",COUNTRY_INFO!B21) -> Kayes | C21: =IF(COUNTRY_INFO!C21=0," ",COUNTRY_INFO!C21) -> Kayes | D21: =IF(COUNTRY_INFO!$T$9:$T$1000="MDA2 (DEC+ALB)", COUNTRY_INFO!$T$9:$T$1000, " ") ->  | I21: 0 | M21: 0
A22: =IF(COUNTRY_INFO!A22=0," ",COUNTRY_INFO!A22) -> Mali | B22: =IF(COUNTRY_INFO!B22=0," ",COUNTRY_INFO!B22) -> Kayes | C22: =IF(COUNTRY_INFO!C22=0," ",COUNTRY_INFO!C22) -> Kenieba | D22: =IF(COUNTRY_INFO!$T$9:$T$1000="MDA2 (DEC+ALB)", COUNTRY_INFO!$T$9:$T$1000, " ") ->  | I22: 0 | M22: 0
A23: =IF(COUNTRY_INFO!A23=0," ",COUNTRY_INFO!A23) -> Mali | B23: =IF(COUNTRY_INFO!B23=0," ",COUNTRY_INFO!B23) -> Kayes | C23: =IF(COUNTRY_INFO!C23=0," ",COUNTRY_INFO!C23) -> Kita | D23: =IF(COUNTRY_INFO!$T$9:$T$1000="MDA2 (DEC+ALB)", COUNTRY_INFO!$T$9:$T$1000, " ") ->  | I23: 0 | M23: 0
A24: =IF(COUNTRY_INFO!A24=0," ",COUNTRY_INFO!A24) -> Mali | B24: =IF(COUNTRY_INFO!B24=0," ",COUNTRY_INFO!B24) -> Kayes | C24: =IF(COUNTRY_INFO!C24=0," ",COUNTRY_INFO!C24) -> Sagabari | D24: =IF(COUNTRY_INFO!$T$9:$T$1000="MDA2 (DEC+ALB)", COUNTRY_INFO!$T$9:$T$1000, " ") ->  | I24: 0 | M24: 0
A25: =IF(COUNTRY_INFO!A25=0," ",COUNTRY_INFO!A25) -> Mali | B25: =IF(COUNTRY_INFO!B25=0," ",COUNTRY_INFO!B25) -> Kayes | C25: =IF(COUNTRY_INFO!C25=0," ",COUNTRY_INFO!C25) -> Sefeto | D25: =IF(COUNTRY_INFO!$T$9:$T$1000="MDA2 (DEC+ALB)", COUNTRY_INFO!$T$9:$T$1000, " ") ->  | I25: 0 | M25: 0
A26: =IF(COUNTRY_INFO!A26=0," ",COUNTRY_INFO!A26) -> Mali | B26: =IF(COUNTRY_INFO!B26=0," ",COUNTRY_INFO!B26) -> Kayes | C26: =IF(COUNTRY_INFO!C26=0," ",COUNTRY_INFO!C26) -> Nioro | D26: =IF(COUNTRY_INFO!$T$9:$T$1000="MDA2 (DEC+ALB)", COUNTRY_INFO!$T$9:$T$1000, " ") ->  | I26: 0 | M26: 0
A27: =IF(COUNTRY_INFO!A27=0," ",COUNTRY_INFO!A27) -> Mali | B27: =IF(COUNTRY_INFO!B27=0," ",COUNTRY_INFO!B27) -> Kayes | C27: =IF(COUNTRY_INFO!C27=0," ",COUNTRY_INFO!C27) -> Oussoubidiagna | D27: =IF(COUNTRY_INFO!$T$9:$T$1000="MDA2 (DEC+ALB)", COUNTRY_INFO!$T$9:$T$1000, " ") ->  | I27: 0 | M27: 0
A28: =IF(COUNTRY_INFO!A28=0," ",COUNTRY_INFO!A28) -> Mali | B28: =IF(COUNTRY_INFO!B28=0," ",COUNTRY_INFO!B28) -> Kayes | C28: =IF(COUNTRY_INFO!C28=0," ",COUNTRY_INFO!C28) -> Yelimane | D28: =IF(COUNTRY_INFO!$T$9:$T$1000="MDA2 (DEC+ALB)", COUNTRY_INFO!$T$9:$T$1000, " ") ->  | I28: 0 | M28: 0
A29: =IF(COUNTRY_INFO!A29=0," ",COUNTRY_INFO!A29) -> Mali | B29: =IF(COUNTRY_INFO!B29=0," ",COUNTRY_INFO!B29) -> Kidal | C29: =IF(COUNTRY_INFO!C29=0," ",COUNTRY_INFO!C29) -> Abeibara | D29: =IF(COUNTRY_INFO!$T$9:$T$1000="MDA2 (DEC+ALB)", COUNTRY_INFO!$T$9:$T$1000, " ") ->  | I29: 0 | M29: 0
A30: =IF(COUNTRY_INFO!A30=0," ",COUNTRY_INFO!A30) -> Mali | B30: =IF(COUNTRY_INFO!B30=0," ",COUNTRY_INFO!B30) -> Kidal | C30: =IF(COUNTRY_INFO!C30=0," ",COUNTRY_INFO!C30) -> Kidal | D30: =IF(COUNTRY_INFO!$T$9:$T$1000="MDA2 (DEC+ALB)", COUNTRY_INFO!$T$9:$T$1000, " ") ->  | I30: 0 | M30: 0
A31: =IF(COUNTRY_INFO!A31=0," ",COUNTRY_INFO!A31) -> Mali | B31: =IF(COUNTRY_INFO!B31=0," ",COUNTRY_INFO!B31) -> Kidal | C31: =IF(COUNTRY_INFO!C31=0," ",COUNTRY_INFO!C31) -> Tessalit | D31: =IF(COUNTRY_INFO!$T$9:$T$1000="MDA2 (DEC+ALB)", COUNTRY_INFO!$T$9:$T$1000, " ") ->  | I31: 0 | M31: 0
A32: =IF(COUNTRY_INFO!A32=0," ",COUNTRY_INFO!A32) -> Mali | B32: =IF(COUNTRY_INFO!B32=0," ",COUNTRY_INFO!B32) -> Kidal | C32: =IF(COUNTRY_INFO!C32=0," ",COUNTRY_INFO!C32) -> Tin-Essako | D32: =IF(COUNTRY_INFO!$T$9:$T$1000="MDA2 (DEC+ALB)", COUNTRY_INFO!$T$9:$T$1000, " ") ->  | I32: 0 | M32: 0
A33: =IF(COUNTRY_INFO!A33=0," ",COUNTRY_INFO!A33) -> Mali | B33: =IF(COUNTRY_INFO!B33=0," ",COUNTRY_INFO!B33) -> Koulikoro | C33: =IF(COUNTRY_INFO!C33=0," ",COUNTRY_INFO!C33) -> Banamba | D33: =IF(COUNTRY_INFO!$T$9:$T$1000="MDA2 (DEC+ALB)", COUNTRY_INFO!$T$9:$T$1000, " ") ->  | I33: 0 | M33: 0
A34: =IF(COUNTRY_INFO!A34=0," ",COUNTRY_INFO!A34) -> Mali | B34: =IF(COUNTRY_INFO!B34=0," ",COUNTRY_INFO!B34) -> Koulikoro | C34: =IF(COUNTRY_INFO!C34=0," ",COUNTRY_INFO!C34) -> Dioila | D34: =IF(COUNTRY_INFO!$T$9:$T$1000="MDA2 (DEC+ALB)", COUNTRY_INFO!$T$9:$T$1000, " ") ->  | I34: 0 | M34: 0
A35: =IF(COUNTRY_INFO!A35=0," ",COUNTRY_INFO!A35) -> Mali | B35: =IF(COUNTRY_INFO!B35=0," ",COUNTRY_INFO!B35) -> Koulikoro | C35: =IF(COUNTRY_INFO!C35=0," ",COUNTRY_INFO!C35) -> Fana | D35: =IF(COUNTRY_INFO!$T$9:$T$1000="MDA2 (DEC+ALB)", COUNTRY_INFO!$T$9:$T$1000, " ") ->  | I35: 0 | M35: 0
A36: =IF(COUNTRY_INFO!A36=0," ",COUNTRY_INFO!A36) -> Mali | B36: =IF(COUNTRY_INFO!B36=0," ",COUNTRY_INFO!B36) -> Koulikoro | C36: =IF(COUNTRY_INFO!C36=0," ",COUNTRY_INFO!C36) -> Kalabancoro | D36: =IF(COUNTRY_INFO!$T$9:$T$1000="MDA2 (DEC+ALB)", COUNTRY_INFO!$T$9:$T$1000, " ") ->  | I36: 0 | M36: 0
A37: =IF(COUNTRY_INFO!A37=0," ",COUNTRY_INFO!A37) -> Mali | B37: =IF(COUNTRY_INFO!B37=0," ",COUNTRY_INFO!B37) -> Koulikoro | C37: =IF(COUNTRY_INFO!C37=0," ",COUNTRY_INFO!C37) -> Kangaba | D37: =IF(COUNTRY_INFO!$T$9:$T$1000="MDA2 (DEC+ALB)", COUNTRY_INFO!$T$9:$T$1000, " ") ->  | I37: 0 | M37: 0
A38: =IF(COUNTRY_INFO!A38=0," ",COUNTRY_INFO!A38) -> Mali | B38: =IF(COUNTRY_INFO!B38=0," ",COUNTRY_INFO!B38) -> Koulikoro | C38: =IF(COUNTRY_INFO!C38=0," ",COUNTRY_INFO!C38) -> Kati | D38: =IF(COUNTRY_INFO!$T$9:$T$1000="MDA2 (DEC+ALB)", COUNTRY_INFO!$T$9:$T$1000, " ") ->  | I38: 0 | M38: 0
A39: =IF(COUNTRY_INFO!A39=0," ",COUNTRY_INFO!A39) -> Mali | B39: =IF(COUNTRY_INFO!B39=0," ",COUNTRY_INFO!B39) -> Koulikoro | C39: =IF(COUNTRY_INFO!C39=0," ",COUNTRY_INFO!C39) -> Kolokani | D39: =IF(COUNTRY_INFO!$T$9:$T$1000="MDA2 (DEC+ALB)", COUNTRY_INFO!$T$9:$T$1000, " ") ->  | I39: 0 | M39: 0
A40: =IF(COUNTRY_INFO!A40=0," ",COUNTRY_INFO!A40) -> Mali | B40: =IF(COUNTRY_INFO!B40=0," ",COUNTRY_INFO!B40) -> Koulikoro | C40: =IF(COUNTRY_INFO!C40=0," ",COUNTRY_INFO!C40) -> Koulikoro | D40: =IF(COUNTRY_INFO!$T$9:$T$1000="MDA2 (DEC+ALB)", COUNTRY_INFO!$T$9:$T$1000, " ") ->  | I40: 0 | M40: 0
A41: =IF(COUNTRY_INFO!A41=0," ",COUNTRY_INFO!A41) -> Mali | B41: =IF(COUNTRY_INFO!B41=0," ",COUNTRY_INFO!B41) -> Koulikoro | C41: =IF(COUNTRY_INFO!C41=0," ",COUNTRY_INFO!C41) -> Nara | D41: =IF(COUNTRY_INFO!$T$9:$T$1000="MDA2 (DEC+ALB)", COUNTRY_INFO!$T$9:$T$1000, " ") ->  | I41: 0 | M41: 0
A42: =IF(COUNTRY_INFO!A42=0," ",COUNTRY_INFO!A42) -> Mali | B42: =IF(COUNTRY_INFO!B42=0," ",COUNTRY_INFO!B42) -> Koulikoro | C42: =IF(COUNTRY_INFO!C42=0," ",COUNTRY_INFO!C42) -> Ouelessebougou | D42: =IF(COUNTRY_INFO!$T$9:$T$1000="MDA2 (DEC+ALB)", COUNTRY_INFO!$T$9:$T$1000, " ") ->  | I42: 0 | M42: 0
A43: =IF(COUNTRY_INFO!A43=0," ",COUNTRY_INFO!A43) -> Mali | B43: =IF(COUNTRY_INFO!B43=0," ",COUNTRY_INFO!B43) -> Mopti | C43: =IF(COUNTRY_INFO!C43=0," ",COUNTRY_INFO!C43) -> Bandiagara | D43: =IF(COUNTRY_INFO!$T$9:$T$1000="MDA2 (DEC+ALB)", COUNTRY_INFO!$T$9:$T$1000, " ") ->  | I43: 0 | M43: 0
A44: =IF(COUNTRY_INFO!A44=0," ",COUNTRY_INFO!A44) -> Mali | B44: =IF(COUNTRY_INFO!B44=0," ",COUNTRY_INFO!B44) -> Mopti | C44: =IF(COUNTRY_INFO!C44=0," ",COUNTRY_INFO!C44) -> Bankass | D44: =IF(COUNTRY_INFO!$T$9:$T$1000="MDA2 (DEC+ALB)", COUNTRY_INFO!$T$9:$T$1000, " ") ->  | I44: 0 | M44: 0
A45: =IF(COUNTRY_INFO!A45=0," ",COUNTRY_INFO!A45) -> Mali | B45: =IF(COUNTRY_INFO!B45=0," ",COUNTRY_INFO!B45) -> Mopti | C45: =IF(COUNTRY_INFO!C45=0," ",COUNTRY_INFO!C45) -> Djenne | D45: =IF(COUNTRY_INFO!$T$9:$T$1000="MDA2 (DEC+ALB)", COUNTRY_INFO!$T$9:$T$1000, " ") ->  | I45: 0 | M45: 0
A46: =IF(COUNTRY_INFO!A46=0," ",COUNTRY_INFO!A46) -> Mali | B46: =IF(COUNTRY_INFO!B46=0," ",COUNTRY_INFO!B46) -> Mopti | C46: =IF(COUNTRY_INFO!C46=0," ",COUNTRY_INFO!C46) -> Douentza | D46: =IF(COUNTRY_INFO!$T$9:$T$1000="MDA2 (DEC+ALB)", COUNTRY_INFO!$T$9:$T$1000, " ") ->  | I46: 0 | M46: 0
A47: =IF(COUNTRY_INFO!A47=0," ",COUNTRY_INFO!A47) -> Mali | B47: =IF(COUNTRY_INFO!B47=0," ",COUNTRY_INFO!B47) -> Mopti | C47: =IF(COUNTRY_INFO!C47=0," ",COUNTRY_INFO!C47) -> Koro | D47: =IF(COUNTRY_INFO!$T$9:$T$1000="MDA2 (DEC+ALB)", COUNTRY_INFO!$T$9:$T$1000, " ") ->  | I47: 0 | M47: 0
A48: =IF(COUNTRY_INFO!A48=0," ",COUNTRY_INFO!A48) -> Mali | B48: =IF(COUNTRY_INFO!B48=0," ",COUNTRY_INFO!B48) -> Mopti | C48: =IF(COUNTRY_INFO!C48=0," ",COUNTRY_INFO!C48) -> Mopti | D48: =IF(COUNTRY_INFO!$T$9:$T$1000="MDA2 (DEC+ALB)", COUNTRY_INFO!$T$9:$T$1000, " ") ->  | I48: 0 | M48: 0
A49: =IF(COUNTRY_INFO!A49=0," ",COUNTRY_INFO!A49) -> Mali | B49: =IF(COUNTRY_INFO!B49=0," ",COUNTRY_INFO!B49) -> Mopti | C49: =IF(COUNTRY_INFO!C49=0," ",COUNTRY_INFO!C49) -> Teninkou | D49: =IF(COUNTRY_INFO!$T$9:$T$1000="MDA2 (DEC+ALB)", COUNTRY_INFO!$T$9:$T$1000, " ") ->  | I49: 0 | M49: 0
A50: =IF(COUNTRY_INFO!A50=0," ",COUNTRY_INFO!A50) -> Mali | B50: =IF(COUNTRY_INFO!B50=0," ",COUNTRY_INFO!B50) -> Mopti | C50: =IF(COUNTRY_INFO!C50=0," ",COUNTRY_INFO!C50) -> Youwarou | D50: =IF(COUNTRY_INFO!$T$9:$T$1000="MDA2 (DEC+ALB)", COUNTRY_INFO!$T$9:$T$1000, " ") ->  | I50: 0 | M50: 0
A51: =IF(COUNTRY_INFO!A51=0," ",COUNTRY_INFO!A51) -> Mali | B51: =IF(COUNTRY_INFO!B51=0," ",COUNTRY_INFO!B51) -> Segou | C51: =IF(COUNTRY_INFO!C51=0," ",COUNTRY_INFO!C51) -> Barouéli | D51: =IF(COUNTRY_INFO!$T$9:$T$1000="MDA2 (DEC+ALB)", COUNTRY_INFO!$T$9:$T$1000, " ") ->  | I51: 0 | M51: 0
A52: =IF(COUNTRY_INFO!A52=0," ",COUNTRY_INFO!A52) -> Mali | B52: =IF(COUNTRY_INFO!B52=0," ",COUNTRY_INFO!B52) -> Segou | C52: =IF(COUNTRY_INFO!C52=0," ",COUNTRY_INFO!C52) -> Bla | D52: =IF(COUNTRY_INFO!$T$9:$T$1000="MDA2 (DEC+ALB)", COUNTRY_INFO!$T$9:$T$1000, " ") ->  | I52: 0 | M52: 0
A53: =IF(COUNTRY_INFO!A53=0," ",COUNTRY_INFO!A53) -> Mali | B53: =IF(COUNTRY_INFO!B53=0," ",COUNTRY_INFO!B53) -> Segou | C53: =IF(COUNTRY_INFO!C53=0," ",COUNTRY_INFO!C53) -> Macina | D53: =IF(COUNTRY_INFO!$T$9:$T$1000="MDA2 (DEC+ALB)", COUNTRY_INFO!$T$9:$T$1000, " ") ->  | I53: 0 | M53: 0
A54: =IF(COUNTRY_INFO!A54=0," ",COUNTRY_INFO!A54) -> Mali | B54: =IF(COUNTRY_INFO!B54=0," ",COUNTRY_INFO!B54) -> Segou | C54: =IF(COUNTRY_INFO!C54=0," ",COUNTRY_INFO!C54) -> Markala | D54: =IF(COUNTRY_INFO!$T$9:$T$1000="MDA2 (DEC+ALB)", COUNTRY_INFO!$T$9:$T$1000, " ") ->  | I54: 0 | M54: 0
A55: =IF(COUNTRY_INFO!A55=0," ",COUNTRY_INFO!A55) -> Mali | B55: =IF(COUNTRY_INFO!B55=0," ",COUNTRY_INFO!B55) -> Segou | C55: =IF(COUNTRY_INFO!C55=0," ",COUNTRY_INFO!C55) -> Niono | D55: =IF(COUNTRY_INFO!$T$9:$T$1000="MDA2 (DEC+ALB)", COUNTRY_INFO!$T$9:$T$1000, " ") ->  | I55: 0 | M55: 0
A56: =IF(COUNTRY_INFO!A56=0," ",COUNTRY_INFO!A56) -> Mali | B56: =IF(COUNTRY_INFO!B56=0," ",COUNTRY_INFO!B56) -> Segou | C56: =IF(COUNTRY_INFO!C56=0," ",COUNTRY_INFO!C56) -> San | D56: =IF(COUNTRY_INFO!$T$9:$T$1000="MDA2 (DEC+ALB)", COUNTRY_INFO!$T$9:$T$1000, " ") ->  | I56: 0 | M56: 0
A57: =IF(COUNTRY_INFO!A57=0," ",COUNTRY_INFO!A57) -> Mali | B57: =IF(COUNTRY_INFO!B57=0," ",COUNTRY_INFO!B57) -> Segou | C57: =IF(COUNTRY_INFO!C57=0," ",COUNTRY_INFO!C57) -> Segou | D57: =IF(COUNTRY_INFO!$T$9:$T$1000="MDA2 (DEC+ALB)", COUNTRY_INFO!$T$9:$T$1000, " ") ->  | I57: 0 | M57: 0
A58: =IF(COUNTRY_INFO!A58=0," ",COUNTRY_INFO!A58) -> Mali | B58: =IF(COUNTRY_INFO!B58=0," ",COUNTRY_INFO!B58) -> Segou | C58: =IF(COUNTRY_INFO!C58=0," ",COUNTRY_INFO!C58) -> Tominian | D58: =IF(COUNTRY_INFO!$T$9:$T$1000="MDA2 (DEC+ALB)", COUNTRY_INFO!$T$9:$T$1000, " ") ->  | I58: 0 | M58: 0
A59: =IF(COUNTRY_INFO!A59=0," ",COUNTRY_INFO!A59) -> Mali | B59: =IF(COUNTRY_INFO!B59=0," ",COUNTRY_INFO!B59) -> Sikasso | C59: =IF(COUNTRY_INFO!C59=0," ",COUNTRY_INFO!C59) -> Bougouni | D59: =IF(COUNTRY_INFO!$T$9:$T$1000="MDA2 (DEC+ALB)", COUNTRY_INFO!$T$9:$T$1000, " ") ->  | I59: 0 | M59: 0
A60: =IF(COUNTRY_INFO!A60=0," ",COUNTRY_INFO!A60) -> Mali | B60: =IF(COUNTRY_INFO!B60=0," ",COUNTRY_INFO!B60) -> Sikasso | C60: =IF(COUNTRY_INFO!C60=0," ",COUNTRY_INFO!C60) -> Kadiolo | D60: =IF(COUNTRY_INFO!$T$9:$T$1000="MDA2 (DEC+ALB)", COUNTRY_INFO!$T$9:$T$1000, " ") ->  | I60: 0 | M60: 0
A61: =IF(COUNTRY_INFO!A61=0," ",COUNTRY_INFO!A61) -> Mali | B61: =IF(COUNTRY_INFO!B61=0," ",COUNTRY_INFO!B61) -> Sikasso | C61: =IF(COUNTRY_INFO!C61=0," ",COUNTRY_INFO!C61) -> Kignan | D61: =IF(COUNTRY_INFO!$T$9:$T$1000="MDA2 (DEC+ALB)", COUNTRY_INFO!$T$9:$T$1000, " ") ->  | I61: 0 | M61: 0
A62: =IF(COUNTRY_INFO!A62=0," ",COUNTRY_INFO!A62) -> Mali | B62: =IF(COUNTRY_INFO!B62=0," ",COUNTRY_INFO!B62) -> Sikasso | C62: =IF(COUNTRY_INFO!C62=0," ",COUNTRY_INFO!C62) -> Kolondieba | D62: =IF(COUNTRY_INFO!$T$9:$T$1000="MDA2 (DEC+ALB)", COUNTRY_INFO!$T$9:$T$1000, " ") ->  | I62: 0 | M62: 0
A63: =IF(COUNTRY_INFO!A63=0," ",COUNTRY_INFO!A63) -> Mali | B63: =IF(COUNTRY_INFO!B63=0," ",COUNTRY_INFO!B63) -> Sikasso | C63: =IF(COUNTRY_INFO!C63=0," ",COUNTRY_INFO!C63) -> Koutiala | D63: =IF(COUNTRY_INFO!$T$9:$T$1000="MDA2 (DEC+ALB)", COUNTRY_INFO!$T$9:$T$1000, " ") ->  | I63: 0 | M63: 0
A64: =IF(COUNTRY_INFO!A64=0," ",COUNTRY_INFO!A64) -> Mali | B64: =IF(COUNTRY_INFO!B64=0," ",COUNTRY_INFO!B64) -> Sikasso | C64: =IF(COUNTRY_INFO!C64=0," ",COUNTRY_INFO!C64) -> Niena | D64: =IF(COUNTRY_INFO!$T$9:$T$1000="MDA2 (DEC+ALB)", COUNTRY_INFO!$T$9:$T$1000, " ") ->  | I64: 0 | M64: 0
A65: =IF(COUNTRY_INFO!A65=0," ",COUNTRY_INFO!A65) -> Mali | B65: =IF(COUNTRY_INFO!B65=0," ",COUNTRY_INFO!B65) -> Sikasso | C65: =IF(COUNTRY_INFO!C65=0," ",COUNTRY_INFO!C65) -> Sélingué | D65: =IF(COUNTRY_INFO!$T$9:$T$1000="MDA2 (DEC+ALB)", COUNTRY_INFO!$T$9:$T$1000, " ") ->  | I65: 0 | M65: 0
A66: =IF(COUNTRY_INFO!A66=0," ",COUNTRY_INFO!A66) -> Mali | B66: =IF(COUNTRY_INFO!B66=0," ",COUNTRY_INFO!B66) -> Sikasso | C66: =IF(COUNTRY_INFO!C66=0," ",COUNTRY_INFO!C66) -> Sikasso | D66: =IF(COUNTRY_INFO!$T$9:$T$1000="MDA2 (DEC+ALB)", COUNTRY_INFO!$T$9:$T$1000, " ") ->  | I66: 0 | M66: 0
A67: =IF(COUNTRY_INFO!A67=0," ",COUNTRY_INFO!A67) -> Mali | B67: =IF(COUNTRY_INFO!B67=0," ",COUNTRY_INFO!B67) -> Sikasso | C67: =IF(COUNTRY_INFO!C67=0," ",COUNTRY_INFO!C67) -> Yanfolila | D67: =IF(COUNTRY_INFO!$T$9:$T$1000="MDA2 (DEC+ALB)", COUNTRY_INFO!$T$9:$T$1000, " ") ->  | I67: 0 | M67: 0
A68: =IF(COUNTRY_INFO!A68=0," ",COUNTRY_INFO!A68) -> Mali | B68: =IF(COUNTRY_INFO!B68=0," ",COUNTRY_INFO!B68) -> Sikasso | C68: =IF(COUNTRY_INFO!C68=0," ",COUNTRY_INFO!C68) -> Yorosso | D68: =IF(COUNTRY_INFO!$T$9:$T$1000="MDA2 (DEC+ALB)", COUNTRY_INFO!$T$9:$T$1000, " ") ->  | I68: 0 | M68: 0
A69: =IF(COUNTRY_INFO!A69=0," ",COUNTRY_INFO!A69) -> Mali | B69: =IF(COUNTRY_INFO!B69=0," ",COUNTRY_INFO!B69) -> Tombouctou | C69: =IF(COUNTRY_INFO!C69=0," ",COUNTRY_INFO!C69) -> Diré | D69: =IF(COUNTRY_INFO!$T$9:$T$1000="MDA2 (DEC+ALB)", COUNTRY_INFO!$T$9:$T$1000, " ") ->  | I69: 0 | M69: 0
A70: =IF(COUNTRY_INFO!A70=0," ",COUNTRY_INFO!A70) -> Mali | B70: =IF(COUNTRY_INFO!B70=0," ",COUNTRY_INFO!B70) -> Tombouctou | C70: =IF(COUNTRY_INFO!C70=0," ",COUNTRY_INFO!C70) -> Goundam | D70: =IF(COUNTRY_INFO!$T$9:$T$1000="MDA2 (DEC+ALB)", COUNTRY_INFO!$T$9:$T$1000, " ") ->  | I70: 0 | M70: 0
A71: =IF(COUNTRY_INFO!A71=0," ",COUNTRY_INFO!A71) -> Mali | B71: =IF(COUNTRY_INFO!B71=0," ",COUNTRY_INFO!B71) -> Tombouctou | C71: =IF(COUNTRY_INFO!C71=0," ",COUNTRY_INFO!C71) -> Gourma-Rharous | D71: =IF(COUNTRY_INFO!$T$9:$T$1000="MDA2 (DEC+ALB)", COUNTRY_INFO!$T$9:$T$1000, " ") ->  | I71: 0 | M71: 0
A72: =IF(COUNTRY_INFO!A72=0," ",COUNTRY_INFO!A72) -> Mali | B72: =IF(COUNTRY_INFO!B72=0," ",COUNTRY_INFO!B72) -> Tombouctou | C72: =IF(COUNTRY_INFO!C72=0," ",COUNTRY_INFO!C72) -> Niafunké | D72: =IF(COUNTRY_INFO!$T$9:$T$1000="MDA2 (DEC+ALB)", COUNTRY_INFO!$T$9:$T$1000, " ") ->  | I72: 0 | M72: 0
A73: =IF(COUNTRY_INFO!A73=0," ",COUNTRY_INFO!A73) -> Mali | B73: =IF(COUNTRY_INFO!B73=0," ",COUNTRY_INFO!B73) -> Tombouctou | C73: =IF(COUNTRY_INFO!C73=0," ",COUNTRY_INFO!C73) -> Tombouctou | D73: =IF(COUNTRY_INFO!$T$9:$T$1000="MDA2 (DEC+ALB)", COUNTRY_INFO!$T$9:$T$1000, " ") ->  | I73: 0 | M73: 0

Sheet MDA3
A1: MDA 3 - Ivermectine (IVM)
A2: Structure administrative, population nécessitant une chimioprévention par groupe d'âge, population traitée par groupe d'âge et couverture
A4: TOTAL | F4: =SUM(F$9:F$1000) -> 1606487 | G4: 2954788 | H4: 4561275 | I4: 1576076.327 | J4: 2898854.673 | K4: 4474931 | L4: 0 | M4: 0 | N4: 0 | O4: 1576076.327 | P4: 2898854.673 | Q4: 4474931 | R4: =IF(F4<>0, IF(O4/F4*100=0, "-", O4/F4*100), " ") -> 98.10700784 | S4: =IF(G4<>0, IF(P4/G4*100=0, "-", P4/G4*100), " ") -> 98.10702741 | T4: =IF(H4<>0, IF(Q4/H4*100=0, "-", Q4/H4*100), " ") -> 98.10702052
A6: Structure administrative du pays | D6: Mise en oeuvre de la CP | E6: Date | F6: Population ciblée pour MDA 3 | I6: Population traitée - tournée 1 | L6: Population traitée - tournée 2 | O6: Population traitée | R6: Couverture du Programme (%)
A7: Pays | B7: Région/Département | C7: District | F7: EAS | G7: Adultes | H7: Total | I7: EAS | J7: Adultes | K7: Total | L7: EAS | M7: Adultes | N7: Total | O7: EAS | P7: Adultes | Q7: Total | R7: EAS | S7: Adultes | T7: Total
A9: =IF(COUNTRY_INFO!A9=0," ",COUNTRY_INFO!A9) -> Mali | B9: =IF(COUNTRY_INFO!B9=0," ",COUNTRY_INFO!B9) -> Bamako | C9: =IF(COUNTRY_INFO!C9=0," ",COUNTRY_INFO!C9) -> Commune 1 | D9: =IF(COUNTRY_INFO!$T$9:$T$1000="MDA3 (IVM)", COUNTRY_INFO!$T$9:$T$1000, " ") ->  | H9: =SUM(F9:G9) -> 0 | N9: =SUM(L9:M9) -> 0 | O9: =MAX(I9,L9) -> 0 | P9: 0 | Q9: =SUM(O9:P9) -> 0 | R9: =IF(F9<>0, IF(MAX(I9,L9)/F9*100=0, "-", MAX(I9,L9)/F9*100), " ") ->  | T9: =IF(H9<>0, IF((MAX(I9,L9)+MAX(J9,M9))/H9*100=0, "-",(MAX(I9,L9)+MAX(J9,M9))/H9*100), " ") -> 
A10: =IF(COUNTRY_INFO!A10=0," ",COUNTRY_INFO!A10) -> Mali | B10: =IF(COUNTRY_INFO!B10=0," ",COUNTRY_INFO!B10) -> Bamako | C10: =IF(COUNTRY_INFO!C10=0," ",COUNTRY_INFO!C10) -> Commune 2 | D10: =IF(COUNTRY_INFO!$T$9:$T$1000="MDA3 (IVM)", COUNTRY_INFO!$T$9:$T$1000, " ") ->  | H10: =SUM(F10:G10) -> 0 | N10: =SUM(L10:M10) -> 0 | O10: =MAX(I10,L10) -> 0 | P10: =MAX(J10,M10) -> 0 | Q10: =SUM(O10:P10) -> 0 | R10: =IF(F10<>0, IF(MAX(I10,L10)/F10*100=0, "-", MAX(I10,L10)/F10*100), " ") ->  | S10: =IF(G10<>0, IF(MAX(J10,M10)/G10*100=0, "-", MAX(J10,M10)/G10*100), " ") ->  | T10: =IF(H10<>0, IF((MAX(I10,L10)+MAX(J10,M10))/H10*100=0, "-",(MAX(I10,L10)+MAX(J10,M10))/H10*100), " ") -> 
A11: =IF(COUNTRY_INFO!A11=0," ",COUNTRY_INFO!A11) -> Mali | B11: =IF(COUNTRY_INFO!B11=0," ",COUNTRY_INFO!B11) -> Bamako | C11: =IF(COUNTRY_INFO!C11=0," ",COUNTRY_INFO!C11) -> Commune 3 | D11: =IF(COUNTRY_INFO!$T$9:$T$1000="MDA3 (IVM)", COUNTRY_INFO!$T$9:$T$1000, " ") ->  | H11: 0 | N11: 0 | O11: 0 | P11: 0 | Q11: 0
A12: =IF(COUNTRY_INFO!A12=0," ",COUNTRY_INFO!A12) -> Mali | B12: =IF(COUNTRY_INFO!B12=0," ",COUNTRY_INFO!B12) -> Bamako | C12: =IF(COUNTRY_INFO!C12=0," ",COUNTRY_INFO!C12) -> Commune 4 | D12: =IF(COUNTRY_INFO!$T$9:$T$1000="MDA3 (IVM)", COUNTRY_INFO!$T$9:$T$1000, " ") ->  | H12: 0 | N12: 0 | O12: 0 | P12: 0 | Q12: 0
A13: =IF(COUNTRY_INFO!A13=0," ",COUNTRY_INFO!A13) -> Mali | B13: =IF(COUNTRY_INFO!B13=0," ",COUNTRY_INFO!B13) -> Bamako | C13: =IF(COUNTRY_INFO!C13=0," ",COUNTRY_INFO!C13) -> Commune 5 | D13: =IF(COUNTRY_INFO!$T$9:$T$1000="MDA3 (IVM)", COUNTRY_INFO!$T$9:$T$1000, " ") ->  | H13: 0 | N13: 0 | O13: 0 | P13: 0 | Q13: 0
A14: =IF(COUNTRY_INFO!A14=0," ",COUNTRY_INFO!A14) -> Mali | B14: =IF(COUNTRY_INFO!B14=0," ",COUNTRY_INFO!B14) -> Bamako | C14: =IF(COUNTRY_INFO!C14=0," ",COUNTRY_INFO!C14) -> Commune 6 | D14: =IF(COUNTRY_INFO!$T$9:$T$1000="MDA3 (IVM)", COUNTRY_INFO!$T$9:$T$1000, " ") ->  | H14: 0 | N14: 0 | O14: 0 | P14: 0 | Q14: 0
A15: =IF(COUNTRY_INFO!A15=0," ",COUNTRY_INFO!A15) -> Mali | B15: =IF(COUNTRY_INFO!B15=0," ",COUNTRY_INFO!B15) -> Gao | C15: =IF(COUNTRY_INFO!C15=0," ",COUNTRY_INFO!C15) -> Ansongo | D15: =IF(COUNTRY_INFO!$T$9:$T$1000="MDA3 (IVM)", COUNTRY_INFO!$T$9:$T$1000, " ") ->  | H15: 0 | N15: 0 | O15: 0 | P15: 0 | Q15: 0
A16: =IF(COUNTRY_INFO!A16=0," ",COUNTRY_INFO!A16) -> Mali | B16: =IF(COUNTRY_INFO!B16=0," ",COUNTRY_INFO!B16) -> Gao | C16: =IF(COUNTRY_INFO!C16=0," ",COUNTRY_INFO!C16) -> Bourem | D16: =IF(COUNTRY_INFO!$T$9:$T$1000="MDA3 (IVM)", COUNTRY_INFO!$T$9:$T$1000, " ") ->  | H16: 0 | N16: 0 | O16: 0 | P16: 0 | Q16: 0
A17: =IF(COUNTRY_INFO!A17=0," ",COUNTRY_INFO!A17) -> Mali | B17: =IF(COUNTRY_INFO!B17=0," ",COUNTRY_INFO!B17) -> Gao | C17: =IF(COUNTRY_INFO!C17=0," ",COUNTRY_INFO!C17) -> Gao | D17: =IF(COUNTRY_INFO!$T$9:$T$1000="MDA3 (IVM)", COUNTRY_INFO!$T$9:$T$1000, " ") ->  | H17: 0 | N17: 0 | O17: 0 | P17: 0 | Q17: 0
A18: =IF(COUNTRY_INFO!A18=0," ",COUNTRY_INFO!A18) -> Mali | B18: =IF(COUNTRY_INFO!B18=0," ",COUNTRY_INFO!B18) -> Gao | C18: =IF(COUNTRY_INFO!C18=0," ",COUNTRY_INFO!C18) -> Menaka | D18: =IF(COUNTRY_INFO!$T$9:$T$1000="MDA3 (IVM)", COUNTRY_INFO!$T$9:$T$1000, " ") ->  | H18: 0 | N18: 0 | O18: 0 | P18: 0 | Q18: 0
A19: =IF(COUNTRY_INFO!A19=0," ",COUNTRY_INFO!A19) -> Mali | B19: =IF(COUNTRY_INFO!B19=0," ",COUNTRY_INFO!B19) -> Kayes | C19: =IF(COUNTRY_INFO!C19=0," ",COUNTRY_INFO!C19) -> Bafoulabe | D19: =IF(COUNTRY_INFO!$T$9:$T$1000="MDA3 (IVM)", COUNTRY_INFO!$T$9:$T$1000, " ") -> MDA3 (IVM) | E19: Mai 2017 | F19: 46726 | G19: 85943 | H19: 132669 | I19: 47424.60377 | J19: 87227.39623 | K19: 134652 | N19: 0 | O19: 47424.60377 | P19: 87227.39623 | Q19: 134652 | R19: 101.4951072 | S19: 101.4944745 | T19: 101.4946973
A20: =IF(COUNTRY_INFO!A20=0," ",COUNTRY_INFO!A20) -> Mali | B20: =IF(COUNTRY_INFO!B20=0," ",COUNTRY_INFO!B20) -> Kayes | C20: =IF(COUNTRY_INFO!C20=0," ",COUNTRY_INFO!C20) -> Diema | D20: =IF(COUNTRY_INFO!$T$9:$T$1000="MDA3 (IVM)", COUNTRY_INFO!$T$9:$T$1000, " ") ->  | H20: 0 | N20: 0 | O20: 0 | P20: 0 | Q20: 0
A21: =IF(COUNTRY_INFO!A21=0," ",COUNTRY_INFO!A21) -> Mali | B21: =IF(COUNTRY_INFO!B21=0," ",COUNTRY_INFO!B21) -> Kayes | C21: =IF(COUNTRY_INFO!C21=0," ",COUNTRY_INFO!C21) -> Kayes | D21: =IF(COUNTRY_INFO!$T$9:$T$1000="MDA3 (IVM)", COUNTRY_INFO!$T$9:$T$1000, " ") -> MDA3 (IVM) | E21: Mai 2017 | F21: 186442 | G21: 342920 | H21: 529362 | I21: 153042.3648 | J21: 281488.6352 | K21: 434531 | N21: 0 | O21: 153042.3648 | P21: 281488.6352 | Q21: 434531 | R21: 82.08577723 | S21: 82.08580288 | T21: 82.08579384
A22: =IF(COUNTRY_INFO!A22=0," ",COUNTRY_INFO!A22) -> Mali | B22: =IF(COUNTRY_INFO!B22=0," ",COUNTRY_INFO!B22) -> Kayes | C22: =IF(COUNTRY_INFO!C22=0," ",COUNTRY_INFO!C22) -> Kenieba | D22: =IF(COUNTRY_INFO!$T$9:$T$1000="MDA3 (IVM)", COUNTRY_INFO!$T$9:$T$1000, " ") -> MDA3 (IVM) | E22: Mai 2017 | F22: 70512 | G22: 129692 | H22: 200204 | I22: 73869.28302 | J22: 135866.717 | K22: 209736 | N22: 0 | O22: 73869.28302 | P22: 135866.717 | Q22: 209736 | R22: 104.7612931 | S22: 104.7610623 | T22: 104.7611436
A23: =IF(COUNTRY_INFO!A23=0," ",COUNTRY_INFO!A23) -> Mali | B23: =IF(COUNTRY_INFO!B23=0," ",COUNTRY_INFO!B23) -> Kayes | C23: =IF(COUNTRY_INFO!C23=0," ",COUNTRY_INFO!C23) -> Kita | D23: =IF(COUNTRY_INFO!$T$9:$T$1000="MDA3 (IVM)", COUNTRY_INFO!$T$9:$T$1000, " ") -> MDA3 (IVM) | E23: Mai 2017 | F23: 95259 | G23: 175209 | H23: 270468 | I23: 116499.0189 | J23: 214274.9811 | K23: 330774 | N23: 0 | O23: 116499.0189 | P23: 214274.9811 | Q23: 330774 | R23: 122.2971256 | S23: 122.2967891 | T23: 122.2969076
A24: =IF(COUNTRY_INFO!A24=0," ",COUNTRY_INFO!A24) -> Mali | B24: =IF(COUNTRY_INFO!B24=0," ",COUNTRY_INFO!B24) -> Kayes | C24: =IF(COUNTRY_INFO!C24=0," ",COUNTRY_INFO!C24) -> Sagabari | D24: =IF(COUNTRY_INFO!$T$9:$T$1000="MDA3 (IVM)", COUNTRY_INFO!$T$9:$T$1000, " ") -> MDA3 (IVM) | E24: Mai 2017 | F24: 13765 | G24: 25318 | H24: 39083 | I24: 15342.23899 | J24: 28218.76101 | K24: 43561 | N24: 0 | O24: 15342.23899 | P24: 28218.76101 | Q24: 43561 | R24: 111.458329 | S24: 111.4573071 | T24: 111.457667
A25: =IF(COUNTRY_INFO!A25=0," ",COUNTRY_INFO!A25) -> Mali | B25: =IF(COUNTRY_INFO!B25=0," ",COUNTRY_INFO!B25) -> Kayes | C25: =IF(COUNTRY_INFO!C25=0," ",COUNTRY_INFO!C25) -> Sefeto | D25: =IF(COUNTRY_INFO!$T$9:$T$1000="MDA3 (IVM)", COUNTRY_INFO!$T$9:$T$1000, " ") -> MDA3 (IVM) | E25: Mai 2017 | F25: 17525 | G25: 32233 | H25: 49758 | I25: 20038.49057 | J25: 36856.50943 | K25: 56895 | N25: 0 | O25: 20038.49057 | P25: 36856.50943 | Q25: 56895 | R25: 114.3423142 | S25: 114.3440246 | T25: 114.3434222
A26: =IF(COUNTRY_INFO!A26=0," ",COUNTRY_INFO!A26) -> Mali | B26: =IF(COUNTRY_INFO!B26=0," ",COUNTRY_INFO!B26) -> Kayes | C26: =IF(COUNTRY_INFO!C26=0," ",COUNTRY_INFO!C26) -> Nioro | D26: =IF(COUNTRY_INFO!$T$9:$T$1000="MDA3 (IVM)", COUNTRY_INFO!$T$9:$T$1000, " ") ->  | H26: 0 | N26: 0 | O26: 0 | P26: 0 | Q26: 0
A27: =IF(COUNTRY_INFO!A27=0," ",COUNTRY_INFO!A27) -> Mali | B27: =IF(COUNTRY_INFO!B27=0," ",COUNTRY_INFO!B27) -> Kayes | C27: =IF(COUNTRY_INFO!C27=0," ",COUNTRY_INFO!C27) -> Oussoubidiagna | D27: =IF(COUNTRY_INFO!$T$9:$T$1000="MDA3 (IVM)", COUNTRY_INFO!$T$9:$T$1000, " ") -> MDA3 (IVM) | E27: Mai 2017 | F27: 38231 | G27: 70317 | H27: 108548 | I27: 35544.15094 | J27: 65375.84906 | K27: 100920 | N27: 0 | O27: 35544.15094 | P27: 65375.84906 | Q27: 100920 | R27: 92.97206702 | S27: 92.97303505 | T27: 92.97269411
A28: =IF(COUNTRY_INFO!A28=0," ",COUNTRY_INFO!A28) -> Mali | B28: =IF(COUNTRY_INFO!B28=0," ",COUNTRY_INFO!B28) -> Kayes | C28: =IF(COUNTRY_INFO!C28=0," ",COUNTRY_INFO!C28) -> Yelimane | D28: =IF(COUNTRY_INFO!$T$9:$T$1000="MDA3 (IVM)", COUNTRY_INFO!$T$9:$T$1000, " ") ->  | H28: 0 | N28: 0 | O28: 0 | P28: 0 | Q28: 0
A29: =IF(COUNTRY_INFO!A29=0," ",COUNTRY_INFO!A29) -> Mali | B29: =IF(COUNTRY_INFO!B29=0," ",COUNTRY_INFO!B29) -> Kidal | C29: =IF(COUNTRY_INFO!C29=0," ",COUNTRY_INFO!C29) -> Abeibara | D29: =IF(COUNTRY_INFO!$T$9:$T$1000="MDA3 (IVM)", COUNTRY_INFO!$T$9:$T$1000, " ") ->  | H29: 0 | N29: 0 | O29: 0 | P29: 0 | Q29: 0
A30: =IF(COUNTRY_INFO!A30=0," ",COUNTRY_INFO!A30) -> Mali | B30: =IF(COUNTRY_INFO!B30=0," ",COUNTRY_INFO!B30) -> Kidal | C30: =IF(COUNTRY_INFO!C30=0," ",COUNTRY_INFO!C30) -> Kidal | D30: =IF(COUNTRY_INFO!$T$9:$T$1000="MDA3 (IVM)", COUNTRY_INFO!$T$9:$T$1000, " ") ->  | H30: 0 | N30: 0 | O30: 0 | P30: 0 | Q30: 0
A31: =IF(COUNTRY_INFO!A31=0," ",COUNTRY_INFO!A31) -> Mali | B31: =IF(COUNTRY_INFO!B31=0," ",COUNTRY_INFO!B31) -> Kidal | C31: =IF(COUNTRY_INFO!C31=0," ",COUNTRY_INFO!C31) -> Tessalit | D31: =IF(COUNTRY_INFO!$T$9:$T$1000="MDA3 (IVM)", COUNTRY_INFO!$T$9:$T$1000, " ") ->  | H31: 0 | N31: 0 | O31: 0 | P31: 0 | Q31: 0
A32: =IF(COUNTRY_INFO!A32=0," ",COUNTRY_INFO!A32) -> Mali | B32: =IF(COUNTRY_INFO!B32=0," ",COUNTRY_INFO!B32) -> Kidal | C32: =IF(COUNTRY_INFO!C32=0," ",COUNTRY_INFO!C32) -> Tin-Essako | D32: =IF(COUNTRY_INFO!$T$9:$T$1000="MDA3 (IVM)", COUNTRY_INFO!$T$9:$T$1000, " ") ->  | H32: 0 | N32: 0 | O32: 0 | P32: 0 | Q32: 0
A33: =IF(COUNTRY_INFO!A33=0," ",COUNTRY_INFO!A33) -> Mali | B33: =IF(COUNTRY_INFO!B33=0," ",COUNTRY_INFO!B33) -> Koulikoro | C33: =IF(COUNTRY_INFO!C33=0," ",COUNTRY_INFO!C33) -> Banamba | D33: =IF(COUNTRY_INFO!$T$9:$T$1000="MDA3 (IVM)", COUNTRY_INFO!$T$9:$T$1000, " ") ->  | H33: 0 | N33: 0 | O33: 0 | P33: 0 | Q33: 0
A34: =IF(COUNTRY_INFO!A34=0," ",COUNTRY_INFO!A34) -> Mali | B34: =IF(COUNTRY_INFO!B34=0," ",COUNTRY_INFO!B34) -> Koulikoro | C34: =IF(COUNTRY_INFO!C34=0," ",COUNTRY_INFO!C34) -> Dioila | D34: =IF(COUNTRY_INFO!$T$9:$T$1000="MDA3 (IVM)", COUNTRY_INFO!$T$9:$T$1000, " ") -> MDA3 (IVM) | E34: Mai 2017 | F34: 96651 | G34: 177768 | H34: 274419 | I34: 96869.43396 | J34: 178170.566 | K34: 275040 | N34: 0 | O34: 96869.43396 | P34: 178170.566 | Q34: 275040 | R34: 100.2260028 | S34: 100.2264559 | T34: 100.2262963
A35: =IF(COUNTRY_INFO!A35=0," ",COUNTRY_INFO!A35) -> Mali | B35: =IF(COUNTRY_INFO!B35=0," ",COUNTRY_INFO!B35) -> Koulikoro | C35: =IF(COUNTRY_INFO!C35=0," ",COUNTRY_INFO!C35) -> Fana | D35: =IF(COUNTRY_INFO!$T$9:$T$1000="MDA3 (IVM)", COUNTRY_INFO!$T$9:$T$1000, " ") -> MDA3 (IVM) | E35: Mai 2017 | F35: 82332 | G35: 151432 | H35: 233764 | I35: 75016.40252 | J35: 137976.5975 | K35: 212993 | N35: 0 | O35: 75016.40252 | P35: 137976.5975 | Q35: 212993 | R35: 91.11451503 | S35: 91.11455801 | T35: 91.11454287
A36: =IF(COUNTRY_INFO!A36=0," ",COUNTRY_INFO!A36) -> Mali | B36: =IF(COUNTRY_INFO!B36=0," ",COUNTRY_INFO!B36) -> Koulikoro | C36: =IF(COUNTRY_INFO!C36=0," ",COUNTRY_INFO!C36) -> Kalabancoro | D36: =IF(COUNTRY_INFO!$T$9:$T$1000="MDA3 (IVM)", COUNTRY_INFO!$T$9:$T$1000, " ") -> MDA3 (IVM) | E36: Mai 2017 | F36: 106081 | G36: 195113 | H36: 301194 | I36: 114350.239 | J36: 210322.761 | K36: 324673 | N36: 0 | O36: 114350.239 | P36: 210322.761 | Q36: 324673 | R36: 107.7952121 | S36: 107.7953601 | T36: 107.795308
A37: =IF(COUNTRY_INFO!A37=0," ",COUNTRY_INFO!A37) -> Mali | B37: =IF(COUNTRY_INFO!B37=0," ",COUNTRY_INFO!B37) -> Koulikoro | C37: =IF(COUNTRY_INFO!C37=0," ",COUNTRY_INFO!C37) -> Kangaba | D37: =IF(COUNTRY_INFO!$T$9:$T$1000="MDA3 (IVM)", COUNTRY_INFO!$T$9:$T$1000, " ") -> MDA3 (IVM) | E37: Mai 2017 | F37: 36699 | G37: 67501 | H37: 104200 | I37: 42113.76101 | J37: 77459.23899 | K37: 119573 | N37: 0 | O37: 42113.76101 | P37: 77459.23899 | Q37: 119573 | R37: 114.7545192 | S37: 114.7527281 | T37: 114.7533589
A38: =IF(COUNTRY_INFO!A38=0," ",COUNTRY_INFO!A38) -> Mali | B38: =IF(COUNTRY_INFO!B38=0," ",COUNTRY_INFO!B38) -> Koulikoro | C38: =IF(COUNTRY_INFO!C38=0," ",COUNTRY_INFO!C38) -> Kati | D38: =IF(COUNTRY_INFO!$T$9:$T$1000="MDA3 (IVM)", COUNTRY_INFO!$T$9:$T$1000, " ") -> MDA3 (IVM) | E38: Mai 2017 | F38: 166841 | G38: 306867 | H38: 473708 | I38: 178069.7862 | J38: 327521.2138 | K38: 505591 | N38: 0 | O38: 178069.7862 | P38: 327521.2138 | Q38: 505591 | R38: 106.7302319 | S38: 106.7306728 | T38: 106.7305175
A39: =IF(COUNTRY_INFO!A39=0," ",COUNTRY_INFO!A39) -> Mali | B39: =IF(COUNTRY_INFO!B39=0," ",COUNTRY_INFO!B39) -> Koulikoro | C39: =IF(COUNTRY_INFO!C39=0," ",COUNTRY_INFO!C39) -> Kolokani | D39: =IF(COUNTRY_INFO!$T$9:$T$1000="MDA3 (IVM)", COUNTRY_INFO!$T$9:$T$1000, " ") -> MDA3 (IVM) | E39: Mai 2017 | F39: 85233 | G39: 156769 | H39: 242002 | I39: 78472.55346 | J39: 144333.4465 | K39: 222806 | N39: 0 | O39: 78472.55346 | P39: 144333.4465 | Q39: 222806 | R39: 92.06827574 | S39: 92.06759407 | T39: 92.06783415
A40: =IF(COUNTRY_INFO!A40=0," ",COUNTRY_INFO!A40) -> Mali | B40: =IF(COUNTRY_INFO!B40=0," ",COUNTRY_INFO!B40) -> Koulikoro | C40: =IF(COUNTRY_INFO!C40=0," ",COUNTRY_INFO!C40) -> Koulikoro | D40: =IF(COUNTRY_INFO!$T$9:$T$1000="MDA3 (IVM)", COUNTRY_INFO!$T$9:$T$1000, " ") -> MDA3 (IVM) | E40: Mai 2017 | F40: 76920 | G40: 141478 | H40: 218398 | I40: 66989.38365 | J40: 123212.6164 | K40: 190202 | N40: 0 | O40: 66989.38365 | P40: 123212.6164 | Q40: 190202 | R40: 87.08968233 | S40: 87.08959439 | T40: 87.08962536
A41: =IF(COUNTRY_INFO!A41=0," ",COUNTRY_INFO!A41) -> Mali | B41: =IF(COUNTRY_INFO!B41=0," ",COUNTRY_INFO!B41) -> Koulikoro | C41: =IF(COUNTRY_INFO!C41=0," ",COUNTRY_INFO!C41) -> Nara | D41: =IF(COUNTRY_INFO!$T$9:$T$1000="MDA3 (IVM)", COUNTRY_INFO!$T$9:$T$1000, " ") ->  | H41: 0 | N41: 0 | O41: 0 | P41: 0 | Q41: 0
A42: =IF(COUNTRY_INFO!A42=0," ",COUNTRY_INFO!A42) -> Mali | B42: =IF(COUNTRY_INFO!B42=0," ",COUNTRY_INFO!B42) -> Koulikoro | C42: =IF(COUNTRY_INFO!C42=0," ",COUNTRY_INFO!C42) -> Ouelessebougou | D42: =IF(COUNTRY_INFO!$T$9:$T$1000="MDA3 (IVM)", COUNTRY_INFO!$T$9:$T$1000, " ") -> MDA3 (IVM) | E42: Mai 2017 | F42: 72549 | G42: 133438 | H42: 205987 | I42: 79909.18239 | J42: 146975.8176 | K42: 226885 | N42: 0 | O42: 79909.18239 | P42: 146975.8176 | Q42: 226885 | R42: 110.145119 | S42: 110.1453991 | T42: 110.1453004
A43: =IF(COUNTRY_INFO!A43=0," ",COUNTRY_INFO!A43) -> Mali | B43: =IF(COUNTRY_INFO!B43=0," ",COUNTRY_INFO!B43) -> Mopti | C43: =IF(COUNTRY_INFO!C43=0," ",COUNTRY_INFO!C43) -> Bandiagara | D43: =IF(COUNTRY_INFO!$T$9:$T$1000="MDA3 (IVM)", COUNTRY_INFO!$T$9:$T$1000, " ") ->  | H43: 0 | N43: 0 | O43: 0 | P43: 0 | Q43: 0
A44: =IF(COUNTRY_INFO!A44=0," ",COUNTRY_INFO!A44) -> Mali | B44: =IF(COUNTRY_INFO!B44=0," ",COUNTRY_INFO!B44) -> Mopti | C44: =IF(COUNTRY_INFO!C44=0," ",COUNTRY_INFO!C44) -> Bankass | D44: =IF(COUNTRY_INFO!$T$9:$T$1000="MDA3 (IVM)", COUNTRY_INFO!$T$9:$T$1000, " ") ->  | H44: 0 | N44: 0 | O44: 0 | P44: 0 | Q44: 0
A45: =IF(COUNTRY_INFO!A45=0," ",COUNTRY_INFO!A45) -> Mali | B45: =IF(COUNTRY_INFO!B45=0," ",COUNTRY_INFO!B45) -> Mopti | C45: =IF(COUNTRY_INFO!C45=0," ",COUNTRY_INFO!C45) -> Djenne | D45: =IF(COUNTRY_INFO!$T$9:$T$1000="MDA3 (IVM)", COUNTRY_INFO!$T$9:$T$1000, " ") ->  | H45: 0 | N45: 0 | O45: 0 | P45: 0 | Q45: 0
A46: =IF(COUNTRY_INFO!A46=0," ",COUNTRY_INFO!A46) -> Mali | B46: =IF(COUNTRY_INFO!B46=0," ",COUNTRY_INFO!B46) -> Mopti | C46: =IF(COUNTRY_INFO!C46=0," ",COUNTRY_INFO!C46) -> Douentza | D46: =IF(COUNTRY_INFO!$T$9:$T$1000="MDA3 (IVM)", COUNTRY_INFO!$T$9:$T$1000, " ") ->  | H46: 0 | N46: 0 | O46: 0 | P46: 0 | Q46: 0
A47: =IF(COUNTRY_INFO!A47=0," ",COUNTRY_INFO!A47) -> Mali | B47: =IF(COUNTRY_INFO!B47=0," ",COUNTRY_INFO!B47) -> Mopti | C47: =IF(COUNTRY_INFO!C47=0," ",COUNTRY_INFO!C47) -> Koro | D47: =IF(COUNTRY_INFO!$T$9:$T$1000="MDA3 (IVM)", COUNTRY_INFO!$T$9:$T$1000, " ") ->  | H47: 0 | N47: 0 | O47: 0 | P47: 0 | Q47: 0
A48: =IF(COUNTRY_INFO!A48=0," ",COUNTRY_INFO!A48) -> Mali | B48: =IF(COUNTRY_INFO!B48=0," ",COUNTRY_INFO!B48) -> Mopti | C48: =IF(COUNTRY_INFO!C48=0," ",COUNTRY_INFO!C48) -> Mopti | D48: =IF(COUNTRY_INFO!$T$9:$T$1000="MDA3 (IVM)", COUNTRY_INFO!$T$9:$T$1000, " ") ->  | H48: 0 | N48: 0 | O48: 0 | P48: 0 | Q48: 0
A49: =IF(COUNTRY_INFO!A49=0," ",COUNTRY_INFO!A49) -> Mali | B49: =IF(COUNTRY_INFO!B49=0," ",COUNTRY_INFO!B49) -> Mopti | C49: =IF(COUNTRY_INFO!C49=0," ",COUNTRY_INFO!C49) -> Teninkou | D49: =IF(COUNTRY_INFO!$T$9:$T$1000="MDA3 (IVM)", COUNTRY_INFO!$T$9:$T$1000, " ") ->  | H49: 0 | N49: 0 | O49: 0 | P49: 0 | Q49: 0
A50: =IF(COUNTRY_INFO!A50=0," ",COUNTRY_INFO!A50) -> Mali | B50: =IF(COUNTRY_INFO!B50=0," ",COUNTRY_INFO!B50) -> Mopti | C50: =IF(COUNTRY_INFO!C50=0," ",COUNTRY_INFO!C50) -> Youwarou | D50: =IF(COUNTRY_INFO!$T$9:$T$1000="MDA3 (IVM)", COUNTRY_INFO!$T$9:$T$1000, " ") ->  | H50: 0 | N50: 0 | O50: 0 | P50: 0 | Q50: 0
A51: =IF(COUNTRY_INFO!A51=0," ",COUNTRY_INFO!A51) -> Mali | B51: =IF(COUNTRY_INFO!B51=0," ",COUNTRY_INFO!B51) -> Segou | C51: =IF(COUNTRY_INFO!C51=0," ",COUNTRY_INFO!C51) -> Barouéli | D51: =IF(COUNTRY_INFO!$T$9:$T$1000="MDA3 (IVM)", COUNTRY_INFO!$T$9:$T$1000, " ") ->  | H51: 0 | N51: 0 | O51: 0 | P51: 0 | Q51: 0
A52: =IF(COUNTRY_INFO!A52=0," ",COUNTRY_INFO!A52) -> Mali | B52: =IF(COUNTRY_INFO!B52=0," ",COUNTRY_INFO!B52) -> Segou | C52: =IF(COUNTRY_INFO!C52=0," ",COUNTRY_INFO!C52) -> Bla | D52: =IF(COUNTRY_INFO!$T$9:$T$1000="MDA3 (IVM)", COUNTRY_INFO!$T$9:$T$1000, " ") ->  | H52: 0 | N52: 0 | O52: 0 | P52: 0 | Q52: 0
A53: =IF(COUNTRY_INFO!A53=0," ",COUNTRY_INFO!A53) -> Mali | B53: =IF(COUNTRY_INFO!B53=0," ",COUNTRY_INFO!B53) -> Segou | C53: =IF(COUNTRY_INFO!C53=0," ",COUNTRY_INFO!C53) -> Macina | D53: =IF(COUNTRY_INFO!$T$9:$T$1000="MDA3 (IVM)", COUNTRY_INFO!$T$9:$T$1000, " ") ->  | H53: 0 | N53: 0 | O53: 0 | P53: 0 | Q53: 0
A54: =IF(COUNTRY_INFO!A54=0," ",COUNTRY_INFO!A54) -> Mali | B54: =IF(COUNTRY_INFO!B54=0," ",COUNTRY_INFO!B54) -> Segou | C54: =IF(COUNTRY_INFO!C54=0," ",COUNTRY_INFO!C54) -> Markala | D54: =IF(COUNTRY_INFO!$T$9:$T$1000="MDA3 (IVM)", COUNTRY_INFO!$T$9:$T$1000, " ") ->  | H54: 0 | N54: 0 | O54: 0 | P54: 0 | Q54: 0
A55: =IF(COUNTRY_INFO!A55=0," ",COUNTRY_INFO!A55) -> Mali | B55: =IF(COUNTRY_INFO!B55=0," ",COUNTRY_INFO!B55) -> Segou | C55: =IF(COUNTRY_INFO!C55=0," ",COUNTRY_INFO!C55) -> Niono | D55: =IF(COUNTRY_INFO!$T$9:$T$1000="MDA3 (IVM)", COUNTRY_INFO!$T$9:$T$1000, " ") ->  | H55: 0 | N55: 0 | O55: 0 | P55: 0 | Q55: 0
A56: =IF(COUNTRY_INFO!A56=0," ",COUNTRY_INFO!A56) -> Mali | B56: =IF(COUNTRY_INFO!B56=0," ",COUNTRY_INFO!B56) -> Segou | C56: =IF(COUNTRY_INFO!C56=0," ",COUNTRY_INFO!C56) -> San | D56: =IF(COUNTRY_INFO!$T$9:$T$1000="MDA3 (IVM)", COUNTRY_INFO!$T$9:$T$1000, " ") ->  | H56: 0 | N56: 0 | O56: 0 | P56: 0 | Q56: 0
A57: =IF(COUNTRY_INFO!A57=0," ",COUNTRY_INFO!A57) -> Mali | B57: =IF(COUNTRY_INFO!B57=0," ",COUNTRY_INFO!B57) -> Segou | C57: =IF(COUNTRY_INFO!C57=0," ",COUNTRY_INFO!C57) -> Segou | D57: =IF(COUNTRY_INFO!$T$9:$T$1000="MDA3 (IVM)", COUNTRY_INFO!$T$9:$T$1000, " ") ->  | H57: 0 | N57: 0 | O57: 0 | P57: 0 | Q57: 0
A58: =IF(COUNTRY_INFO!A58=0," ",COUNTRY_INFO!A58) -> Mali | B58: =IF(COUNTRY_INFO!B58=0," ",COUNTRY_INFO!B58) -> Segou | C58: =IF(COUNTRY_INFO!C58=0," ",COUNTRY_INFO!C58) -> Tominian | D58: =IF(COUNTRY_INFO!$T$9:$T$1000="MDA3 (IVM)", COUNTRY_INFO!$T$9:$T$1000, " ") ->  | H58: 0 | N58: 0 | O58: 0 | P58: 0 | Q58: 0
A59: =IF(COUNTRY_INFO!A59=0," ",COUNTRY_INFO!A59) -> Mali | B59: =IF(COUNTRY_INFO!B59=0," ",COUNTRY_INFO!B59) -> Sikasso | C59: =IF(COUNTRY_INFO!C59=0," ",COUNTRY_INFO!C59) -> Bougouni | D59: =IF(COUNTRY_INFO!$T$9:$T$1000="MDA3 (IVM)", COUNTRY_INFO!$T$9:$T$1000, " ") ->  | H59: 0 | N59: 0 | O59: 0 | P59: 0 | Q59: 0
A60: =IF(COUNTRY_INFO!A60=0," ",COUNTRY_INFO!A60) -> Mali | B60: =IF(COUNTRY_INFO!B60=0," ",COUNTRY_INFO!B60) -> Sikasso | C60: =IF(COUNTRY_INFO!C60=0," ",COUNTRY_INFO!C60) -> Kadiolo | D60: =IF(COUNTRY_INFO!$T$9:$T$1000="MDA3 (IVM)", COUNTRY_INFO!$T$9:$T$1000, " ") ->  | H60: 0 | N60: 0 | O60: 0 | P60: 0 | Q60: 0
A61: =IF(COUNTRY_INFO!A61=0," ",COUNTRY_INFO!A61) -> Mali | B61: =IF(COUNTRY_INFO!B61=0," ",COUNTRY_INFO!B61) -> Sikasso | C61: =IF(COUNTRY_INFO!C61=0," ",COUNTRY_INFO!C61) -> Kignan | D61: =IF(COUNTRY_INFO!$T$9:$T$1000="MDA3 (IVM)", COUNTRY_INFO!$T$9:$T$1000, " ") -> MDA3 (IVM) | E61: Mai 2017 | F61: 42504 | G61: 78177 | H61: 120681 | I61: 56361.00629 | J61: 103663.9937 | K61: 160025 | N61: 0 | O61: 56361.00629 | P61: 103663.9937 | Q61: 160025 | R61: 132.6016523 | S61: 132.6016523 | T61: 132.6016523
A62: =IF(COUNTRY_INFO!A62=0," ",COUNTRY_INFO!A62) -> Mali | B62: =IF(COUNTRY_INFO!B62=0," ",COUNTRY_INFO!B62) -> Sikasso | C62: =IF(COUNTRY_INFO!C62=0," ",COUNTRY_INFO!C62) -> Kolondieba | D62: =IF(COUNTRY_INFO!$T$9:$T$1000="MDA3 (IVM)", COUNTRY_INFO!$T$9:$T$1000, " ") -> MDA3 (IVM) | E62: Mai 2017 | F62: 74192 | G62: 136460 | H62: 210652 | I62: 75058.31447 | J62: 138053.6855 | K62: 213112 | N62: 0 | O62: 75058.31447 | P62: 138053.6855 | Q62: 213112 | R62: 101.1676656 | S62: 101.1678774 | T62: 101.1678028
A63: =IF(COUNTRY_INFO!A63=0," ",COUNTRY_INFO!A63) -> Mali | B63: =IF(COUNTRY_INFO!B63=0," ",COUNTRY_INFO!B63) -> Sikasso | C63: =IF(COUNTRY_INFO!C63=0," ",COUNTRY_INFO!C63) -> Koutiala | D63: =IF(COUNTRY_INFO!$T$9:$T$1000="MDA3 (IVM)", COUNTRY_INFO!$T$9:$T$1000, " ") ->  | H63: 0 | N63: 0 | O63: 0 | P63: 0 | Q63: 0
A64: =IF(COUNTRY_INFO!A64=0," ",COUNTRY_INFO!A64) -> Mali | B64: =IF(COUNTRY_INFO!B64=0," ",COUNTRY_INFO!B64) -> Sikasso | C64: =IF(COUNTRY_INFO!C64=0," ",COUNTRY_INFO!C64) -> Niena | D64: =IF(COUNTRY_INFO!$T$9:$T$1000="MDA3 (IVM)", COUNTRY_INFO!$T$9:$T$1000, " ") -> MDA3 (IVM) | E64: Mai 2017 | F64: 44629 | G64: 82086 | H64: 126715 | I64: 38633.66038 | J64: 71058.33962 | K64: 109692 | N64: 0 | O64: 38633.66038 | P64: 71058.33962 | Q64: 109692 | R64: 86.56626942 | S64: 86.56572329 | T64: 86.56591564
A65: =IF(COUNTRY_INFO!A65=0," ",COUNTRY_INFO!A65) -> Mali | B65: =IF(COUNTRY_INFO!B65=0," ",COUNTRY_INFO!B65) -> Sikasso | C65: =IF(COUNTRY_INFO!C65=0," ",COUNTRY_INFO!C65) -> Sélingué | D65: =IF(COUNTRY_INFO!$T$9:$T$1000="MDA3 (IVM)", COUNTRY_INFO!$T$9:$T$1000, " ") -> MDA3 (IVM) | E65: Mai 2017 | F65: 30249 | G65: 55637 | H65: 85886 | I65: 27711.54717 | J65: 50969.45283 | K65: 78681 | N65: 0 | O65: 27711.54717 | P65: 50969.45283 | Q65: 78681 | R65: 91.61144887 | S65: 91.61071379 | T65: 91.61097268
A66: =IF(COUNTRY_INFO!A66=0," ",COUNTRY_INFO!A66) -> Mali | B66: =IF(COUNTRY_INFO!B66=0," ",COUNTRY_INFO!B66) -> Sikasso | C66: =IF(COUNTRY_INFO!C66=0," ",COUNTRY_INFO!C66) -> Sikasso | D66: =IF(COUNTRY_INFO!$T$9:$T$1000="MDA3 (IVM)", COUNTRY_INFO!$T$9:$T$1000, " ") -> MDA3 (IVM) | E66: Mai 2017 | F66: 223147 | G66: 410430 | H66: 633577 | I66: 184760.9057 | J66: 339828.0943 | K66: 524589 | N66: 0 | O66: 184760.9057 | P66: 339828.0943 | Q66: 524589 | R66: 82.79784432 | S66: 82.79806406 | T66: 82.79798667
A67: =IF(COUNTRY_INFO!A67=0," ",COUNTRY_INFO!A67) -> Mali | B67: =IF(COUNTRY_INFO!B67=0," ",COUNTRY_INFO!B67) -> Sikasso | C67: =IF(COUNTRY_INFO!C67=0," ",COUNTRY_INFO!C67) -> Yanfolila | D67: =IF(COUNTRY_INFO!$T$9:$T$1000="MDA3 (IVM)", COUNTRY_INFO!$T$9:$T$1000, " ") ->  | H67: 0 | N67: 0 | O67: 0 | P67: 0 | Q67: 0
A68: =IF(COUNTRY_INFO!A68=0," ",COUNTRY_INFO!A68) -> Mali | B68: =IF(COUNTRY_INFO!B68=0," ",COUNTRY_INFO!B68) -> Sikasso | C68: =IF(COUNTRY_INFO!C68=0," ",COUNTRY_INFO!C68) -> Yorosso | D68: =IF(COUNTRY_INFO!$T$9:$T$1000="MDA3 (IVM)", COUNTRY_INFO!$T$9:$T$1000, " ") ->  | H68: 0 | N68: 0 | O68: 0 | P68: 0 | Q68: 0
A69: =IF(COUNTRY_INFO!A69=0," ",COUNTRY_INFO!A69) -> Mali | B69: =IF(COUNTRY_INFO!B69=0," ",COUNTRY_INFO!B69) -> Tombouctou | C69: =IF(COUNTRY_INFO!C69=0," ",COUNTRY_INFO!C69) -> Diré | D69: =IF(COUNTRY_INFO!$T$9:$T$1000="MDA3 (IVM)", COUNTRY_INFO!$T$9:$T$1000, " ") ->  | H69: 0 | N69: 0 | O69: 0 | P69: 0 | Q69: 0
A70: =IF(COUNTRY_INFO!A70=0," ",COUNTRY_INFO!A70) -> Mali | B70: =IF(COUNTRY_INFO!B70=0," ",COUNTRY_INFO!B70) -> Tombouctou | C70: =IF(COUNTRY_INFO!C70=0," ",COUNTRY_INFO!C70) -> Goundam | D70: =IF(COUNTRY_INFO!$T$9:$T$1000="MDA3 (IVM)", COUNTRY_INFO!$T$9:$T$1000, " ") ->  | H70: 0 | N70: 0 | O70: 0 | P70: 0 | Q70: 0
A71: =IF(COUNTRY_INFO!A71=0," ",COUNTRY_INFO!A71) -> Mali | B71: =IF(COUNTRY_INFO!B71=0," ",COUNTRY_INFO!B71) -> Tombouctou | C71: =IF(COUNTRY_INFO!C71=0," ",COUNTRY_INFO!C71) -> Gourma-Rharous | D71: =IF(COUNTRY_INFO!$T$9:$T$1000="MDA3 (IVM)", COUNTRY_INFO!$T$9:$T$1000, " ") ->  | H71: 0 | N71: 0 | O71: 0 | P71: 0 | Q71: 0
A72: =IF(COUNTRY_INFO!A72=0," ",COUNTRY_INFO!A72) -> Mali | B72: =IF(COUNTRY_INFO!B72=0," ",COUNTRY_INFO!B72) -> Tombouctou | C72: =IF(COUNTRY_INFO!C72=0," ",COUNTRY_INFO!C72) -> Niafunké | D72: =IF(COUNTRY_INFO!$T$9:$T$1000="MDA3 (IVM)", COUNTRY_INFO!$T$9:$T$1000, " ") ->  | H72: 0 | N72: 0 | O72: 0 | P72: 0 | Q72: 0
A73: =IF(COUNTRY_INFO!A73=0," ",COUNTRY_INFO!A73) -> Mali | B73: =IF(COUNTRY_INFO!B73=0," ",COUNTRY_INFO!B73) -> Tombouctou | C73: =IF(COUNTRY_INFO!C73=0," ",COUNTRY_INFO!C73) -> Tombouctou | D73: =IF(COUNTRY_INFO!$T$9:$T$1000="MDA3 (IVM)", COUNTRY_INFO!$T$9:$T$1000, " ") ->  | H73: 0 | N73: 0 | O73: 0 | P73: 0 | Q73: 0

Sheet T1
A1: T 1 - Praziquantel (PZQ) et Albendazole (ALB) ou Mebendazole (MBD)
A2: Structure administrative, population nécessitant une chimioprévention par groupe d'âge, population traitée par groupe d'âge et couverture
A4: TOTAL | G4: =SUM(G$9:G$1000) -> 0 | H4: 2665339 | I4: 1399199 | J4: 0 | K4: =SUM(K$9:K$1000) -> 2665339 | L4: 0 | M4: 2651681 | N4: 0 | O4: 2651681 | P4: =IF(G4<>0, IF(L4/G4*100=0, "-", L4/G4*100), " ") ->  | Q4: =IF(OR(I4<>0,H4<>0), IF(M4/MAX(H4,I4)*100=0, "-", M4/MAX(H4,I4)*100), " ") -> 99.48756987 | R4: =IF(J4<>0, IF(N4/J4*100=0, "-", N4/J4*100), " ") ->  | S4: =IF(K4<>0, IF(O4/K4*100=0, "-", O4/K4*100), " ") -> 99.48756987
A6: Structure administrative du pays | D6: Mise en oeuvre de la CP | E6: Médica-ment | F6: Date | G6: Population ciblée pour T1 | L6: Population traitée | P6: Couverture du Programme (%)
A7: Pays | B7: Région/Département | C7: District | G7: EAPréS (ALB) | H7: EAS (ALB) | I7: EAS (PZQ) | J7: Adultes (PZQ) | K7: Total | L7: EAPréS | M7: EAS | N7: Adultes | O7: Total | P7: EAPréS | Q7: EAS | R7: Adultes | S7: Total
A9: =IF(COUNTRY_INFO!A9=0," ",COUNTRY_INFO!A9) -> Mali | B9: =IF(COUNTRY_INFO!B9=0," ",COUNTRY_INFO!B9) -> Bamako | C9: =IF(COUNTRY_INFO!C9=0," ",COUNTRY_INFO!C9) -> Commune 1 | D9: =IF(OR(COUNTRY_INFO!$T$9:$T$1000="T1 (PZQ+ALB/MBD)",COUNTRY_INFO!$U$9:$U$1000="T1 (PZQ+ALB/MBD)"), "T1 (PZQ+ALB/MBD)", " ") ->  | K9: =MAX(H9:I9)+G9+J9 -> 0 | O9: =SUM(L9:N9) -> 0 | P9: =IF(G9<>0, IF(L9/G9*100=0, "-", L9/G9*100), " ") ->  | Q9: =IF(OR(I9<>0,H9<>0), IF(M9/MAX(H9,I9)*100=0, "-", M9/MAX(H9,I9)*100), " ") ->  | R9: =IF(J9<>0, IF(N9/J9*100=0, "-", N9/J9*100), " ") -> 
A10: =IF(COUNTRY_INFO!A10=0," ",COUNTRY_INFO!A10) -> Mali | B10: =IF(COUNTRY_INFO!B10=0," ",COUNTRY_INFO!B10) -> Bamako | C10: =IF(COUNTRY_INFO!C10=0," ",COUNTRY_INFO!C10) -> Commune 2 | D10: =IF(OR(COUNTRY_INFO!$T$9:$T$1000="T1 (PZQ+ALB/MBD)",COUNTRY_INFO!$U$9:$U$1000="T1 (PZQ+ALB/MBD)"), "T1 (PZQ+ALB/MBD)", " ") ->  | K10: =MAX(H10:I10)+G10+J10 -> 0 | O10: =SUM(L10:N10) -> 0 | P10: =IF(G10<>0, IF(L10/G10*100=0, "-", L10/G10*100), " ") ->  | Q10: =IF(OR(I10<>0,H10<>0), IF(M10/MAX(H10,I10)*100=0, "-", M10/MAX(H10,I10)*100), " ") ->  | R10: =IF(J10<>0, IF(N10/J10*100=0, "-", N10/J10*100), " ") ->  | S10: =IF(K10<>0, IF(O10/K10*100=0, "-", O10/K10*100), " ") -> 
A11: =IF(COUNTRY_INFO!A11=0," ",COUNTRY_INFO!A11) -> Mali | B11: =IF(COUNTRY_INFO!B11=0," ",COUNTRY_INFO!B11) -> Bamako | C11: =IF(COUNTRY_INFO!C11=0," ",COUNTRY_INFO!C11) -> Commune 3 | D11: =IF(OR(COUNTRY_INFO!$T$9:$T$1000="T1 (PZQ+ALB/MBD)",COUNTRY_INFO!$U$9:$U$1000="T1 (PZQ+ALB/MBD)"), "T1 (PZQ+ALB/MBD)", " ") ->  | K11: 0 | O11: 0
A12: =IF(COUNTRY_INFO!A12=0," ",COUNTRY_INFO!A12) -> Mali | B12: =IF(COUNTRY_INFO!B12=0," ",COUNTRY_INFO!B12) -> Bamako | C12: =IF(COUNTRY_INFO!C12=0," ",COUNTRY_INFO!C12) -> Commune 4 | D12: =IF(OR(COUNTRY_INFO!$T$9:$T$1000="T1 (PZQ+ALB/MBD)",COUNTRY_INFO!$U$9:$U$1000="T1 (PZQ+ALB/MBD)"), "T1 (PZQ+ALB/MBD)", " ") -> T1 (PZQ+ALB/MBD) | E12: PZQ+ALB | F12: Mai 2017 | H12: 109238 | I12: 54619 | K12: 109238 | M12: 114022 | O12: 114022 | Q12: 104.3794284 | S12: 104.3794284
A13: =IF(COUNTRY_INFO!A13=0," ",COUNTRY_INFO!A13) -> Mali | B13: =IF(COUNTRY_INFO!B13=0," ",COUNTRY_INFO!B13) -> Bamako | C13: =IF(COUNTRY_INFO!C13=0," ",COUNTRY_INFO!C13) -> Commune 5 | D13: =IF(OR(COUNTRY_INFO!$T$9:$T$1000="T1 (PZQ+ALB/MBD)",COUNTRY_INFO!$U$9:$U$1000="T1 (PZQ+ALB/MBD)"), "T1 (PZQ+ALB/MBD)", " ") -> T1 (PZQ+ALB/MBD) | E13: PZQ+ALB | F13: Mai 2017 | H13: 150950 | I13: 75475 | K13: 150950 | M13: 146439 | O13: 146439 | Q13: 97.01159324 | S13: 97.01159324
A14: =IF(COUNTRY_INFO!A14=0," ",COUNTRY_INFO!A14) -> Mali | B14: =IF(COUNTRY_INFO!B14=0," ",COUNTRY_INFO!B14) -> Bamako | C14: =IF(COUNTRY_INFO!C14=0," ",COUNTRY_INFO!C14) -> Commune 6 | D14: =IF(OR(COUNTRY_INFO!$T$9:$T$1000="T1 (PZQ+ALB/MBD)",COUNTRY_INFO!$U$9:$U$1000="T1 (PZQ+ALB/MBD)"), "T1 (PZQ+ALB/MBD)", " ") ->  | K14: 0 | O14: 0
A15: =IF(COUNTRY_INFO!A15=0," ",COUNTRY_INFO!A15) -> Mali | B15: =IF(COUNTRY_INFO!B15=0," ",COUNTRY_INFO!B15) -> Gao | C15: =IF(COUNTRY_INFO!C15=0," ",COUNTRY_INFO!C15) -> Ansongo | D15: =IF(OR(COUNTRY_INFO!$T$9:$T$1000="T1 (PZQ+ALB/MBD)",COUNTRY_INFO!$U$9:$U$1000="T1 (PZQ+ALB/MBD)"), "T1 (PZQ+ALB/MBD)", " ") ->  | K15: 0 | O15: 0
A16: =IF(COUNTRY_INFO!A16=0," ",COUNTRY_INFO!A16) -> Mali | B16: =IF(COUNTRY_INFO!B16=0," ",COUNTRY_INFO!B16) -> Gao | C16: =IF(COUNTRY_INFO!C16=0," ",COUNTRY_INFO!C16) -> Bourem | D16: =IF(OR(COUNTRY_INFO!$T$9:$T$1000="T1 (PZQ+ALB/MBD)",COUNTRY_INFO!$U$9:$U$1000="T1 (PZQ+ALB/MBD)"), "T1 (PZQ+ALB/MBD)", " ") ->  | K16: 0 | O16: 0
A17: =IF(COUNTRY_INFO!A17=0," ",COUNTRY_INFO!A17) -> Mali | B17: =IF(COUNTRY_INFO!B17=0," ",COUNTRY_INFO!B17) -> Gao | C17: =IF(COUNTRY_INFO!C17=0," ",COUNTRY_INFO!C17) -> Gao | D17: =IF(OR(COUNTRY_INFO!$T$9:$T$1000="T1 (PZQ+ALB/MBD)",COUNTRY_INFO!$U$9:$U$1000="T1 (PZQ+ALB/MBD)"), "T1 (PZQ+ALB/MBD)", " ") ->  | K17: 0 | O17: 0
A18: =IF(COUNTRY_INFO!A18=0," ",COUNTRY_INFO!A18) -> Mali | B18: =IF(COUNTRY_INFO!B18=0," ",COUNTRY_INFO!B18) -> Gao | C18: =IF(COUNTRY_INFO!C18=0," ",COUNTRY_INFO!C18) -> Menaka | D18: =IF(OR(COUNTRY_INFO!$T$9:$T$1000="T1 (PZQ+ALB/MBD)",COUNTRY_INFO!$U$9:$U$1000="T1 (PZQ+ALB/MBD)"), "T1 (PZQ+ALB/MBD)", " ") ->  | K18: 0 | O18: 0
A19: =IF(COUNTRY_INFO!A19=0," ",COUNTRY_INFO!A19) -> Mali | B19: =IF(COUNTRY_INFO!B19=0," ",COUNTRY_INFO!B19) -> Kayes | C19: =IF(COUNTRY_INFO!C19=0," ",COUNTRY_INFO!C19) -> Bafoulabe | D19: =IF(OR(COUNTRY_INFO!$T$9:$T$1000="T1 (PZQ+ALB/MBD)",COUNTRY_INFO!$U$9:$U$1000="T1 (PZQ+ALB/MBD)"), "T1 (PZQ+ALB/MBD)", " ") -> T1 (PZQ+ALB/MBD) | E19: PZQ+ALB | F19: Mai 2017 | H19: 46726 | I19: 23363 | K19: 46726 | M19: 45112 | O19: 45112 | Q19: 96.54582031 | S19: 96.54582031
A20: =IF(COUNTRY_INFO!A20=0," ",COUNTRY_INFO!A20) -> Mali | B20: =IF(COUNTRY_INFO!B20=0," ",COUNTRY_INFO!B20) -> Kayes | C20: =IF(COUNTRY_INFO!C20=0," ",COUNTRY_INFO!C20) -> Diema | D20: =IF(OR(COUNTRY_INFO!$T$9:$T$1000="T1 (PZQ+ALB/MBD)",COUNTRY_INFO!$U$9:$U$1000="T1 (PZQ+ALB/MBD)"), "T1 (PZQ+ALB/MBD)", " ") -> T1 (PZQ+ALB/MBD) | E20: PZQ+ALB | F20: Mai 2017 | H20: 77017 | I20: 38508.5 | K20: 77017 | M20: 75556 | O20: 75556 | Q20: 98.10301622 | S20: 98.10301622
A21: =IF(COUNTRY_INFO!A21=0," ",COUNTRY_INFO!A21) -> Mali | B21: =IF(COUNTRY_INFO!B21=0," ",COUNTRY_INFO!B21) -> Kayes | C21: =IF(COUNTRY_INFO!C21=0," ",COUNTRY_INFO!C21) -> Kayes | D21: =IF(OR(COUNTRY_INFO!$T$9:$T$1000="T1 (PZQ+ALB/MBD)",COUNTRY_INFO!$U$9:$U$1000="T1 (PZQ+ALB/MBD)"), "T1 (PZQ+ALB/MBD)", " ") -> T1 (PZQ+ALB/MBD) | E21: PZQ+ALB | F21: Mai 2017 | H21: 186442 | I21: 93221 | K21: 186442 | M21: 164934 | O21: 164934 | Q21: 88.46397271 | S21: 88.46397271
A22: =IF(COUNTRY_INFO!A22=0," ",COUNTRY_INFO!A22) -> Mali | B22: =IF(COUNTRY_INFO!B22=0," ",COUNTRY_INFO!B22) -> Kayes | C22: =IF(COUNTRY_INFO!C22=0," ",COUNTRY_INFO!C22) -> Kenieba | D22: =IF(OR(COUNTRY_INFO!$T$9:$T$1000="T1 (PZQ+ALB/MBD)",COUNTRY_INFO!$U$9:$U$1000="T1 (PZQ+ALB/MBD)"), "T1 (PZQ+ALB/MBD)", " ") -> T1 (PZQ+ALB/MBD) | E22: PZQ+ALB | F22: Mai 2017 | H22: 70512 | I22: 35256 | K22: 70512 | M22: 84327 | O22: 84327 | Q22: 119.5924098 | S22: 119.5924098
A23: =IF(COUNTRY_INFO!A23=0," ",COUNTRY_INFO!A23) -> Mali | B23: =IF(COUNTRY_INFO!B23=0," ",COUNTRY_INFO!B23) -> Kayes | C23: =IF(COUNTRY_INFO!C23=0," ",COUNTRY_INFO!C23) -> Kita | D23: =IF(OR(COUNTRY_INFO!$T$9:$T$1000="T1 (PZQ+ALB/MBD)",COUNTRY_INFO!$U$9:$U$1000="T1 (PZQ+ALB/MBD)"), "T1 (PZQ+ALB/MBD)", " ") -> T1 (PZQ+ALB/MBD) | E23: PZQ+ALB | F23: Mai 2017 | H23: 95259 | I23: 47629.5 | K23: 95259 | M23: 99937 | O23: 99937 | Q23: 104.9108221 | S23: 104.9108221
A24: =IF(COUNTRY_INFO!A24=0," ",COUNTRY_INFO!A24) -> Mali | B24: =IF(COUNTRY_INFO!B24=0," ",COUNTRY_INFO!B24) -> Kayes | C24: =IF(COUNTRY_INFO!C24=0," ",COUNTRY_INFO!C24) -> Sagabari | D24: =IF(OR(COUNTRY_INFO!$T$9:$T$1000="T1 (PZQ+ALB/MBD)",COUNTRY_INFO!$U$9:$U$1000="T1 (PZQ+ALB/MBD)"), "T1 (PZQ+ALB/MBD)", " ") -> T1 (PZQ+ALB/MBD) | E24: PZQ+ALB | F24: Mai 2017 | H24: 13765 | I24: 6882.5 | K24: 13765 | M24: 12637 | O24: 12637 | Q24: 91.80530331 | S24: 91.80530331
A25: =IF(COUNTRY_INFO!A25=0," ",COUNTRY_INFO!A25) -> Mali | B25: =IF(COUNTRY_INFO!B25=0," ",COUNTRY_INFO!B25) -> Kayes | C25: =IF(COUNTRY_INFO!C25=0," ",COUNTRY_INFO!C25) -> Sefeto | D25: =IF(OR(COUNTRY_INFO!$T$9:$T$1000="T1 (PZQ+ALB/MBD)",COUNTRY_INFO!$U$9:$U$1000="T1 (PZQ+ALB/MBD)"), "T1 (PZQ+ALB/MBD)", " ") -> T1 (PZQ+ALB/MBD) | E25: PZQ+ALB | F25: Mai 2017 | H25: 17525 | I25: 8762.5 | K25: 17525 | M25: 16690 | O25: 16690 | Q25: 95.23537803 | S25: 95.23537803
A26: =IF(COUNTRY_INFO!A26=0," ",COUNTRY_INFO!A26) -> Mali | B26: =IF(COUNTRY_INFO!B26=0," ",COUNTRY_INFO!B26) -> Kayes | C26: =IF(COUNTRY_INFO!C26=0," ",COUNTRY_INFO!C26) -> Nioro | D26: =IF(OR(COUNTRY_INFO!$T$9:$T$1000="T1 (PZQ+ALB/MBD)",COUNTRY_INFO!$U$9:$U$1000="T1 (PZQ+ALB/MBD)"), "T1 (PZQ+ALB/MBD)", " ") -> T1 (PZQ+ALB/MBD) | E26: PZQ+ALB | F26: Mai 2017 | H26: 83708 | I26: 41854 | K26: 83708 | M26: 78868 | O26: 78868 | Q26: 94.21799589 | S26: 94.21799589
A27: =IF(COUNTRY_INFO!A27=0," ",COUNTRY_INFO!A27) -> Mali | B27: =IF(COUNTRY_INFO!B27=0," ",COUNTRY_INFO!B27) -> Kayes | C27: =IF(COUNTRY_INFO!C27=0," ",COUNTRY_INFO!C27) -> Oussoubidiagna | D27: =IF(OR(COUNTRY_INFO!$T$9:$T$1000="T1 (PZQ+ALB/MBD)",COUNTRY_INFO!$U$9:$U$1000="T1 (PZQ+ALB/MBD)"), "T1 (PZQ+ALB/MBD)", " ") ->  | K27: 0 | O27: 0
A28: =IF(COUNTRY_INFO!A28=0," ",COUNTRY_INFO!A28) -> Mali | B28: =IF(COUNTRY_INFO!B28=0," ",COUNTRY_INFO!B28) -> Kayes | C28: =IF(COUNTRY_INFO!C28=0," ",COUNTRY_INFO!C28) -> Yelimane | D28: =IF(OR(COUNTRY_INFO!$T$9:$T$1000="T1 (PZQ+ALB/MBD)",COUNTRY_INFO!$U$9:$U$1000="T1 (PZQ+ALB/MBD)"), "T1 (PZQ+ALB/MBD)", " ") ->  | K28: 0 | O28: 0
A29: =IF(COUNTRY_INFO!A29=0," ",COUNTRY_INFO!A29) -> Mali | B29: =IF(COUNTRY_INFO!B29=0," ",COUNTRY_INFO!B29) -> Kidal | C29: =IF(COUNTRY_INFO!C29=0," ",COUNTRY_INFO!C29) -> Abeibara | D29: =IF(OR(COUNTRY_INFO!$T$9:$T$1000="T1 (PZQ+ALB/MBD)",COUNTRY_INFO!$U$9:$U$1000="T1 (PZQ+ALB/MBD)"), "T1 (PZQ+ALB/MBD)", " ") ->  | K29: 0 | O29: 0
A30: =IF(COUNTRY_INFO!A30=0," ",COUNTRY_INFO!A30) -> Mali | B30: =IF(COUNTRY_INFO!B30=0," ",COUNTRY_INFO!B30) -> Kidal | C30: =IF(COUNTRY_INFO!C30=0," ",COUNTRY_INFO!C30) -> Kidal | D30: =IF(OR(COUNTRY_INFO!$T$9:$T$1000="T1 (PZQ+ALB/MBD)",COUNTRY_INFO!$U$9:$U$1000="T1 (PZQ+ALB/MBD)"), "T1 (PZQ+ALB/MBD)", " ") ->  | K30: 0 | O30: 0
A31: =IF(COUNTRY_INFO!A31=0," ",COUNTRY_INFO!A31) -> Mali | B31: =IF(COUNTRY_INFO!B31=0," ",COUNTRY_INFO!B31) -> Kidal | C31: =IF(COUNTRY_INFO!C31=0," ",COUNTRY_INFO!C31) -> Tessalit | D31: =IF(OR(COUNTRY_INFO!$T$9:$T$1000="T1 (PZQ+ALB/MBD)",COUNTRY_INFO!$U$9:$U$1000="T1 (PZQ+ALB/MBD)"), "T1 (PZQ+ALB/MBD)", " ") ->  | K31: 0 | O31: 0
A32: =IF(COUNTRY_INFO!A32=0," ",COUNTRY_INFO!A32) -> Mali | B32: =IF(COUNTRY_INFO!B32=0," ",COUNTRY_INFO!B32) -> Kidal | C32: =IF(COUNTRY_INFO!C32=0," ",COUNTRY_INFO!C32) -> Tin-Essako | D32: =IF(OR(COUNTRY_INFO!$T$9:$T$1000="T1 (PZQ+ALB/MBD)",COUNTRY_INFO!$U$9:$U$1000="T1 (PZQ+ALB/MBD)"), "T1 (PZQ+ALB/MBD)", " ") ->  | K32: 0 | O32: 0
A33: =IF(COUNTRY_INFO!A33=0," ",COUNTRY_INFO!A33) -> Mali | B33: =IF(COUNTRY_INFO!B33=0," ",COUNTRY_INFO!B33) -> Koulikoro | C33: =IF(COUNTRY_INFO!C33=0," ",COUNTRY_INFO!C33) -> Banamba | D33: =IF(OR(COUNTRY_INFO!$T$9:$T$1000="T1 (PZQ+ALB/MBD)",COUNTRY_INFO!$U$9:$U$1000="T1 (PZQ+ALB/MBD)"), "T1 (PZQ+ALB/MBD)", " ") -> T1 (PZQ+ALB/MBD) | E33: PZQ+ALB | F33: Mai 2017 | H33: 76920 | I33: 38460 | K33: 76920 | M33: 68446 | O33: 68446 | Q33: 88.98335933 | S33: 88.98335933
A34: =IF(COUNTRY_INFO!A34=0," ",COUNTRY_INFO!A34) -> Mali | B34: =IF(COUNTRY_INFO!B34=0," ",COUNTRY_INFO!B34) -> Koulikoro | C34: =IF(COUNTRY_INFO!C34=0," ",COUNTRY_INFO!C34) -> Dioila | D34: =IF(OR(COUNTRY_INFO!$T$9:$T$1000="T1 (PZQ+ALB/MBD)",COUNTRY_INFO!$U$9:$U$1000="T1 (PZQ+ALB/MBD)"), "T1 (PZQ+ALB/MBD)", " ") -> T1 (PZQ+ALB/MBD) | E34: PZQ+ALB | F34: Mai 2017 | H34: 96651 | I34: 48325.5 | K34: 96651 | M34: 93277 | O34: 93277 | Q34: 96.5090894 | S34: 96.5090894
A35: =IF(COUNTRY_INFO!A35=0," ",COUNTRY_INFO!A35) -> Mali | B35: =IF(COUNTRY_INFO!B35=0," ",COUNTRY_INFO!B35) -> Koulikoro | C35: =IF(COUNTRY_INFO!C35=0," ",COUNTRY_INFO!C35) -> Fana | D35: =IF(OR(COUNTRY_INFO!$T$9:$T$1000="T1 (PZQ+ALB/MBD)",COUNTRY_INFO!$U$9:$U$1000="T1 (PZQ+ALB/MBD)"), "T1 (PZQ+ALB/MBD)", " ") -> T1 (PZQ+ALB/MBD) | E35: PZQ+ALB | F35: Mai 2017 | H35: 82332 | I35: 41166 | K35: 82332 | M35: 80761 | O35: 80761 | Q35: 98.09187193 | S35: 98.09187193
A36: =IF(COUNTRY_INFO!A36=0," ",COUNTRY_INFO!A36) -> Mali | B36: =IF(COUNTRY_INFO!B36=0," ",COUNTRY_INFO!B36) -> Koulikoro | C36: =IF(COUNTRY_INFO!C36=0," ",COUNTRY_INFO!C36) -> Kalabancoro | D36: =IF(OR(COUNTRY_INFO!$T$9:$T$1000="T1 (PZQ+ALB/MBD)",COUNTRY_INFO!$U$9:$U$1000="T1 (PZQ+ALB/MBD)"), "T1 (PZQ+ALB/MBD)", " ") ->  | K36: 0 | O36: 0
A37: =IF(COUNTRY_INFO!A37=0," ",COUNTRY_INFO!A37) -> Mali | B37: =IF(COUNTRY_INFO!B37=0," ",COUNTRY_INFO!B37) -> Koulikoro | C37: =IF(COUNTRY_INFO!C37=0," ",COUNTRY_INFO!C37) -> Kangaba | D37: =IF(OR(COUNTRY_INFO!$T$9:$T$1000="T1 (PZQ+ALB/MBD)",COUNTRY_INFO!$U$9:$U$1000="T1 (PZQ+ALB/MBD)"), "T1 (PZQ+ALB/MBD)", " ") -> T1 (PZQ+ALB/MBD) | E37: PZQ+ALB | F37: Mai 2017 | H37: 36699 | I37: 18349.5 | K37: 36699 | M37: 36362 | O37: 36362 | Q37: 99.08171885 | S37: 99.08171885
A38: =IF(COUNTRY_INFO!A38=0," ",COUNTRY_INFO!A38) -> Mali | B38: =IF(COUNTRY_INFO!B38=0," ",COUNTRY_INFO!B38) -> Koulikoro | C38: =IF(COUNTRY_INFO!C38=0," ",COUNTRY_INFO!C38) -> Kati | D38: =IF(OR(COUNTRY_INFO!$T$9:$T$1000="T1 (PZQ+ALB/MBD)",COUNTRY_INFO!$U$9:$U$1000="T1 (PZQ+ALB/MBD)"), "T1 (PZQ+ALB/MBD)", " ") ->  | K38: 0 | O38: 0
A39: =IF(COUNTRY_INFO!A39=0," ",COUNTRY_INFO!A39) -> Mali | B39: =IF(COUNTRY_INFO!B39=0," ",COUNTRY_INFO!B39) -> Koulikoro | C39: =IF(COUNTRY_INFO!C39=0," ",COUNTRY_INFO!C39) -> Kolokani | D39: =IF(OR(COUNTRY_INFO!$T$9:$T$1000="T1 (PZQ+ALB/MBD)",COUNTRY_INFO!$U$9:$U$1000="T1 (PZQ+ALB/MBD)"), "T1 (PZQ+ALB/MBD)", " ") -> T1 (PZQ+ALB/MBD) | E39: PZQ+ALB | F39: Mai 2017 | H39: 85233 | I39: 42616.5 | K39: 85233 | M39: 93382 | O39: 93382 | Q39: 109.5608508 | S39: 109.5608508
A40: =IF(COUNTRY_INFO!A40=0," ",COUNTRY_INFO!A40) -> Mali | B40: =IF(COUNTRY_INFO!B40=0," ",COUNTRY_INFO!B40) -> Koulikoro | C40: =IF(COUNTRY_INFO!C40=0," ",COUNTRY_INFO!C40) -> Koulikoro | D40: =IF(OR(COUNTRY_INFO!$T$9:$T$1000="T1 (PZQ+ALB/MBD)",COUNTRY_INFO!$U$9:$U$1000="T1 (PZQ+ALB/MBD)"), "T1 (PZQ+ALB/MBD)", " ") -> T1 (PZQ+ALB/MBD) | E40: PZQ+ALB | F40: Mai 2017 | H40: 76920 | I40: 38460 | K40: 76920 | M40: 74764 | O40: 74764 | Q40: 97.19708788 | S40: 97.19708788
A41: =IF(COUNTRY_INFO!A41=0," ",COUNTRY_INFO!A41) -> Mali | B41: =IF(COUNTRY_INFO!B41=0," ",COUNTRY_INFO!B41) -> Koulikoro | C41: =IF(COUNTRY_INFO!C41=0," ",COUNTRY_INFO!C41) -> Nara | D41: =IF(OR(COUNTRY_INFO!$T$9:$T$1000="T1 (PZQ+ALB/MBD)",COUNTRY_INFO!$U$9:$U$1000="T1 (PZQ+ALB/MBD)"), "T1 (PZQ+ALB/MBD)", " ") ->  | K41: 0 | O41: 0
A42: =IF(COUNTRY_INFO!A42=0," ",COUNTRY_INFO!A42) -> Mali | B42: =IF(COUNTRY_INFO!B42=0," ",COUNTRY_INFO!B42) -> Koulikoro | C42: =IF(COUNTRY_INFO!C42=0," ",COUNTRY_INFO!C42) -> Ouelessebougou | D42: =IF(OR(COUNTRY_INFO!$T$9:$T$1000="T1 (PZQ+ALB/MBD)",COUNTRY_INFO!$U$9:$U$1000="T1 (PZQ+ALB/MBD)"), "T1 (PZQ+ALB/MBD)", " ") -> T1 (PZQ+ALB/MBD) | E42: PZQ+ALB | F42: Mai 2017 | H42: 72549 | I42: 36274.5 | K42: 72549 | M42: 64107 | O42: 64107 | Q42: 88.36372658 | S42: 88.36372658
A43: =IF(COUNTRY_INFO!A43=0," ",COUNTRY_INFO!A43) -> Mali | B43: =IF(COUNTRY_INFO!B43=0," ",COUNTRY_INFO!B43) -> Mopti | C43: =IF(COUNTRY_INFO!C43=0," ",COUNTRY_INFO!C43) -> Bandiagara | D43: =IF(OR(COUNTRY_INFO!$T$9:$T$1000="T1 (PZQ+ALB/MBD)",COUNTRY_INFO!$U$9:$U$1000="T1 (PZQ+ALB/MBD)"), "T1 (PZQ+ALB/MBD)", " ") -> T1 (PZQ+ALB/MBD) | E43: PZQ+ALB | F43: Mai 2017 | H43: 115585 | I43: 57792.5 | K43: 115585 | M43: 116745 | O43: 116745 | Q43: 101.0035904 | S43: 101.0035904
A44: =IF(COUNTRY_INFO!A44=0," ",COUNTRY_INFO!A44) -> Mali | B44: =IF(COUNTRY_INFO!B44=0," ",COUNTRY_INFO!B44) -> Mopti | C44: =IF(COUNTRY_INFO!C44=0," ",COUNTRY_INFO!C44) -> Bankass | D44: =IF(OR(COUNTRY_INFO!$T$9:$T$1000="T1 (PZQ+ALB/MBD)",COUNTRY_INFO!$U$9:$U$1000="T1 (PZQ+ALB/MBD)"), "T1 (PZQ+ALB/MBD)", " ") -> T1 (PZQ+ALB/MBD) | E44: PZQ+ALB | F44: Mai 2017 | H44: 95766 | I44: 47883 | K44: 95766 | M44: 96382 | O44: 96382 | Q44: 100.6432346 | S44: 100.6432346
A45: =IF(COUNTRY_INFO!A45=0," ",COUNTRY_INFO!A45) -> Mali | B45: =IF(COUNTRY_INFO!B45=0," ",COUNTRY_INFO!B45) -> Mopti | C45: =IF(COUNTRY_INFO!C45=0," ",COUNTRY_INFO!C45) -> Djenne | D45: =IF(OR(COUNTRY_INFO!$T$9:$T$1000="T1 (PZQ+ALB/MBD)",COUNTRY_INFO!$U$9:$U$1000="T1 (PZQ+ALB/MBD)"), "T1 (PZQ+ALB/MBD)", " ") ->  | K45: 0 | O45: 0
A46: =IF(COUNTRY_INFO!A46=0," ",COUNTRY_INFO!A46) -> Mali | B46: =IF(COUNTRY_INFO!B46=0," ",COUNTRY_INFO!B46) -> Mopti | C46: =IF(COUNTRY_INFO!C46=0," ",COUNTRY_INFO!C46) -> Douentza | D46: =IF(OR(COUNTRY_INFO!$T$9:$T$1000="T1 (PZQ+ALB/MBD)",COUNTRY_INFO!$U$9:$U$1000="T1 (PZQ+ALB/MBD)"), "T1 (PZQ+ALB/MBD)", " ") ->  | K46: 0 | O46: 0
A47: =IF(COUNTRY_INFO!A47=0," ",COUNTRY_INFO!A47) -> Mali | B47: =IF(COUNTRY_INFO!B47=0," ",COUNTRY_INFO!B47) -> Mopti | C47: =IF(COUNTRY_INFO!C47=0," ",COUNTRY_INFO!C47) -> Koro | D47: =IF(OR(COUNTRY_INFO!$T$9:$T$1000="T1 (PZQ+ALB/MBD)",COUNTRY_INFO!$U$9:$U$1000="T1 (PZQ+ALB/MBD)"), "T1 (PZQ+ALB/MBD)", " ") ->  | K47: 0 | O47: 0
A48: =IF(COUNTRY_INFO!A48=0," ",COUNTRY_INFO!A48) -> Mali | B48: =IF(COUNTRY_INFO!B48=0," ",COUNTRY_INFO!B48) -> Mopti | C48: =IF(COUNTRY_INFO!C48=0," ",COUNTRY_INFO!C48) -> Mopti | D48: =IF(OR(COUNTRY_INFO!$T$9:$T$1000="T1 (PZQ+ALB/MBD)",COUNTRY_INFO!$U$9:$U$1000="T1 (PZQ+ALB/MBD)"), "T1 (PZQ+ALB/MBD)", " ") -> T1 (PZQ+ALB/MBD) | E48: PZQ+ALB | F48: Mai 2017 | H48: 133960 | I48: 66980 | K48: 133960 | M48: 128350 | O48: 128350 | Q48: 95.81218274 | S48: 95.81218274
A49: =IF(COUNTRY_INFO!A49=0," ",COUNTRY_INFO!A49) -> Mali | B49: =IF(COUNTRY_INFO!B49=0," ",COUNTRY_INFO!B49) -> Mopti | C49: =IF(COUNTRY_INFO!C49=0," ",COUNTRY_INFO!C49) -> Teninkou | D49: =IF(OR(COUNTRY_INFO!$T$9:$T$1000="T1 (PZQ+ALB/MBD)",COUNTRY_INFO!$U$9:$U$1000="T1 (PZQ+ALB/MBD)"), "T1 (PZQ+ALB/MBD)", " ") ->  | K49: 0 | O49: 0
A50: =IF(COUNTRY_INFO!A50=0," ",COUNTRY_INFO!A50) -> Mali | B50: =IF(COUNTRY_INFO!B50=0," ",COUNTRY_INFO!B50) -> Mopti | C50: =IF(COUNTRY_INFO!C50=0," ",COUNTRY_INFO!C50) -> Youwarou | D50: =IF(OR(COUNTRY_INFO!$T$9:$T$1000="T1 (PZQ+ALB/MBD)",COUNTRY_INFO!$U$9:$U$1000="T1 (PZQ+ALB/MBD)"), "T1 (PZQ+ALB/MBD)", " ") ->  | K50: 0 | O50: 0
A51: =IF(COUNTRY_INFO!A51=0," ",COUNTRY_INFO!A51) -> Mali | B51: =IF(COUNTRY_INFO!B51=0," ",COUNTRY_INFO!B51) -> Segou | C51: =IF(COUNTRY_INFO!C51=0," ",COUNTRY_INFO!C51) -> Barouéli | D51: =IF(OR(COUNTRY_INFO!$T$9:$T$1000="T1 (PZQ+ALB/MBD)",COUNTRY_INFO!$U$9:$U$1000="T1 (PZQ+ALB/MBD)"), "T1 (PZQ+ALB/MBD)", " ") -> T1 (PZQ+ALB/MBD) | E51: PZQ+ALB | F51: Mai 2017 | H51: 74113 | I51: 37056.5 | K51: 74113 | M51: 74208 | O51: 74208 | Q51: 100.1281826 | S51: 100.1281826
A52: =IF(COUNTRY_INFO!A52=0," ",COUNTRY_INFO!A52) -> Mali | B52: =IF(COUNTRY_INFO!B52=0," ",COUNTRY_INFO!B52) -> Segou | C52: =IF(COUNTRY_INFO!C52=0," ",COUNTRY_INFO!C52) -> Bla | D52: =IF(OR(COUNTRY_INFO!$T$9:$T$1000="T1 (PZQ+ALB/MBD)",COUNTRY_INFO!$U$9:$U$1000="T1 (PZQ+ALB/MBD)"), "T1 (PZQ+ALB/MBD)", " ") -> T1 (PZQ+ALB/MBD) | E52: PZQ+ALB | F52: Mai 2017 | H52: 103283 | I52: 51641.5 | K52: 103283 | M52: 106436 | O52: 106436 | Q52: 103.0527773 | S52: 103.0527773
A53: =IF(COUNTRY_INFO!A53=0," ",COUNTRY_INFO!A53) -> Mali | B53: =IF(COUNTRY_INFO!B53=0," ",COUNTRY_INFO!B53) -> Segou | C53: =IF(COUNTRY_INFO!C53=0," ",COUNTRY_INFO!C53) -> Macina | D53: =IF(OR(COUNTRY_INFO!$T$9:$T$1000="T1 (PZQ+ALB/MBD)",COUNTRY_INFO!$U$9:$U$1000="T1 (PZQ+ALB/MBD)"), "T1 (PZQ+ALB/MBD)", " ") -> T1 (PZQ+ALB/MBD) | E53: PZQ+ALB | F53: Mai 2017 | H53: 86466 | I53: 43233 | K53: 86466 | M53: 83696 | O53: 83696 | Q53: 96.79642865 | S53: 96.79642865
A54: =IF(COUNTRY_INFO!A54=0," ",COUNTRY_INFO!A54) -> Mali | B54: =IF(COUNTRY_INFO!B54=0," ",COUNTRY_INFO!B54) -> Segou | C54: =IF(COUNTRY_INFO!C54=0," ",COUNTRY_INFO!C54) -> Markala | D54: =IF(OR(COUNTRY_INFO!$T$9:$T$1000="T1 (PZQ+ALB/MBD)",COUNTRY_INFO!$U$9:$U$1000="T1 (PZQ+ALB/MBD)"), "T1 (PZQ+ALB/MBD)", " ") -> T1 (PZQ+ALB/MBD) | E54: PZQ+ALB | F54: Mai 2017 | H54: 65449 | I54: 32724.5 | K54: 65449 | M54: 84118 | O54: 84118 | Q54: 128.5245 | S54: 128.5245
A55: =IF(COUNTRY_INFO!A55=0," ",COUNTRY_INFO!A55) -> Mali | B55: =IF(COUNTRY_INFO!B55=0," ",COUNTRY_INFO!B55) -> Segou | C55: =IF(COUNTRY_INFO!C55=0," ",COUNTRY_INFO!C55) -> Niono | D55: =IF(OR(COUNTRY_INFO!$T$9:$T$1000="T1 (PZQ+ALB/MBD)",COUNTRY_INFO!$U$9:$U$1000="T1 (PZQ+ALB/MBD)"), "T1 (PZQ+ALB/MBD)", " ") -> T1 (PZQ+ALB/MBD) | E55: PZQ+ALB | F55: Mai 2017 | H55: 133059 | I55: 133059 | K55: 133059 | M55: 144889 | O55: 144889 | Q55: 108.8907928 | S55: 108.8907928
A56: =IF(COUNTRY_INFO!A56=0," ",COUNTRY_INFO!A56) -> Mali | B56: =IF(COUNTRY_INFO!B56=0," ",COUNTRY_INFO!B56) -> Segou | C56: =IF(COUNTRY_INFO!C56=0," ",COUNTRY_INFO!C56) -> San | D56: =IF(OR(COUNTRY_INFO!$T$9:$T$1000="T1 (PZQ+ALB/MBD)",COUNTRY_INFO!$U$9:$U$1000="T1 (PZQ+ALB/MBD)"), "T1 (PZQ+ALB/MBD)", " ") ->  | K56: 0 | O56: 0
A57: =IF(COUNTRY_INFO!A57=0," ",COUNTRY_INFO!A57) -> Mali | B57: =IF(COUNTRY_INFO!B57=0," ",COUNTRY_INFO!B57) -> Segou | C57: =IF(COUNTRY_INFO!C57=0," ",COUNTRY_INFO!C57) -> Segou | D57: =IF(OR(COUNTRY_INFO!$T$9:$T$1000="T1 (PZQ+ALB/MBD)",COUNTRY_INFO!$U$9:$U$1000="T1 (PZQ+ALB/MBD)"), "T1 (PZQ+ALB/MBD)", " ") -> T1 (PZQ+ALB/MBD) | E57: PZQ+ALB | F57: Mai 2017 | H57: 186278 | I57: 93139 | K57: 186278 | M57: 161045 | O57: 161045 | Q57: 86.45411696 | S57: 86.45411696
A58: =IF(COUNTRY_INFO!A58=0," ",COUNTRY_INFO!A58) -> Mali | B58: =IF(COUNTRY_INFO!B58=0," ",COUNTRY_INFO!B58) -> Segou | C58: =IF(COUNTRY_INFO!C58=0," ",COUNTRY_INFO!C58) -> Tominian | D58: =IF(OR(COUNTRY_INFO!$T$9:$T$1000="T1 (PZQ+ALB/MBD)",COUNTRY_INFO!$U$9:$U$1000="T1 (PZQ+ALB/MBD)"), "T1 (PZQ+ALB/MBD)", " ") -> T1 (PZQ+ALB/MBD) | E58: PZQ+ALB | F58: Mai 2017 | H58: 80049 | I58: 40024.5 | K58: 80049 | M58: 82327 | O58: 82327 | Q58: 102.845757 | S58: 102.845757
A59: =IF(COUNTRY_INFO!A59=0," ",COUNTRY_INFO!A59) -> Mali | B59: =IF(COUNTRY_INFO!B59=0," ",COUNTRY_INFO!B59) -> Sikasso | C59: =IF(COUNTRY_INFO!C59=0," ",COUNTRY_INFO!C59) -> Bougouni | D59: =IF(OR(COUNTRY_INFO!$T$9:$T$1000="T1 (PZQ+ALB/MBD)",COUNTRY_INFO!$U$9:$U$1000="T1 (PZQ+ALB/MBD)"), "T1 (PZQ+ALB/MBD)", " ") -> T1 (PZQ+ALB/MBD) | E59: PZQ+ALB | F59: Mai 2017 | H59: 168256 | I59: 84128 | K59: 168256 | M59: 179304 | O59: 179304 | Q59: 106.5661849 | S59: 106.5661849
A60: =IF(COUNTRY_INFO!A60=0," ",COUNTRY_INFO!A60) -> Mali | B60: =IF(COUNTRY_INFO!B60=0," ",COUNTRY_INFO!B60) -> Sikasso | C60: =IF(COUNTRY_INFO!C60=0," ",COUNTRY_INFO!C60) -> Kadiolo | D60: =IF(OR(COUNTRY_INFO!$T$9:$T$1000="T1 (PZQ+ALB/MBD)",COUNTRY_INFO!$U$9:$U$1000="T1 (PZQ+ALB/MBD)"), "T1 (PZQ+ALB/MBD)", " ") ->  | K60: 0 | O60: 0
A61: =IF(COUNTRY_INFO!A61=0," ",COUNTRY_INFO!A61) -> Mali | B61: =IF(COUNTRY_INFO!B61=0," ",COUNTRY_INFO!B61) -> Sikasso | C61: =IF(COUNTRY_INFO!C61=0," ",COUNTRY_INFO!C61) -> Kignan | D61: =IF(OR(COUNTRY_INFO!$T$9:$T$1000="T1 (PZQ+ALB/MBD)",COUNTRY_INFO!$U$9:$U$1000="T1 (PZQ+ALB/MBD)"), "T1 (PZQ+ALB/MBD)", " ") ->  | K61: 0 | O61: 0
A62: =IF(COUNTRY_INFO!A62=0," ",COUNTRY_INFO!A62) -> Mali | B62: =IF(COUNTRY_INFO!B62=0," ",COUNTRY_INFO!B62) -> Sikasso | C62: =IF(COUNTRY_INFO!C62=0," ",COUNTRY_INFO!C62) -> Kolondieba | D62: =IF(OR(COUNTRY_INFO!$T$9:$T$1000="T1 (PZQ+ALB/MBD)",COUNTRY_INFO!$U$9:$U$1000="T1 (PZQ+ALB/MBD)"), "T1 (PZQ+ALB/MBD)", " ") ->  | K62: 0 | O62: 0
A63: =IF(COUNTRY_INFO!A63=0," ",COUNTRY_INFO!A63) -> Mali | B63: =IF(COUNTRY_INFO!B63=0," ",COUNTRY_INFO!B63) -> Sikasso | C63: =IF(COUNTRY_INFO!C63=0," ",COUNTRY_INFO!C63) -> Koutiala | D63: =IF(OR(COUNTRY_INFO!$T$9:$T$1000="T1 (PZQ+ALB/MBD)",COUNTRY_INFO!$U$9:$U$1000="T1 (PZQ+ALB/MBD)"), "T1 (PZQ+ALB/MBD)", " ") ->  | K63: 0 | O63: 0
A64: =IF(COUNTRY_INFO!A64=0," ",COUNTRY_INFO!A64) -> Mali | B64: =IF(COUNTRY_INFO!B64=0," ",COUNTRY_INFO!B64) -> Sikasso | C64: =IF(COUNTRY_INFO!C64=0," ",COUNTRY_INFO!C64) -> Niena | D64: =IF(OR(COUNTRY_INFO!$T$9:$T$1000="T1 (PZQ+ALB/MBD)",COUNTRY_INFO!$U$9:$U$1000="T1 (PZQ+ALB/MBD)"), "T1 (PZQ+ALB/MBD)", " ") -> T1 (PZQ+ALB/MBD) | E64: PZQ+ALB | F64: Mai 2017 | H64: 44629 | I64: 22314.5 | K64: 44629 | M64: 44560 | O64: 44560 | Q64: 99.84539201 | S64: 99.84539201
A65: =IF(COUNTRY_INFO!A65=0," ",COUNTRY_INFO!A65) -> Mali | B65: =IF(COUNTRY_INFO!B65=0," ",COUNTRY_INFO!B65) -> Sikasso | C65: =IF(COUNTRY_INFO!C65=0," ",COUNTRY_INFO!C65) -> Sélingué | D65: =IF(OR(COUNTRY_INFO!$T$9:$T$1000="T1 (PZQ+ALB/MBD)",COUNTRY_INFO!$U$9:$U$1000="T1 (PZQ+ALB/MBD)"), "T1 (PZQ+ALB/MBD)", " ") ->  | K65: 0 | O65: 0
A66: =IF(COUNTRY_INFO!A66=0," ",COUNTRY_INFO!A66) -> Mali | B66: =IF(COUNTRY_INFO!B66=0," ",COUNTRY_INFO!B66) -> Sikasso | C66: =IF(COUNTRY_INFO!C66=0," ",COUNTRY_INFO!C66) -> Sikasso | D66: =IF(OR(COUNTRY_INFO!$T$9:$T$1000="T1 (PZQ+ALB/MBD)",COUNTRY_INFO!$U$9:$U$1000="T1 (PZQ+ALB/MBD)"), "T1 (PZQ+ALB/MBD)", " ") ->  | K66: 0 | O66: 0
A67: =IF(COUNTRY_INFO!A67=0," ",COUNTRY_INFO!A67) -> Mali | B67: =IF(COUNTRY_INFO!B67=0," ",COUNTRY_INFO!B67) -> Sikasso | C67: =IF(COUNTRY_INFO!C67=0," ",COUNTRY_INFO!C67) -> Yanfolila | D67: =IF(OR(COUNTRY_INFO!$T$9:$T$1000="T1 (PZQ+ALB/MBD)",COUNTRY_INFO!$U$9:$U$1000="T1 (PZQ+ALB/MBD)"), "T1 (PZQ+ALB/MBD)", " ") ->  | K67: 0 | O67: 0
A68: =IF(COUNTRY_INFO!A68=0," ",COUNTRY_INFO!A68) -> Mali | B68: =IF(COUNTRY_INFO!B68=0," ",COUNTRY_INFO!B68) -> Sikasso | C68: =IF(COUNTRY_INFO!C68=0," ",COUNTRY_INFO!C68) -> Yorosso | D68: =IF(OR(COUNTRY_INFO!$T$9:$T$1000="T1 (PZQ+ALB/MBD)",COUNTRY_INFO!$U$9:$U$1000="T1 (PZQ+ALB/MBD)"), "T1 (PZQ+ALB/MBD)", " ") ->  | K68: 0 | O68: 0
A69: =IF(COUNTRY_INFO!A69=0," ",COUNTRY_INFO!A69) -> Mali | B69: =IF(COUNTRY_INFO!B69=0," ",COUNTRY_INFO!B69) -> Tombouctou | C69: =IF(COUNTRY_INFO!C69=0," ",COUNTRY_INFO!C69) -> Diré | D69: =IF(OR(COUNTRY_INFO!$T$9:$T$1000="T1 (PZQ+ALB/MBD)",COUNTRY_INFO!$U$9:$U$1000="T1 (PZQ+ALB/MBD)"), "T1 (PZQ+ALB/MBD)", " ") ->  | K69: 0 | O69: 0
A70: =IF(COUNTRY_INFO!A70=0," ",COUNTRY_INFO!A70) -> Mali | B70: =IF(COUNTRY_INFO!B70=0," ",COUNTRY_INFO!B70) -> Tombouctou | C70: =IF(COUNTRY_INFO!C70=0," ",COUNTRY_INFO!C70) -> Goundam | D70: =IF(OR(COUNTRY_INFO!$T$9:$T$1000="T1 (PZQ+ALB/MBD)",COUNTRY_INFO!$U$9:$U$1000="T1 (PZQ+ALB/MBD)"), "T1 (PZQ+ALB/MBD)", " ") ->  | K70: 0 | O70: 0
A71: =IF(COUNTRY_INFO!A71=0," ",COUNTRY_INFO!A71) -> Mali | B71: =IF(COUNTRY_INFO!B71=0," ",COUNTRY_INFO!B71) -> Tombouctou | C71: =IF(COUNTRY_INFO!C71=0," ",COUNTRY_INFO!C71) -> Gourma-Rharous | D71: =IF(OR(COUNTRY_INFO!$T$9:$T$1000="T1 (PZQ+ALB/MBD)",COUNTRY_INFO!$U$9:$U$1000="T1 (PZQ+ALB/MBD)"), "T1 (PZQ+ALB/MBD)", " ") ->  | K71: 0 | O71: 0
A72: =IF(COUNTRY_INFO!A72=0," ",COUNTRY_INFO!A72) -> Mali | B72: =IF(COUNTRY_INFO!B72=0," ",COUNTRY_INFO!B72) -> Tombouctou | C72: =IF(COUNTRY_INFO!C72=0," ",COUNTRY_INFO!C72) -> Niafunké | D72: =IF(OR(COUNTRY_INFO!$T$9:$T$1000="T1 (PZQ+ALB/MBD)",COUNTRY_INFO!$U$9:$U$1000="T1 (PZQ+ALB/MBD)"), "T1 (PZQ+ALB/MBD)", " ") ->  | K72: 0 | O72: 0
A73: =IF(COUNTRY_INFO!A73=0," ",COUNTRY_INFO!A73) -> Mali | B73: =IF(COUNTRY_INFO!B73=0," ",COUNTRY_INFO!B73) -> Tombouctou | C73: =IF(COUNTRY_INFO!C73=0," ",COUNTRY_INFO!C73) -> Tombouctou | D73: =IF(OR(COUNTRY_INFO!$T$9:$T$1000="T1 (PZQ+ALB/MBD)",COUNTRY_INFO!$U$9:$U$1000="T1 (PZQ+ALB/MBD)"), "T1 (PZQ+ALB/MBD)", " ") ->  | K73: 0 | O73: 0

Sheet T2
A1: T 2 - Praziquantel (PZQ)
A2: Structure administrative, population nécessitant une chimioprévention par groupe d'âge, population traitée par groupe d'âge et couverture
A4: TOTAL | F4: =SUM(F$9:F$1000) -> 0 | G4: 319096 | H4: 0 | I4: 319096 | J4: 0 | K4: 275274 | L4: 0 | M4: 275274 | N4: =IF(F4<>0, IF(J4/F4*100=0, "-", J4/F4*100), " ") ->  | O4: =IF(G4<>0, IF(K4/G4*100=0, "-", K4/G4*100), " ") -> 86.26682879 | P4: =IF(H4<>0, IF(L4/H4*100=0, "-", L4/H4*100), " ") ->  | Q4: =IF(I4<>0, IF(M4/I4*100=0, "-", M4/I4*100), " ") -> 86.26682879
A6: Structure administrative du pays | D6: Mise en oeuvre de la CP | E6: Date | F6: Population ciblée pour T2 | J6: Population traitée | N6: Couverture du Programme (%)
A7: Pays | B7: Région/Département | C7: District | F7: EAPréS | G7: EAS | H7: Adultes | I7: Total | J7: EAPréS | K7: EAS | L7: Adultes | M7: Total | N7: EAPréS | O7: EAS | P7: Adultes | Q7: Total
A9: =IF(COUNTRY_INFO!A9=0," ",COUNTRY_INFO!A9) -> Mali | B9: =IF(COUNTRY_INFO!B9=0," ",COUNTRY_INFO!B9) -> Bamako | C9: =IF(COUNTRY_INFO!C9=0," ",COUNTRY_INFO!C9) -> Commune 1 | D9: =IF(OR(COUNTRY_INFO!$T$9:$T$1000="T2 (PZQ)",COUNTRY_INFO!$U$9:$U$1000="T2 (PZQ)"), "T2 (PZQ)", " ") ->  | I9: =SUM(F9:H9) -> 0 | M9: =SUM(J9:L9) -> 0 | N9: =IF(F9<>0, IF(J9/F9*100=0, "-", J9/F9*100), " ") -> 
A10: =IF(COUNTRY_INFO!A10=0," ",COUNTRY_INFO!A10) -> Mali | B10: =IF(COUNTRY_INFO!B10=0," ",COUNTRY_INFO!B10) -> Bamako | C10: =IF(COUNTRY_INFO!C10=0," ",COUNTRY_INFO!C10) -> Commune 2 | D10: =IF(OR(COUNTRY_INFO!$T$9:$T$1000="T2 (PZQ)",COUNTRY_INFO!$U$9:$U$1000="T2 (PZQ)"), "T2 (PZQ)", " ") ->  | I10: =SUM(F10:H10) -> 0 | M10: =SUM(J10:L10) -> 0 | N10: =IF(F10<>0, IF(J10/F10*100=0, "-", J10/F10*100), " ") ->  | O10: =IF(G10<>0, IF(K10/G10*100=0, "-", K10/G10*100), " ") ->  | P10: =IF(H10<>0, IF(L10/H10*100=0, "-", L10/H10*100), " ") ->  | Q10: =IF(I10<>0, IF(M10/I10*100=0, "-", M10/I10*100), " ") -> 
A11: =IF(COUNTRY_INFO!A11=0," ",COUNTRY_INFO!A11) -> Mali | B11: =IF(COUNTRY_INFO!B11=0," ",COUNTRY_INFO!B11) -> Bamako | C11: =IF(COUNTRY_INFO!C11=0," ",COUNTRY_INFO!C11) -> Commune 3 | D11: =IF(OR(COUNTRY_INFO!$T$9:$T$1000="T2 (PZQ)",COUNTRY_INFO!$U$9:$U$1000="T2 (PZQ)"), "T2 (PZQ)", " ") ->  | I11: 0 | M11: 0
A12: =IF(COUNTRY_INFO!A12=0," ",COUNTRY_INFO!A12) -> Mali | B12: =IF(COUNTRY_INFO!B12=0," ",COUNTRY_INFO!B12) -> Bamako | C12: =IF(COUNTRY_INFO!C12=0," ",COUNTRY_INFO!C12) -> Commune 4 | D12: =IF(OR(COUNTRY_INFO!$T$9:$T$1000="T2 (PZQ)",COUNTRY_INFO!$U$9:$U$1000="T2 (PZQ)"), "T2 (PZQ)", " ") ->  | I12: 0 | M12: 0
A13: =IF(COUNTRY_INFO!A13=0," ",COUNTRY_INFO!A13) -> Mali | B13: =IF(COUNTRY_INFO!B13=0," ",COUNTRY_INFO!B13) -> Bamako | C13: =IF(COUNTRY_INFO!C13=0," ",COUNTRY_INFO!C13) -> Commune 5 | D13: =IF(OR(COUNTRY_INFO!$T$9:$T$1000="T2 (PZQ)",COUNTRY_INFO!$U$9:$U$1000="T2 (PZQ)"), "T2 (PZQ)", " ") ->  | I13: 0 | M13: 0
A14: =IF(COUNTRY_INFO!A14=0," ",COUNTRY_INFO!A14) -> Mali | B14: =IF(COUNTRY_INFO!B14=0," ",COUNTRY_INFO!B14) -> Bamako | C14: =IF(COUNTRY_INFO!C14=0," ",COUNTRY_INFO!C14) -> Commune 6 | D14: =IF(OR(COUNTRY_INFO!$T$9:$T$1000="T2 (PZQ)",COUNTRY_INFO!$U$9:$U$1000="T2 (PZQ)"), "T2 (PZQ)", " ") ->  | I14: 0 | M14: 0
A15: =IF(COUNTRY_INFO!A15=0," ",COUNTRY_INFO!A15) -> Mali | B15: =IF(COUNTRY_INFO!B15=0," ",COUNTRY_INFO!B15) -> Gao | C15: =IF(COUNTRY_INFO!C15=0," ",COUNTRY_INFO!C15) -> Ansongo | D15: =IF(OR(COUNTRY_INFO!$T$9:$T$1000="T2 (PZQ)",COUNTRY_INFO!$U$9:$U$1000="T2 (PZQ)"), "T2 (PZQ)", " ") ->  | I15: 0 | M15: 0
A16: =IF(COUNTRY_INFO!A16=0," ",COUNTRY_INFO!A16) -> Mali | B16: =IF(COUNTRY_INFO!B16=0," ",COUNTRY_INFO!B16) -> Gao | C16: =IF(COUNTRY_INFO!C16=0," ",COUNTRY_INFO!C16) -> Bourem | D16: =IF(OR(COUNTRY_INFO!$T$9:$T$1000="T2 (PZQ)",COUNTRY_INFO!$U$9:$U$1000="T2 (PZQ)"), "T2 (PZQ)", " ") ->  | I16: 0 | M16: 0
A17: =IF(COUNTRY_INFO!A17=0," ",COUNTRY_INFO!A17) -> Mali | B17: =IF(COUNTRY_INFO!B17=0," ",COUNTRY_INFO!B17) -> Gao | C17: =IF(COUNTRY_INFO!C17=0," ",COUNTRY_INFO!C17) -> Gao | D17: =IF(OR(COUNTRY_INFO!$T$9:$T$1000="T2 (PZQ)",COUNTRY_INFO!$U$9:$U$1000="T2 (PZQ)"), "T2 (PZQ)", " ") ->  | I17: 0 | M17: 0
A18: =IF(COUNTRY_INFO!A18=0," ",COUNTRY_INFO!A18) -> Mali | B18: =IF(COUNTRY_INFO!B18=0," ",COUNTRY_INFO!B18) -> Gao | C18: =IF(COUNTRY_INFO!C18=0," ",COUNTRY_INFO!C18) -> Menaka | D18: =IF(OR(COUNTRY_INFO!$T$9:$T$1000="T2 (PZQ)",COUNTRY_INFO!$U$9:$U$1000="T2 (PZQ)"), "T2 (PZQ)", " ") ->  | I18: 0 | M18: 0
A19: =IF(COUNTRY_INFO!A19=0," ",COUNTRY_INFO!A19) -> Mali | B19: =IF(COUNTRY_INFO!B19=0," ",COUNTRY_INFO!B19) -> Kayes | C19: =IF(COUNTRY_INFO!C19=0," ",COUNTRY_INFO!C19) -> Bafoulabe | D19: =IF(OR(COUNTRY_INFO!$T$9:$T$1000="T2 (PZQ)",COUNTRY_INFO!$U$9:$U$1000="T2 (PZQ)"), "T2 (PZQ)", " ") ->  | I19: 0 | M19: 0
A20: =IF(COUNTRY_INFO!A20=0," ",COUNTRY_INFO!A20) -> Mali | B20: =IF(COUNTRY_INFO!B20=0," ",COUNTRY_INFO!B20) -> Kayes | C20: =IF(COUNTRY_INFO!C20=0," ",COUNTRY_INFO!C20) -> Diema | D20: =IF(OR(COUNTRY_INFO!$T$9:$T$1000="T2 (PZQ)",COUNTRY_INFO!$U$9:$U$1000="T2 (PZQ)"), "T2 (PZQ)", " ") ->  | I20: 0 | M20: 0
A21: =IF(COUNTRY_INFO!A21=0," ",COUNTRY_INFO!A21) -> Mali | B21: =IF(COUNTRY_INFO!B21=0," ",COUNTRY_INFO!B21) -> Kayes | C21: =IF(COUNTRY_INFO!C21=0," ",COUNTRY_INFO!C21) -> Kayes | D21: =IF(OR(COUNTRY_INFO!$T$9:$T$1000="T2 (PZQ)",COUNTRY_INFO!$U$9:$U$1000="T2 (PZQ)"), "T2 (PZQ)", " ") ->  | I21: 0 | M21: 0
A22: =IF(COUNTRY_INFO!A22=0," ",COUNTRY_INFO!A22) -> Mali | B22: =IF(COUNTRY_INFO!B22=0," ",COUNTRY_INFO!B22) -> Kayes | C22: =IF(COUNTRY_INFO!C22=0," ",COUNTRY_INFO!C22) -> Kenieba | D22: =IF(OR(COUNTRY_INFO!$T$9:$T$1000="T2 (PZQ)",COUNTRY_INFO!$U$9:$U$1000="T2 (PZQ)"), "T2 (PZQ)", " ") ->  | I22: 0 | M22: 0
A23: =IF(COUNTRY_INFO!A23=0," ",COUNTRY_INFO!A23) -> Mali | B23: =IF(COUNTRY_INFO!B23=0," ",COUNTRY_INFO!B23) -> Kayes | C23: =IF(COUNTRY_INFO!C23=0," ",COUNTRY_INFO!C23) -> Kita | D23: =IF(OR(COUNTRY_INFO!$T$9:$T$1000="T2 (PZQ)",COUNTRY_INFO!$U$9:$U$1000="T2 (PZQ)"), "T2 (PZQ)", " ") ->  | I23: 0 | M23: 0
A24: =IF(COUNTRY_INFO!A24=0," ",COUNTRY_INFO!A24) -> Mali | B24: =IF(COUNTRY_INFO!B24=0," ",COUNTRY_INFO!B24) -> Kayes | C24: =IF(COUNTRY_INFO!C24=0," ",COUNTRY_INFO!C24) -> Sagabari | D24: =IF(OR(COUNTRY_INFO!$T$9:$T$1000="T2 (PZQ)",COUNTRY_INFO!$U$9:$U$1000="T2 (PZQ)"), "T2 (PZQ)", " ") ->  | I24: 0 | M24: 0
A25: =IF(COUNTRY_INFO!A25=0," ",COUNTRY_INFO!A25) -> Mali | B25: =IF(COUNTRY_INFO!B25=0," ",COUNTRY_INFO!B25) -> Kayes | C25: =IF(COUNTRY_INFO!C25=0," ",COUNTRY_INFO!C25) -> Sefeto | D25: =IF(OR(COUNTRY_INFO!$T$9:$T$1000="T2 (PZQ)",COUNTRY_INFO!$U$9:$U$1000="T2 (PZQ)"), "T2 (PZQ)", " ") ->  | I25: 0 | M25: 0
A26: =IF(COUNTRY_INFO!A26=0," ",COUNTRY_INFO!A26) -> Mali | B26: =IF(COUNTRY_INFO!B26=0," ",COUNTRY_INFO!B26) -> Kayes | C26: =IF(COUNTRY_INFO!C26=0," ",COUNTRY_INFO!C26) -> Nioro | D26: =IF(OR(COUNTRY_INFO!$T$9:$T$1000="T2 (PZQ)",COUNTRY_INFO!$U$9:$U$1000="T2 (PZQ)"), "T2 (PZQ)", " ") ->  | I26: 0 | M26: 0
A27: =IF(COUNTRY_INFO!A27=0," ",COUNTRY_INFO!A27) -> Mali | B27: =IF(COUNTRY_INFO!B27=0," ",COUNTRY_INFO!B27) -> Kayes | C27: =IF(COUNTRY_INFO!C27=0," ",COUNTRY_INFO!C27) -> Oussoubidiagna | D27: =IF(OR(COUNTRY_INFO!$T$9:$T$1000="T2 (PZQ)",COUNTRY_INFO!$U$9:$U$1000="T2 (PZQ)"), "T2 (PZQ)", " ") ->  | I27: 0 | M27: 0
A28: =IF(COUNTRY_INFO!A28=0," ",COUNTRY_INFO!A28) -> Mali | B28: =IF(COUNTRY_INFO!B28=0," ",COUNTRY_INFO!B28) -> Kayes | C28: =IF(COUNTRY_INFO!C28=0," ",COUNTRY_INFO!C28) -> Yelimane | D28: =IF(OR(COUNTRY_INFO!$T$9:$T$1000="T2 (PZQ)",COUNTRY_INFO!$U$9:$U$1000="T2 (PZQ)"), "T2 (PZQ)", " ") ->  | I28: 0 | M28: 0
A29: =IF(COUNTRY_INFO!A29=0," ",COUNTRY_INFO!A29) -> Mali | B29: =IF(COUNTRY_INFO!B29=0," ",COUNTRY_INFO!B29) -> Kidal | C29: =IF(COUNTRY_INFO!C29=0," ",COUNTRY_INFO!C29) -> Abeibara | D29: =IF(OR(COUNTRY_INFO!$T$9:$T$1000="T2 (PZQ)",COUNTRY_INFO!$U$9:$U$1000="T2 (PZQ)"), "T2 (PZQ)", " ") -> T2 (PZQ) | E29: Mai 2017 | G29: 3747 | I29: 3747 | K29: 842 | M29: 842 | O29: 22.47131038 | Q29: 22.47131038
A30: =IF(COUNTRY_INFO!A30=0," ",COUNTRY_INFO!A30) -> Mali | B30: =IF(COUNTRY_INFO!B30=0," ",COUNTRY_INFO!B30) -> Kidal | C30: =IF(COUNTRY_INFO!C30=0," ",COUNTRY_INFO!C30) -> Kidal | D30: =IF(OR(COUNTRY_INFO!$T$9:$T$1000="T2 (PZQ)",COUNTRY_INFO!$U$9:$U$1000="T2 (PZQ)"), "T2 (PZQ)", " ") -> T2 (PZQ) | E30: Mai 2017 | G30: 12053 | I30: 12053 | K30: 4058 | M30: 4058 | O30: 33.66796648 | Q30: 33.66796648
A31: =IF(COUNTRY_INFO!A31=0," ",COUNTRY_INFO!A31) -> Mali | B31: =IF(COUNTRY_INFO!B31=0," ",COUNTRY_INFO!B31) -> Kidal | C31: =IF(COUNTRY_INFO!C31=0," ",COUNTRY_INFO!C31) -> Tessalit | D31: =IF(OR(COUNTRY_INFO!$T$9:$T$1000="T2 (PZQ)",COUNTRY_INFO!$U$9:$U$1000="T2 (PZQ)"), "T2 (PZQ)", " ") -> T2 (PZQ) | E31: Mai 2017 | G31: 5934 | I31: 5934 | K31: 2559 | M31: 2559 | O31: 43.12436805 | Q31: 43.12436805
A32: =IF(COUNTRY_INFO!A32=0," ",COUNTRY_INFO!A32) -> Mali | B32: =IF(COUNTRY_INFO!B32=0," ",COUNTRY_INFO!B32) -> Kidal | C32: =IF(COUNTRY_INFO!C32=0," ",COUNTRY_INFO!C32) -> Tin-Essako | D32: =IF(OR(COUNTRY_INFO!$T$9:$T$1000="T2 (PZQ)",COUNTRY_INFO!$U$9:$U$1000="T2 (PZQ)"), "T2 (PZQ)", " ") -> T2 (PZQ) | E32: Mai 2017 | G32: 2906 | I32: 2906 | K32: 682 | M32: 682 | O32: 23.46868548 | Q32: 23.46868548
A33: =IF(COUNTRY_INFO!A33=0," ",COUNTRY_INFO!A33) -> Mali | B33: =IF(COUNTRY_INFO!B33=0," ",COUNTRY_INFO!B33) -> Koulikoro | C33: =IF(COUNTRY_INFO!C33=0," ",COUNTRY_INFO!C33) -> Banamba | D33: =IF(OR(COUNTRY_INFO!$T$9:$T$1000="T2 (PZQ)",COUNTRY_INFO!$U$9:$U$1000="T2 (PZQ)"), "T2 (PZQ)", " ") ->  | I33: 0 | M33: 0
A34: =IF(COUNTRY_INFO!A34=0," ",COUNTRY_INFO!A34) -> Mali | B34: =IF(COUNTRY_INFO!B34=0," ",COUNTRY_INFO!B34) -> Koulikoro | C34: =IF(COUNTRY_INFO!C34=0," ",COUNTRY_INFO!C34) -> Dioila | D34: =IF(OR(COUNTRY_INFO!$T$9:$T$1000="T2 (PZQ)",COUNTRY_INFO!$U$9:$U$1000="T2 (PZQ)"), "T2 (PZQ)", " ") ->  | I34: 0 | M34: 0
A35: =IF(COUNTRY_INFO!A35=0," ",COUNTRY_INFO!A35) -> Mali | B35: =IF(COUNTRY_INFO!B35=0," ",COUNTRY_INFO!B35) -> Koulikoro | C35: =IF(COUNTRY_INFO!C35=0," ",COUNTRY_INFO!C35) -> Fana | D35: =IF(OR(COUNTRY_INFO!$T$9:$T$1000="T2 (PZQ)",COUNTRY_INFO!$U$9:$U$1000="T2 (PZQ)"), "T2 (PZQ)", " ") ->  | I35: 0 | M35: 0
A36: =IF(COUNTRY_INFO!A36=0," ",COUNTRY_INFO!A36) -> Mali | B36: =IF(COUNTRY_INFO!B36=0," ",COUNTRY_INFO!B36) -> Koulikoro | C36: =IF(COUNTRY_INFO!C36=0," ",COUNTRY_INFO!C36) -> Kalabancoro | D36: =IF(OR(COUNTRY_INFO!$T$9:$T$1000="T2 (PZQ)",COUNTRY_INFO!$U$9:$U$1000="T2 (PZQ)"), "T2 (PZQ)", " ") -> T2 (PZQ) | E36: Mai 2017 | G36: 106081 | I36: 106081 | K36: 90944 | M36: 90944 | O36: 85.73071521 | Q36: 85.73071521
A37: =IF(COUNTRY_INFO!A37=0," ",COUNTRY_INFO!A37) -> Mali | B37: =IF(COUNTRY_INFO!B37=0," ",COUNTRY_INFO!B37) -> Koulikoro | C37: =IF(COUNTRY_INFO!C37=0," ",COUNTRY_INFO!C37) -> Kangaba | D37: =IF(OR(COUNTRY_INFO!$T$9:$T$1000="T2 (PZQ)",COUNTRY_INFO!$U$9:$U$1000="T2 (PZQ)"), "T2 (PZQ)", " ") ->  | I37: 0 | M37: 0
A38: =IF(COUNTRY_INFO!A38=0," ",COUNTRY_INFO!A38) -> Mali | B38: =IF(COUNTRY_INFO!B38=0," ",COUNTRY_INFO!B38) -> Koulikoro | C38: =IF(COUNTRY_INFO!C38=0," ",COUNTRY_INFO!C38) -> Kati | D38: =IF(OR(COUNTRY_INFO!$T$9:$T$1000="T2 (PZQ)",COUNTRY_INFO!$U$9:$U$1000="T2 (PZQ)"), "T2 (PZQ)", " ") ->  | I38: 0 | M38: 0
A39: =IF(COUNTRY_INFO!A39=0," ",COUNTRY_INFO!A39) -> Mali | B39: =IF(COUNTRY_INFO!B39=0," ",COUNTRY_INFO!B39) -> Koulikoro | C39: =IF(COUNTRY_INFO!C39=0," ",COUNTRY_INFO!C39) -> Kolokani | D39: =IF(OR(COUNTRY_INFO!$T$9:$T$1000="T2 (PZQ)",COUNTRY_INFO!$U$9:$U$1000="T2 (PZQ)"), "T2 (PZQ)", " ") ->  | I39: 0 | M39: 0
A40: =IF(COUNTRY_INFO!A40=0," ",COUNTRY_INFO!A40) -> Mali | B40: =IF(COUNTRY_INFO!B40=0," ",COUNTRY_INFO!B40) -> Koulikoro | C40: =IF(COUNTRY_INFO!C40=0," ",COUNTRY_INFO!C40) -> Koulikoro | D40: =IF(OR(COUNTRY_INFO!$T$9:$T$1000="T2 (PZQ)",COUNTRY_INFO!$U$9:$U$1000="T2 (PZQ)"), "T2 (PZQ)", " ") ->  | I40: 0 | M40: 0
A41: =IF(COUNTRY_INFO!A41=0," ",COUNTRY_INFO!A41) -> Mali | B41: =IF(COUNTRY_INFO!B41=0," ",COUNTRY_INFO!B41) -> Koulikoro | C41: =IF(COUNTRY_INFO!C41=0," ",COUNTRY_INFO!C41) -> Nara | D41: =IF(OR(COUNTRY_INFO!$T$9:$T$1000="T2 (PZQ)",COUNTRY_INFO!$U$9:$U$1000="T2 (PZQ)"), "T2 (PZQ)", " ") ->  | I41: 0 | M41: 0
A42: =IF(COUNTRY_INFO!A42=0," ",COUNTRY_INFO!A42) -> Mali | B42: =IF(COUNTRY_INFO!B42=0," ",COUNTRY_INFO!B42) -> Koulikoro | C42: =IF(COUNTRY_INFO!C42=0," ",COUNTRY_INFO!C42) -> Ouelessebougou | D42: =IF(OR(COUNTRY_INFO!$T$9:$T$1000="T2 (PZQ)",COUNTRY_INFO!$U$9:$U$1000="T2 (PZQ)"), "T2 (PZQ)", " ") ->  | I42: 0 | M42: 0
A43: =IF(COUNTRY_INFO!A43=0," ",COUNTRY_INFO!A43) -> Mali | B43: =IF(COUNTRY_INFO!B43=0," ",COUNTRY_INFO!B43) -> Mopti | C43: =IF(COUNTRY_INFO!C43=0," ",COUNTRY_INFO!C43) -> Bandiagara | D43: =IF(OR(COUNTRY_INFO!$T$9:$T$1000="T2 (PZQ)",COUNTRY_INFO!$U$9:$U$1000="T2 (PZQ)"), "T2 (PZQ)", " ") ->  | I43: 0 | M43: 0
A44: =IF(COUNTRY_INFO!A44=0," ",COUNTRY_INFO!A44) -> Mali | B44: =IF(COUNTRY_INFO!B44=0," ",COUNTRY_INFO!B44) -> Mopti | C44: =IF(COUNTRY_INFO!C44=0," ",COUNTRY_INFO!C44) -> Bankass | D44: =IF(OR(COUNTRY_INFO!$T$9:$T$1000="T2 (PZQ)",COUNTRY_INFO!$U$9:$U$1000="T2 (PZQ)"), "T2 (PZQ)", " ") ->  | I44: 0 | M44: 0
A45: =IF(COUNTRY_INFO!A45=0," ",COUNTRY_INFO!A45) -> Mali | B45: =IF(COUNTRY_INFO!B45=0," ",COUNTRY_INFO!B45) -> Mopti | C45: =IF(COUNTRY_INFO!C45=0," ",COUNTRY_INFO!C45) -> Djenne | D45: =IF(OR(COUNTRY_INFO!$T$9:$T$1000="T2 (PZQ)",COUNTRY_INFO!$U$9:$U$1000="T2 (PZQ)"), "T2 (PZQ)", " ") ->  | I45: 0 | M45: 0
A46: =IF(COUNTRY_INFO!A46=0," ",COUNTRY_INFO!A46) -> Mali | B46: =IF(COUNTRY_INFO!B46=0," ",COUNTRY_INFO!B46) -> Mopti | C46: =IF(COUNTRY_INFO!C46=0," ",COUNTRY_INFO!C46) -> Douentza | D46: =IF(OR(COUNTRY_INFO!$T$9:$T$1000="T2 (PZQ)",COUNTRY_INFO!$U$9:$U$1000="T2 (PZQ)"), "T2 (PZQ)", " ") -> T2 (PZQ) | E46: Mai 2017 | G46: 90077 | I46: 90077 | K46: 86325 | M46: 86325 | O46: 95.83467478 | Q46: 95.83467478
A47: =IF(COUNTRY_INFO!A47=0," ",COUNTRY_INFO!A47) -> Mali | B47: =IF(COUNTRY_INFO!B47=0," ",COUNTRY_INFO!B47) -> Mopti | C47: =IF(COUNTRY_INFO!C47=0," ",COUNTRY_INFO!C47) -> Koro | D47: =IF(OR(COUNTRY_INFO!$T$9:$T$1000="T2 (PZQ)",COUNTRY_INFO!$U$9:$U$1000="T2 (PZQ)"), "T2 (PZQ)", " ") ->  | I47: 0 | M47: 0
A48: =IF(COUNTRY_INFO!A48=0," ",COUNTRY_INFO!A48) -> Mali | B48: =IF(COUNTRY_INFO!B48=0," ",COUNTRY_INFO!B48) -> Mopti | C48: =IF(COUNTRY_INFO!C48=0," ",COUNTRY_INFO!C48) -> Mopti | D48: =IF(OR(COUNTRY_INFO!$T$9:$T$1000="T2 (PZQ)",COUNTRY_INFO!$U$9:$U$1000="T2 (PZQ)"), "T2 (PZQ)", " ") ->  | I48: 0 | M48: 0
A49: =IF(COUNTRY_INFO!A49=0," ",COUNTRY_INFO!A49) -> Mali | B49: =IF(COUNTRY_INFO!B49=0," ",COUNTRY_INFO!B49) -> Mopti | C49: =IF(COUNTRY_INFO!C49=0," ",COUNTRY_INFO!C49) -> Teninkou | D49: =IF(OR(COUNTRY_INFO!$T$9:$T$1000="T2 (PZQ)",COUNTRY_INFO!$U$9:$U$1000="T2 (PZQ)"), "T2 (PZQ)", " ") -> T2 (PZQ) | E49: Mai 2017 | G49: 59486 | I49: 59486 | K49: 47771 | M49: 47771 | O49: 80.30629056 | Q49: 80.30629056
A50: =IF(COUNTRY_INFO!A50=0," ",COUNTRY_INFO!A50) -> Mali | B50: =IF(COUNTRY_INFO!B50=0," ",COUNTRY_INFO!B50) -> Mopti | C50: =IF(COUNTRY_INFO!C50=0," ",COUNTRY_INFO!C50) -> Youwarou | D50: =IF(OR(COUNTRY_INFO!$T$9:$T$1000="T2 (PZQ)",COUNTRY_INFO!$U$9:$U$1000="T2 (PZQ)"), "T2 (PZQ)", " ") -> T2 (PZQ) | E50: Mai 2017 | G50: 38812 | I50: 38812 | K50: 42093 | M50: 42093 | O50: 108.4535711 | Q50: 108.4535711
A51: =IF(COUNTRY_INFO!A51=0," ",COUNTRY_INFO!A51) -> Mali | B51: =IF(COUNTRY_INFO!B51=0," ",COUNTRY_INFO!B51) -> Segou | C51: =IF(COUNTRY_INFO!C51=0," ",COUNTRY_INFO!C51) -> Barouéli | D51: =IF(OR(COUNTRY_INFO!$T$9:$T$1000="T2 (PZQ)",COUNTRY_INFO!$U$9:$U$1000="T2 (PZQ)"), "T2 (PZQ)", " ") ->  | I51: 0 | M51: 0
A52: =IF(COUNTRY_INFO!A52=0," ",COUNTRY_INFO!A52) -> Mali | B52: =IF(COUNTRY_INFO!B52=0," ",COUNTRY_INFO!B52) -> Segou | C52: =IF(COUNTRY_INFO!C52=0," ",COUNTRY_INFO!C52) -> Bla | D52: =IF(OR(COUNTRY_INFO!$T$9:$T$1000="T2 (PZQ)",COUNTRY_INFO!$U$9:$U$1000="T2 (PZQ)"), "T2 (PZQ)", " ") ->  | I52: 0 | M52: 0
A53: =IF(COUNTRY_INFO!A53=0," ",COUNTRY_INFO!A53) -> Mali | B53: =IF(COUNTRY_INFO!B53=0," ",COUNTRY_INFO!B53) -> Segou | C53: =IF(COUNTRY_INFO!C53=0," ",COUNTRY_INFO!C53) -> Macina | D53: =IF(OR(COUNTRY_INFO!$T$9:$T$1000="T2 (PZQ)",COUNTRY_INFO!$U$9:$U$1000="T2 (PZQ)"), "T2 (PZQ)", " ") ->  | I53: 0 | M53: 0
A54: =IF(COUNTRY_INFO!A54=0," ",COUNTRY_INFO!A54) -> Mali | B54: =IF(COUNTRY_INFO!B54=0," ",COUNTRY_INFO!B54) -> Segou | C54: =IF(COUNTRY_INFO!C54=0," ",COUNTRY_INFO!C54) -> Markala | D54: =IF(OR(COUNTRY_INFO!$T$9:$T$1000="T2 (PZQ)",COUNTRY_INFO!$U$9:$U$1000="T2 (PZQ)"), "T2 (PZQ)", " ") ->  | I54: 0 | M54: 0
A55: =IF(COUNTRY_INFO!A55=0," ",COUNTRY_INFO!A55) -> Mali | B55: =IF(COUNTRY_INFO!B55=0," ",COUNTRY_INFO!B55) -> Segou | C55: =IF(COUNTRY_INFO!C55=0," ",COUNTRY_INFO!C55) -> Niono | D55: =IF(OR(COUNTRY_INFO!$T$9:$T$1000="T2 (PZQ)",COUNTRY_INFO!$U$9:$U$1000="T2 (PZQ)"), "T2 (PZQ)", " ") ->  | I55: 0 | M55: 0
A56: =IF(COUNTRY_INFO!A56=0," ",COUNTRY_INFO!A56) -> Mali | B56: =IF(COUNTRY_INFO!B56=0," ",COUNTRY_INFO!B56) -> Segou | C56: =IF(COUNTRY_INFO!C56=0," ",COUNTRY_INFO!C56) -> San | D56: =IF(OR(COUNTRY_INFO!$T$9:$T$1000="T2 (PZQ)",COUNTRY_INFO!$U$9:$U$1000="T2 (PZQ)"), "T2 (PZQ)", " ") ->  | I56: 0 | M56: 0
A57: =IF(COUNTRY_INFO!A57=0," ",COUNTRY_INFO!A57) -> Mali | B57: =IF(COUNTRY_INFO!B57=0," ",COUNTRY_INFO!B57) -> Segou | C57: =IF(COUNTRY_INFO!C57=0," ",COUNTRY_INFO!C57) -> Segou | D57: =IF(OR(COUNTRY_INFO!$T$9:$T$1000="T2 (PZQ)",COUNTRY_INFO!$U$9:$U$1000="T2 (PZQ)"), "T2 (PZQ)", " ") ->  | I57: 0 | M57: 0
A58: =IF(COUNTRY_INFO!A58=0," ",COUNTRY_INFO!A58) -> Mali | B58: =IF(COUNTRY_INFO!B58=0," ",COUNTRY_INFO!B58) -> Segou | C58: =IF(COUNTRY_INFO!C58=0," ",COUNTRY_INFO!C58) -> Tominian | D58: =IF(OR(COUNTRY_INFO!$T$9:$T$1000="T2 (PZQ)",COUNTRY_INFO!$U$9:$U$1000="T2 (PZQ)"), "T2 (PZQ)", " ") ->  | I58: 0 | M58: 0
A59: =IF(COUNTRY_INFO!A59=0," ",COUNTRY_INFO!A59) -> Mali | B59: =IF(COUNTRY_INFO!B59=0," ",COUNTRY_INFO!B59) -> Sikasso | C59: =IF(COUNTRY_INFO!C59=0," ",COUNTRY_INFO!C59) -> Bougouni | D59: =IF(OR(COUNTRY_INFO!$T$9:$T$1000="T2 (PZQ)",COUNTRY_INFO!$U$9:$U$1000="T2 (PZQ)"), "T2 (PZQ)", " ") ->  | I59: 0 | M59: 0
A60: =IF(COUNTRY_INFO!A60=0," ",COUNTRY_INFO!A60) -> Mali | B60: =IF(COUNTRY_INFO!B60=0," ",COUNTRY_INFO!B60) -> Sikasso | C60: =IF(COUNTRY_INFO!C60=0," ",COUNTRY_INFO!C60) -> Kadiolo | D60: =IF(OR(COUNTRY_INFO!$T$9:$T$1000="T2 (PZQ)",COUNTRY_INFO!$U$9:$U$1000="T2 (PZQ)"), "T2 (PZQ)", " ") ->  | I60: 0 | M60: 0
A61: =IF(COUNTRY_INFO!A61=0," ",COUNTRY_INFO!A61) -> Mali | B61: =IF(COUNTRY_INFO!B61=0," ",COUNTRY_INFO!B61) -> Sikasso | C61: =IF(COUNTRY_INFO!C61=0," ",COUNTRY_INFO!C61) -> Kignan | D61: =IF(OR(COUNTRY_INFO!$T$9:$T$1000="T2 (PZQ)",COUNTRY_INFO!$U$9:$U$1000="T2 (PZQ)"), "T2 (PZQ)", " ") ->  | I61: 0 | M61: 0
A62: =IF(COUNTRY_INFO!A62=0," ",COUNTRY_INFO!A62) -> Mali | B62: =IF(COUNTRY_INFO!B62=0," ",COUNTRY_INFO!B62) -> Sikasso | C62: =IF(COUNTRY_INFO!C62=0," ",COUNTRY_INFO!C62) -> Kolondieba | D62: =IF(OR(COUNTRY_INFO!$T$9:$T$1000="T2 (PZQ)",COUNTRY_INFO!$U$9:$U$1000="T2 (PZQ)"), "T2 (PZQ)", " ") ->  | I62: 0 | M62: 0
A63: =IF(COUNTRY_INFO!A63=0," ",COUNTRY_INFO!A63) -> Mali | B63: =IF(COUNTRY_INFO!B63=0," ",COUNTRY_INFO!B63) -> Sikasso | C63: =IF(COUNTRY_INFO!C63=0," ",COUNTRY_INFO!C63) -> Koutiala | D63: =IF(OR(COUNTRY_INFO!$T$9:$T$1000="T2 (PZQ)",COUNTRY_INFO!$U$9:$U$1000="T2 (PZQ)"), "T2 (PZQ)", " ") ->  | I63: 0 | M63: 0
A64: =IF(COUNTRY_INFO!A64=0," ",COUNTRY_INFO!A64) -> Mali | B64: =IF(COUNTRY_INFO!B64=0," ",COUNTRY_INFO!B64) -> Sikasso | C64: =IF(COUNTRY_INFO!C64=0," ",COUNTRY_INFO!C64) -> Niena | D64: =IF(OR(COUNTRY_INFO!$T$9:$T$1000="T2 (PZQ)",COUNTRY_INFO!$U$9:$U$1000="T2 (PZQ)"), "T2 (PZQ)", " ") ->  | I64: 0 | M64: 0
A65: =IF(COUNTRY_INFO!A65=0," ",COUNTRY_INFO!A65) -> Mali | B65: =IF(COUNTRY_INFO!B65=0," ",COUNTRY_INFO!B65) -> Sikasso | C65: =IF(COUNTRY_INFO!C65=0," ",COUNTRY_INFO!C65) -> Sélingué | D65: =IF(OR(COUNTRY_INFO!$T$9:$T$1000="T2 (PZQ)",COUNTRY_INFO!$U$9:$U$1000="T2 (PZQ)"), "T2 (PZQ)", " ") ->  | I65: 0 | M65: 0
A66: =IF(COUNTRY_INFO!A66=0," ",COUNTRY_INFO!A66) -> Mali | B66: =IF(COUNTRY_INFO!B66=0," ",COUNTRY_INFO!B66) -> Sikasso | C66: =IF(COUNTRY_INFO!C66=0," ",COUNTRY_INFO!C66) -> Sikasso | D66: =IF(OR(COUNTRY_INFO!$T$9:$T$1000="T2 (PZQ)",COUNTRY_INFO!$U$9:$U$1000="T2 (PZQ)"), "T2 (PZQ)", " ") ->  | I66: 0 | M66: 0
A67: =IF(COUNTRY_INFO!A67=0," ",COUNTRY_INFO!A67) -> Mali | B67: =IF(COUNTRY_INFO!B67=0," ",COUNTRY_INFO!B67) -> Sikasso | C67: =IF(COUNTRY_INFO!C67=0," ",COUNTRY_INFO!C67) -> Yanfolila | D67: =IF(OR(COUNTRY_INFO!$T$9:$T$1000="T2 (PZQ)",COUNTRY_INFO!$U$9:$U$1000="T2 (PZQ)"), "T2 (PZQ)", " ") ->  | I67: 0 | M67: 0
A68: =IF(COUNTRY_INFO!A68=0," ",COUNTRY_INFO!A68) -> Mali | B68: =IF(COUNTRY_INFO!B68=0," ",COUNTRY_INFO!B68) -> Sikasso | C68: =IF(COUNTRY_INFO!C68=0," ",COUNTRY_INFO!C68) -> Yorosso | D68: =IF(OR(COUNTRY_INFO!$T$9:$T$1000="T2 (PZQ)",COUNTRY_INFO!$U$9:$U$1000="T2 (PZQ)"), "T2 (PZQ)", " ") ->  | I68: 0 | M68: 0
A69: =IF(COUNTRY_INFO!A69=0," ",COUNTRY_INFO!A69) -> Mali | B69: =IF(COUNTRY_INFO!B69=0," ",COUNTRY_INFO!B69) -> Tombouctou | C69: =IF(COUNTRY_INFO!C69=0," ",COUNTRY_INFO!C69) -> Diré | D69: =IF(OR(COUNTRY_INFO!$T$9:$T$1000="T2 (PZQ)",COUNTRY_INFO!$U$9:$U$1000="T2 (PZQ)"), "T2 (PZQ)", " ") ->  | I69: 0 | M69: 0
A70: =IF(COUNTRY_INFO!A70=0," ",COUNTRY_INFO!A70) -> Mali | B70: =IF(COUNTRY_INFO!B70=0," ",COUNTRY_INFO!B70) -> Tombouctou | C70: =IF(COUNTRY_INFO!C70=0," ",COUNTRY_INFO!C70) -> Goundam | D70: =IF(OR(COUNTRY_INFO!$T$9:$T$1000="T2 (PZQ)",COUNTRY_INFO!$U$9:$U$1000="T2 (PZQ)"), "T2 (PZQ)", " ") ->  | I70: 0 | M70: 0
A71: =IF(COUNTRY_INFO!A71=0," ",COUNTRY_INFO!A71) -> Mali | B71: =IF(COUNTRY_INFO!B71=0," ",COUNTRY_INFO!B71) -> Tombouctou | C71: =IF(COUNTRY_INFO!C71=0," ",COUNTRY_INFO!C71) -> Gourma-Rharous | D71: =IF(OR(COUNTRY_INFO!$T$9:$T$1000="T2 (PZQ)",COUNTRY_INFO!$U$9:$U$1000="T2 (PZQ)"), "T2 (PZQ)", " ") ->  | I71: 0 | M71: 0
A72: =IF(COUNTRY_INFO!A72=0," ",COUNTRY_INFO!A72) -> Mali | B72: =IF(COUNTRY_INFO!B72=0," ",COUNTRY_INFO!B72) -> Tombouctou | C72: =IF(COUNTRY_INFO!C72=0," ",COUNTRY_INFO!C72) -> Niafunké | D72: =IF(OR(COUNTRY_INFO!$T$9:$T$1000="T2 (PZQ)",COUNTRY_INFO!$U$9:$U$1000="T2 (PZQ)"), "T2 (PZQ)", " ") ->  | I72: 0 | M72: 0
A73: =IF(COUNTRY_INFO!A73=0," ",COUNTRY_INFO!A73) -> Mali | B73: =IF(COUNTRY_INFO!B73=0," ",COUNTRY_INFO!B73) -> Tombouctou | C73: =IF(COUNTRY_INFO!C73=0," ",COUNTRY_INFO!C73) -> Tombouctou | D73: =IF(OR(COUNTRY_INFO!$T$9:$T$1000="T2 (PZQ)",COUNTRY_INFO!$U$9:$U$1000="T2 (PZQ)"), "T2 (PZQ)", " ") ->  | I73: 0 | M73: 0

Sheet T3_R1
A1: T 3 - Albendazole (ALB) ou Mebendazole (MBD) - Tournée 1
A2: Structure administrative, population nécessitant une chimioprévention par groupe d'âge, population traitée par groupe d'âge et couverture
A4: TOTAL | G4: =SUM(G$9:G$1000) -> 0 | H4: 1878912 | I4: 0 | J4: 1878912 | K4: 0 | L4: 1957288 | M4: 0 | N4: 1957288 | O4: =IF(G4<>0, IF(K4/G4*100=0, "-", K4/G4*100), " ") ->  | P4: =IF(H4<>0, IF(L4/H4*100=0, "-", L4/H4*100), " ") -> 104.1713502 | Q4: =IF(I4<>0, IF(M4/I4*100=0, "-", M4/I4*100), " ") ->  | R4: =IF(J4<>0, IF(N4/J4*100=0, "-", N4/J4*100), " ") -> 104.1713502
A6: Structure administrative du pays | D6: Mise en oeuvre de la CP | E6: Médica-ment | F6: Date | G6: Population ciblée pour T3 | K6: Population traitée | O6: Couverture du Programme (%)
A7: Pays | B7: Région/Département | C7: District | G7: EAPréS | H7: EAS | I7: Adultes | J7: Total | K7: EAPréS | L7: EAS | M7: Adultes | N7: Total | O7: EAPréS | P7: EAS | Q7: Adultes | R7: Total
A9: =IF(COUNTRY_INFO!A9=0," ",COUNTRY_INFO!A9) -> Mali | B9: =IF(COUNTRY_INFO!B9=0," ",COUNTRY_INFO!B9) -> Bamako | C9: =IF(COUNTRY_INFO!C9=0," ",COUNTRY_INFO!C9) -> Commune 1 | D9: =IF(OR(COUNTRY_INFO!$T$9:$T$1000="T3 (ALB/MBD)",COUNTRY_INFO!$U$9:$U$1000="T3 (ALB/MBD)"), "T3 (ALB/MBD)", " ") -> T3 (ALB/MBD) | E9: ALB | H9: 122097 | J9: =SUM(G9:I9) -> 122097 | L9: 138145 | N9: =SUM(K9:M9) -> 138145 | O9: =IF(G9<>0, IF(K9/G9*100=0, "-", K9/G9*100), " ") ->  | P9: 113.1436481 | R9: 113.1436481
A10: =IF(COUNTRY_INFO!A10=0," ",COUNTRY_INFO!A10) -> Mali | B10: =IF(COUNTRY_INFO!B10=0," ",COUNTRY_INFO!B10) -> Bamako | C10: =IF(COUNTRY_INFO!C10=0," ",COUNTRY_INFO!C10) -> Commune 2 | D10: =IF(OR(COUNTRY_INFO!$T$9:$T$1000="T3 (ALB/MBD)",COUNTRY_INFO!$U$9:$U$1000="T3 (ALB/MBD)"), "T3 (ALB/MBD)", " ") -> T3 (ALB/MBD) | E10: ALB | H10: 58173 | J10: =SUM(G10:I10) -> 58173 | L10: 66324 | N10: =SUM(K10:M10) -> 66324 | O10: =IF(G10<>0, IF(K10/G10*100=0, "-", K10/G10*100), " ") ->  | P10: =IF(H10<>0, IF(L10/H10*100=0, "-", L10/H10*100), " ") -> 114.0116549 | Q10: =IF(I10<>0, IF(M10/I10*100=0, "-", M10/I10*100), " ") ->  | R10: =IF(J10<>0, IF(N10/J10*100=0, "-", N10/J10*100), " ") -> 114.0116549
A11: =IF(COUNTRY_INFO!A11=0," ",COUNTRY_INFO!A11) -> Mali | B11: =IF(COUNTRY_INFO!B11=0," ",COUNTRY_INFO!B11) -> Bamako | C11: =IF(COUNTRY_INFO!C11=0," ",COUNTRY_INFO!C11) -> Commune 3 | D11: =IF(OR(COUNTRY_INFO!$T$9:$T$1000="T3 (ALB/MBD)",COUNTRY_INFO!$U$9:$U$1000="T3 (ALB/MBD)"), "T3 (ALB/MBD)", " ") -> T3 (ALB/MBD) | E11: ALB | H11: 46913 | J11: 46913 | L11: 54455 | N11: 54455 | P11: 116.0765673 | R11: 116.0765673
A12: =IF(COUNTRY_INFO!A12=0," ",COUNTRY_INFO!A12) -> Mali | B12: =IF(COUNTRY_INFO!B12=0," ",COUNTRY_INFO!B12) -> Bamako | C12: =IF(COUNTRY_INFO!C12=0," ",COUNTRY_INFO!C12) -> Commune 4 | D12: =IF(OR(COUNTRY_INFO!$T$9:$T$1000="T3 (ALB/MBD)",COUNTRY_INFO!$U$9:$U$1000="T3 (ALB/MBD)"), "T3 (ALB/MBD)", " ") ->  | J12: 0 | N12: 0
A13: =IF(COUNTRY_INFO!A13=0," ",COUNTRY_INFO!A13) -> Mali | B13: =IF(COUNTRY_INFO!B13=0," ",COUNTRY_INFO!B13) -> Bamako | C13: =IF(COUNTRY_INFO!C13=0," ",COUNTRY_INFO!C13) -> Commune 5 | D13: =IF(OR(COUNTRY_INFO!$T$9:$T$1000="T3 (ALB/MBD)",COUNTRY_INFO!$U$9:$U$1000="T3 (ALB/MBD)"), "T3 (ALB/MBD)", " ") ->  | J13: 0 | N13: 0
A14: =IF(COUNTRY_INFO!A14=0," ",COUNTRY_INFO!A14) -> Mali | B14: =IF(COUNTRY_INFO!B14=0," ",COUNTRY_INFO!B14) -> Bamako | C14: =IF(COUNTRY_INFO!C14=0," ",COUNTRY_INFO!C14) -> Commune 6 | D14: =IF(OR(COUNTRY_INFO!$T$9:$T$1000="T3 (ALB/MBD)",COUNTRY_INFO!$U$9:$U$1000="T3 (ALB/MBD)"), "T3 (ALB/MBD)", " ") -> T3 (ALB/MBD) | E14: ALB | H14: 171190 | J14: 171190 | L14: 212126 | N14: 212126 | P14: 123.9126117 | R14: 123.9126117
A15: =IF(COUNTRY_INFO!A15=0," ",COUNTRY_INFO!A15) -> Mali | B15: =IF(COUNTRY_INFO!B15=0," ",COUNTRY_INFO!B15) -> Gao | C15: =IF(COUNTRY_INFO!C15=0," ",COUNTRY_INFO!C15) -> Ansongo | D15: =IF(OR(COUNTRY_INFO!$T$9:$T$1000="T3 (ALB/MBD)",COUNTRY_INFO!$U$9:$U$1000="T3 (ALB/MBD)"), "T3 (ALB/MBD)", " ") ->  | J15: 0 | N15: 0
A16: =IF(COUNTRY_INFO!A16=0," ",COUNTRY_INFO!A16) -> Mali | B16: =IF(COUNTRY_INFO!B16=0," ",COUNTRY_INFO!B16) -> Gao | C16: =IF(COUNTRY_INFO!C16=0," ",COUNTRY_INFO!C16) -> Bourem | D16: =IF(OR(COUNTRY_INFO!$T$9:$T$1000="T3 (ALB/MBD)",COUNTRY_INFO!$U$9:$U$1000="T3 (ALB/MBD)"), "T3 (ALB/MBD)", " ") ->  | J16: 0 | N16: 0
A17: =IF(COUNTRY_INFO!A17=0," ",COUNTRY_INFO!A17) -> Mali | B17: =IF(COUNTRY_INFO!B17=0," ",COUNTRY_INFO!B17) -> Gao | C17: =IF(COUNTRY_INFO!C17=0," ",COUNTRY_INFO!C17) -> Gao | D17: =IF(OR(COUNTRY_INFO!$T$9:$T$1000="T3 (ALB/MBD)",COUNTRY_INFO!$U$9:$U$1000="T3 (ALB/MBD)"), "T3 (ALB/MBD)", " ") ->  | J17: 0 | N17: 0
A18: =IF(COUNTRY_INFO!A18=0," ",COUNTRY_INFO!A18) -> Mali | B18: =IF(COUNTRY_INFO!B18=0," ",COUNTRY_INFO!B18) -> Gao | C18: =IF(COUNTRY_INFO!C18=0," ",COUNTRY_INFO!C18) -> Menaka | D18: =IF(OR(COUNTRY_INFO!$T$9:$T$1000="T3 (ALB/MBD)",COUNTRY_INFO!$U$9:$U$1000="T3 (ALB/MBD)"), "T3 (ALB/MBD)", " ") ->  | J18: 0 | N18: 0
A19: =IF(COUNTRY_INFO!A19=0," ",COUNTRY_INFO!A19) -> Mali | B19: =IF(COUNTRY_INFO!B19=0," ",COUNTRY_INFO!B19) -> Kayes | C19: =IF(COUNTRY_INFO!C19=0," ",COUNTRY_INFO!C19) -> Bafoulabe | D19: =IF(OR(COUNTRY_INFO!$T$9:$T$1000="T3 (ALB/MBD)",COUNTRY_INFO!$U$9:$U$1000="T3 (ALB/MBD)"), "T3 (ALB/MBD)", " ") ->  | J19: 0 | N19: 0
A20: =IF(COUNTRY_INFO!A20=0," ",COUNTRY_INFO!A20) -> Mali | B20: =IF(COUNTRY_INFO!B20=0," ",COUNTRY_INFO!B20) -> Kayes | C20: =IF(COUNTRY_INFO!C20=0," ",COUNTRY_INFO!C20) -> Diema | D20: =IF(OR(COUNTRY_INFO!$T$9:$T$1000="T3 (ALB/MBD)",COUNTRY_INFO!$U$9:$U$1000="T3 (ALB/MBD)"), "T3 (ALB/MBD)", " ") ->  | J20: 0 | N20: 0
A21: =IF(COUNTRY_INFO!A21=0," ",COUNTRY_INFO!A21) -> Mali | B21: =IF(COUNTRY_INFO!B21=0," ",COUNTRY_INFO!B21) -> Kayes | C21: =IF(COUNTRY_INFO!C21=0," ",COUNTRY_INFO!C21) -> Kayes | D21: =IF(OR(COUNTRY_INFO!$T$9:$T$1000="T3 (ALB/MBD)",COUNTRY_INFO!$U$9:$U$1000="T3 (ALB/MBD)"), "T3 (ALB/MBD)", " ") ->  | J21: 0 | N21: 0
A22: =IF(COUNTRY_INFO!A22=0," ",COUNTRY_INFO!A22) -> Mali | B22: =IF(COUNTRY_INFO!B22=0," ",COUNTRY_INFO!B22) -> Kayes | C22: =IF(COUNTRY_INFO!C22=0," ",COUNTRY_INFO!C22) -> Kenieba | D22: =IF(OR(COUNTRY_INFO!$T$9:$T$1000="T3 (ALB/MBD)",COUNTRY_INFO!$U$9:$U$1000="T3 (ALB/MBD)"), "T3 (ALB/MBD)", " ") ->  | J22: 0 | N22: 0
A23: =IF(COUNTRY_INFO!A23=0," ",COUNTRY_INFO!A23) -> Mali | B23: =IF(COUNTRY_INFO!B23=0," ",COUNTRY_INFO!B23) -> Kayes | C23: =IF(COUNTRY_INFO!C23=0," ",COUNTRY_INFO!C23) -> Kita | D23: =IF(OR(COUNTRY_INFO!$T$9:$T$1000="T3 (ALB/MBD)",COUNTRY_INFO!$U$9:$U$1000="T3 (ALB/MBD)"), "T3 (ALB/MBD)", " ") ->  | J23: 0 | N23: 0
A24: =IF(COUNTRY_INFO!A24=0," ",COUNTRY_INFO!A24) -> Mali | B24: =IF(COUNTRY_INFO!B24=0," ",COUNTRY_INFO!B24) -> Kayes | C24: =IF(COUNTRY_INFO!C24=0," ",COUNTRY_INFO!C24) -> Sagabari | D24: =IF(OR(COUNTRY_INFO!$T$9:$T$1000="T3 (ALB/MBD)",COUNTRY_INFO!$U$9:$U$1000="T3 (ALB/MBD)"), "T3 (ALB/MBD)", " ") ->  | J24: 0 | N24: 0
A25: =IF(COUNTRY_INFO!A25=0," ",COUNTRY_INFO!A25) -> Mali | B25: =IF(COUNTRY_INFO!B25=0," ",COUNTRY_INFO!B25) -> Kayes | C25: =IF(COUNTRY_INFO!C25=0," ",COUNTRY_INFO!C25) -> Sefeto | D25: =IF(OR(COUNTRY_INFO!$T$9:$T$1000="T3 (ALB/MBD)",COUNTRY_INFO!$U$9:$U$1000="T3 (ALB/MBD)"), "T3 (ALB/MBD)", " ") ->  | J25: 0 | N25: 0
A26: =IF(COUNTRY_INFO!A26=0," ",COUNTRY_INFO!A26) -> Mali | B26: =IF(COUNTRY_INFO!B26=0," ",COUNTRY_INFO!B26) -> Kayes | C26: =IF(COUNTRY_INFO!C26=0," ",COUNTRY_INFO!C26) -> Nioro | D26: =IF(OR(COUNTRY_INFO!$T$9:$T$1000="T3 (ALB/MBD)",COUNTRY_INFO!$U$9:$U$1000="T3 (ALB/MBD)"), "T3 (ALB/MBD)", " ") ->  | J26: 0 | N26: 0
A27: =IF(COUNTRY_INFO!A27=0," ",COUNTRY_INFO!A27) -> Mali | B27: =IF(COUNTRY_INFO!B27=0," ",COUNTRY_INFO!B27) -> Kayes | C27: =IF(COUNTRY_INFO!C27=0," ",COUNTRY_INFO!C27) -> Oussoubidiagna | D27: =IF(OR(COUNTRY_INFO!$T$9:$T$1000="T3 (ALB/MBD)",COUNTRY_INFO!$U$9:$U$1000="T3 (ALB/MBD)"), "T3 (ALB/MBD)", " ") -> T3 (ALB/MBD) | E27: ALB | H27: 38231 | J27: 38231 | L27: 47461 | N27: 47461 | P27: 124.1427114 | R27: 124.1427114
A28: =IF(COUNTRY_INFO!A28=0," ",COUNTRY_INFO!A28) -> Mali | B28: =IF(COUNTRY_INFO!B28=0," ",COUNTRY_INFO!B28) -> Kayes | C28: =IF(COUNTRY_INFO!C28=0," ",COUNTRY_INFO!C28) -> Yelimane | D28: =IF(OR(COUNTRY_INFO!$T$9:$T$1000="T3 (ALB/MBD)",COUNTRY_INFO!$U$9:$U$1000="T3 (ALB/MBD)"), "T3 (ALB/MBD)", " ") -> T3 (ALB/MBD) | E28: ALB | H28: 64806 | J28: 64806 | N28: 0 | P28: - | R28: -
A29: =IF(COUNTRY_INFO!A29=0," ",COUNTRY_INFO!A29) -> Mali | B29: =IF(COUNTRY_INFO!B29=0," ",COUNTRY_INFO!B29) -> Kidal | C29: =IF(COUNTRY_INFO!C29=0," ",COUNTRY_INFO!C29) -> Abeibara | D29: =IF(OR(COUNTRY_INFO!$T$9:$T$1000="T3 (ALB/MBD)",COUNTRY_INFO!$U$9:$U$1000="T3 (ALB/MBD)"), "T3 (ALB/MBD)", " ") ->  | J29: 0 | N29: 0
A30: =IF(COUNTRY_INFO!A30=0," ",COUNTRY_INFO!A30) -> Mali | B30: =IF(COUNTRY_INFO!B30=0," ",COUNTRY_INFO!B30) -> Kidal | C30: =IF(COUNTRY_INFO!C30=0," ",COUNTRY_INFO!C30) -> Kidal | D30: =IF(OR(COUNTRY_INFO!$T$9:$T$1000="T3 (ALB/MBD)",COUNTRY_INFO!$U$9:$U$1000="T3 (ALB/MBD)"), "T3 (ALB/MBD)", " ") ->  | J30: 0 | N30: 0
A31: =IF(COUNTRY_INFO!A31=0," ",COUNTRY_INFO!A31) -> Mali | B31: =IF(COUNTRY_INFO!B31=0," ",COUNTRY_INFO!B31) -> Kidal | C31: =IF(COUNTRY_INFO!C31=0," ",COUNTRY_INFO!C31) -> Tessalit | D31: =IF(OR(COUNTRY_INFO!$T$9:$T$1000="T3 (ALB/MBD)",COUNTRY_INFO!$U$9:$U$1000="T3 (ALB/MBD)"), "T3 (ALB/MBD)", " ") ->  | J31: 0 | N31: 0
A32: =IF(COUNTRY_INFO!A32=0," ",COUNTRY_INFO!A32) -> Mali | B32: =IF(COUNTRY_INFO!B32=0," ",COUNTRY_INFO!B32) -> Kidal | C32: =IF(COUNTRY_INFO!C32=0," ",COUNTRY_INFO!C32) -> Tin-Essako | D32: =IF(OR(COUNTRY_INFO!$T$9:$T$1000="T3 (ALB/MBD)",COUNTRY_INFO!$U$9:$U$1000="T3 (ALB/MBD)"), "T3 (ALB/MBD)", " ") ->  | J32: 0 | N32: 0
A33: =IF(COUNTRY_INFO!A33=0," ",COUNTRY_INFO!A33) -> Mali | B33: =IF(COUNTRY_INFO!B33=0," ",COUNTRY_INFO!B33) -> Koulikoro | C33: =IF(COUNTRY_INFO!C33=0," ",COUNTRY_INFO!C33) -> Banamba | D33: =IF(OR(COUNTRY_INFO!$T$9:$T$1000="T3 (ALB/MBD)",COUNTRY_INFO!$U$9:$U$1000="T3 (ALB/MBD)"), "T3 (ALB/MBD)", " ") ->  | J33: 0 | N33: 0
A34: =IF(COUNTRY_INFO!A34=0," ",COUNTRY_INFO!A34) -> Mali | B34: =IF(COUNTRY_INFO!B34=0," ",COUNTRY_INFO!B34) -> Koulikoro | C34: =IF(COUNTRY_INFO!C34=0," ",COUNTRY_INFO!C34) -> Dioila | D34: =IF(OR(COUNTRY_INFO!$T$9:$T$1000="T3 (ALB/MBD)",COUNTRY_INFO!$U$9:$U$1000="T3 (ALB/MBD)"), "T3 (ALB/MBD)", " ") ->  | J34: 0 | N34: 0
A35: =IF(COUNTRY_INFO!A35=0," ",COUNTRY_INFO!A35) -> Mali | B35: =IF(COUNTRY_INFO!B35=0," ",COUNTRY_INFO!B35) -> Koulikoro | C35: =IF(COUNTRY_INFO!C35=0," ",COUNTRY_INFO!C35) -> Fana | D35: =IF(OR(COUNTRY_INFO!$T$9:$T$1000="T3 (ALB/MBD)",COUNTRY_INFO!$U$9:$U$1000="T3 (ALB/MBD)"), "T3 (ALB/MBD)", " ") ->  | J35: 0 | N35: 0
A36: =IF(COUNTRY_INFO!A36=0," ",COUNTRY_INFO!A36) -> Mali | B36: =IF(COUNTRY_INFO!B36=0," ",COUNTRY_INFO!B36) -> Koulikoro | C36: =IF(COUNTRY_INFO!C36=0," ",COUNTRY_INFO!C36) -> Kalabancoro | D36: =IF(OR(COUNTRY_INFO!$T$9:$T$1000="T3 (ALB/MBD)",COUNTRY_INFO!$U$9:$U$1000="T3 (ALB/MBD)"), "T3 (ALB/MBD)", " ") ->  | J36: 0 | N36: 0
A37: =IF(COUNTRY_INFO!A37=0," ",COUNTRY_INFO!A37) -> Mali | B37: =IF(COUNTRY_INFO!B37=0," ",COUNTRY_INFO!B37) -> Koulikoro | C37: =IF(COUNTRY_INFO!C37=0," ",COUNTRY_INFO!C37) -> Kangaba | D37: =IF(OR(COUNTRY_INFO!$T$9:$T$1000="T3 (ALB/MBD)",COUNTRY_INFO!$U$9:$U$1000="T3 (ALB/MBD)"), "T3 (ALB/MBD)", " ") ->  | J37: 0 | N37: 0
A38: =IF(COUNTRY_INFO!A38=0," ",COUNTRY_INFO!A38) -> Mali | B38: =IF(COUNTRY_INFO!B38=0," ",COUNTRY_INFO!B38) -> Koulikoro | C38: =IF(COUNTRY_INFO!C38=0," ",COUNTRY_INFO!C38) -> Kati | D38: =IF(OR(COUNTRY_INFO!$T$9:$T$1000="T3 (ALB/MBD)",COUNTRY_INFO!$U$9:$U$1000="T3 (ALB/MBD)"), "T3 (ALB/MBD)", " ") -> T3 (ALB/MBD) | E38: ALB | H38: 166841 | J38: 166841 | L38: 199256 | N38: 199256 | P38: 119.4286776 | R38: 119.4286776
A39: =IF(COUNTRY_INFO!A39=0," ",COUNTRY_INFO!A39) -> Mali | B39: =IF(COUNTRY_INFO!B39=0," ",COUNTRY_INFO!B39) -> Koulikoro | C39: =IF(COUNTRY_INFO!C39=0," ",COUNTRY_INFO!C39) -> Kolokani | D39: =IF(OR(COUNTRY_INFO!$T$9:$T$1000="T3 (ALB/MBD)",COUNTRY_INFO!$U$9:$U$1000="T3 (ALB/MBD)"), "T3 (ALB/MBD)", " ") ->  | J39: 0 | N39: 0
A40: =IF(COUNTRY_INFO!A40=0," ",COUNTRY_INFO!A40) -> Mali | B40: =IF(COUNTRY_INFO!B40=0," ",COUNTRY_INFO!B40) -> Koulikoro | C40: =IF(COUNTRY_INFO!C40=0," ",COUNTRY_INFO!C40) -> Koulikoro | D40: =IF(OR(COUNTRY_INFO!$T$9:$T$1000="T3 (ALB/MBD)",COUNTRY_INFO!$U$9:$U$1000="T3 (ALB/MBD)"), "T3 (ALB/MBD)", " ") ->  | J40: 0 | N40: 0
A41: =IF(COUNTRY_INFO!A41=0," ",COUNTRY_INFO!A41) -> Mali | B41: =IF(COUNTRY_INFO!B41=0," ",COUNTRY_INFO!B41) -> Koulikoro | C41: =IF(COUNTRY_INFO!C41=0," ",COUNTRY_INFO!C41) -> Nara | D41: =IF(OR(COUNTRY_INFO!$T$9:$T$1000="T3 (ALB/MBD)",COUNTRY_INFO!$U$9:$U$1000="T3 (ALB/MBD)"), "T3 (ALB/MBD)", " ") -> T3 (ALB/MBD) | E41: ALB | H41: 88539 | J41: 88539 | L41: 88424 | N41: 88424 | P41: 99.87011374 | R41: 99.87011374
A42: =IF(COUNTRY_INFO!A42=0," ",COUNTRY_INFO!A42) -> Mali | B42: =IF(COUNTRY_INFO!B42=0," ",COUNTRY_INFO!B42) -> Koulikoro | C42: =IF(COUNTRY_INFO!C42=0," ",COUNTRY_INFO!C42) -> Ouelessebougou | D42: =IF(OR(COUNTRY_INFO!$T$9:$T$1000="T3 (ALB/MBD)",COUNTRY_INFO!$U$9:$U$1000="T3 (ALB/MBD)"), "T3 (ALB/MBD)", " ") ->  | J42: 0 | N42: 0
A43: =IF(COUNTRY_INFO!A43=0," ",COUNTRY_INFO!A43) -> Mali | B43: =IF(COUNTRY_INFO!B43=0," ",COUNTRY_INFO!B43) -> Mopti | C43: =IF(COUNTRY_INFO!C43=0," ",COUNTRY_INFO!C43) -> Bandiagara | D43: =IF(OR(COUNTRY_INFO!$T$9:$T$1000="T3 (ALB/MBD)",COUNTRY_INFO!$U$9:$U$1000="T3 (ALB/MBD)"), "T3 (ALB/MBD)", " ") ->  | J43: 0 | N43: 0
A44: =IF(COUNTRY_INFO!A44=0," ",COUNTRY_INFO!A44) -> Mali | B44: =IF(COUNTRY_INFO!B44=0," ",COUNTRY_INFO!B44) -> Mopti | C44: =IF(COUNTRY_INFO!C44=0," ",COUNTRY_INFO!C44) -> Bankass | D44: =IF(OR(COUNTRY_INFO!$T$9:$T$1000="T3 (ALB/MBD)",COUNTRY_INFO!$U$9:$U$1000="T3 (ALB/MBD)"), "T3 (ALB/MBD)", " ") ->  | J44: 0 | N44: 0
A45: =IF(COUNTRY_INFO!A45=0," ",COUNTRY_INFO!A45) -> Mali | B45: =IF(COUNTRY_INFO!B45=0," ",COUNTRY_INFO!B45) -> Mopti | C45: =IF(COUNTRY_INFO!C45=0," ",COUNTRY_INFO!C45) -> Djenne | D45: =IF(OR(COUNTRY_INFO!$T$9:$T$1000="T3 (ALB/MBD)",COUNTRY_INFO!$U$9:$U$1000="T3 (ALB/MBD)"), "T3 (ALB/MBD)", " ") -> T3 (ALB/MBD) | E45: ALB | H45: 75342 | J45: 75342 | L45: 73502 | N45: 73502 | P45: 97.55780308 | R45: 97.55780308
A46: =IF(COUNTRY_INFO!A46=0," ",COUNTRY_INFO!A46) -> Mali | B46: =IF(COUNTRY_INFO!B46=0," ",COUNTRY_INFO!B46) -> Mopti | C46: =IF(COUNTRY_INFO!C46=0," ",COUNTRY_INFO!C46) -> Douentza | D46: =IF(OR(COUNTRY_INFO!$T$9:$T$1000="T3 (ALB/MBD)",COUNTRY_INFO!$U$9:$U$1000="T3 (ALB/MBD)"), "T3 (ALB/MBD)", " ") ->  | J46: 0 | N46: 0
A47: =IF(COUNTRY_INFO!A47=0," ",COUNTRY_INFO!A47) -> Mali | B47: =IF(COUNTRY_INFO!B47=0," ",COUNTRY_INFO!B47) -> Mopti | C47: =IF(COUNTRY_INFO!C47=0," ",COUNTRY_INFO!C47) -> Koro | D47: =IF(OR(COUNTRY_INFO!$T$9:$T$1000="T3 (ALB/MBD)",COUNTRY_INFO!$U$9:$U$1000="T3 (ALB/MBD)"), "T3 (ALB/MBD)", " ") -> T3 (ALB/MBD) | E47: ALB | H47: 131572 | J47: 131572 | L47: 129424 | N47: 129424 | P47: 98.3674338 | R47: 98.3674338
A48: =IF(COUNTRY_INFO!A48=0," ",COUNTRY_INFO!A48) -> Mali | B48: =IF(COUNTRY_INFO!B48=0," ",COUNTRY_INFO!B48) -> Mopti | C48: =IF(COUNTRY_INFO!C48=0," ",COUNTRY_INFO!C48) -> Mopti | D48: =IF(OR(COUNTRY_INFO!$T$9:$T$1000="T3 (ALB/MBD)",COUNTRY_INFO!$U$9:$U$1000="T3 (ALB/MBD)"), "T3 (ALB/MBD)", " ") ->  | J48: 0 | N48: 0
A49: =IF(COUNTRY_INFO!A49=0," ",COUNTRY_INFO!A49) -> Mali | B49: =IF(COUNTRY_INFO!B49=0," ",COUNTRY_INFO!B49) -> Mopti | C49: =IF(COUNTRY_INFO!C49=0," ",COUNTRY_INFO!C49) -> Teninkou | D49: =IF(OR(COUNTRY_INFO!$T$9:$T$1000="T3 (ALB/MBD)",COUNTRY_INFO!$U$9:$U$1000="T3 (ALB/MBD)"), "T3 (ALB/MBD)", " ") ->  | J49: 0 | N49: 0
A50: =IF(COUNTRY_INFO!A50=0," ",COUNTRY_INFO!A50) -> Mali | B50: =IF(COUNTRY_INFO!B50=0," ",COUNTRY_INFO!B50) -> Mopti | C50: =IF(COUNTRY_INFO!C50=0," ",COUNTRY_INFO!C50) -> Youwarou | D50: =IF(OR(COUNTRY_INFO!$T$9:$T$1000="T3 (ALB/MBD)",COUNTRY_INFO!$U$9:$U$1000="T3 (ALB/MBD)"), "T3 (ALB/MBD)", " ") ->  | J50: 0 | N50: 0
A51: =IF(COUNTRY_INFO!A51=0," ",COUNTRY_INFO!A51) -> Mali | B51: =IF(COUNTRY_INFO!B51=0," ",COUNTRY_INFO!B51) -> Segou | C51: =IF(COUNTRY_INFO!C51=0," ",COUNTRY_INFO!C51) -> Barouéli | D51: =IF(OR(COUNTRY_INFO!$T$9:$T$1000="T3 (ALB/MBD)",COUNTRY_INFO!$U$9:$U$1000="T3 (ALB/MBD)"), "T3 (ALB/MBD)", " ") ->  | J51: 0 | N51: 0
A52: =IF(COUNTRY_INFO!A52=0," ",COUNTRY_INFO!A52) -> Mali | B52: =IF(COUNTRY_INFO!B52=0," ",COUNTRY_INFO!B52) -> Segou | C52: =IF(COUNTRY_INFO!C52=0," ",COUNTRY_INFO!C52) -> Bla | D52: =IF(OR(COUNTRY_INFO!$T$9:$T$1000="T3 (ALB/MBD)",COUNTRY_INFO!$U$9:$U$1000="T3 (ALB/MBD)"), "T3 (ALB/MBD)", " ") ->  | J52: 0 | N52: 0
A53: =IF(COUNTRY_INFO!A53=0," ",COUNTRY_INFO!A53) -> Mali | B53: =IF(COUNTRY_INFO!B53=0," ",COUNTRY_INFO!B53) -> Segou | C53: =IF(COUNTRY_INFO!C53=0," ",COUNTRY_INFO!C53) -> Macina | D53: =IF(OR(COUNTRY_INFO!$T$9:$T$1000="T3 (ALB/MBD)",COUNTRY_INFO!$U$9:$U$1000="T3 (ALB/MBD)"), "T3 (ALB/MBD)", " ") ->  | J53: 0 | N53: 0
A54: =IF(COUNTRY_INFO!A54=0," ",COUNTRY_INFO!A54) -> Mali | B54: =IF(COUNTRY_INFO!B54=0," ",COUNTRY_INFO!B54) -> Segou | C54: =IF(COUNTRY_INFO!C54=0," ",COUNTRY_INFO!C54) -> Markala | D54: =IF(OR(COUNTRY_INFO!$T$9:$T$1000="T3 (ALB/MBD)",COUNTRY_INFO!$U$9:$U$1000="T3 (ALB/MBD)"), "T3 (ALB/MBD)", " ") ->  | J54: 0 | N54: 0
A55: =IF(COUNTRY_INFO!A55=0," ",COUNTRY_INFO!A55) -> Mali | B55: =IF(COUNTRY_INFO!B55=0," ",COUNTRY_INFO!B55) -> Segou | C55: =IF(COUNTRY_INFO!C55=0," ",COUNTRY_INFO!C55) -> Niono | D55: =IF(OR(COUNTRY_INFO!$T$9:$T$1000="T3 (ALB/MBD)",COUNTRY_INFO!$U$9:$U$1000="T3 (ALB/MBD)"), "T3 (ALB/MBD)", " ") ->  | J55: 0 | N55: 0
A56: =IF(COUNTRY_INFO!A56=0," ",COUNTRY_INFO!A56) -> Mali | B56: =IF(COUNTRY_INFO!B56=0," ",COUNTRY_INFO!B56) -> Segou | C56: =IF(COUNTRY_INFO!C56=0," ",COUNTRY_INFO!C56) -> San | D56: =IF(OR(COUNTRY_INFO!$T$9:$T$1000="T3 (ALB/MBD)",COUNTRY_INFO!$U$9:$U$1000="T3 (ALB/MBD)"), "T3 (ALB/MBD)", " ") -> T3 (ALB/MBD) | E56: ALB | H56: 121943 | J56: 121943 | L56: 120435 | N56: 120435 | P56: 98.76335665 | R56: 98.76335665
A57: =IF(COUNTRY_INFO!A57=0," ",COUNTRY_INFO!A57) -> Mali | B57: =IF(COUNTRY_INFO!B57=0," ",COUNTRY_INFO!B57) -> Segou | C57: =IF(COUNTRY_INFO!C57=0," ",COUNTRY_INFO!C57) -> Segou | D57: =IF(OR(COUNTRY_INFO!$T$9:$T$1000="T3 (ALB/MBD)",COUNTRY_INFO!$U$9:$U$1000="T3 (ALB/MBD)"), "T3 (ALB/MBD)", " ") ->  | J57: 0 | N57: 0
A58: =IF(COUNTRY_INFO!A58=0," ",COUNTRY_INFO!A58) -> Mali | B58: =IF(COUNTRY_INFO!B58=0," ",COUNTRY_INFO!B58) -> Segou | C58: =IF(COUNTRY_INFO!C58=0," ",COUNTRY_INFO!C58) -> Tominian | D58: =IF(OR(COUNTRY_INFO!$T$9:$T$1000="T3 (ALB/MBD)",COUNTRY_INFO!$U$9:$U$1000="T3 (ALB/MBD)"), "T3 (ALB/MBD)", " ") ->  | J58: 0 | N58: 0
A59: =IF(COUNTRY_INFO!A59=0," ",COUNTRY_INFO!A59) -> Mali | B59: =IF(COUNTRY_INFO!B59=0," ",COUNTRY_INFO!B59) -> Sikasso | C59: =IF(COUNTRY_INFO!C59=0," ",COUNTRY_INFO!C59) -> Bougouni | D59: =IF(OR(COUNTRY_INFO!$T$9:$T$1000="T3 (ALB/MBD)",COUNTRY_INFO!$U$9:$U$1000="T3 (ALB/MBD)"), "T3 (ALB/MBD)", " ") ->  | J59: 0 | N59: 0
A60: =IF(COUNTRY_INFO!A60=0," ",COUNTRY_INFO!A60) -> Mali | B60: =IF(COUNTRY_INFO!B60=0," ",COUNTRY_INFO!B60) -> Sikasso | C60: =IF(COUNTRY_INFO!C60=0," ",COUNTRY_INFO!C60) -> Kadiolo | D60: =IF(OR(COUNTRY_INFO!$T$9:$T$1000="T3 (ALB/MBD)",COUNTRY_INFO!$U$9:$U$1000="T3 (ALB/MBD)"), "T3 (ALB/MBD)", " ") -> T3 (ALB/MBD) | E60: ALB | H60: 87775 | J60: 87775 | L60: 85829 | N60: 85829 | P60: 97.78296782 | R60: 97.78296782
A61: =IF(COUNTRY_INFO!A61=0," ",COUNTRY_INFO!A61) -> Mali | B61: =IF(COUNTRY_INFO!B61=0," ",COUNTRY_INFO!B61) -> Sikasso | C61: =IF(COUNTRY_INFO!C61=0," ",COUNTRY_INFO!C61) -> Kignan | D61: =IF(OR(COUNTRY_INFO!$T$9:$T$1000="T3 (ALB/MBD)",COUNTRY_INFO!$U$9:$U$1000="T3 (ALB/MBD)"), "T3 (ALB/MBD)", " ") -> T3 (ALB/MBD) | E61: ALB | H61: 42504 | J61: 42504 | L61: 44329 | N61: 44329 | P61: 104.2937135 | R61: 104.2937135
A62: =IF(COUNTRY_INFO!A62=0," ",COUNTRY_INFO!A62) -> Mali | B62: =IF(COUNTRY_INFO!B62=0," ",COUNTRY_INFO!B62) -> Sikasso | C62: =IF(COUNTRY_INFO!C62=0," ",COUNTRY_INFO!C62) -> Kolondieba | D62: =IF(OR(COUNTRY_INFO!$T$9:$T$1000="T3 (ALB/MBD)",COUNTRY_INFO!$U$9:$U$1000="T3 (ALB/MBD)"), "T3 (ALB/MBD)", " ") -> T3 (ALB/MBD) | E62: ALB | H62: 74192 | J62: 74192 | L62: 87627 | N62: 87627 | P62: 118.1084214 | R62: 118.1084214
A63: =IF(COUNTRY_INFO!A63=0," ",COUNTRY_INFO!A63) -> Mali | B63: =IF(COUNTRY_INFO!B63=0," ",COUNTRY_INFO!B63) -> Sikasso | C63: =IF(COUNTRY_INFO!C63=0," ",COUNTRY_INFO!C63) -> Koutiala | D63: =IF(OR(COUNTRY_INFO!$T$9:$T$1000="T3 (ALB/MBD)",COUNTRY_INFO!$U$9:$U$1000="T3 (ALB/MBD)"), "T3 (ALB/MBD)", " ") -> T3 (ALB/MBD) | E63: ALB | H63: 210638 | J63: 210638 | L63: 213355 | N63: 213355 | P63: 101.2898907 | R63: 101.2898907
A64: =IF(COUNTRY_INFO!A64=0," ",COUNTRY_INFO!A64) -> Mali | B64: =IF(COUNTRY_INFO!B64=0," ",COUNTRY_INFO!B64) -> Sikasso | C64: =IF(COUNTRY_INFO!C64=0," ",COUNTRY_INFO!C64) -> Niena | D64: =IF(OR(COUNTRY_INFO!$T$9:$T$1000="T3 (ALB/MBD)",COUNTRY_INFO!$U$9:$U$1000="T3 (ALB/MBD)"), "T3 (ALB/MBD)", " ") ->  | J64: 0 | N64: 0
A65: =IF(COUNTRY_INFO!A65=0," ",COUNTRY_INFO!A65) -> Mali | B65: =IF(COUNTRY_INFO!B65=0," ",COUNTRY_INFO!B65) -> Sikasso | C65: =IF(COUNTRY_INFO!C65=0," ",COUNTRY_INFO!C65) -> Sélingué | D65: =IF(OR(COUNTRY_INFO!$T$9:$T$1000="T3 (ALB/MBD)",COUNTRY_INFO!$U$9:$U$1000="T3 (ALB/MBD)"), "T3 (ALB/MBD)", " ") -> T3 (ALB/MBD) | E65: ALB | H65: 30249 | J65: 30249 | L65: 26134 | N65: 26134 | P65: 86.3962445 | R65: 86.3962445
A66: =IF(COUNTRY_INFO!A66=0," ",COUNTRY_INFO!A66) -> Mali | B66: =IF(COUNTRY_INFO!B66=0," ",COUNTRY_INFO!B66) -> Sikasso | C66: =IF(COUNTRY_INFO!C66=0," ",COUNTRY_INFO!C66) -> Sikasso | D66: =IF(OR(COUNTRY_INFO!$T$9:$T$1000="T3 (ALB/MBD)",COUNTRY_INFO!$U$9:$U$1000="T3 (ALB/MBD)"), "T3 (ALB/MBD)", " ") -> T3 (ALB/MBD) | E66: ALB | H66: 223147 | J66: 223147 | L66: 246297 | N66: 246297 | P66: 110.3743272 | R66: 110.3743272
A67: =IF(COUNTRY_INFO!A67=0," ",COUNTRY_INFO!A67) -> Mali | B67: =IF(COUNTRY_INFO!B67=0," ",COUNTRY_INFO!B67) -> Sikasso | C67: =IF(COUNTRY_INFO!C67=0," ",COUNTRY_INFO!C67) -> Yanfolila | D67: =IF(OR(COUNTRY_INFO!$T$9:$T$1000="T3 (ALB/MBD)",COUNTRY_INFO!$U$9:$U$1000="T3 (ALB/MBD)"), "T3 (ALB/MBD)", " ") -> T3 (ALB/MBD) | E67: ALB | H67: 47313 | J67: 47313 | L67: 47437 | N67: 47437 | P67: 100.2620844 | R67: 100.2620844
A68: =IF(COUNTRY_INFO!A68=0," ",COUNTRY_INFO!A68) -> Mali | B68: =IF(COUNTRY_INFO!B68=0," ",COUNTRY_INFO!B68) -> Sikasso | C68: =IF(COUNTRY_INFO!C68=0," ",COUNTRY_INFO!C68) -> Yorosso | D68: =IF(OR(COUNTRY_INFO!$T$9:$T$1000="T3 (ALB/MBD)",COUNTRY_INFO!$U$9:$U$1000="T3 (ALB/MBD)"), "T3 (ALB/MBD)", " ") -> T3 (ALB/MBD) | E68: ALB | H68: 77447 | J68: 77447 | L68: 76728 | N68: 76728 | P68: 99.07162317 | R68: 99.07162317
A69: =IF(COUNTRY_INFO!A69=0," ",COUNTRY_INFO!A69) -> Mali | B69: =IF(COUNTRY_INFO!B69=0," ",COUNTRY_INFO!B69) -> Tombouctou | C69: =IF(COUNTRY_INFO!C69=0," ",COUNTRY_INFO!C69) -> Diré | D69: =IF(OR(COUNTRY_INFO!$T$9:$T$1000="T3 (ALB/MBD)",COUNTRY_INFO!$U$9:$U$1000="T3 (ALB/MBD)"), "T3 (ALB/MBD)", " ") ->  | J69: 0 | N69: 0
A70: =IF(COUNTRY_INFO!A70=0," ",COUNTRY_INFO!A70) -> Mali | B70: =IF(COUNTRY_INFO!B70=0," ",COUNTRY_INFO!B70) -> Tombouctou | C70: =IF(COUNTRY_INFO!C70=0," ",COUNTRY_INFO!C70) -> Goundam | D70: =IF(OR(COUNTRY_INFO!$T$9:$T$1000="T3 (ALB/MBD)",COUNTRY_INFO!$U$9:$U$1000="T3 (ALB/MBD)"), "T3 (ALB/MBD)", " ") ->  | J70: 0 | N70: 0
A71: =IF(COUNTRY_INFO!A71=0," ",COUNTRY_INFO!A71) -> Mali | B71: =IF(COUNTRY_INFO!B71=0," ",COUNTRY_INFO!B71) -> Tombouctou | C71: =IF(COUNTRY_INFO!C71=0," ",COUNTRY_INFO!C71) -> Gourma-Rharous | D71: =IF(OR(COUNTRY_INFO!$T$9:$T$1000="T3 (ALB/MBD)",COUNTRY_INFO!$U$9:$U$1000="T3 (ALB/MBD)"), "T3 (ALB/MBD)", " ") ->  | J71: 0 | N71: 0
A72: =IF(COUNTRY_INFO!A72=0," ",COUNTRY_INFO!A72) -> Mali | B72: =IF(COUNTRY_INFO!B72=0," ",COUNTRY_INFO!B72) -> Tombouctou | C72: =IF(COUNTRY_INFO!C72=0," ",COUNTRY_INFO!C72) -> Niafunké | D72: =IF(OR(COUNTRY_INFO!$T$9:$T$1000="T3 (ALB/MBD)",COUNTRY_INFO!$U$9:$U$1000="T3 (ALB/MBD)"), "T3 (ALB/MBD)", " ") ->  | J72: 0 | N72: 0
A73: =IF(COUNTRY_INFO!A73=0," ",COUNTRY_INFO!A73) -> Mali | B73: =IF(COUNTRY_INFO!B73=0," ",COUNTRY_INFO!B73) -> Tombouctou | C73: =IF(COUNTRY_INFO!C73=0," ",COUNTRY_INFO!C73) -> Tombouctou | D73: =IF(OR(COUNTRY_INFO!$T$9:$T$1000="T3 (ALB/MBD)",COUNTRY_INFO!$U$9:$U$1000="T3 (ALB/MBD)"), "T3 (ALB/MBD)", " ") ->  | J73: 0 | N73: 0

Sheet T3_R2
A1: T 3 - Albendazole (ALB) ou Mebendazole (MBD) - Tournée 2
A2: Structure administrative, population nécessitant une chimioprévention par groupe d'âge, population traitée par groupe d'âge et couverture
A4: TOTAL | G4: =SUM(G$9:G$1000) -> 0 | H4: 0 | I4: 0 | J4: 0 | K4: 0 | L4: 0 | M4: 0 | N4: 0 | O4: =IF(G4<>0, IF(K4/G4*100=0, "-", K4/G4*100), " ") ->  | P4: =IF(H4<>0, IF(L4/H4*100=0, "-", L4/H4*100), " ") ->  | Q4: =IF(I4<>0, IF(M4/I4*100=0, "-", M4/I4*100), " ") ->  | R4: =IF(J4<>0, IF(N4/J4*100=0, "-", N4/J4*100), " ") -> 
A6: Structure administrative du pays | D6: Mise en oeuvre de la CP | E6: Médica-ment | F6: Date | G6: Population ciblée pour T3 | K6: Population traitée | O6: Couverture du Programme (%)
A7: Pays | B7: Région/Département | C7: District | G7: EAPréS | H7: EAS | I7: Adultes | J7: Total | K7: EAPréS | L7: EAS | M7: Adultes | N7: Total | O7: EAPréS | P7: EAS | Q7: Adultes | R7: Total
A9: =IF(COUNTRY_INFO!A9=0," ",COUNTRY_INFO!A9) -> Mali | B9: =IF(COUNTRY_INFO!B9=0," ",COUNTRY_INFO!B9) -> Bamako | C9: =IF(COUNTRY_INFO!C9=0," ",COUNTRY_INFO!C9) -> Commune 1 | D9: =IF(AND(COUNTRY_INFO!$T$9:$T$1000="T3 (ALB/MBD)",COUNTRY_INFO!$U$9:$U$1000="T3 (ALB/MBD)"), "T3 (ALB/MBD)", " ") ->  | J9: =SUM(G9:I9) -> 0 | N9: =SUM(K9:M9) -> 0 | O9: =IF(G9<>0, IF(K9/G9*100=0, "-", K9/G9*100), " ") -> 
A10: =IF(COUNTRY_INFO!A10=0," ",COUNTRY_INFO!A10) -> Mali | B10: =IF(COUNTRY_INFO!B10=0," ",COUNTRY_INFO!B10) -> Bamako | C10: =IF(COUNTRY_INFO!C10=0," ",COUNTRY_INFO!C10) -> Commune 2 | D10: =IF(AND(COUNTRY_INFO!$T$9:$T$1000="T3 (ALB/MBD)",COUNTRY_INFO!$U$9:$U$1000="T3 (ALB/MBD)"), "T3 (ALB/MBD)", " ") ->  | J10: =SUM(G10:I10) -> 0 | N10: =SUM(K10:M10) -> 0 | O10: =IF(G10<>0, IF(K10/G10*100=0, "-", K10/G10*100), " ") ->  | P10: =IF(H10<>0, IF(L10/H10*100=0, "-", L10/H10*100), " ") ->  | Q10: =IF(I10<>0, IF(M10/I10*100=0, "-", M10/I10*100), " ") ->  | R10: =IF(J10<>0, IF(N10/J10*100=0, "-", N10/J10*100), " ") -> 
A11: =IF(COUNTRY_INFO!A11=0," ",COUNTRY_INFO!A11) -> Mali | B11: =IF(COUNTRY_INFO!B11=0," ",COUNTRY_INFO!B11) -> Bamako | C11: =IF(COUNTRY_INFO!C11=0," ",COUNTRY_INFO!C11) -> Commune 3 | D11: =IF(AND(COUNTRY_INFO!$T$9:$T$1000="T3 (ALB/MBD)",COUNTRY_INFO!$U$9:$U$1000="T3 (ALB/MBD)"), "T3 (ALB/MBD)", " ") ->  | J11: 0 | N11: 0
A12: =IF(COUNTRY_INFO!A12=0," ",COUNTRY_INFO!A12) -> Mali | B12: =IF(COUNTRY_INFO!B12=0," ",COUNTRY_INFO!B12) -> Bamako | C12: =IF(COUNTRY_INFO!C12=0," ",COUNTRY_INFO!C12) -> Commune 4 | D12: =IF(AND(COUNTRY_INFO!$T$9:$T$1000="T3 (ALB/MBD)",COUNTRY_INFO!$U$9:$U$1000="T3 (ALB/MBD)"), "T3 (ALB/MBD)", " ") ->  | J12: 0 | N12: 0
A13: =IF(COUNTRY_INFO!A13=0," ",COUNTRY_INFO!A13) -> Mali | B13: =IF(COUNTRY_INFO!B13=0," ",COUNTRY_INFO!B13) -> Bamako | C13: =IF(COUNTRY_INFO!C13=0," ",COUNTRY_INFO!C13) -> Commune 5 | D13: =IF(AND(COUNTRY_INFO!$T$9:$T$1000="T3 (ALB/MBD)",COUNTRY_INFO!$U$9:$U$1000="T3 (ALB/MBD)"), "T3 (ALB/MBD)", " ") ->  | J13: 0 | N13: 0
A14: =IF(COUNTRY_INFO!A14=0," ",COUNTRY_INFO!A14) -> Mali | B14: =IF(COUNTRY_INFO!B14=0," ",COUNTRY_INFO!B14) -> Bamako | C14: =IF(COUNTRY_INFO!C14=0," ",COUNTRY_INFO!C14) -> Commune 6 | D14: =IF(AND(COUNTRY_INFO!$T$9:$T$1000="T3 (ALB/MBD)",COUNTRY_INFO!$U$9:$U$1000="T3 (ALB/MBD)"), "T3 (ALB/MBD)", " ") ->  | J14: 0 | N14: 0
A15: =IF(COUNTRY_INFO!A15=0," ",COUNTRY_INFO!A15) -> Mali | B15: =IF(COUNTRY_INFO!B15=0," ",COUNTRY_INFO!B15) -> Gao | C15: =IF(COUNTRY_INFO!C15=0," ",COUNTRY_INFO!C15) -> Ansongo | D15: =IF(AND(COUNTRY_INFO!$T$9:$T$1000="T3 (ALB/MBD)",COUNTRY_INFO!$U$9:$U$1000="T3 (ALB/MBD)"), "T3 (ALB/MBD)", " ") ->  | J15: 0 | N15: 0
A16: =IF(COUNTRY_INFO!A16=0," ",COUNTRY_INFO!A16) -> Mali | B16: =IF(COUNTRY_INFO!B16=0," ",COUNTRY_INFO!B16) -> Gao | C16: =IF(COUNTRY_INFO!C16=0," ",COUNTRY_INFO!C16) -> Bourem | D16: =IF(AND(COUNTRY_INFO!$T$9:$T$1000="T3 (ALB/MBD)",COUNTRY_INFO!$U$9:$U$1000="T3 (ALB/MBD)"), "T3 (ALB/MBD)", " ") ->  | J16: 0 | N16: 0
A17: =IF(COUNTRY_INFO!A17=0," ",COUNTRY_INFO!A17) -> Mali | B17: =IF(COUNTRY_INFO!B17=0," ",COUNTRY_INFO!B17) -> Gao | C17: =IF(COUNTRY_INFO!C17=0," ",COUNTRY_INFO!C17) -> Gao | D17: =IF(AND(COUNTRY_INFO!$T$9:$T$1000="T3 (ALB/MBD)",COUNTRY_INFO!$U$9:$U$1000="T3 (ALB/MBD)"), "T3 (ALB/MBD)", " ") ->  | J17: 0 | N17: 0
A18: =IF(COUNTRY_INFO!A18=0," ",COUNTRY_INFO!A18) -> Mali | B18: =IF(COUNTRY_INFO!B18=0," ",COUNTRY_INFO!B18) -> Gao | C18: =IF(COUNTRY_INFO!C18=0," ",COUNTRY_INFO!C18) -> Menaka | D18: =IF(AND(COUNTRY_INFO!$T$9:$T$1000="T3 (ALB/MBD)",COUNTRY_INFO!$U$9:$U$1000="T3 (ALB/MBD)"), "T3 (ALB/MBD)", " ") ->  | J18: 0 | N18: 0
A19: =IF(COUNTRY_INFO!A19=0," ",COUNTRY_INFO!A19) -> Mali | B19: =IF(COUNTRY_INFO!B19=0," ",COUNTRY_INFO!B19) -> Kayes | C19: =IF(COUNTRY_INFO!C19=0," ",COUNTRY_INFO!C19) -> Bafoulabe | D19: =IF(AND(COUNTRY_INFO!$T$9:$T$1000="T3 (ALB/MBD)",COUNTRY_INFO!$U$9:$U$1000="T3 (ALB/MBD)"), "T3 (ALB/MBD)", " ") ->  | J19: 0 | N19: 0
A20: =IF(COUNTRY_INFO!A20=0," ",COUNTRY_INFO!A20) -> Mali | B20: =IF(COUNTRY_INFO!B20=0," ",COUNTRY_INFO!B20) -> Kayes | C20: =IF(COUNTRY_INFO!C20=0," ",COUNTRY_INFO!C20) -> Diema | D20: =IF(AND(COUNTRY_INFO!$T$9:$T$1000="T3 (ALB/MBD)",COUNTRY_INFO!$U$9:$U$1000="T3 (ALB/MBD)"), "T3 (ALB/MBD)", " ") ->  | J20: 0 | N20: 0
A21: =IF(COUNTRY_INFO!A21=0," ",COUNTRY_INFO!A21) -> Mali | B21: =IF(COUNTRY_INFO!B21=0," ",COUNTRY_INFO!B21) -> Kayes | C21: =IF(COUNTRY_INFO!C21=0," ",COUNTRY_INFO!C21) -> Kayes | D21: =IF(AND(COUNTRY_INFO!$T$9:$T$1000="T3 (ALB/MBD)",COUNTRY_INFO!$U$9:$U$1000="T3 (ALB/MBD)"), "T3 (ALB/MBD)", " ") ->  | J21: 0 | N21: 0
A22: =IF(COUNTRY_INFO!A22=0," ",COUNTRY_INFO!A22) -> Mali | B22: =IF(COUNTRY_INFO!B22=0," ",COUNTRY_INFO!B22) -> Kayes | C22: =IF(COUNTRY_INFO!C22=0," ",COUNTRY_INFO!C22) -> Kenieba | D22: =IF(AND(COUNTRY_INFO!$T$9:$T$1000="T3 (ALB/MBD)",COUNTRY_INFO!$U$9:$U$1000="T3 (ALB/MBD)"), "T3 (ALB/MBD)", " ") ->  | J22: 0 | N22: 0
A23: =IF(COUNTRY_INFO!A23=0," ",COUNTRY_INFO!A23) -> Mali | B23: =IF(COUNTRY_INFO!B23=0," ",COUNTRY_INFO!B23) -> Kayes | C23: =IF(COUNTRY_INFO!C23=0," ",COUNTRY_INFO!C23) -> Kita | D23: =IF(AND(COUNTRY_INFO!$T$9:$T$1000="T3 (ALB/MBD)",COUNTRY_INFO!$U$9:$U$1000="T3 (ALB/MBD)"), "T3 (ALB/MBD)", " ") ->  | J23: 0 | N23: 0
A24: =IF(COUNTRY_INFO!A24=0," ",COUNTRY_INFO!A24) -> Mali | B24: =IF(COUNTRY_INFO!B24=0," ",COUNTRY_INFO!B24) -> Kayes | C24: =IF(COUNTRY_INFO!C24=0," ",COUNTRY_INFO!C24) -> Sagabari | D24: =IF(AND(COUNTRY_INFO!$T$9:$T$1000="T3 (ALB/MBD)",COUNTRY_INFO!$U$9:$U$1000="T3 (ALB/MBD)"), "T3 (ALB/MBD)", " ") ->  | J24: 0 | N24: 0
A25: =IF(COUNTRY_INFO!A25=0," ",COUNTRY_INFO!A25) -> Mali | B25: =IF(COUNTRY_INFO!B25=0," ",COUNTRY_INFO!B25) -> Kayes | C25: =IF(COUNTRY_INFO!C25=0," ",COUNTRY_INFO!C25) -> Sefeto | D25: =IF(AND(COUNTRY_INFO!$T$9:$T$1000="T3 (ALB/MBD)",COUNTRY_INFO!$U$9:$U$1000="T3 (ALB/MBD)"), "T3 (ALB/MBD)", " ") ->  | J25: 0 | N25: 0
A26: =IF(COUNTRY_INFO!A26=0," ",COUNTRY_INFO!A26) -> Mali | B26: =IF(COUNTRY_INFO!B26=0," ",COUNTRY_INFO!B26) -> Kayes | C26: =IF(COUNTRY_INFO!C26=0," ",COUNTRY_INFO!C26) -> Nioro | D26: =IF(AND(COUNTRY_INFO!$T$9:$T$1000="T3 (ALB/MBD)",COUNTRY_INFO!$U$9:$U$1000="T3 (ALB/MBD)"), "T3 (ALB/MBD)", " ") ->  | J26: 0 | N26: 0
A27: =IF(COUNTRY_INFO!A27=0," ",COUNTRY_INFO!A27) -> Mali | B27: =IF(COUNTRY_INFO!B27=0," ",COUNTRY_INFO!B27) -> Kayes | C27: =IF(COUNTRY_INFO!C27=0," ",COUNTRY_INFO!C27) -> Oussoubidiagna | D27: =IF(AND(COUNTRY_INFO!$T$9:$T$1000="T3 (ALB/MBD)",COUNTRY_INFO!$U$9:$U$1000="T3 (ALB/MBD)"), "T3 (ALB/MBD)", " ") ->  | J27: 0 | N27: 0
A28: =IF(COUNTRY_INFO!A28=0," ",COUNTRY_INFO!A28) -> Mali | B28: =IF(COUNTRY_INFO!B28=0," ",COUNTRY_INFO!B28) -> Kayes | C28: =IF(COUNTRY_INFO!C28=0," ",COUNTRY_INFO!C28) -> Yelimane | D28: =IF(AND(COUNTRY_INFO!$T$9:$T$1000="T3 (ALB/MBD)",COUNTRY_INFO!$U$9:$U$1000="T3 (ALB/MBD)"), "T3 (ALB/MBD)", " ") ->  | J28: 0 | N28: 0
A29: =IF(COUNTRY_INFO!A29=0," ",COUNTRY_INFO!A29) -> Mali | B29: =IF(COUNTRY_INFO!B29=0," ",COUNTRY_INFO!B29) -> Kidal | C29: =IF(COUNTRY_INFO!C29=0," ",COUNTRY_INFO!C29) -> Abeibara | D29: =IF(AND(COUNTRY_INFO!$T$9:$T$1000="T3 (ALB/MBD)",COUNTRY_INFO!$U$9:$U$1000="T3 (ALB/MBD)"), "T3 (ALB/MBD)", " ") ->  | J29: 0 | N29: 0
A30: =IF(COUNTRY_INFO!A30=0," ",COUNTRY_INFO!A30) -> Mali | B30: =IF(COUNTRY_INFO!B30=0," ",COUNTRY_INFO!B30) -> Kidal | C30: =IF(COUNTRY_INFO!C30=0," ",COUNTRY_INFO!C30) -> Kidal | D30: =IF(AND(COUNTRY_INFO!$T$9:$T$1000="T3 (ALB/MBD)",COUNTRY_INFO!$U$9:$U$1000="T3 (ALB/MBD)"), "T3 (ALB/MBD)", " ") ->  | J30: 0 | N30: 0
A31: =IF(COUNTRY_INFO!A31=0," ",COUNTRY_INFO!A31) -> Mali | B31: =IF(COUNTRY_INFO!B31=0," ",COUNTRY_INFO!B31) -> Kidal | C31: =IF(COUNTRY_INFO!C31=0," ",COUNTRY_INFO!C31) -> Tessalit | D31: =IF(AND(COUNTRY_INFO!$T$9:$T$1000="T3 (ALB/MBD)",COUNTRY_INFO!$U$9:$U$1000="T3 (ALB/MBD)"), "T3 (ALB/MBD)", " ") ->  | J31: 0 | N31: 0
A32: =IF(COUNTRY_INFO!A32=0," ",COUNTRY_INFO!A32) -> Mali | B32: =IF(COUNTRY_INFO!B32=0," ",COUNTRY_INFO!B32) -> Kidal | C32: =IF(COUNTRY_INFO!C32=0," ",COUNTRY_INFO!C32) -> Tin-Essako | D32: =IF(AND(COUNTRY_INFO!$T$9:$T$1000="T3 (ALB/MBD)",COUNTRY_INFO!$U$9:$U$1000="T3 (ALB/MBD)"), "T3 (ALB/MBD)", " ") ->  | J32: 0 | N32: 0
A33: =IF(COUNTRY_INFO!A33=0," ",COUNTRY_INFO!A33) -> Mali | B33: =IF(COUNTRY_INFO!B33=0," ",COUNTRY_INFO!B33) -> Koulikoro | C33: =IF(COUNTRY_INFO!C33=0," ",COUNTRY_INFO!C33) -> Banamba | D33: =IF(AND(COUNTRY_INFO!$T$9:$T$1000="T3 (ALB/MBD)",COUNTRY_INFO!$U$9:$U$1000="T3 (ALB/MBD)"), "T3 (ALB/MBD)", " ") ->  | J33: 0 | N33: 0
A34: =IF(COUNTRY_INFO!A34=0," ",COUNTRY_INFO!A34) -> Mali | B34: =IF(COUNTRY_INFO!B34=0," ",COUNTRY_INFO!B34) -> Koulikoro | C34: =IF(COUNTRY_INFO!C34=0," ",COUNTRY_INFO!C34) -> Dioila | D34: =IF(AND(COUNTRY_INFO!$T$9:$T$1000="T3 (ALB/MBD)",COUNTRY_INFO!$U$9:$U$1000="T3 (ALB/MBD)"), "T3 (ALB/MBD)", " ") ->  | J34: 0 | N34: 0
A35: =IF(COUNTRY_INFO!A35=0," ",COUNTRY_INFO!A35) -> Mali | B35: =IF(COUNTRY_INFO!B35=0," ",COUNTRY_INFO!B35) -> Koulikoro | C35: =IF(COUNTRY_INFO!C35=0," ",COUNTRY_INFO!C35) -> Fana | D35: =IF(AND(COUNTRY_INFO!$T$9:$T$1000="T3 (ALB/MBD)",COUNTRY_INFO!$U$9:$U$1000="T3 (ALB/MBD)"), "T3 (ALB/MBD)", " ") ->  | J35: 0 | N35: 0
A36: =IF(COUNTRY_INFO!A36=0," ",COUNTRY_INFO!A36) -> Mali | B36: =IF(COUNTRY_INFO!B36=0," ",COUNTRY_INFO!B36) -> Koulikoro | C36: =IF(COUNTRY_INFO!C36=0," ",COUNTRY_INFO!C36) -> Kalabancoro | D36: =IF(AND(COUNTRY_INFO!$T$9:$T$1000="T3 (ALB/MBD)",COUNTRY_INFO!$U$9:$U$1000="T3 (ALB/MBD)"), "T3 (ALB/MBD)", " ") ->  | J36: 0 | N36: 0
A37: =IF(COUNTRY_INFO!A37=0," ",COUNTRY_INFO!A37) -> Mali | B37: =IF(COUNTRY_INFO!B37=0," ",COUNTRY_INFO!B37) -> Koulikoro | C37: =IF(COUNTRY_INFO!C37=0," ",COUNTRY_INFO!C37) -> Kangaba | D37: =IF(AND(COUNTRY_INFO!$T$9:$T$1000="T3 (ALB/MBD)",COUNTRY_INFO!$U$9:$U$1000="T3 (ALB/MBD)"), "T3 (ALB/MBD)", " ") ->  | J37: 0 | N37: 0
A38: =IF(COUNTRY_INFO!A38=0," ",COUNTRY_INFO!A38) -> Mali | B38: =IF(COUNTRY_INFO!B38=0," ",COUNTRY_INFO!B38) -> Koulikoro | C38: =IF(COUNTRY_INFO!C38=0," ",COUNTRY_INFO!C38) -> Kati | D38: =IF(AND(COUNTRY_INFO!$T$9:$T$1000="T3 (ALB/MBD)",COUNTRY_INFO!$U$9:$U$1000="T3 (ALB/MBD)"), "T3 (ALB/MBD)", " ") ->  | J38: 0 | N38: 0
A39: =IF(COUNTRY_INFO!A39=0," ",COUNTRY_INFO!A39) -> Mali | B39: =IF(COUNTRY_INFO!B39=0," ",COUNTRY_INFO!B39) -> Koulikoro | C39: =IF(COUNTRY_INFO!C39=0," ",COUNTRY_INFO!C39) -> Kolokani | D39: =IF(AND(COUNTRY_INFO!$T$9:$T$1000="T3 (ALB/MBD)",COUNTRY_INFO!$U$9:$U$1000="T3 (ALB/MBD)"), "T3 (ALB/MBD)", " ") ->  | J39: 0 | N39: 0
A40: =IF(COUNTRY_INFO!A40=0," ",COUNTRY_INFO!A40) -> Mali | B40: =IF(COUNTRY_INFO!B40=0," ",COUNTRY_INFO!B40) -> Koulikoro | C40: =IF(COUNTRY_INFO!C40=0," ",COUNTRY_INFO!C40) -> Koulikoro | D40: =IF(AND(COUNTRY_INFO!$T$9:$T$1000="T3 (ALB/MBD)",COUNTRY_INFO!$U$9:$U$1000="T3 (ALB/MBD)"), "T3 (ALB/MBD)", " ") ->  | J40: 0 | N40: 0
A41: =IF(COUNTRY_INFO!A41=0," ",COUNTRY_INFO!A41) -> Mali | B41: =IF(COUNTRY_INFO!B41=0," ",COUNTRY_INFO!B41) -> Koulikoro | C41: =IF(COUNTRY_INFO!C41=0," ",COUNTRY_INFO!C41) -> Nara | D41: =IF(AND(COUNTRY_INFO!$T$9:$T$1000="T3 (ALB/MBD)",COUNTRY_INFO!$U$9:$U$1000="T3 (ALB/MBD)"), "T3 (ALB/MBD)", " ") ->  | J41: 0 | N41: 0
A42: =IF(COUNTRY_INFO!A42=0," ",COUNTRY_INFO!A42) -> Mali | B42: =IF(COUNTRY_INFO!B42=0," ",COUNTRY_INFO!B42) -> Koulikoro | C42: =IF(COUNTRY_INFO!C42=0," ",COUNTRY_INFO!C42) -> Ouelessebougou | D42: =IF(AND(COUNTRY_INFO!$T$9:$T$1000="T3 (ALB/MBD)",COUNTRY_INFO!$U$9:$U$1000="T3 (ALB/MBD)"), "T3 (ALB/MBD)", " ") ->  | J42: 0 | N42: 0
A43: =IF(COUNTRY_INFO!A43=0," ",COUNTRY_INFO!A43) -> Mali | B43: =IF(COUNTRY_INFO!B43=0," ",COUNTRY_INFO!B43) -> Mopti | C43: =IF(COUNTRY_INFO!C43=0," ",COUNTRY_INFO!C43) -> Bandiagara | D43: =IF(AND(COUNTRY_INFO!$T$9:$T$1000="T3 (ALB/MBD)",COUNTRY_INFO!$U$9:$U$1000="T3 (ALB/MBD)"), "T3 (ALB/MBD)", " ") ->  | J43: 0 | N43: 0
A44: =IF(COUNTRY_INFO!A44=0," ",COUNTRY_INFO!A44) -> Mali | B44: =IF(COUNTRY_INFO!B44=0," ",COUNTRY_INFO!B44) -> Mopti | C44: =IF(COUNTRY_INFO!C44=0," ",COUNTRY_INFO!C44) -> Bankass | D44: =IF(AND(COUNTRY_INFO!$T$9:$T$1000="T3 (ALB/MBD)",COUNTRY_INFO!$U$9:$U$1000="T3 (ALB/MBD)"), "T3 (ALB/MBD)", " ") ->  | J44: 0 | N44: 0
A45: =IF(COUNTRY_INFO!A45=0," ",COUNTRY_INFO!A45) -> Mali | B45: =IF(COUNTRY_INFO!B45=0," ",COUNTRY_INFO!B45) -> Mopti | C45: =IF(COUNTRY_INFO!C45=0," ",COUNTRY_INFO!C45) -> Djenne | D45: =IF(AND(COUNTRY_INFO!$T$9:$T$1000="T3 (ALB/MBD)",COUNTRY_INFO!$U$9:$U$1000="T3 (ALB/MBD)"), "T3 (ALB/MBD)", " ") ->  | J45: 0 | N45: 0
A46: =IF(COUNTRY_INFO!A46=0," ",COUNTRY_INFO!A46) -> Mali | B46: =IF(COUNTRY_INFO!B46=0," ",COUNTRY_INFO!B46) -> Mopti | C46: =IF(COUNTRY_INFO!C46=0," ",COUNTRY_INFO!C46) -> Douentza | D46: =IF(AND(COUNTRY_INFO!$T$9:$T$1000="T3 (ALB/MBD)",COUNTRY_INFO!$U$9:$U$1000="T3 (ALB/MBD)"), "T3 (ALB/MBD)", " ") ->  | J46: 0 | N46: 0
A47: =IF(COUNTRY_INFO!A47=0," ",COUNTRY_INFO!A47) -> Mali | B47: =IF(COUNTRY_INFO!B47=0," ",COUNTRY_INFO!B47) -> Mopti | C47: =IF(COUNTRY_INFO!C47=0," ",COUNTRY_INFO!C47) -> Koro | D47: =IF(AND(COUNTRY_INFO!$T$9:$T$1000="T3 (ALB/MBD)",COUNTRY_INFO!$U$9:$U$1000="T3 (ALB/MBD)"), "T3 (ALB/MBD)", " ") ->  | J47: 0 | N47: 0
A48: =IF(COUNTRY_INFO!A48=0," ",COUNTRY_INFO!A48) -> Mali | B48: =IF(COUNTRY_INFO!B48=0," ",COUNTRY_INFO!B48) -> Mopti | C48: =IF(COUNTRY_INFO!C48=0," ",COUNTRY_INFO!C48) -> Mopti | D48: =IF(AND(COUNTRY_INFO!$T$9:$T$1000="T3 (ALB/MBD)",COUNTRY_INFO!$U$9:$U$1000="T3 (ALB/MBD)"), "T3 (ALB/MBD)", " ") ->  | J48: 0 | N48: 0
A49: =IF(COUNTRY_INFO!A49=0," ",COUNTRY_INFO!A49) -> Mali | B49: =IF(COUNTRY_INFO!B49=0," ",COUNTRY_INFO!B49) -> Mopti | C49: =IF(COUNTRY_INFO!C49=0," ",COUNTRY_INFO!C49) -> Teninkou | D49: =IF(AND(COUNTRY_INFO!$T$9:$T$1000="T3 (ALB/MBD)",COUNTRY_INFO!$U$9:$U$1000="T3 (ALB/MBD)"), "T3 (ALB/MBD)", " ") ->  | J49: 0 | N49: 0
A50: =IF(COUNTRY_INFO!A50=0," ",COUNTRY_INFO!A50) -> Mali | B50: =IF(COUNTRY_INFO!B50=0," ",COUNTRY_INFO!B50) -> Mopti | C50: =IF(COUNTRY_INFO!C50=0," ",COUNTRY_INFO!C50) -> Youwarou | D50: =IF(AND(COUNTRY_INFO!$T$9:$T$1000="T3 (ALB/MBD)",COUNTRY_INFO!$U$9:$U$1000="T3 (ALB/MBD)"), "T3 (ALB/MBD)", " ") ->  | J50: 0 | N50: 0
A51: =IF(COUNTRY_INFO!A51=0," ",COUNTRY_INFO!A51) -> Mali | B51: =IF(COUNTRY_INFO!B51=0," ",COUNTRY_INFO!B51) -> Segou | C51: =IF(COUNTRY_INFO!C51=0," ",COUNTRY_INFO!C51) -> Barouéli | D51: =IF(AND(COUNTRY_INFO!$T$9:$T$1000="T3 (ALB/MBD)",COUNTRY_INFO!$U$9:$U$1000="T3 (ALB/MBD)"), "T3 (ALB/MBD)", " ") ->  | J51: 0 | N51: 0
A52: =IF(COUNTRY_INFO!A52=0," ",COUNTRY_INFO!A52) -> Mali | B52: =IF(COUNTRY_INFO!B52=0," ",COUNTRY_INFO!B52) -> Segou | C52: =IF(COUNTRY_INFO!C52=0," ",COUNTRY_INFO!C52) -> Bla | D52: =IF(AND(COUNTRY_INFO!$T$9:$T$1000="T3 (ALB/MBD)",COUNTRY_INFO!$U$9:$U$1000="T3 (ALB/MBD)"), "T3 (ALB/MBD)", " ") ->  | J52: 0 | N52: 0
A53: =IF(COUNTRY_INFO!A53=0," ",COUNTRY_INFO!A53) -> Mali | B53: =IF(COUNTRY_INFO!B53=0," ",COUNTRY_INFO!B53) -> Segou | C53: =IF(COUNTRY_INFO!C53=0," ",COUNTRY_INFO!C53) -> Macina | D53: =IF(AND(COUNTRY_INFO!$T$9:$T$1000="T3 (ALB/MBD)",COUNTRY_INFO!$U$9:$U$1000="T3 (ALB/MBD)"), "T3 (ALB/MBD)", " ") ->  | J53: 0 | N53: 0
A54: =IF(COUNTRY_INFO!A54=0," ",COUNTRY_INFO!A54) -> Mali | B54: =IF(COUNTRY_INFO!B54=0," ",COUNTRY_INFO!B54) -> Segou | C54: =IF(COUNTRY_INFO!C54=0," ",COUNTRY_INFO!C54) -> Markala | D54: =IF(AND(COUNTRY_INFO!$T$9:$T$1000="T3 (ALB/MBD)",COUNTRY_INFO!$U$9:$U$1000="T3 (ALB/MBD)"), "T3 (ALB/MBD)", " ") ->  | J54: 0 | N54: 0
A55: =IF(COUNTRY_INFO!A55=0," ",COUNTRY_INFO!A55) -> Mali | B55: =IF(COUNTRY_INFO!B55=0," ",COUNTRY_INFO!B55) -> Segou | C55: =IF(COUNTRY_INFO!C55=0," ",COUNTRY_INFO!C55) -> Niono | D55: =IF(AND(COUNTRY_INFO!$T$9:$T$1000="T3 (ALB/MBD)",COUNTRY_INFO!$U$9:$U$1000="T3 (ALB/MBD)"), "T3 (ALB/MBD)", " ") ->  | J55: 0 | N55: 0
A56: =IF(COUNTRY_INFO!A56=0," ",COUNTRY_INFO!A56) -> Mali | B56: =IF(COUNTRY_INFO!B56=0," ",COUNTRY_INFO!B56) -> Segou | C56: =IF(COUNTRY_INFO!C56=0," ",COUNTRY_INFO!C56) -> San | D56: =IF(AND(COUNTRY_INFO!$T$9:$T$1000="T3 (ALB/MBD)",COUNTRY_INFO!$U$9:$U$1000="T3 (ALB/MBD)"), "T3 (ALB/MBD)", " ") ->  | J56: 0 | N56: 0
A57: =IF(COUNTRY_INFO!A57=0," ",COUNTRY_INFO!A57) -> Mali | B57: =IF(COUNTRY_INFO!B57=0," ",COUNTRY_INFO!B57) -> Segou | C57: =IF(COUNTRY_INFO!C57=0," ",COUNTRY_INFO!C57) -> Segou | D57: =IF(AND(COUNTRY_INFO!$T$9:$T$1000="T3 (ALB/MBD)",COUNTRY_INFO!$U$9:$U$1000="T3 (ALB/MBD)"), "T3 (ALB/MBD)", " ") ->  | J57: 0 | N57: 0
A58: =IF(COUNTRY_INFO!A58=0," ",COUNTRY_INFO!A58) -> Mali | B58: =IF(COUNTRY_INFO!B58=0," ",COUNTRY_INFO!B58) -> Segou | C58: =IF(COUNTRY_INFO!C58=0," ",COUNTRY_INFO!C58) -> Tominian | D58: =IF(AND(COUNTRY_INFO!$T$9:$T$1000="T3 (ALB/MBD)",COUNTRY_INFO!$U$9:$U$1000="T3 (ALB/MBD)"), "T3 (ALB/MBD)", " ") ->  | J58: 0 | N58: 0
A59: =IF(COUNTRY_INFO!A59=0," ",COUNTRY_INFO!A59) -> Mali | B59: =IF(COUNTRY_INFO!B59=0," ",COUNTRY_INFO!B59) -> Sikasso | C59: =IF(COUNTRY_INFO!C59=0," ",COUNTRY_INFO!C59) -> Bougouni | D59: =IF(AND(COUNTRY_INFO!$T$9:$T$1000="T3 (ALB/MBD)",COUNTRY_INFO!$U$9:$U$1000="T3 (ALB/MBD)"), "T3 (ALB/MBD)", " ") ->  | J59: 0 | N59: 0
A60: =IF(COUNTRY_INFO!A60=0," ",COUNTRY_INFO!A60) -> Mali | B60: =IF(COUNTRY_INFO!B60=0," ",COUNTRY_INFO!B60) -> Sikasso | C60: =IF(COUNTRY_INFO!C60=0," ",COUNTRY_INFO!C60) -> Kadiolo | D60: =IF(AND(COUNTRY_INFO!$T$9:$T$1000="T3 (ALB/MBD)",COUNTRY_INFO!$U$9:$U$1000="T3 (ALB/MBD)"), "T3 (ALB/MBD)", " ") ->  | J60: 0 | N60: 0
A61: =IF(COUNTRY_INFO!A61=0," ",COUNTRY_INFO!A61) -> Mali | B61: =IF(COUNTRY_INFO!B61=0," ",COUNTRY_INFO!B61) -> Sikasso | C61: =IF(COUNTRY_INFO!C61=0," ",COUNTRY_INFO!C61) -> Kignan | D61: =IF(AND(COUNTRY_INFO!$T$9:$T$1000="T3 (ALB/MBD)",COUNTRY_INFO!$U$9:$U$1000="T3 (ALB/MBD)"), "T3 (ALB/MBD)", " ") ->  | J61: 0 | N61: 0
A62: =IF(COUNTRY_INFO!A62=0," ",COUNTRY_INFO!A62) -> Mali | B62: =IF(COUNTRY_INFO!B62=0," ",COUNTRY_INFO!B62) -> Sikasso | C62: =IF(COUNTRY_INFO!C62=0," ",COUNTRY_INFO!C62) -> Kolondieba | D62: =IF(AND(COUNTRY_INFO!$T$9:$T$1000="T3 (ALB/MBD)",COUNTRY_INFO!$U$9:$U$1000="T3 (ALB/MBD)"), "T3 (ALB/MBD)", " ") ->  | J62: 0 | N62: 0
A63: =IF(COUNTRY_INFO!A63=0," ",COUNTRY_INFO!A63) -> Mali | B63: =IF(COUNTRY_INFO!B63=0," ",COUNTRY_INFO!B63) -> Sikasso | C63: =IF(COUNTRY_INFO!C63=0," ",COUNTRY_INFO!C63) -> Koutiala | D63: =IF(AND(COUNTRY_INFO!$T$9:$T$1000="T3 (ALB/MBD)",COUNTRY_INFO!$U$9:$U$1000="T3 (ALB/MBD)"), "T3 (ALB/MBD)", " ") ->  | J63: 0 | N63: 0
A64: =IF(COUNTRY_INFO!A64=0," ",COUNTRY_INFO!A64) -> Mali | B64: =IF(COUNTRY_INFO!B64=0," ",COUNTRY_INFO!B64) -> Sikasso | C64: =IF(COUNTRY_INFO!C64=0," ",COUNTRY_INFO!C64) -> Niena | D64: =IF(AND(COUNTRY_INFO!$T$9:$T$1000="T3 (ALB/MBD)",COUNTRY_INFO!$U$9:$U$1000="T3 (ALB/MBD)"), "T3 (ALB/MBD)", " ") ->  | J64: 0 | N64: 0
A65: =IF(COUNTRY_INFO!A65=0," ",COUNTRY_INFO!A65) -> Mali | B65: =IF(COUNTRY_INFO!B65=0," ",COUNTRY_INFO!B65) -> Sikasso | C65: =IF(COUNTRY_INFO!C65=0," ",COUNTRY_INFO!C65) -> Sélingué | D65: =IF(AND(COUNTRY_INFO!$T$9:$T$1000="T3 (ALB/MBD)",COUNTRY_INFO!$U$9:$U$1000="T3 (ALB/MBD)"), "T3 (ALB/MBD)", " ") ->  | J65: 0 | N65: 0
A66: =IF(COUNTRY_INFO!A66=0," ",COUNTRY_INFO!A66) -> Mali | B66: =IF(COUNTRY_INFO!B66=0," ",COUNTRY_INFO!B66) -> Sikasso | C66: =IF(COUNTRY_INFO!C66=0," ",COUNTRY_INFO!C66) -> Sikasso | D66: =IF(AND(COUNTRY_INFO!$T$9:$T$1000="T3 (ALB/MBD)",COUNTRY_INFO!$U$9:$U$1000="T3 (ALB/MBD)"), "T3 (ALB/MBD)", " ") ->  | J66: 0 | N66: 0
A67: =IF(COUNTRY_INFO!A67=0," ",COUNTRY_INFO!A67) -> Mali | B67: =IF(COUNTRY_INFO!B67=0," ",COUNTRY_INFO!B67) -> Sikasso | C67: =IF(COUNTRY_INFO!C67=0," ",COUNTRY_INFO!C67) -> Yanfolila | D67: =IF(AND(COUNTRY_INFO!$T$9:$T$1000="T3 (ALB/MBD)",COUNTRY_INFO!$U$9:$U$1000="T3 (ALB/MBD)"), "T3 (ALB/MBD)", " ") ->  | J67: 0 | N67: 0
A68: =IF(COUNTRY_INFO!A68=0," ",COUNTRY_INFO!A68) -> Mali | B68: =IF(COUNTRY_INFO!B68=0," ",COUNTRY_INFO!B68) -> Sikasso | C68: =IF(COUNTRY_INFO!C68=0," ",COUNTRY_INFO!C68) -> Yorosso | D68: =IF(AND(COUNTRY_INFO!$T$9:$T$1000="T3 (ALB/MBD)",COUNTRY_INFO!$U$9:$U$1000="T3 (ALB/MBD)"), "T3 (ALB/MBD)", " ") ->  | J68: 0 | N68: 0
A69: =IF(COUNTRY_INFO!A69=0," ",COUNTRY_INFO!A69) -> Mali | B69: =IF(COUNTRY_INFO!B69=0," ",COUNTRY_INFO!B69) -> Tombouctou | C69: =IF(COUNTRY_INFO!C69=0," ",COUNTRY_INFO!C69) -> Diré | D69: =IF(AND(COUNTRY_INFO!$T$9:$T$1000="T3 (ALB/MBD)",COUNTRY_INFO!$U$9:$U$1000="T3 (ALB/MBD)"), "T3 (ALB/MBD)", " ") ->  | J69: 0 | N69: 0
A70: =IF(COUNTRY_INFO!A70=0," ",COUNTRY_INFO!A70) -> Mali | B70: =IF(COUNTRY_INFO!B70=0," ",COUNTRY_INFO!B70) -> Tombouctou | C70: =IF(COUNTRY_INFO!C70=0," ",COUNTRY_INFO!C70) -> Goundam | D70: =IF(AND(COUNTRY_INFO!$T$9:$T$1000="T3 (ALB/MBD)",COUNTRY_INFO!$U$9:$U$1000="T3 (ALB/MBD)"), "T3 (ALB/MBD)", " ") ->  | J70: 0 | N70: 0
A71: =IF(COUNTRY_INFO!A71=0," ",COUNTRY_INFO!A71) -> Mali | B71: =IF(COUNTRY_INFO!B71=0," ",COUNTRY_INFO!B71) -> Tombouctou | C71: =IF(COUNTRY_INFO!C71=0," ",COUNTRY_INFO!C71) -> Gourma-Rharous | D71: =IF(AND(COUNTRY_INFO!$T$9:$T$1000="T3 (ALB/MBD)",COUNTRY_INFO!$U$9:$U$1000="T3 (ALB/MBD)"), "T3 (ALB/MBD)", " ") ->  | J71: 0 | N71: 0
A72: =IF(COUNTRY_INFO!A72=0," ",COUNTRY_INFO!A72) -> Mali | B72: =IF(COUNTRY_INFO!B72=0," ",COUNTRY_INFO!B72) -> Tombouctou | C72: =IF(COUNTRY_INFO!C72=0," ",COUNTRY_INFO!C72) -> Niafunké | D72: =IF(AND(COUNTRY_INFO!$T$9:$T$1000="T3 (ALB/MBD)",COUNTRY_INFO!$U$9:$U$1000="T3 (ALB/MBD)"), "T3 (ALB/MBD)", " ") ->  | J72: 0 | N72: 0
A73: =IF(COUNTRY_INFO!A73=0," ",COUNTRY_INFO!A73) -> Mali | B73: =IF(COUNTRY_INFO!B73=0," ",COUNTRY_INFO!B73) -> Tombouctou | C73: =IF(COUNTRY_INFO!C73=0," ",COUNTRY_INFO!C73) -> Tombouctou | D73: =IF(AND(COUNTRY_INFO!$T$9:$T$1000="T3 (ALB/MBD)",COUNTRY_INFO!$U$9:$U$1000="T3 (ALB/MBD)"), "T3 (ALB/MBD)", " ") ->  | J73: 0 | N73: 0

Sheet DISTRICT
A1: Nombre d'individus traités
A2: Structure administrative, population traitée par groupe d'âge et sexe
A4: TOTAL | D4: =SUM(D$9:D$1000) -> 2342766 | E4: =SUM(E$9:E$1000) -> 0 | F4: =SUM(F$9:F$1000) -> 0 | G4: =SUM(G$9:G$1000) -> 1731545 | H4: =SUM(H$9:H$1000) -> 1722782 | I4: =IF(D4>0, IF(H4/D4*100<>0, H4/D4*100, "-"),0) -> 73.53623879 | J4: =SUM(J$9:J$1000) -> 5737454 | K4: =SUM(K$9:K$1000) -> 0 | L4: =SUM(L$9:L$1000) -> 0 | M4: =SUM(M$9:M$1000) -> 6206476 | N4: =SUM(N$9:N$1000) -> 4466706 | O4: =IF(J4>0, IF(N4/J4*100<>0, N4/J4*100, "-"),0) -> 77.85170914 | P4: =SUM(P$9:P$1000) -> 0 | Q4: =SUM(Q$9:Q$1000) -> 0 | R4: =SUM(R$9:R$1000) -> 0 | S4: =SUM(S$9:S$1000) -> 6340514 | T4: =SUM(T$9:T$1000) -> 0 | V4: 0 | X4: =SUM(X$9:X$1000) -> 0 | Y4: =IF(P4>0, IF(X4/P4*100<>0, X4/P4*100, "-"),0) -> 0 | Z4: =SUM(Z$9:Z$1000) -> 4952507.08 | AA4: 0 | AB4: 0 | AC4: 2926955 | AD4: 1747077.33 | AF4: 0 | AH4: 1747077.33 | AI4: =IF(Z4>0, IF(AH4/Z4*100<>0, AH4/Z4*100, "-"),0) -> 35.27662458
A6: Structure administrative du pays | D6: Population nécessitant la CP pour FL | E6: Population traitée pour la filariose lymphatique | J6: Population nécessitant la CP pour ONCHO | K6: Population traitée pour l'onchocercose | P6: Population nécessitant la CP pour STH | Q6: Population traitée pour les géohelminthiases | Z6: Population nécessitant la CP pour SCH | AA6: Population traitée pour la schistosomiase | AP6: =SUM(AP9:AP1000) -> 525211.8334 | AQ6: 1131231.457 | AR6: 3854246.752 | AS6: 5643714.623 | AT6: =SUM(AT9:AT1000) -> 11154404.66 | AU6: =COUNTIF(AU9:AU1000,"Y") -> 38 | AV6: =SUM(AV9:AV1000) -> 0 | AW6: 5580462.522 | AX6: 3836940.673 | AY6: =SUM(AY9:AY1000) -> 9417403.195 | AZ6: 0 | BA6: 3490446.997 | BB6: 3836940.673 | BC6: 7310399.67 | BD6: =IF(AT6<>0,BC6/AT6,0) -> 0.6553823256
A7: Pays | B7: Région/Département | C7: District | E7: Masculine | F7: Féminine | G7: Total traité | H7: Total traité ayant besoin de CP | I7: (%) | K7: Masculine | L7: Féminine | M7: Total traité | N7: Total traité ayant besoin de CP | O7: (%) | Q7: Masculine | R7: Féminine | S7: Total traité | T7: EAPréS traité ayant besoin de CP | U7: EAPréS (%) | V7: EAS traité ayant besoin de CP | W7: EAS (%) | X7: Total traité ayant besoin de CP | Y7: (%) | AA7: Masculine | AB7: Féminine | AC7: Total traité | AD7: EAS traité ayant besoin de CP | AE7: EAS (%) | AF7: Adultes traité ayant besoin de CP | AG7: Adultes (%) | AH7: Total traité ayant besoin de CP | AI7: (%) | AK7: LF | AL7: ONCHO | AM7: STH | AN7: SCH-SAC | AO7: SCH_Adults | AP7: <1 | AQ7: PreSAC | AR7: SAC | AS7: Adults | AT7: Total | AU7: Dis | AV7: PreSAC | AW7: SAC | AX7: Adults | AY7: Total | AZ7: PreSAC | BA7: SAC | BB7: Adults | BC7: Total | BD7: Coverage
A9: =IF(COUNTRY_INFO!A9=0," ",COUNTRY_INFO!A9) -> Mali | B9: =IF(COUNTRY_INFO!B9=0," ",COUNTRY_INFO!B9) -> Bamako | C9: =IF(COUNTRY_INFO!C9=0," ",COUNTRY_INFO!C9) -> Commune 1 | D9: =COUNTRY_INFO!L9 -> Interrompu | G9: =MAX('MDA1'!M9,'MDA2'!M9) -> 0 | H9: =IF(AND(COUNTRY_INFO!H9>0,COUNTRY_INFO!H9<4),IF(D9>MAX('MDA1'!M9,'MDA2'!M9),MAX('MDA1'!M9,'MDA2'!M9),D9),0) -> 0 | I9: =IF(AND(COUNTRY_INFO!H9>0,COUNTRY_INFO!H9<4), IF(G9/D9*100<>0, IF(G9/D9*100>100,100,G9/D9*100), "-"),0) -> 0 | J9: =COUNTRY_INFO!M9 -> 0 | M9: =MAX('MDA1'!M9,MAX('MDA3'!I9,'MDA3'!L9)+MAX('MDA3'!J9,'MDA3'!M9)) -> 0 | N9: =IF(AND(COUNTRY_INFO!I9>0,COUNTRY_INFO!I9<4),IF(J9>MAX('MDA1'!M9,MAX('MDA3'!I9,'MDA3'!L9)+MAX('MDA3'!J9,'MDA3'!M9)),MAX('MDA1'!M9,MAX('MDA3'!I9,'MDA3'!L9)+MAX('MDA3'!J9,'MDA3'!M9)),J9),0) -> 0 | O9: =IF(AND(COUNTRY_INFO!I9>0,COUNTRY_INFO!I9<4), IF(M9/J9*100<>0, IF(M9/J9*100>100,100,M9/J9*100), "-"),0) -> 0 | P9: =COUNTRY_INFO!N9 -> 0 | S9: =SUM(MAX('MDA2'!J9, 'T1'!L9, MAX(T3_R1!K9, T3_R2!K9)), MAX('MDA1'!K9, 'MDA2'!K9, 'T1'!M9, MAX(T3_R1!L9, T3_R2!L9)), MAX('MDA1'!L9, 'MDA2'!L9, 'T1'!N9, MAX(T3_R1!M9, T3_R2!M9))) -> 138145 | T9: =IF(AND(COUNTRY_INFO!J9>1,COUNTRY_INFO!J9<4),IF(COUNTRY_INFO!E9>MAX('MDA2'!J9,'T1'!L9,MAX(T3_R1!K9,T3_R2!K9)),MAX('MDA2'!J9,'T1'!L9,MAX(T3_R1!K9,T3_R2!K9)),COUNTRY_INFO!E9),0) -> 0 | U9: =IF(AND(COUNTRY_INFO!J9>1,COUNTRY_INFO!J9<4), IF(T9/COUNTRY_INFO!E9*100<>0, IF(T9/COUNTRY_INFO!E9*100>100,100,T9/COUNTRY_INFO!E9*100), "-"),0) -> 0 | V9: =IF(AND(COUNTRY_INFO!J9>1,COUNTRY_INFO!J9<4),IF(COUNTRY_INFO!F9>MAX('MDA1'!K9,'MDA2'!K9,'T1'!M9,MAX(T3_R1!L9,T3_R2!L9)),MAX('MDA1'!K9,'MDA2'!K9,'T1'!M9,MAX(T3_R1!L9,T3_R2!L9)),COUNTRY_INFO!F9),0) -> 0 | W9: =IF(AND(COUNTRY_INFO!J9>1,COUNTRY_INFO!J9<4), IF(V9/COUNTRY_INFO!F9*100<>0, IF(V9/COUNTRY_INFO!F9*100>100,100,V9/COUNTRY_INFO!F9*100), "-"),0) -> 0 | X9: =SUM(T9,V9) -> 0 | Y9: =IF(AND(COUNTRY_INFO!J9>1,COUNTRY_INFO!J9<4), IF(S9/P9*100<>0, IF(X9/P9*100>100,100,X9/P9*100), "-"),0) -> 0 | Z9: =COUNTRY_INFO!O9 -> 105962.5 | AC9: =MAX('T1'!L9,'T2'!J9)+MAX('T1'!M9,'T2'!K9)+MAX('T1'!N9,'T2'!L9) -> 0 | AD9: =IF(COUNTRY_INFO!K9=1,IF(COUNTRY_INFO!F9*0.33>MAX('T1'!M9,'T2'!K9),MAX('T1'!M9,'T2'!K9),COUNTRY_INFO!F9*0.33),IF(COUNTRY_INFO!K9=2,IF(COUNTRY_INFO!F9*0.5>MAX('T1'!M9,'T2'!K9),MAX('T1'!M9,'T2'!K9),COUNTRY_INFO!F9*0.5),IF(COUNTRY_INFO!K9=3,IF(COUNTRY_INFO!F9>MAX('T1'!M9,'T2'!K9),MAX('T1'!M9,'T2'!K9),COUNTRY_INFO!F9),0))) -> 0 | AE9: =IF(AND(COUNTRY_INFO!K9>0,COUNTRY_INFO!K9<4),IF(Z9>0,IF(COUNTRY_INFO!K9=1, AD9/(COUNTRY_INFO!F9*0.33)*100, IF(COUNTRY_INFO!K9=2, AD9/(COUNTRY_INFO!F9*0.5)*100, IF(COUNTRY_INFO!K9=3, AD9/COUNTRY_INFO!F9*100))),"-"),0) -> 0 | AF9: =IF(COUNTRY_INFO!K9=2,IF(COUNTRY_INFO!G9*0.2>MAX('T1'!N9,'T2'!L9),MAX('T1'!N9,'T2'!L9),COUNTRY_INFO!G9*0.2),IF(COUNTRY_INFO!K9=3,IF(COUNTRY_INFO!G9>MAX('T1'!N9,'T2'!L9),MAX('T1'!N9,'T2'!L9),COUNTRY_INFO!G9),0)) -> 0 | AG9: =IF(AND(COUNTRY_INFO!K9>0,COUNTRY_INFO!K9<4),IF(Z9>0,IF(COUNTRY_INFO!K9=1, 0, IF(COUNTRY_INFO!K9=2, AF9/(COUNTRY_INFO!G9*0.2)*100, IF(COUNTRY_INFO!K9=3, AF9/COUNTRY_INFO!G9*100))),"-"),0) -> 0 | AH9: =SUM(AD9,AF9) -> 0 | AI9: =IF(AND(COUNTRY_INFO!K9>0,COUNTRY_INFO!K9<4), IF(AC9/Z9*100<>0, IF(AH9/Z9*100>100,100,AH9/Z9*100), "-"),0) -> - | AK9: =IF(AND(D9<>0, D9<>"Inconnu",D9<>"Interrompu",D9<>"Non requis"),D9/COUNTRY_INFO!D9, 0) -> 0 | AL9: =IF(AND(J9<>0,J9<>"Inconnu",J9<>"Interrompu",J9<>"Non requis"),J9/COUNTRY_INFO!D9, 0) -> 0 | AM9: =IF(AND(P9<>0,P9<>"Inconnu",P9<>"Non requis"),P9/(COUNTRY_INFO!E9+COUNTRY_INFO!F9), 0) -> 0 | AN9: =IF(AND(Z9<>0,Z9<>"Inconnu",Z9<>"Non requis"),IF(COUNTRY_INFO!K9=1,1,IF(COUNTRY_INFO!K9=2,0.5*COUNTRY_INFO!F9/(0.5*COUNTRY_INFO!F9+0.2*COUNTRY_INFO!G9),IF(COUNTRY_INFO!K9=3,COUNTRY_INFO!F9/(COUNTRY_INFO!F9+COUNTRY_INFO!G9)))),0) -> 0.5761330659 | AO9: =IF(AND(Z9<>0,Z9<>"Inconnu",Z9<>"Non requis"),IF(COUNTRY_INFO!K9=1,0,IF(COUNTRY_INFO!K9=2,0.2*COUNTRY_INFO!G9/(0.5*COUNTRY_INFO!F9+0.2*COUNTRY_INFO!G9),IF(COUNTRY_INFO!K9=3,COUNTRY_INFO!G9/(COUNTRY_INFO!F9+COUNTRY_INFO!G9)))),0) -> 0.4238669341 | AP9: =MAX(COUNTRY_INFO!D9*AK9*PROFILE!$G$7,COUNTRY_INFO!D9*AL9*PROFILE!$G$7) -> 0 | AQ9: =MAX(COUNTRY_INFO!D9*AK9*PROFILE!$G$8,COUNTRY_INFO!D9*AL9*PROFILE!$G$8,COUNTRY_INFO!D9*AM9*PROFILE!$G$8) -> 0 | AR9: =MAX(COUNTRY_INFO!D9*AK9*PROFILE!$G$9,COUNTRY_INFO!D9*AL9*PROFILE!$G$9,COUNTRY_INFO!D9*AM9*PROFILE!$G$9,IF(AND(DISTRICT!Z9<>"Inconnu",Z9<>"Non requis"),COUNTRY_INFO!O9*DISTRICT!AN9,0)) -> 61048.5 | AS9: =MAX(COUNTRY_INFO!D9*AK9*PROFILE!$G$10,COUNTRY_INFO!D9*AL9*PROFILE!$G$10,IF(AND(DISTRICT!Z9<>"Inconnu",Z9<>"Non requis"),COUNTRY_INFO!O9*DISTRICT!AO9,0)) -> 44914 | AT9: =SUM(AP9:AS9) -> 105962.5 | AU9: =IF(COUNTIFS(AK9:AN9,">0")=0,0, IF(COUNTIFS(AK9:AN9,">0")<=IF(AND(OR(D9>=0,D9="Non requis",D9="Inconnu",D9="Interrompu"),D9>0,H9>0),1,0)+IF(AND(OR(J9>=0,J9="Non requis",J9="Inconnu",J9="Interrompu"),J9>0,N9>0),1,0)+IF(AND(OR(P9>=0,P9="Non requis",P9="Inconnu"),P9>0,X9>0),1,0)+IF(AND(OR(Z9>=0,Z9="Non requis",Z9="Inconnu"),Z9>0,AH9>0),1,0),"Y",0)) -> 0 | AV9: =MAX('MDA2'!J9,'T1'!L9,'T2'!J9,T3_R1!K9,T3_R2!K9) -> 0 | AW9: =MAX('MDA1'!K9,'MDA2'!K9,'MDA3'!I9,'MDA3'!L9,'T1'!M9,'T2'!K9,T3_R1!L9,T3_R2!L9) -> 138145 | AX9: =MAX('MDA1'!L9,'MDA2'!L9,'MDA3'!J9,'MDA3'!M9,'T1'!N9,'T2'!L9,T3_R1!M9,T3_R2!M9) -> 0 | AY9: =SUM(AV9:AX9) -> 138145 | AZ9: =MAX('MDA2'!J9,T9) -> 0 | BA9: =MAX('MDA1'!K9,'MDA2'!K9,'MDA3'!I9,'MDA3'!L9,V9,AD9) -> 0 | BB9: =MAX('MDA1'!L9,'MDA2'!L9,'MDA3'!J9,'MDA3'!M9,AF9) -> 0 | BC9: =IF(AT9<SUM(AZ9:BB9), AT9,SUM(AZ9:BB9)) -> 0 | BD9: =IF(AT9<>0,BC9/AT9*100,0) -> 0
A10: =IF(COUNTRY_INFO!A10=0," ",COUNTRY_INFO!A10) -> Mali | B10: =IF(COUNTRY_INFO!B10=0," ",COUNTRY_INFO!B10) -> Bamako | C10: =IF(COUNTRY_INFO!C10=0," ",COUNTRY_INFO!C10) -> Commune 2 | D10: =COUNTRY_INFO!L10 -> Interrompu | G10: =MAX('MDA1'!M10,'MDA2'!M10) -> 0 | H10: =IF(AND(COUNTRY_INFO!H10>0,COUNTRY_INFO!H10<4),IF(D10>MAX('MDA1'!M10,'MDA2'!M10),MAX('MDA1'!M10,'MDA2'!M10),D10),0) -> 0 | I10: =IF(AND(COUNTRY_INFO!H10>0,COUNTRY_INFO!H10<4), IF(G10/D10*100<>0, IF(G10/D10*100>100,100,G10/D10*100), "-"),0) -> 0 | J10: =COUNTRY_INFO!M10 -> 0 | M10: =MAX('MDA1'!M10,MAX('MDA3'!I10,'MDA3'!L10)+MAX('MDA3'!J10,'MDA3'!M10)) -> 0 | N10: =IF(AND(COUNTRY_INFO!I10>0,COUNTRY_INFO!I10<4),IF(J10>MAX('MDA1'!M10,MAX('MDA3'!I10,'MDA3'!L10)+MAX('MDA3'!J10,'MDA3'!M10)),MAX('MDA1'!M10,MAX('MDA3'!I10,'MDA3'!L10)+MAX('MDA3'!J10,'MDA3'!M10)),J10),0) -> 0 | O10: =IF(AND(COUNTRY_INFO!I10>0,COUNTRY_INFO!I10<4), IF(M10/J10*100<>0, IF(M10/J10*100>100,100,M10/J10*100), "-"),0) -> 0 | P10: =COUNTRY_INFO!N10 -> 0 | S10: =SUM(MAX('MDA2'!J10, 'T1'!L10, MAX(T3_R1!K10, T3_R2!K10)), MAX('MDA1'!K10, 'MDA2'!K10, 'T1'!M10, MAX(T3_R1!L10, T3_R2!L10)), MAX('MDA1'!L10, 'MDA2'!L10, 'T1'!N10, MAX(T3_R1!M10, T3_R2!M10))) -> 66324 | T10: =IF(AND(COUNTRY_INFO!J10>1,COUNTRY_INFO!J10<4),IF(COUNTRY_INFO!E10>MAX('MDA2'!J10,'T1'!L10,MAX(T3_R1!K10,T3_R2!K10)),MAX('MDA2'!J10,'T1'!L10,MAX(T3_R1!K10,T3_R2!K10)),COUNTRY_INFO!E10),0) -> 0 | U10: =IF(AND(COUNTRY_INFO!J10>1,COUNTRY_INFO!J10<4), IF(T10/COUNTRY_INFO!E10*100<>0, IF(T10/COUNTRY_INFO!E10*100>100,100,T10/COUNTRY_INFO!E10*100), "-"),0) -> 0 | V10: =IF(AND(COUNTRY_INFO!J10>1,COUNTRY_INFO!J10<4),IF(COUNTRY_INFO!F10>MAX('MDA1'!K10,'MDA2'!K10,'T1'!M10,MAX(T3_R1!L10,T3_R2!L10)),MAX('MDA1'!K10,'MDA2'!K10,'T1'!M10,MAX(T3_R1!L10,T3_R2!L10)),COUNTRY_INFO!F10),0) -> 0 | W10: =IF(AND(COUNTRY_INFO!J10>1,COUNTRY_INFO!J10<4), IF(V10/COUNTRY_INFO!F10*100<>0, IF(V10/COUNTRY_INFO!F10*100>100,100,V10/COUNTRY_INFO!F10*100), "-"),0) -> 0 | X10: =SUM(T10,V10) -> 0 | Y10: =IF(AND(COUNTRY_INFO!J10>1,COUNTRY_INFO!J10<4), IF(S10/P10*100<>0, IF(X10/P10*100>100,100,X10/P10*100), "-"),0) -> 0 | Z10: =COUNTRY_INFO!O10 -> 19197.09 | AC10: =MAX('T1'!L10,'T2'!J10)+MAX('T1'!M10,'T2'!K10)+MAX('T1'!N10,'T2'!L10) -> 0 | AD10: =IF(COUNTRY_INFO!K10=1,IF(COUNTRY_INFO!F10*0.33>MAX('T1'!M10,'T2'!K10),MAX('T1'!M10,'T2'!K10),COUNTRY_INFO!F10*0.33),IF(COUNTRY_INFO!K10=2,IF(COUNTRY_INFO!F10*0.5>MAX('T1'!M10,'T2'!K10),MAX('T1'!M10,'T2'!K10),COUNTRY_INFO!F10*0.5),IF(COUNTRY_INFO!K10=3,IF(COUNTRY_INFO!F10>MAX('T1'!M10,'T2'!K10),MAX('T1'!M10,'T2'!K10),COUNTRY_INFO!F10),0))) -> 0 | AE10: =IF(AND(COUNTRY_INFO!K10>0,COUNTRY_INFO!K10<4),IF(Z10>0,IF(COUNTRY_INFO!K10=1, AD10/(COUNTRY_INFO!F10*0.33)*100, IF(COUNTRY_INFO!K10=2, AD10/(COUNTRY_INFO!F10*0.5)*100, IF(COUNTRY_INFO!K10=3, AD10/COUNTRY_INFO!F10*100))),"-"),0) -> 0 | AF10: =IF(COUNTRY_INFO!K10=2,IF(COUNTRY_INFO!G10*0.2>MAX('T1'!N10,'T2'!L10),MAX('T1'!N10,'T2'!L10),COUNTRY_INFO!G10*0.2),IF(COUNTRY_INFO!K10=3,IF(COUNTRY_INFO!G10>MAX('T1'!N10,'T2'!L10),MAX('T1'!N10,'T2'!L10),COUNTRY_INFO!G10),0)) -> 0 | AG10: =IF(AND(COUNTRY_INFO!K10>0,COUNTRY_INFO!K10<4),IF(Z10>0,IF(COUNTRY_INFO!K10=1, 0, IF(COUNTRY_INFO!K10=2, AF10/(COUNTRY_INFO!G10*0.2)*100, IF(COUNTRY_INFO!K10=3, AF10/COUNTRY_INFO!G10*100))),"-"),0) -> 0 | AH10: =SUM(AD10,AF10) -> 0 | AI10: =IF(AND(COUNTRY_INFO!K10>0,COUNTRY_INFO!K10<4), IF(AC10/Z10*100<>0, IF(AH10/Z10*100>100,100,AH10/Z10*100), "-"),0) -> - | AK10: =IF(AND(D10<>0, D10<>"Inconnu",D10<>"Interrompu",D10<>"Non requis"),D10/COUNTRY_INFO!D10, 0) -> 0 | AL10: =IF(AND(J10<>0,J10<>"Inconnu",J10<>"Interrompu",J10<>"Non requis"),J10/COUNTRY_INFO!D10, 0) -> 0 | AM10: =IF(AND(P10<>0,P10<>"Inconnu",P10<>"Non requis"),P10/(COUNTRY_INFO!E10+COUNTRY_INFO!F10), 0) -> 0 | AN10: =IF(AND(Z10<>0,Z10<>"Inconnu",Z10<>"Non requis"),IF(COUNTRY_INFO!K10=1,1,IF(COUNTRY_INFO!K10=2,0.5*COUNTRY_INFO!F10/(0.5*COUNTRY_INFO!F10+0.2*COUNTRY_INFO!G10),IF(COUNTRY_INFO!K10=3,COUNTRY_INFO!F10/(COUNTRY_INFO!F10+COUNTRY_INFO!G10)))),0) -> 1 | AO10: =IF(AND(Z10<>0,Z10<>"Inconnu",Z10<>"Non requis"),IF(COUNTRY_INFO!K10=1,0,IF(COUNTRY_INFO!K10=2,0.2*COUNTRY_INFO!G10/(0.5*COUNTRY_INFO!F10+0.2*COUNTRY_INFO!G10),IF(COUNTRY_INFO!K10=3,COUNTRY_INFO!G10/(COUNTRY_INFO!F10+COUNTRY_INFO!G10)))),0) -> 0 | AP10: =MAX(COUNTRY_INFO!D10*AK10*PROFILE!$G$7,COUNTRY_INFO!D10*AL10*PROFILE!$G$7) -> 0 | AQ10: =MAX(COUNTRY_INFO!D10*AK10*PROFILE!$G$8,COUNTRY_INFO!D10*AL10*PROFILE!$G$8,COUNTRY_INFO!D10*AM10*PROFILE!$G$8) -> 0 | AR10: =MAX(COUNTRY_INFO!D10*AK10*PROFILE!$G$9,COUNTRY_INFO!D10*AL10*PROFILE!$G$9,COUNTRY_INFO!D10*AM10*PROFILE!$G$9,IF(AND(DISTRICT!Z10<>"Inconnu",Z10<>"Non requis"),COUNTRY_INFO!O10*DISTRICT!AN10,0)) -> 19197.09 | AS10: =MAX(COUNTRY_INFO!D10*AK10*PROFILE!$G$10,COUNTRY_INFO!D10*AL10*PROFILE!$G$10,IF(AND(DISTRICT!Z10<>"Inconnu",Z10<>"Non requis"),COUNTRY_INFO!O10*DISTRICT!AO10,0)) -> 0 | AT10: =SUM(AP10:AS10) -> 19197.09 | AU10: 0 | AV10: =MAX('MDA2'!J10,'T1'!L10,'T2'!J10,T3_R1!K10,T3_R2!K10) -> 0 | AW10: =MAX('MDA1'!K10,'MDA2'!K10,'MDA3'!I10,'MDA3'!L10,'T1'!M10,'T2'!K10,T3_R1!L10,T3_R2!L10) -> 66324 | AX10: =MAX('MDA1'!L10,'MDA2'!L10,'MDA3'!J10,'MDA3'!M10,'T1'!N10,'T2'!L10,T3_R1!M10,T3_R2!M10) -> 0 | AY10: =SUM(AV10:AX10) -> 66324 | AZ10: =MAX('MDA2'!J10,T10) -> 0 | BA10: =MAX('MDA1'!K10,'MDA2'!K10,'MDA3'!I10,'MDA3'!L10,V10,AD10) -> 0 | BB10: =MAX('MDA1'!L10,'MDA2'!L10,'MDA3'!J10,'MDA3'!M10,AF10) -> 0 | BC10: 0 | BD10: 0
A11: =IF(COUNTRY_INFO!A11=0," ",COUNTRY_INFO!A11) -> Mali | B11: =IF(COUNTRY_INFO!B11=0," ",COUNTRY_INFO!B11) -> Bamako | C11: =IF(COUNTRY_INFO!C11=0," ",COUNTRY_INFO!C11) -> Commune 3 | D11: =COUNTRY_INFO!L11 -> Interrompu | G11: =MAX('MDA1'!M11,'MDA2'!M11) -> 0 | H11: =IF(AND(COUNTRY_INFO!H11>0,COUNTRY_INFO!H11<4),IF(D11>MAX('MDA1'!M11,'MDA2'!M11),MAX('MDA1'!M11,'MDA2'!M11),D11),0) -> 0 | I11: =IF(AND(COUNTRY_INFO!H11>0,COUNTRY_INFO!H11<4), IF(G11/D11*100<>0, IF(G11/D11*100>100,100,G11/D11*100), "-"),0) -> 0 | J11: =COUNTRY_INFO!M11 -> 0 | M11: =MAX('MDA1'!M11,MAX('MDA3'!I11,'MDA3'!L11)+MAX('MDA3'!J11,'MDA3'!M11)) -> 0 | N11: =IF(AND(COUNTRY_INFO!I11>0,COUNTRY_INFO!I11<4),IF(J11>MAX('MDA1'!M11,MAX('MDA3'!I11,'MDA3'!L11)+MAX('MDA3'!J11,'MDA3'!M11)),MAX('MDA1'!M11,MAX('MDA3'!I11,'MDA3'!L11)+MAX('MDA3'!J11,'MDA3'!M11)),J11),0) -> 0 | O11: =IF(AND(COUNTRY_INFO!I11>0,COUNTRY_INFO!I11<4), IF(M11/J11*100<>0, IF(M11/J11*100>100,100,M11/J11*100), "-"),0) -> 0 | P11: =COUNTRY_INFO!N11 -> 0 | S11: =SUM(MAX('MDA2'!J11, 'T1'!L11, MAX(T3_R1!K11, T3_R2!K11)), MAX('MDA1'!K11, 'MDA2'!K11, 'T1'!M11, MAX(T3_R1!L11, T3_R2!L11)), MAX('MDA1'!L11, 'MDA2'!L11, 'T1'!N11, MAX(T3_R1!M11, T3_R2!M11))) -> 54455 | T11: =IF(AND(COUNTRY_INFO!J11>1,COUNTRY_INFO!J11<4),IF(COUNTRY_INFO!E11>MAX('MDA2'!J11,'T1'!L11,MAX(T3_R1!K11,T3_R2!K11)),MAX('MDA2'!J11,'T1'!L11,MAX(T3_R1!K11,T3_R2!K11)),COUNTRY_INFO!E11),0) -> 0 | U11: =IF(AND(COUNTRY_INFO!J11>1,COUNTRY_INFO!J11<4), IF(T11/COUNTRY_INFO!E11*100<>0, IF(T11/COUNTRY_INFO!E11*100>100,100,T11/COUNTRY_INFO!E11*100), "-"),0) -> 0 | V11: =IF(AND(COUNTRY_INFO!J11>1,COUNTRY_INFO!J11<4),IF(COUNTRY_INFO!F11>MAX('MDA1'!K11,'MDA2'!K11,'T1'!M11,MAX(T3_R1!L11,T3_R2!L11)),MAX('MDA1'!K11,'MDA2'!K11,'T1'!M11,MAX(T3_R1!L11,T3_R2!L11)),COUNTRY_INFO!F11),0) -> 0 | W11: =IF(AND(COUNTRY_INFO!J11>1,COUNTRY_INFO!J11<4), IF(V11/COUNTRY_INFO!F11*100<>0, IF(V11/COUNTRY_INFO!F11*100>100,100,V11/COUNTRY_INFO!F11*100), "-"),0) -> 0 | X11: 0 | Y11: =IF(AND(COUNTRY_INFO!J11>1,COUNTRY_INFO!J11<4), IF(S11/P11*100<>0, IF(X11/P11*100>100,100,X11/P11*100), "-"),0) -> 0 | Z11: =COUNTRY_INFO!O11 -> 15481.29 | AC11: =MAX('T1'!L11,'T2'!J11)+MAX('T1'!M11,'T2'!K11)+MAX('T1'!N11,'T2'!L11) -> 0 | AD11: =IF(COUNTRY_INFO!K11=1,IF(COUNTRY_INFO!F11*0.33>MAX('T1'!M11,'T2'!K11),MAX('T1'!M11,'T2'!K11),COUNTRY_INFO!F11*0.33),IF(COUNTRY_INFO!K11=2,IF(COUNTRY_INFO!F11*0.5>MAX('T1'!M11,'T2'!K11),MAX('T1'!M11,'T2'!K11),COUNTRY_INFO!F11*0.5),IF(COUNTRY_INFO!K11=3,IF(COUNTRY_INFO!F11>MAX('T1'!M11,'T2'!K11),MAX('T1'!M11,'T2'!K11),COUNTRY_INFO!F11),0))) -> 0 | AE11: =IF(AND(COUNTRY_INFO!K11>0,COUNTRY_INFO!K11<4),IF(Z11>0,IF(COUNTRY_INFO!K11=1, AD11/(COUNTRY_INFO!F11*0.33)*100, IF(COUNTRY_INFO!K11=2, AD11/(COUNTRY_INFO!F11*0.5)*100, IF(COUNTRY_INFO!K11=3, AD11/COUNTRY_INFO!F11*100))),"-"),0) -> 0 | AF11: =IF(COUNTRY_INFO!K11=2,IF(COUNTRY_INFO!G11*0.2>MAX('T1'!N11,'T2'!L11),MAX('T1'!N11,'T2'!L11),COUNTRY_INFO!G11*0.2),IF(COUNTRY_INFO!K11=3,IF(COUNTRY_INFO!G11>MAX('T1'!N11,'T2'!L11),MAX('T1'!N11,'T2'!L11),COUNTRY_INFO!G11),0)) -> 0 | AG11: =IF(AND(COUNTRY_INFO!K11>0,COUNTRY_INFO!K11<4),IF(Z11>0,IF(COUNTRY_INFO!K11=1, 0, IF(COUNTRY_INFO!K11=2, AF11/(COUNTRY_INFO!G11*0.2)*100, IF(COUNTRY_INFO!K11=3, AF11/COUNTRY_INFO!G11*100))),"-"),0) -> 0 | AH11: 0 | AI11: =IF(AND(COUNTRY_INFO!K11>0,COUNTRY_INFO!K11<4), IF(AC11/Z11*100<>0, IF(AH11/Z11*100>100,100,AH11/Z11*100), "-"),0) -> - | AK11: =IF(AND(D11<>0, D11<>"Inconnu",D11<>"Interrompu",D11<>"Non requis"),D11/COUNTRY_INFO!D11, 0) -> 0 | AL11: =IF(AND(J11<>0,J11<>"Inconnu",J11<>"Interrompu",J11<>"Non requis"),J11/COUNTRY_INFO!D11, 0) -> 0 | AM11: =IF(AND(P11<>0,P11<>"Inconnu",P11<>"Non requis"),P11/(COUNTRY_INFO!E11+COUNTRY_INFO!F11), 0) -> 0 | AN11: =IF(AND(Z11<>0,Z11<>"Inconnu",Z11<>"Non requis"),IF(COUNTRY_INFO!K11=1,1,IF(COUNTRY_INFO!K11=2,0.5*COUNTRY_INFO!F11/(0.5*COUNTRY_INFO!F11+0.2*COUNTRY_INFO!G11),IF(COUNTRY_INFO!K11=3,COUNTRY_INFO!F11/(COUNTRY_INFO!F11+COUNTRY_INFO!G11)))),0) -> 1 | AO11: =IF(AND(Z11<>0,Z11<>"Inconnu",Z11<>"Non requis"),IF(COUNTRY_INFO!K11=1,0,IF(COUNTRY_INFO!K11=2,0.2*COUNTRY_INFO!G11/(0.5*COUNTRY_INFO!F11+0.2*COUNTRY_INFO!G11),IF(COUNTRY_INFO!K11=3,COUNTRY_INFO!G11/(COUNTRY_INFO!F11+COUNTRY_INFO!G11)))),0) -> 0 | AP11: =MAX(COUNTRY_INFO!D11*AK11*PROFILE!$G$7,COUNTRY_INFO!D11*AL11*PROFILE!$G$7) -> 0 | AQ11: =MAX(COUNTRY_INFO!D11*AK11*PROFILE!$G$8,COUNTRY_INFO!D11*AL11*PROFILE!$G$8,COUNTRY_INFO!D11*AM11*PROFILE!$G$8) -> 0 | AR11: =MAX(COUNTRY_INFO!D11*AK11*PROFILE!$G$9,COUNTRY_INFO!D11*AL11*PROFILE!$G$9,COUNTRY_INFO!D11*AM11*PROFILE!$G$9,IF(AND(DISTRICT!Z11<>"Inconnu",Z11<>"Non requis"),COUNTRY_INFO!O11*DISTRICT!AN11,0)) -> 15481.29 | AS11: =MAX(COUNTRY_INFO!D11*AK11*PROFILE!$G$10,COUNTRY_INFO!D11*AL11*PROFILE!$G$10,IF(AND(DISTRICT!Z11<>"Inconnu",Z11<>"Non requis"),COUNTRY_INFO!O11*DISTRICT!AO11,0)) -> 0 | AT11: 15481.29 | AU11: 0 | AV11: =MAX('MDA2'!J11,'T1'!L11,'T2'!J11,T3_R1!K11,T3_R2!K11) -> 0 | AW11: =MAX('MDA1'!K11,'MDA2'!K11,'MDA3'!I11,'MDA3'!L11,'T1'!M11,'T2'!K11,T3_R1!L11,T3_R2!L11) -> 54455 | AX11: =MAX('MDA1'!L11,'MDA2'!L11,'MDA3'!J11,'MDA3'!M11,'T1'!N11,'T2'!L11,T3_R1!M11,T3_R2!M11) -> 0 | AY11: 54455 | AZ11: =MAX('MDA2'!J11,T11) -> 0 | BA11: =MAX('MDA1'!K11,'MDA2'!K11,'MDA3'!I11,'MDA3'!L11,V11,AD11) -> 0 | BB11: =MAX('MDA1'!L11,'MDA2'!L11,'MDA3'!J11,'MDA3'!M11,AF11) -> 0 | BC11: 0 | BD11: 0
A12: =IF(COUNTRY_INFO!A12=0," ",COUNTRY_INFO!A12) -> Mali | B12: =IF(COUNTRY_INFO!B12=0," ",COUNTRY_INFO!B12) -> Bamako | C12: =IF(COUNTRY_INFO!C12=0," ",COUNTRY_INFO!C12) -> Commune 4 | D12: =COUNTRY_INFO!L12 -> Interrompu | G12: =MAX('MDA1'!M12,'MDA2'!M12) -> 0 | H12: =IF(AND(COUNTRY_INFO!H12>0,COUNTRY_INFO!H12<4),IF(D12>MAX('MDA1'!M12,'MDA2'!M12),MAX('MDA1'!M12,'MDA2'!M12),D12),0) -> 0 | I12: =IF(AND(COUNTRY_INFO!H12>0,COUNTRY_INFO!H12<4), IF(G12/D12*100<>0, IF(G12/D12*100>100,100,G12/D12*100), "-"),0) -> 0 | J12: =COUNTRY_INFO!M12 -> 0 | M12: =MAX('MDA1'!M12,MAX('MDA3'!I12,'MDA3'!L12)+MAX('MDA3'!J12,'MDA3'!M12)) -> 0 | N12: =IF(AND(COUNTRY_INFO!I12>0,COUNTRY_INFO!I12<4),IF(J12>MAX('MDA1'!M12,MAX('MDA3'!I12,'MDA3'!L12)+MAX('MDA3'!J12,'MDA3'!M12)),MAX('MDA1'!M12,MAX('MDA3'!I12,'MDA3'!L12)+MAX('MDA3'!J12,'MDA3'!M12)),J12),0) -> 0 | O12: =IF(AND(COUNTRY_INFO!I12>0,COUNTRY_INFO!I12<4), IF(M12/J12*100<>0, IF(M12/J12*100>100,100,M12/J12*100), "-"),0) -> 0 | P12: =COUNTRY_INFO!N12 -> 0 | S12: =SUM(MAX('MDA2'!J12, 'T1'!L12, MAX(T3_R1!K12, T3_R2!K12)), MAX('MDA1'!K12, 'MDA2'!K12, 'T1'!M12, MAX(T3_R1!L12, T3_R2!L12)), MAX('MDA1'!L12, 'MDA2'!L12, 'T1'!N12, MAX(T3_R1!M12, T3_R2!M12))) -> 114022 | T12: =IF(AND(COUNTRY_INFO!J12>1,COUNTRY_INFO!J12<4),IF(COUNTRY_INFO!E12>MAX('MDA2'!J12,'T1'!L12,MAX(T3_R1!K12,T3_R2!K12)),MAX('MDA2'!J12,'T1'!L12,MAX(T3_R1!K12,T3_R2!K12)),COUNTRY_INFO!E12),0) -> 0 | U12: =IF(AND(COUNTRY_INFO!J12>1,COUNTRY_INFO!J12<4), IF(T12/COUNTRY_INFO!E12*100<>0, IF(T12/COUNTRY_INFO!E12*100>100,100,T12/COUNTRY_INFO!E12*100), "-"),0) -> 0 | V12: =IF(AND(COUNTRY_INFO!J12>1,COUNTRY_INFO!J12<4),IF(COUNTRY_INFO!F12>MAX('MDA1'!K12,'MDA2'!K12,'T1'!M12,MAX(T3_R1!L12,T3_R2!L12)),MAX('MDA1'!K12,'MDA2'!K12,'T1'!M12,MAX(T3_R1!L12,T3_R2!L12)),COUNTRY_INFO!F12),0) -> 0 | W12: =IF(AND(COUNTRY_INFO!J12>1,COUNTRY_INFO!J12<4), IF(V12/COUNTRY_INFO!F12*100<>0, IF(V12/COUNTRY_INFO!F12*100>100,100,V12/COUNTRY_INFO!F12*100), "-"),0) -> 0 | X12: 0 | Y12: =IF(AND(COUNTRY_INFO!J12>1,COUNTRY_INFO!J12<4), IF(S12/P12*100<>0, IF(X12/P12*100>100,100,X12/P12*100), "-"),0) -> 0 | Z12: =COUNTRY_INFO!O12 -> 94803.2 | AC12: =MAX('T1'!L12,'T2'!J12)+MAX('T1'!M12,'T2'!K12)+MAX('T1'!N12,'T2'!L12) -> 114022 | AD12: =IF(COUNTRY_INFO!K12=1,IF(COUNTRY_INFO!F12*0.33>MAX('T1'!M12,'T2'!K12),MAX('T1'!M12,'T2'!K12),COUNTRY_INFO!F12*0.33),IF(COUNTRY_INFO!K12=2,IF(COUNTRY_INFO!F12*0.5>MAX('T1'!M12,'T2'!K12),MAX('T1'!M12,'T2'!K12),COUNTRY_INFO!F12*0.5),IF(COUNTRY_INFO!K12=3,IF(COUNTRY_INFO!F12>MAX('T1'!M12,'T2'!K12),MAX('T1'!M12,'T2'!K12),COUNTRY_INFO!F12),0))) -> 54619 | AE12: =IF(AND(COUNTRY_INFO!K12>0,COUNTRY_INFO!K12<4),IF(Z12>0,IF(COUNTRY_INFO!K12=1, AD12/(COUNTRY_INFO!F12*0.33)*100, IF(COUNTRY_INFO!K12=2, AD12/(COUNTRY_INFO!F12*0.5)*100, IF(COUNTRY_INFO!K12=3, AD12/COUNTRY_INFO!F12*100))),"-"),0) -> 100 | AF12: =IF(COUNTRY_INFO!K12=2,IF(COUNTRY_INFO!G12*0.2>MAX('T1'!N12,'T2'!L12),MAX('T1'!N12,'T2'!L12),COUNTRY_INFO!G12*0.2),IF(COUNTRY_INFO!K12=3,IF(COUNTRY_INFO!G12>MAX('T1'!N12,'T2'!L12),MAX('T1'!N12,'T2'!L12),COUNTRY_INFO!G12),0)) -> 0 | AG12: =IF(AND(COUNTRY_INFO!K12>0,COUNTRY_INFO!K12<4),IF(Z12>0,IF(COUNTRY_INFO!K12=1, 0, IF(COUNTRY_INFO!K12=2, AF12/(COUNTRY_INFO!G12*0.2)*100, IF(COUNTRY_INFO!K12=3, AF12/COUNTRY_INFO!G12*100))),"-"),0) -> 0 | AH12: 54619 | AI12: =IF(AND(COUNTRY_INFO!K12>0,COUNTRY_INFO!K12<4), IF(AC12/Z12*100<>0, IF(AH12/Z12*100>100,100,AH12/Z12*100), "-"),0) -> 57.61303416 | AK12: =IF(AND(D12<>0, D12<>"Inconnu",D12<>"Interrompu",D12<>"Non requis"),D12/COUNTRY_INFO!D12, 0) -> 0 | AL12: =IF(AND(J12<>0,J12<>"Inconnu",J12<>"Interrompu",J12<>"Non requis"),J12/COUNTRY_INFO!D12, 0) -> 0 | AM12: =IF(AND(P12<>0,P12<>"Inconnu",P12<>"Non requis"),P12/(COUNTRY_INFO!E12+COUNTRY_INFO!F12), 0) -> 0 | AN12: =IF(AND(Z12<>0,Z12<>"Inconnu",Z12<>"Non requis"),IF(COUNTRY_INFO!K12=1,1,IF(COUNTRY_INFO!K12=2,0.5*COUNTRY_INFO!F12/(0.5*COUNTRY_INFO!F12+0.2*COUNTRY_INFO!G12),IF(COUNTRY_INFO!K12=3,COUNTRY_INFO!F12/(COUNTRY_INFO!F12+COUNTRY_INFO!G12)))),0) -> 0.5761303416 | AO12: =IF(AND(Z12<>0,Z12<>"Inconnu",Z12<>"Non requis"),IF(COUNTRY_INFO!K12=1,0,IF(COUNTRY_INFO!K12=2,0.2*COUNTRY_INFO!G12/(0.5*COUNTRY_INFO!F12+0.2*COUNTRY_INFO!G12),IF(COUNTRY_INFO!K12=3,COUNTRY_INFO!G12/(COUNTRY_INFO!F12+COUNTRY_INFO!G12)))),0) -> 0.4238696584 | AP12: =MAX(COUNTRY_INFO!D12*AK12*PROFILE!$G$7,COUNTRY_INFO!D12*AL12*PROFILE!$G$7) -> 0 | AQ12: =MAX(COUNTRY_INFO!D12*AK12*PROFILE!$G$8,COUNTRY_INFO!D12*AL12*PROFILE!$G$8,COUNTRY_INFO!D12*AM12*PROFILE!$G$8) -> 0 | AR12: =MAX(COUNTRY_INFO!D12*AK12*PROFILE!$G$9,COUNTRY_INFO!D12*AL12*PROFILE!$G$9,COUNTRY_INFO!D12*AM12*PROFILE!$G$9,IF(AND(DISTRICT!Z12<>"Inconnu",Z12<>"Non requis"),COUNTRY_INFO!O12*DISTRICT!AN12,0)) -> 54619 | AS12: =MAX(COUNTRY_INFO!D12*AK12*PROFILE!$G$10,COUNTRY_INFO!D12*AL12*PROFILE!$G$10,IF(AND(DISTRICT!Z12<>"Inconnu",Z12<>"Non requis"),COUNTRY_INFO!O12*DISTRICT!AO12,0)) -> 40184.2 | AT12: 94803.2 | AU12: Y | AV12: =MAX('MDA2'!J12,'T1'!L12,'T2'!J12,T3_R1!K12,T3_R2!K12) -> 0 | AW12: =MAX('MDA1'!K12,'MDA2'!K12,'MDA3'!I12,'MDA3'!L12,'T1'!M12,'T2'!K12,T3_R1!L12,T3_R2!L12) -> 114022 | AX12: =MAX('MDA1'!L12,'MDA2'!L12,'MDA3'!J12,'MDA3'!M12,'T1'!N12,'T2'!L12,T3_R1!M12,T3_R2!M12) -> 0 | AY12: 114022 | AZ12: =MAX('MDA2'!J12,T12) -> 0 | BA12: =MAX('MDA1'!K12,'MDA2'!K12,'MDA3'!I12,'MDA3'!L12,V12,AD12) -> 54619 | BB12: =MAX('MDA1'!L12,'MDA2'!L12,'MDA3'!J12,'MDA3'!M12,AF12) -> 0 | BC12: 54619 | BD12: 57.61303416
A13: =IF(COUNTRY_INFO!A13=0," ",COUNTRY_INFO!A13) -> Mali | B13: =IF(COUNTRY_INFO!B13=0," ",COUNTRY_INFO!B13) -> Bamako | C13: =IF(COUNTRY_INFO!C13=0," ",COUNTRY_INFO!C13) -> Commune 5 | D13: =COUNTRY_INFO!L13 -> Interrompu | G13: =MAX('MDA1'!M13,'MDA2'!M13) -> 0 | H13: =IF(AND(COUNTRY_INFO!H13>0,COUNTRY_INFO!H13<4),IF(D13>MAX('MDA1'!M13,'MDA2'!M13),MAX('MDA1'!M13,'MDA2'!M13),D13),0) -> 0 | I13: =IF(AND(COUNTRY_INFO!H13>0,COUNTRY_INFO!H13<4), IF(G13/D13*100<>0, IF(G13/D13*100>100,100,G13/D13*100), "-"),0) -> 0 | J13: =COUNTRY_INFO!M13 -> 0 | M13: =MAX('MDA1'!M13,MAX('MDA3'!I13,'MDA3'!L13)+MAX('MDA3'!J13,'MDA3'!M13)) -> 0 | N13: =IF(AND(COUNTRY_INFO!I13>0,COUNTRY_INFO!I13<4),IF(J13>MAX('MDA1'!M13,MAX('MDA3'!I13,'MDA3'!L13)+MAX('MDA3'!J13,'MDA3'!M13)),MAX('MDA1'!M13,MAX('MDA3'!I13,'MDA3'!L13)+MAX('MDA3'!J13,'MDA3'!M13)),J13),0) -> 0 | O13: =IF(AND(COUNTRY_INFO!I13>0,COUNTRY_INFO!I13<4), IF(M13/J13*100<>0, IF(M13/J13*100>100,100,M13/J13*100), "-"),0) -> 0 | P13: =COUNTRY_INFO!N13 -> 0 | S13: =SUM(MAX('MDA2'!J13, 'T1'!L13, MAX(T3_R1!K13, T3_R2!K13)), MAX('MDA1'!K13, 'MDA2'!K13, 'T1'!M13, MAX(T3_R1!L13, T3_R2!L13)), MAX('MDA1'!L13, 'MDA2'!L13, 'T1'!N13, MAX(T3_R1!M13, T3_R2!M13))) -> 146439 | T13: =IF(AND(COUNTRY_INFO!J13>1,COUNTRY_INFO!J13<4),IF(COUNTRY_INFO!E13>MAX('MDA2'!J13,'T1'!L13,MAX(T3_R1!K13,T3_R2!K13)),MAX('MDA2'!J13,'T1'!L13,MAX(T3_R1!K13,T3_R2!K13)),COUNTRY_INFO!E13),0) -> 0 | U13: =IF(AND(COUNTRY_INFO!J13>1,COUNTRY_INFO!J13<4), IF(T13/COUNTRY_INFO!E13*100<>0, IF(T13/COUNTRY_INFO!E13*100>100,100,T13/COUNTRY_INFO!E13*100), "-"),0) -> 0 | V13: =IF(AND(COUNTRY_INFO!J13>1,COUNTRY_INFO!J13<4),IF(COUNTRY_INFO!F13>MAX('MDA1'!K13,'MDA2'!K13,'T1'!M13,MAX(T3_R1!L13,T3_R2!L13)),MAX('MDA1'!K13,'MDA2'!K13,'T1'!M13,MAX(T3_R1!L13,T3_R2!L13)),COUNTRY_INFO!F13),0) -> 0 | W13: =IF(AND(COUNTRY_INFO!J13>1,COUNTRY_INFO!J13<4), IF(V13/COUNTRY_INFO!F13*100<>0, IF(V13/COUNTRY_INFO!F13*100>100,100,V13/COUNTRY_INFO!F13*100), "-"),0) -> 0 | X13: 0 | Y13: =IF(AND(COUNTRY_INFO!J13>1,COUNTRY_INFO!J13<4), IF(S13/P13*100<>0, IF(X13/P13*100>100,100,X13/P13*100), "-"),0) -> 0 | Z13: =COUNTRY_INFO!O13 -> 131003 | AC13: =MAX('T1'!L13,'T2'!J13)+MAX('T1'!M13,'T2'!K13)+MAX('T1'!N13,'T2'!L13) -> 146439 | AD13: =IF(COUNTRY_INFO!K13=1,IF(COUNTRY_INFO!F13*0.33>MAX('T1'!M13,'T2'!K13),MAX('T1'!M13,'T2'!K13),COUNTRY_INFO!F13*0.33),IF(COUNTRY_INFO!K13=2,IF(COUNTRY_INFO!F13*0.5>MAX('T1'!M13,'T2'!K13),MAX('T1'!M13,'T2'!K13),COUNTRY_INFO!F13*0.5),IF(COUNTRY_INFO!K13=3,IF(COUNTRY_INFO!F13>MAX('T1'!M13,'T2'!K13),MAX('T1'!M13,'T2'!K13),COUNTRY_INFO!F13),0))) -> 75475 | AE13: =IF(AND(COUNTRY_INFO!K13>0,COUNTRY_INFO!K13<4),IF(Z13>0,IF(COUNTRY_INFO!K13=1, AD13/(COUNTRY_INFO!F13*0.33)*100, IF(COUNTRY_INFO!K13=2, AD13/(COUNTRY_INFO!F13*0.5)*100, IF(COUNTRY_INFO!K13=3, AD13/COUNTRY_INFO!F13*100))),"-"),0) -> 100 | AF13: =IF(COUNTRY_INFO!K13=2,IF(COUNTRY_INFO!G13*0.2>MAX('T1'!N13,'T2'!L13),MAX('T1'!N13,'T2'!L13),COUNTRY_INFO!G13*0.2),IF(COUNTRY_INFO!K13=3,IF(COUNTRY_INFO!G13>MAX('T1'!N13,'T2'!L13),MAX('T1'!N13,'T2'!L13),COUNTRY_INFO!G13),0)) -> 0 | AG13: =IF(AND(COUNTRY_INFO!K13>0,COUNTRY_INFO!K13<4),IF(Z13>0,IF(COUNTRY_INFO!K13=1, 0, IF(COUNTRY_INFO!K13=2, AF13/(COUNTRY_INFO!G13*0.2)*100, IF(COUNTRY_INFO!K13=3, AF13/COUNTRY_INFO!G13*100))),"-"),0) -> 0 | AH13: 75475 | AI13: =IF(AND(COUNTRY_INFO!K13>0,COUNTRY_INFO!K13<4), IF(AC13/Z13*100<>0, IF(AH13/Z13*100>100,100,AH13/Z13*100), "-"),0) -> 57.61318443 | AK13: =IF(AND(D13<>0, D13<>"Inconnu",D13<>"Interrompu",D13<>"Non requis"),D13/COUNTRY_INFO!D13, 0) -> 0 | AL13: =IF(AND(J13<>0,J13<>"Inconnu",J13<>"Interrompu",J13<>"Non requis"),J13/COUNTRY_INFO!D13, 0) -> 0 | AM13: =IF(AND(P13<>0,P13<>"Inconnu",P13<>"Non requis"),P13/(COUNTRY_INFO!E13+COUNTRY_INFO!F13), 0) -> 0 | AN13: =IF(AND(Z13<>0,Z13<>"Inconnu",Z13<>"Non requis"),IF(COUNTRY_INFO!K13=1,1,IF(COUNTRY_INFO!K13=2,0.5*COUNTRY_INFO!F13/(0.5*COUNTRY_INFO!F13+0.2*COUNTRY_INFO!G13),IF(COUNTRY_INFO!K13=3,COUNTRY_INFO!F13/(COUNTRY_INFO!F13+COUNTRY_INFO!G13)))),0) -> 0.5761318443 | AO13: =IF(AND(Z13<>0,Z13<>"Inconnu",Z13<>"Non requis"),IF(COUNTRY_INFO!K13=1,0,IF(COUNTRY_INFO!K13=2,0.2*COUNTRY_INFO!G13/(0.5*COUNTRY_INFO!F13+0.2*COUNTRY_INFO!G13),IF(COUNTRY_INFO!K13=3,COUNTRY_INFO!G13/(COUNTRY_INFO!F13+COUNTRY_INFO!G13)))),0) -> 0.4238681557 | AP13: =MAX(COUNTRY_INFO!D13*AK13*PROFILE!$G$7,COUNTRY_INFO!D13*AL13*PROFILE!$G$7) -> 0 | AQ13: =MAX(COUNTRY_INFO!D13*AK13*PROFILE!$G$8,COUNTRY_INFO!D13*AL13*PROFILE!$G$8,COUNTRY_INFO!D13*AM13*PROFILE!$G$8) -> 0 | AR13: =MAX(COUNTRY_INFO!D13*AK13*PROFILE!$G$9,COUNTRY_INFO!D13*AL13*PROFILE!$G$9,COUNTRY_INFO!D13*AM13*PROFILE!$G$9,IF(AND(DISTRICT!Z13<>"Inconnu",Z13<>"Non requis"),COUNTRY_INFO!O13*DISTRICT!AN13,0)) -> 75475 | AS13: =MAX(COUNTRY_INFO!D13*AK13*PROFILE!$G$10,COUNTRY_INFO!D13*AL13*PROFILE!$G$10,IF(AND(DISTRICT!Z13<>"Inconnu",Z13<>"Non requis"),COUNTRY_INFO!O13*DISTRICT!AO13,0)) -> 55528 | AT13: 131003 | AU13: Y | AV13: =MAX('MDA2'!J13,'T1'!L13,'T2'!J13,T3_R1!K13,T3_R2!K13) -> 0 | AW13: =MAX('MDA1'!K13,'MDA2'!K13,'MDA3'!I13,'MDA3'!L13,'T1'!M13,'T2'!K13,T3_R1!L13,T3_R2!L13) -> 146439 | AX13: =MAX('MDA1'!L13,'MDA2'!L13,'MDA3'!J13,'MDA3'!M13,'T1'!N13,'T2'!L13,T3_R1!M13,T3_R2!M13) -> 0 | AY13: 146439 | AZ13: =MAX('MDA2'!J13,T13) -> 0 | BA13: =MAX('MDA1'!K13,'MDA2'!K13,'MDA3'!I13,'MDA3'!L13,V13,AD13) -> 75475 | BB13: =MAX('MDA1'!L13,'MDA2'!L13,'MDA3'!J13,'MDA3'!M13,AF13) -> 0 | BC13: 75475 | BD13: 57.61318443
A14: =IF(COUNTRY_INFO!A14=0," ",COUNTRY_INFO!A14) -> Mali | B14: =IF(COUNTRY_INFO!B14=0," ",COUNTRY_INFO!B14) -> Bamako | C14: =IF(COUNTRY_INFO!C14=0," ",COUNTRY_INFO!C14) -> Commune 6 | D14: =COUNTRY_INFO!L14 -> Interrompu | G14: =MAX('MDA1'!M14,'MDA2'!M14) -> 0 | H14: =IF(AND(COUNTRY_INFO!H14>0,COUNTRY_INFO!H14<4),IF(D14>MAX('MDA1'!M14,'MDA2'!M14),MAX('MDA1'!M14,'MDA2'!M14),D14),0) -> 0 | I14: =IF(AND(COUNTRY_INFO!H14>0,COUNTRY_INFO!H14<4), IF(G14/D14*100<>0, IF(G14/D14*100>100,100,G14/D14*100), "-"),0) -> 0 | J14: =COUNTRY_INFO!M14 -> 0 | M14: =MAX('MDA1'!M14,MAX('MDA3'!I14,'MDA3'!L14)+MAX('MDA3'!J14,'MDA3'!M14)) -> 0 | N14: =IF(AND(COUNTRY_INFO!I14>0,COUNTRY_INFO!I14<4),IF(J14>MAX('MDA1'!M14,MAX('MDA3'!I14,'MDA3'!L14)+MAX('MDA3'!J14,'MDA3'!M14)),MAX('MDA1'!M14,MAX('MDA3'!I14,'MDA3'!L14)+MAX('MDA3'!J14,'MDA3'!M14)),J14),0) -> 0 | O14: =IF(AND(COUNTRY_INFO!I14>0,COUNTRY_INFO!I14<4), IF(M14/J14*100<>0, IF(M14/J14*100>100,100,M14/J14*100), "-"),0) -> 0 | P14: =COUNTRY_INFO!N14 -> 0 | S14: =SUM(MAX('MDA2'!J14, 'T1'!L14, MAX(T3_R1!K14, T3_R2!K14)), MAX('MDA1'!K14, 'MDA2'!K14, 'T1'!M14, MAX(T3_R1!L14, T3_R2!L14)), MAX('MDA1'!L14, 'MDA2'!L14, 'T1'!N14, MAX(T3_R1!M14, T3_R2!M14))) -> 212126 | T14: =IF(AND(COUNTRY_INFO!J14>1,COUNTRY_INFO!J14<4),IF(COUNTRY_INFO!E14>MAX('MDA2'!J14,'T1'!L14,MAX(T3_R1!K14,T3_R2!K14)),MAX('MDA2'!J14,'T1'!L14,MAX(T3_R1!K14,T3_R2!K14)),COUNTRY_INFO!E14),0) -> 0 | U14: =IF(AND(COUNTRY_INFO!J14>1,COUNTRY_INFO!J14<4), IF(T14/COUNTRY_INFO!E14*100<>0, IF(T14/COUNTRY_INFO!E14*100>100,100,T14/COUNTRY_INFO!E14*100), "-"),0) -> 0 | V14: =IF(AND(COUNTRY_INFO!J14>1,COUNTRY_INFO!J14<4),IF(COUNTRY_INFO!F14>MAX('MDA1'!K14,'MDA2'!K14,'T1'!M14,MAX(T3_R1!L14,T3_R2!L14)),MAX('MDA1'!K14,'MDA2'!K14,'T1'!M14,MAX(T3_R1!L14,T3_R2!L14)),COUNTRY_INFO!F14),0) -> 0 | W14: =IF(AND(COUNTRY_INFO!J14>1,COUNTRY_INFO!J14<4), IF(V14/COUNTRY_INFO!F14*100<>0, IF(V14/COUNTRY_INFO!F14*100>100,100,V14/COUNTRY_INFO!F14*100), "-"),0) -> 0 | X14: 0 | Y14: =IF(AND(COUNTRY_INFO!J14>1,COUNTRY_INFO!J14<4), IF(S14/P14*100<>0, IF(X14/P14*100>100,100,X14/P14*100), "-"),0) -> 0 | Z14: =COUNTRY_INFO!O14 -> 56492.7 | AC14: =MAX('T1'!L14,'T2'!J14)+MAX('T1'!M14,'T2'!K14)+MAX('T1'!N14,'T2'!L14) -> 0 | AD14: =IF(COUNTRY_INFO!K14=1,IF(COUNTRY_INFO!F14*0.33>MAX('T1'!M14,'T2'!K14),MAX('T1'!M14,'T2'!K14),COUNTRY_INFO!F14*0.33),IF(COUNTRY_INFO!K14=2,IF(COUNTRY_INFO!F14*0.5>MAX('T1'!M14,'T2'!K14),MAX('T1'!M14,'T2'!K14),COUNTRY_INFO!F14*0.5),IF(COUNTRY_INFO!K14=3,IF(COUNTRY_INFO!F14>MAX('T1'!M14,'T2'!K14),MAX('T1'!M14,'T2'!K14),COUNTRY_INFO!F14),0))) -> 0 | AE14: =IF(AND(COUNTRY_INFO!K14>0,COUNTRY_INFO!K14<4),IF(Z14>0,IF(COUNTRY_INFO!K14=1, AD14/(COUNTRY_INFO!F14*0.33)*100, IF(COUNTRY_INFO!K14=2, AD14/(COUNTRY_INFO!F14*0.5)*100, IF(COUNTRY_INFO!K14=3, AD14/COUNTRY_INFO!F14*100))),"-"),0) -> 0 | AF14: =IF(COUNTRY_INFO!K14=2,IF(COUNTRY_INFO!G14*0.2>MAX('T1'!N14,'T2'!L14),MAX('T1'!N14,'T2'!L14),COUNTRY_INFO!G14*0.2),IF(COUNTRY_INFO!K14=3,IF(COUNTRY_INFO!G14>MAX('T1'!N14,'T2'!L14),MAX('T1'!N14,'T2'!L14),COUNTRY_INFO!G14),0)) -> 0 | AG14: =IF(AND(COUNTRY_INFO!K14>0,COUNTRY_INFO!K14<4),IF(Z14>0,IF(COUNTRY_INFO!K14=1, 0, IF(COUNTRY_INFO!K14=2, AF14/(COUNTRY_INFO!G14*0.2)*100, IF(COUNTRY_INFO!K14=3, AF14/COUNTRY_INFO!G14*100))),"-"),0) -> 0 | AH14: 0 | AI14: =IF(AND(COUNTRY_INFO!K14>0,COUNTRY_INFO!K14<4), IF(AC14/Z14*100<>0, IF(AH14/Z14*100>100,100,AH14/Z14*100), "-"),0) -> - | AK14: =IF(AND(D14<>0, D14<>"Inconnu",D14<>"Interrompu",D14<>"Non requis"),D14/COUNTRY_INFO!D14, 0) -> 0 | AL14: =IF(AND(J14<>0,J14<>"Inconnu",J14<>"Interrompu",J14<>"Non requis"),J14/COUNTRY_INFO!D14, 0) -> 0 | AM14: =IF(AND(P14<>0,P14<>"Inconnu",P14<>"Non requis"),P14/(COUNTRY_INFO!E14+COUNTRY_INFO!F14), 0) -> 0 | AN14: =IF(AND(Z14<>0,Z14<>"Inconnu",Z14<>"Non requis"),IF(COUNTRY_INFO!K14=1,1,IF(COUNTRY_INFO!K14=2,0.5*COUNTRY_INFO!F14/(0.5*COUNTRY_INFO!F14+0.2*COUNTRY_INFO!G14),IF(COUNTRY_INFO!K14=3,COUNTRY_INFO!F14/(COUNTRY_INFO!F14+COUNTRY_INFO!G14)))),0) -> 1 | AO14: =IF(AND(Z14<>0,Z14<>"Inconnu",Z14<>"Non requis"),IF(COUNTRY_INFO!K14=1,0,IF(COUNTRY_INFO!K14=2,0.2*COUNTRY_INFO!G14/(0.5*COUNTRY_INFO!F14+0.2*COUNTRY_INFO!G14),IF(COUNTRY_INFO!K14=3,COUNTRY_INFO!G14/(COUNTRY_INFO!F14+COUNTRY_INFO!G14)))),0) -> 0 | AP14: =MAX(COUNTRY_INFO!D14*AK14*PROFILE!$G$7,COUNTRY_INFO!D14*AL14*PROFILE!$G$7) -> 0 | AQ14: =MAX(COUNTRY_INFO!D14*AK14*PROFILE!$G$8,COUNTRY_INFO!D14*AL14*PROFILE!$G$8,COUNTRY_INFO!D14*AM14*PROFILE!$G$8) -> 0 | AR14: =MAX(COUNTRY_INFO!D14*AK14*PROFILE!$G$9,COUNTRY_INFO!D14*AL14*PROFILE!$G$9,COUNTRY_INFO!D14*AM14*PROFILE!$G$9,IF(AND(DISTRICT!Z14<>"Inconnu",Z14<>"Non requis"),COUNTRY_INFO!O14*DISTRICT!AN14,0)) -> 56492.7 | AS14: =MAX(COUNTRY_INFO!D14*AK14*PROFILE!$G$10,COUNTRY_INFO!D14*AL14*PROFILE!$G$10,IF(AND(DISTRICT!Z14<>"Inconnu",Z14<>"Non requis"),COUNTRY_INFO!O14*DISTRICT!AO14,0)) -> 0 | AT14: 56492.7 | AU14: 0 | AV14: =MAX('MDA2'!J14,'T1'!L14,'T2'!J14,T3_R1!K14,T3_R2!K14) -> 0 | AW14: =MAX('MDA1'!K14,'MDA2'!K14,'MDA3'!I14,'MDA3'!L14,'T1'!M14,'T2'!K14,T3_R1!L14,T3_R2!L14) -> 212126 | AX14: =MAX('MDA1'!L14,'MDA2'!L14,'MDA3'!J14,'MDA3'!M14,'T1'!N14,'T2'!L14,T3_R1!M14,T3_R2!M14) -> 0 | AY14: 212126 | AZ14: =MAX('MDA2'!J14,T14) -> 0 | BA14: =MAX('MDA1'!K14,'MDA2'!K14,'MDA3'!I14,'MDA3'!L14,V14,AD14) -> 0 | BB14: =MAX('MDA1'!L14,'MDA2'!L14,'MDA3'!J14,'MDA3'!M14,AF14) -> 0 | BC14: 0 | BD14: 0
A15: =IF(COUNTRY_INFO!A15=0," ",COUNTRY_INFO!A15) -> Mali | B15: =IF(COUNTRY_INFO!B15=0," ",COUNTRY_INFO!B15) -> Gao | C15: =IF(COUNTRY_INFO!C15=0," ",COUNTRY_INFO!C15) -> Ansongo | D15: =COUNTRY_INFO!L15 -> 171294 | G15: =MAX('MDA1'!M15,'MDA2'!M15) -> 125021 | H15: =IF(AND(COUNTRY_INFO!H15>0,COUNTRY_INFO!H15<4),IF(D15>MAX('MDA1'!M15,'MDA2'!M15),MAX('MDA1'!M15,'MDA2'!M15),D15),0) -> 125021 | I15: =IF(AND(COUNTRY_INFO!H15>0,COUNTRY_INFO!H15<4), IF(G15/D15*100<>0, IF(G15/D15*100>100,100,G15/D15*100), "-"),0) -> 72.98621084 | J15: =COUNTRY_INFO!M15 -> 0 | M15: =MAX('MDA1'!M15,MAX('MDA3'!I15,'MDA3'!L15)+MAX('MDA3'!J15,'MDA3'!M15)) -> 125021 | N15: =IF(AND(COUNTRY_INFO!I15>0,COUNTRY_INFO!I15<4),IF(J15>MAX('MDA1'!M15,MAX('MDA3'!I15,'MDA3'!L15)+MAX('MDA3'!J15,'MDA3'!M15)),MAX('MDA1'!M15,MAX('MDA3'!I15,'MDA3'!L15)+MAX('MDA3'!J15,'MDA3'!M15)),J15),0) -> 0 | O15: =IF(AND(COUNTRY_INFO!I15>0,COUNTRY_INFO!I15<4), IF(M15/J15*100<>0, IF(M15/J15*100>100,100,M15/J15*100), "-"),0) -> 0 | P15: =COUNTRY_INFO!N15 -> 0 | S15: =SUM(MAX('MDA2'!J15, 'T1'!L15, MAX(T3_R1!K15, T3_R2!K15)), MAX('MDA1'!K15, 'MDA2'!K15, 'T1'!M15, MAX(T3_R1!L15, T3_R2!L15)), MAX('MDA1'!L15, 'MDA2'!L15, 'T1'!N15, MAX(T3_R1!M15, T3_R2!M15))) -> 125021 | T15: =IF(AND(COUNTRY_INFO!J15>1,COUNTRY_INFO!J15<4),IF(COUNTRY_INFO!E15>MAX('MDA2'!J15,'T1'!L15,MAX(T3_R1!K15,T3_R2!K15)),MAX('MDA2'!J15,'T1'!L15,MAX(T3_R1!K15,T3_R2!K15)),COUNTRY_INFO!E15),0) -> 0 | U15: =IF(AND(COUNTRY_INFO!J15>1,COUNTRY_INFO!J15<4), IF(T15/COUNTRY_INFO!E15*100<>0, IF(T15/COUNTRY_INFO!E15*100>100,100,T15/COUNTRY_INFO!E15*100), "-"),0) -> 0 | V15: =IF(AND(COUNTRY_INFO!J15>1,COUNTRY_INFO!J15<4),IF(COUNTRY_INFO!F15>MAX('MDA1'!K15,'MDA2'!K15,'T1'!M15,MAX(T3_R1!L15,T3_R2!L15)),MAX('MDA1'!K15,'MDA2'!K15,'T1'!M15,MAX(T3_R1!L15,T3_R2!L15)),COUNTRY_INFO!F15),0) -> 0 | W15: =IF(AND(COUNTRY_INFO!J15>1,COUNTRY_INFO!J15<4), IF(V15/COUNTRY_INFO!F15*100<>0, IF(V15/COUNTRY_INFO!F15*100>100,100,V15/COUNTRY_INFO!F15*100), "-"),0) -> 0 | X15: 0 | Y15: =IF(AND(COUNTRY_INFO!J15>1,COUNTRY_INFO!J15<4), IF(S15/P15*100<>0, IF(X15/P15*100>100,100,X15/P15*100), "-"),0) -> 0 | Z15: =COUNTRY_INFO!O15 -> 41624.2 | AC15: =MAX('T1'!L15,'T2'!J15)+MAX('T1'!M15,'T2'!K15)+MAX('T1'!N15,'T2'!L15) -> 0 | AD15: =IF(COUNTRY_INFO!K15=1,IF(COUNTRY_INFO!F15*0.33>MAX('T1'!M15,'T2'!K15),MAX('T1'!M15,'T2'!K15),COUNTRY_INFO!F15*0.33),IF(COUNTRY_INFO!K15=2,IF(COUNTRY_INFO!F15*0.5>MAX('T1'!M15,'T2'!K15),MAX('T1'!M15,'T2'!K15),COUNTRY_INFO!F15*0.5),IF(COUNTRY_INFO!K15=3,IF(COUNTRY_INFO!F15>MAX('T1'!M15,'T2'!K15),MAX('T1'!M15,'T2'!K15),COUNTRY_INFO!F15),0))) -> 0 | AE15: =IF(AND(COUNTRY_INFO!K15>0,COUNTRY_INFO!K15<4),IF(Z15>0,IF(COUNTRY_INFO!K15=1, AD15/(COUNTRY_INFO!F15*0.33)*100, IF(COUNTRY_INFO!K15=2, AD15/(COUNTRY_INFO!F15*0.5)*100, IF(COUNTRY_INFO!K15=3, AD15/COUNTRY_INFO!F15*100))),"-"),0) -> 0 | AF15: =IF(COUNTRY_INFO!K15=2,IF(COUNTRY_INFO!G15*0.2>MAX('T1'!N15,'T2'!L15),MAX('T1'!N15,'T2'!L15),COUNTRY_INFO!G15*0.2),IF(COUNTRY_INFO!K15=3,IF(COUNTRY_INFO!G15>MAX('T1'!N15,'T2'!L15),MAX('T1'!N15,'T2'!L15),COUNTRY_INFO!G15),0)) -> 0 | AG15: =IF(AND(COUNTRY_INFO!K15>0,COUNTRY_INFO!K15<4),IF(Z15>0,IF(COUNTRY_INFO!K15=1, 0, IF(COUNTRY_INFO!K15=2, AF15/(COUNTRY_INFO!G15*0.2)*100, IF(COUNTRY_INFO!K15=3, AF15/COUNTRY_INFO!G15*100))),"-"),0) -> 0 | AH15: 0 | AI15: =IF(AND(COUNTRY_INFO!K15>0,COUNTRY_INFO!K15<4), IF(AC15/Z15*100<>0, IF(AH15/Z15*100>100,100,AH15/Z15*100), "-"),0) -> - | AK15: =IF(AND(D15<>0, D15<>"Inconnu",D15<>"Interrompu",D15<>"Non requis"),D15/COUNTRY_INFO!D15, 0) -> 1 | AL15: =IF(AND(J15<>0,J15<>"Inconnu",J15<>"Interrompu",J15<>"Non requis"),J15/COUNTRY_INFO!D15, 0) -> 0 | AM15: =IF(AND(P15<>0,P15<>"Inconnu",P15<>"Non requis"),P15/(COUNTRY_INFO!E15+COUNTRY_INFO!F15), 0) -> 0 | AN15: =IF(AND(Z15<>0,Z15<>"Inconnu",Z15<>"Non requis"),IF(COUNTRY_INFO!K15=1,1,IF(COUNTRY_INFO!K15=2,0.5*COUNTRY_INFO!F15/(0.5*COUNTRY_INFO!F15+0.2*COUNTRY_INFO!G15),IF(COUNTRY_INFO!K15=3,COUNTRY_INFO!F15/(COUNTRY_INFO!F15+COUNTRY_INFO!G15)))),0) -> 0.5761311929 | AO15: =IF(AND(Z15<>0,Z15<>"Inconnu",Z15<>"Non requis"),IF(COUNTRY_INFO!K15=1,0,IF(COUNTRY_INFO!K15=2,0.2*COUNTRY_INFO!G15/(0.5*COUNTRY_INFO!F15+0.2*COUNTRY_INFO!G15),IF(COUNTRY_INFO!K15=3,COUNTRY_INFO!G15/(COUNTRY_INFO!F15+COUNTRY_INFO!G15)))),0) -> 0.4238688071 | AP15: =MAX(COUNTRY_INFO!D15*AK15*PROFILE!$G$7,COUNTRY_INFO!D15*AL15*PROFILE!$G$7) -> 11134.05771 | AQ15: =MAX(COUNTRY_INFO!D15*AK15*PROFILE!$G$8,COUNTRY_INFO!D15*AL15*PROFILE!$G$8,COUNTRY_INFO!D15*AM15*PROFILE!$G$8) -> 23981.17392 | AR15: =MAX(COUNTRY_INFO!D15*AK15*PROFILE!$G$9,COUNTRY_INFO!D15*AL15*PROFILE!$G$9,COUNTRY_INFO!D15*AM15*PROFILE!$G$9,IF(AND(DISTRICT!Z15<>"Inconnu",Z15<>"Non requis"),COUNTRY_INFO!O15*DISTRICT!AN15,0)) -> 47962.3388 | AS15: =MAX(COUNTRY_INFO!D15*AK15*PROFILE!$G$10,COUNTRY_INFO!D15*AL15*PROFILE!$G$10,IF(AND(DISTRICT!Z15<>"Inconnu",Z15<>"Non requis"),COUNTRY_INFO!O15*DISTRICT!AO15,0)) -> 88216.42957 | AT15: 171294 | AU15: 0 | AV15: =MAX('MDA2'!J15,'T1'!L15,'T2'!J15,T3_R1!K15,T3_R2!K15) -> 0 | AW15: =MAX('MDA1'!K15,'MDA2'!K15,'MDA3'!I15,'MDA3'!L15,'T1'!M15,'T2'!K15,T3_R1!L15,T3_R2!L15) -> 52196 | AX15: =MAX('MDA1'!L15,'MDA2'!L15,'MDA3'!J15,'MDA3'!M15,'T1'!N15,'T2'!L15,T3_R1!M15,T3_R2!M15) -> 72825 | AY15: 125021 | AZ15: =MAX('MDA2'!J15,T15) -> 0 | BA15: =MAX('MDA1'!K15,'MDA2'!K15,'MDA3'!I15,'MDA3'!L15,V15,AD15) -> 52196 | BB15: =MAX('MDA1'!L15,'MDA2'!L15,'MDA3'!J15,'MDA3'!M15,AF15) -> 72825 | BC15: 125021 | BD15: 72.98621084
A16: =IF(COUNTRY_INFO!A16=0," ",COUNTRY_INFO!A16) -> Mali | B16: =IF(COUNTRY_INFO!B16=0," ",COUNTRY_INFO!B16) -> Gao | C16: =IF(COUNTRY_INFO!C16=0," ",COUNTRY_INFO!C16) -> Bourem | D16: =COUNTRY_INFO!L16 -> 150243 | G16: =MAX('MDA1'!M16,'MDA2'!M16) -> 103612 | H16: =IF(AND(COUNTRY_INFO!H16>0,COUNTRY_INFO!H16<4),IF(D16>MAX('MDA1'!M16,'MDA2'!M16),MAX('MDA1'!M16,'MDA2'!M16),D16),0) -> 103612 | I16: =IF(AND(COUNTRY_INFO!H16>0,COUNTRY_INFO!H16<4), IF(G16/D16*100<>0, IF(G16/D16*100>100,100,G16/D16*100), "-"),0) -> 68.96294669 | J16: =COUNTRY_INFO!M16 -> 0 | M16: =MAX('MDA1'!M16,MAX('MDA3'!I16,'MDA3'!L16)+MAX('MDA3'!J16,'MDA3'!M16)) -> 103612 | N16: =IF(AND(COUNTRY_INFO!I16>0,COUNTRY_INFO!I16<4),IF(J16>MAX('MDA1'!M16,MAX('MDA3'!I16,'MDA3'!L16)+MAX('MDA3'!J16,'MDA3'!M16)),MAX('MDA1'!M16,MAX('MDA3'!I16,'MDA3'!L16)+MAX('MDA3'!J16,'MDA3'!M16)),J16),0) -> 0 | O16: =IF(AND(COUNTRY_INFO!I16>0,COUNTRY_INFO!I16<4), IF(M16/J16*100<>0, IF(M16/J16*100>100,100,M16/J16*100), "-"),0) -> 0 | P16: =COUNTRY_INFO!N16 -> 0 | S16: =SUM(MAX('MDA2'!J16, 'T1'!L16, MAX(T3_R1!K16, T3_R2!K16)), MAX('MDA1'!K16, 'MDA2'!K16, 'T1'!M16, MAX(T3_R1!L16, T3_R2!L16)), MAX('MDA1'!L16, 'MDA2'!L16, 'T1'!N16, MAX(T3_R1!M16, T3_R2!M16))) -> 103612 | T16: =IF(AND(COUNTRY_INFO!J16>1,COUNTRY_INFO!J16<4),IF(COUNTRY_INFO!E16>MAX('MDA2'!J16,'T1'!L16,MAX(T3_R1!K16,T3_R2!K16)),MAX('MDA2'!J16,'T1'!L16,MAX(T3_R1!K16,T3_R2!K16)),COUNTRY_INFO!E16),0) -> 0 | U16: =IF(AND(COUNTRY_INFO!J16>1,COUNTRY_INFO!J16<4), IF(T16/COUNTRY_INFO!E16*100<>0, IF(T16/COUNTRY_INFO!E16*100>100,100,T16/COUNTRY_INFO!E16*100), "-"),0) -> 0 | V16: =IF(AND(COUNTRY_INFO!J16>1,COUNTRY_INFO!J16<4),IF(COUNTRY_INFO!F16>MAX('MDA1'!K16,'MDA2'!K16,'T1'!M16,MAX(T3_R1!L16,T3_R2!L16)),MAX('MDA1'!K16,'MDA2'!K16,'T1'!M16,MAX(T3_R1!L16,T3_R2!L16)),COUNTRY_INFO!F16),0) -> 0 | W16: =IF(AND(COUNTRY_INFO!J16>1,COUNTRY_INFO!J16<4), IF(V16/COUNTRY_INFO!F16*100<>0, IF(V16/COUNTRY_INFO!F16*100>100,100,V16/COUNTRY_INFO!F16*100), "-"),0) -> 0 | X16: 0 | Y16: =IF(AND(COUNTRY_INFO!J16>1,COUNTRY_INFO!J16<4), IF(S16/P16*100<>0, IF(X16/P16*100>100,100,X16/P16*100), "-"),0) -> 0 | Z16: =COUNTRY_INFO!O16 -> 36509 | AC16: =MAX('T1'!L16,'T2'!J16)+MAX('T1'!M16,'T2'!K16)+MAX('T1'!N16,'T2'!L16) -> 0 | AD16: =IF(COUNTRY_INFO!K16=1,IF(COUNTRY_INFO!F16*0.33>MAX('T1'!M16,'T2'!K16),MAX('T1'!M16,'T2'!K16),COUNTRY_INFO!F16*0.33),IF(COUNTRY_INFO!K16=2,IF(COUNTRY_INFO!F16*0.5>MAX('T1'!M16,'T2'!K16),MAX('T1'!M16,'T2'!K16),COUNTRY_INFO!F16*0.5),IF(COUNTRY_INFO!K16=3,IF(COUNTRY_INFO!F16>MAX('T1'!M16,'T2'!K16),MAX('T1'!M16,'T2'!K16),COUNTRY_INFO!F16),0))) -> 0 | AE16: =IF(AND(COUNTRY_INFO!K16>0,COUNTRY_INFO!K16<4),IF(Z16>0,IF(COUNTRY_INFO!K16=1, AD16/(COUNTRY_INFO!F16*0.33)*100, IF(COUNTRY_INFO!K16=2, AD16/(COUNTRY_INFO!F16*0.5)*100, IF(COUNTRY_INFO!K16=3, AD16/COUNTRY_INFO!F16*100))),"-"),0) -> 0 | AF16: =IF(COUNTRY_INFO!K16=2,IF(COUNTRY_INFO!G16*0.2>MAX('T1'!N16,'T2'!L16),MAX('T1'!N16,'T2'!L16),COUNTRY_INFO!G16*0.2),IF(COUNTRY_INFO!K16=3,IF(COUNTRY_INFO!G16>MAX('T1'!N16,'T2'!L16),MAX('T1'!N16,'T2'!L16),COUNTRY_INFO!G16),0)) -> 0 | AG16: =IF(AND(COUNTRY_INFO!K16>0,COUNTRY_INFO!K16<4),IF(Z16>0,IF(COUNTRY_INFO!K16=1, 0, IF(COUNTRY_INFO!K16=2, AF16/(COUNTRY_INFO!G16*0.2)*100, IF(COUNTRY_INFO!K16=3, AF16/COUNTRY_INFO!G16*100))),"-"),0) -> 0 | AH16: 0 | AI16: =IF(AND(COUNTRY_INFO!K16>0,COUNTRY_INFO!K16<4), IF(AC16/Z16*100<>0, IF(AH16/Z16*100>100,100,AH16/Z16*100), "-"),0) -> - | AK16: =IF(AND(D16<>0, D16<>"Inconnu",D16<>"Interrompu",D16<>"Non requis"),D16/COUNTRY_INFO!D16, 0) -> 1 | AL16: =IF(AND(J16<>0,J16<>"Inconnu",J16<>"Interrompu",J16<>"Non requis"),J16/COUNTRY_INFO!D16, 0) -> 0 | AM16: =IF(AND(P16<>0,P16<>"Inconnu",P16<>"Non requis"),P16/(COUNTRY_INFO!E16+COUNTRY_INFO!F16), 0) -> 0 | AN16: =IF(AND(Z16<>0,Z16<>"Inconnu",Z16<>"Non requis"),IF(COUNTRY_INFO!K16=1,1,IF(COUNTRY_INFO!K16=2,0.5*COUNTRY_INFO!F16/(0.5*COUNTRY_INFO!F16+0.2*COUNTRY_INFO!G16),IF(COUNTRY_INFO!K16=3,COUNTRY_INFO!F16/(COUNTRY_INFO!F16+COUNTRY_INFO!G16)))),0) -> 0.5761319127 | AO16: =IF(AND(Z16<>0,Z16<>"Inconnu",Z16<>"Non requis"),IF(COUNTRY_INFO!K16=1,0,IF(COUNTRY_INFO!K16=2,0.2*COUNTRY_INFO!G16/(0.5*COUNTRY_INFO!F16+0.2*COUNTRY_INFO!G16),IF(COUNTRY_INFO!K16=3,COUNTRY_INFO!G16/(COUNTRY_INFO!F16+COUNTRY_INFO!G16)))),0) -> 0.4238680873 | AP16: =MAX(COUNTRY_INFO!D16*AK16*PROFILE!$G$7,COUNTRY_INFO!D16*AL16*PROFILE!$G$7) -> 9765.749137 | AQ16: =MAX(COUNTRY_INFO!D16*AK16*PROFILE!$G$8,COUNTRY_INFO!D16*AL16*PROFILE!$G$8,COUNTRY_INFO!D16*AM16*PROFILE!$G$8) -> 21034.03221 | AR16: =MAX(COUNTRY_INFO!D16*AK16*PROFILE!$G$9,COUNTRY_INFO!D16*AL16*PROFILE!$G$9,COUNTRY_INFO!D16*AM16*PROFILE!$G$9,IF(AND(DISTRICT!Z16<>"Inconnu",Z16<>"Non requis"),COUNTRY_INFO!O16*DISTRICT!AN16,0)) -> 42068.05649 | AS16: =MAX(COUNTRY_INFO!D16*AK16*PROFILE!$G$10,COUNTRY_INFO!D16*AL16*PROFILE!$G$10,IF(AND(DISTRICT!Z16<>"Inconnu",Z16<>"Non requis"),COUNTRY_INFO!O16*DISTRICT!AO16,0)) -> 77375.16216 | AT16: 150243 | AU16: 0 | AV16: =MAX('MDA2'!J16,'T1'!L16,'T2'!J16,T3_R1!K16,T3_R2!K16) -> 0 | AW16: =MAX('MDA1'!K16,'MDA2'!K16,'MDA3'!I16,'MDA3'!L16,'T1'!M16,'T2'!K16,T3_R1!L16,T3_R2!L16) -> 45265 | AX16: =MAX('MDA1'!L16,'MDA2'!L16,'MDA3'!J16,'MDA3'!M16,'T1'!N16,'T2'!L16,T3_R1!M16,T3_R2!M16) -> 58347 | AY16: 103612 | AZ16: =MAX('MDA2'!J16,T16) -> 0 | BA16: =MAX('MDA1'!K16,'MDA2'!K16,'MDA3'!I16,'MDA3'!L16,V16,AD16) -> 45265 | BB16: =MAX('MDA1'!L16,'MDA2'!L16,'MDA3'!J16,'MDA3'!M16,AF16) -> 58347 | BC16: 103612 | BD16: 68.96294669
A17: =IF(COUNTRY_INFO!A17=0," ",COUNTRY_INFO!A17) -> Mali | B17: =IF(COUNTRY_INFO!B17=0," ",COUNTRY_INFO!B17) -> Gao | C17: =IF(COUNTRY_INFO!C17=0," ",COUNTRY_INFO!C17) -> Gao | D17: =COUNTRY_INFO!L17 -> 310770 | G17: =MAX('MDA1'!M17,'MDA2'!M17) -> 227161 | H17: =IF(AND(COUNTRY_INFO!H17>0,COUNTRY_INFO!H17<4),IF(D17>MAX('MDA1'!M17,'MDA2'!M17),MAX('MDA1'!M17,'MDA2'!M17),D17),0) -> 227161 | I17: =IF(AND(COUNTRY_INFO!H17>0,COUNTRY_INFO!H17<4), IF(G17/D17*100<>0, IF(G17/D17*100>100,100,G17/D17*100), "-"),0) -> 73.09618045 | J17: =COUNTRY_INFO!M17 -> 0 | M17: =MAX('MDA1'!M17,MAX('MDA3'!I17,'MDA3'!L17)+MAX('MDA3'!J17,'MDA3'!M17)) -> 227161 | N17: =IF(AND(COUNTRY_INFO!I17>0,COUNTRY_INFO!I17<4),IF(J17>MAX('MDA1'!M17,MAX('MDA3'!I17,'MDA3'!L17)+MAX('MDA3'!J17,'MDA3'!M17)),MAX('MDA1'!M17,MAX('MDA3'!I17,'MDA3'!L17)+MAX('MDA3'!J17,'MDA3'!M17)),J17),0) -> 0 | O17: =IF(AND(COUNTRY_INFO!I17>0,COUNTRY_INFO!I17<4), IF(M17/J17*100<>0, IF(M17/J17*100>100,100,M17/J17*100), "-"),0) -> 0 | P17: =COUNTRY_INFO!N17 -> 0 | S17: =SUM(MAX('MDA2'!J17, 'T1'!L17, MAX(T3_R1!K17, T3_R2!K17)), MAX('MDA1'!K17, 'MDA2'!K17, 'T1'!M17, MAX(T3_R1!L17, T3_R2!L17)), MAX('MDA1'!L17, 'MDA2'!L17, 'T1'!N17, MAX(T3_R1!M17, T3_R2!M17))) -> 227161 | T17: =IF(AND(COUNTRY_INFO!J17>1,COUNTRY_INFO!J17<4),IF(COUNTRY_INFO!E17>MAX('MDA2'!J17,'T1'!L17,MAX(T3_R1!K17,T3_R2!K17)),MAX('MDA2'!J17,'T1'!L17,MAX(T3_R1!K17,T3_R2!K17)),COUNTRY_INFO!E17),0) -> 0 | U17: =IF(AND(COUNTRY_INFO!J17>1,COUNTRY_INFO!J17<4), IF(T17/COUNTRY_INFO!E17*100<>0, IF(T17/COUNTRY_INFO!E17*100>100,100,T17/COUNTRY_INFO!E17*100), "-"),0) -> 0 | V17: =IF(AND(COUNTRY_INFO!J17>1,COUNTRY_INFO!J17<4),IF(COUNTRY_INFO!F17>MAX('MDA1'!K17,'MDA2'!K17,'T1'!M17,MAX(T3_R1!L17,T3_R2!L17)),MAX('MDA1'!K17,'MDA2'!K17,'T1'!M17,MAX(T3_R1!L17,T3_R2!L17)),COUNTRY_INFO!F17),0) -> 0 | W17: =IF(AND(COUNTRY_INFO!J17>1,COUNTRY_INFO!J17<4), IF(V17/COUNTRY_INFO!F17*100<>0, IF(V17/COUNTRY_INFO!F17*100>100,100,V17/COUNTRY_INFO!F17*100), "-"),0) -> 0 | X17: 0 | Y17: =IF(AND(COUNTRY_INFO!J17>1,COUNTRY_INFO!J17<4), IF(S17/P17*100<>0, IF(X17/P17*100>100,100,X17/P17*100), "-"),0) -> 0 | Z17: =COUNTRY_INFO!O17 -> 75517.4 | AC17: =MAX('T1'!L17,'T2'!J17)+MAX('T1'!M17,'T2'!K17)+MAX('T1'!N17,'T2'!L17) -> 0 | AD17: =IF(COUNTRY_INFO!K17=1,IF(COUNTRY_INFO!F17*0.33>MAX('T1'!M17,'T2'!K17),MAX('T1'!M17,'T2'!K17),COUNTRY_INFO!F17*0.33),IF(COUNTRY_INFO!K17=2,IF(COUNTRY_INFO!F17*0.5>MAX('T1'!M17,'T2'!K17),MAX('T1'!M17,'T2'!K17),COUNTRY_INFO!F17*0.5),IF(COUNTRY_INFO!K17=3,IF(COUNTRY_INFO!F17>MAX('T1'!M17,'T2'!K17),MAX('T1'!M17,'T2'!K17),COUNTRY_INFO!F17),0))) -> 0 | AE17: =IF(AND(COUNTRY_INFO!K17>0,COUNTRY_INFO!K17<4),IF(Z17>0,IF(COUNTRY_INFO!K17=1, AD17/(COUNTRY_INFO!F17*0.33)*100, IF(COUNTRY_INFO!K17=2, AD17/(COUNTRY_INFO!F17*0.5)*100, IF(COUNTRY_INFO!K17=3, AD17/COUNTRY_INFO!F17*100))),"-"),0) -> 0 | AF17: =IF(COUNTRY_INFO!K17=2,IF(COUNTRY_INFO!G17*0.2>MAX('T1'!N17,'T2'!L17),MAX('T1'!N17,'T2'!L17),COUNTRY_INFO!G17*0.2),IF(COUNTRY_INFO!K17=3,IF(COUNTRY_INFO!G17>MAX('T1'!N17,'T2'!L17),MAX('T1'!N17,'T2'!L17),COUNTRY_INFO!G17),0)) -> 0 | AG17: =IF(AND(COUNTRY_INFO!K17>0,COUNTRY_INFO!K17<4),IF(Z17>0,IF(COUNTRY_INFO!K17=1, 0, IF(COUNTRY_INFO!K17=2, AF17/(COUNTRY_INFO!G17*0.2)*100, IF(COUNTRY_INFO!K17=3, AF17/COUNTRY_INFO!G17*100))),"-"),0) -> 0 | AH17: 0 | AI17: =IF(AND(COUNTRY_INFO!K17>0,COUNTRY_INFO!K17<4), IF(AC17/Z17*100<>0, IF(AH17/Z17*100>100,100,AH17/Z17*100), "-"),0) -> - | AK17: =IF(AND(D17<>0, D17<>"Inconnu",D17<>"Interrompu",D17<>"Non requis"),D17/COUNTRY_INFO!D17, 0) -> 1 | AL17: =IF(AND(J17<>0,J17<>"Inconnu",J17<>"Interrompu",J17<>"Non requis"),J17/COUNTRY_INFO!D17, 0) -> 0 | AM17: =IF(AND(P17<>0,P17<>"Inconnu",P17<>"Non requis"),P17/(COUNTRY_INFO!E17+COUNTRY_INFO!F17), 0) -> 0 | AN17: =IF(AND(Z17<>0,Z17<>"Inconnu",Z17<>"Non requis"),IF(COUNTRY_INFO!K17=1,1,IF(COUNTRY_INFO!K17=2,0.5*COUNTRY_INFO!F17/(0.5*COUNTRY_INFO!F17+0.2*COUNTRY_INFO!G17),IF(COUNTRY_INFO!K17=3,COUNTRY_INFO!F17/(COUNTRY_INFO!F17+COUNTRY_INFO!G17)))),0) -> 0.5761321232 | AO17: =IF(AND(Z17<>0,Z17<>"Inconnu",Z17<>"Non requis"),IF(COUNTRY_INFO!K17=1,0,IF(COUNTRY_INFO!K17=2,0.2*COUNTRY_INFO!G17/(0.5*COUNTRY_INFO!F17+0.2*COUNTRY_INFO!G17),IF(COUNTRY_INFO!K17=3,COUNTRY_INFO!G17/(COUNTRY_INFO!F17+COUNTRY_INFO!G17)))),0) -> 0.4238678768 | AP17: =MAX(COUNTRY_INFO!D17*AK17*PROFILE!$G$7,COUNTRY_INFO!D17*AL17*PROFILE!$G$7) -> 20199.95513 | AQ17: =MAX(COUNTRY_INFO!D17*AK17*PROFILE!$G$8,COUNTRY_INFO!D17*AL17*PROFILE!$G$8,COUNTRY_INFO!D17*AM17*PROFILE!$G$8) -> 43507.82525 | AR17: =MAX(COUNTRY_INFO!D17*AK17*PROFILE!$G$9,COUNTRY_INFO!D17*AL17*PROFILE!$G$9,COUNTRY_INFO!D17*AM17*PROFILE!$G$9,IF(AND(DISTRICT!Z17<>"Inconnu",Z17<>"Non requis"),COUNTRY_INFO!O17*DISTRICT!AN17,0)) -> 87015.63411 | AS17: =MAX(COUNTRY_INFO!D17*AK17*PROFILE!$G$10,COUNTRY_INFO!D17*AL17*PROFILE!$G$10,IF(AND(DISTRICT!Z17<>"Inconnu",Z17<>"Non requis"),COUNTRY_INFO!O17*DISTRICT!AO17,0)) -> 160046.5855 | AT17: 310770 | AU17: 0 | AV17: =MAX('MDA2'!J17,'T1'!L17,'T2'!J17,T3_R1!K17,T3_R2!K17) -> 0 | AW17: =MAX('MDA1'!K17,'MDA2'!K17,'MDA3'!I17,'MDA3'!L17,'T1'!M17,'T2'!K17,T3_R1!L17,T3_R2!L17) -> 115961 | AX17: =MAX('MDA1'!L17,'MDA2'!L17,'MDA3'!J17,'MDA3'!M17,'T1'!N17,'T2'!L17,T3_R1!M17,T3_R2!M17) -> 111200 | AY17: 227161 | AZ17: =MAX('MDA2'!J17,T17) -> 0 | BA17: =MAX('MDA1'!K17,'MDA2'!K17,'MDA3'!I17,'MDA3'!L17,V17,AD17) -> 115961 | BB17: =MAX('MDA1'!L17,'MDA2'!L17,'MDA3'!J17,'MDA3'!M17,AF17) -> 111200 | BC17: 227161 | BD17: 73.09618045
